Workbook

Sheet INSCRIPCIÓ
B8: El tancament de l'inscripció és el dia 03 d'abril a les 19:00, la inscripció és obligatòria si es vol participar
B9: Se celebren 6 campionats de Barcelona individual el dia 7 d'abril a Reina Elisenda
B11: Un jugador masculí només pot jugar a una prova individual. Les jugadores infantils o juvenils només poden participar a l'absolut femení.
B12: Les jugadores ALE, BEN o PRE poden jugar les 2 proves femenines (absolut i aleví) sempre que el rànquing els ho permeti.
B13: Si un jugador/a inscrit no es presenta justificadament es treuran 100 punts al jugador/a i club
B14: És molt important la puntualitat, si un reserva està present en el moment de fer el sorteig i
B15: encara no ha arribat algun jugador, aquest entrarà al sorteig i l'altre perdrà la plaça,
B17: Seleccioneu el club de la llista desplegable i apareixeran tots els jugadors/es amb possibilitat d'inscriure's.
B18: Tot i que la participació estarà restringida a 24 jugadors a les categories masculines i 16 jugadores a les femenines, encara que un jugador/a
B19: tingui una posició relativa superior a aquestes xifres podeu realitzar la inscripció per si hi ha baixes de jugadors/es amb més rànquing.
B20: Heu de posar números, que signifiquen l'ordre de preferència de la categoria a la que vol participar cada jugador (1 = 1a preferència), a
B21: les caselles en blanc. A les caselles en vermell no hi introduïu res.
B23: EXEMPLES D'INSCRIPCIÓ:
B25: EXEMPLE 1: Jugador aleví masculí que prefereix jugar a la categoria juvenil si hi ha places lliures, sinó a la infantil i sinó a l'aleví.
B26: EXEMPLE 2: Jugador benjamí masculí que vol jugar a la categoria aleví i no a les superiors ni a la benjamí.
B27: EXEMPLE 3: Jugadora prebenjamina femenina que vol jugar a la categoria alevina femenina i a l'absoluta femenina si hi ha plaça.
B28: EXEMPLE 4: Jugadora infantil femenina que, tot i tenir plaça, no jugarà (es deixa en blanc).
C30: CLUB:
B32: Individual | G32: Juv | H32: Inf | I32: Ale | J32: Ben | K32: Abs F | L32: Ale F | N32: Juv | O32: Inf | P32: Ale | Q32: Ben | R32: Abs F | S32: Ale F
B33: nº personal | C33: COGNOM Nom | D33: Edat | E33: RK | F33: Observacions | G33: 10 | H33: 11 | I33: 12 | J33: 13 | K33: 14 | L33: 15 | N33: Posició relativa
B34: 123 | C34: EXEMPLE 1 | D34: ALE-1 | E34: 1000 | G34: 1 | H34: 2 | I34: 3 | N34: 28 | O34: 26 | P34: 3
B35: 456 | C35: EXEMPLE 2 | D35: BEN-2 | E35: 500 | I35: 1 | N35: 125 | O35: 54 | P35: 16 | Q35: 7
B36: 789 | C36: EXEMPLE 3 | D36: PRE-0 | E36: 300 | K36: 1 | L36: 1 | R36: 33 | S36: 21
B37: 987 | C37: EXEMPLE 4 | D37: INF-2 | E37: 2000 | R37: 5
B38: =IF(ISERROR(VLOOKUP(Hoja3!T2,Hoja3!$U$2:$V$402,2,0)),"",VLOOKUP(Hoja3!T2,Hoja3!$U$2:$V$402,2,0)) ->  | C38: =IF(ISERROR(VLOOKUP(B38,personal,1,0))," ",VLOOKUP(B38,personal,3,0)) ->  | D38: =IF(ISERROR(VLOOKUP(B38,personal,1,0))," ",VLOOKUP(B38,personal,4,0)) ->  | E38: =IF(ISERROR(VLOOKUP(B38,personal,9,0))," ",(VLOOKUP(B38,personal,9,0))) ->  | F38: =IF(ISERROR(VLOOKUP(B38,personal,19,0))," ",(VLOOKUP(B38,personal,19,0))) ->  | N38: =IF(ISERROR(VLOOKUP($B38,personal,G$33,0)),"",(VLOOKUP($B38,personal,G$33,0))) ->  | O38: =IF(ISERROR(VLOOKUP($B38,personal,H$33,0)),"",(VLOOKUP($B38,personal,H$33,0))) ->  | P38: =IF(ISERROR(VLOOKUP($B38,personal,I$33,0)),"",(VLOOKUP($B38,personal,I$33,0))) ->  | Q38: =IF(ISERROR(VLOOKUP($B38,personal,J$33,0)),"",(VLOOKUP($B38,personal,J$33,0))) ->  | R38: =IF(ISERROR(VLOOKUP($B38,personal,K$33,0)),"",(VLOOKUP($B38,personal,K$33,0))) ->  | S38: =IF(ISERROR(VLOOKUP($B38,personal,L$33,0)),"",(VLOOKUP($B38,personal,L$33,0))) -> 
B39: =IF(ISERROR(VLOOKUP(Hoja3!T3,Hoja3!$U$2:$V$402,2,0)),"",VLOOKUP(Hoja3!T3,Hoja3!$U$2:$V$402,2,0)) -> 
B40: =IF(ISERROR(VLOOKUP(Hoja3!T4,Hoja3!$U$2:$V$402,2,0)),"",VLOOKUP(Hoja3!T4,Hoja3!$U$2:$V$402,2,0)) -> 
B41: =IF(ISERROR(VLOOKUP(Hoja3!T5,Hoja3!$U$2:$V$402,2,0)),"",VLOOKUP(Hoja3!T5,Hoja3!$U$2:$V$402,2,0)) -> 
B42: =IF(ISERROR(VLOOKUP(Hoja3!T6,Hoja3!$U$2:$V$402,2,0)),"",VLOOKUP(Hoja3!T6,Hoja3!$U$2:$V$402,2,0)) -> 
B43: =IF(ISERROR(VLOOKUP(Hoja3!T7,Hoja3!$U$2:$V$402,2,0)),"",VLOOKUP(Hoja3!T7,Hoja3!$U$2:$V$402,2,0)) -> 
B44: =IF(ISERROR(VLOOKUP(Hoja3!T8,Hoja3!$U$2:$V$402,2,0)),"",VLOOKUP(Hoja3!T8,Hoja3!$U$2:$V$402,2,0)) -> 
B45: =IF(ISERROR(VLOOKUP(Hoja3!T9,Hoja3!$U$2:$V$402,2,0)),"",VLOOKUP(Hoja3!T9,Hoja3!$U$2:$V$402,2,0)) -> 
B46: =IF(ISERROR(VLOOKUP(Hoja3!T10,Hoja3!$U$2:$V$402,2,0)),"",VLOOKUP(Hoja3!T10,Hoja3!$U$2:$V$402,2,0)) -> 
B47: =IF(ISERROR(VLOOKUP(Hoja3!T11,Hoja3!$U$2:$V$402,2,0)),"",VLOOKUP(Hoja3!T11,Hoja3!$U$2:$V$402,2,0)) -> 
B48: =IF(ISERROR(VLOOKUP(Hoja3!T12,Hoja3!$U$2:$V$402,2,0)),"",VLOOKUP(Hoja3!T12,Hoja3!$U$2:$V$402,2,0)) -> 
B49: =IF(ISERROR(VLOOKUP(Hoja3!T13,Hoja3!$U$2:$V$402,2,0)),"",VLOOKUP(Hoja3!T13,Hoja3!$U$2:$V$402,2,0)) -> 
B50: =IF(ISERROR(VLOOKUP(Hoja3!T14,Hoja3!$U$2:$V$402,2,0)),"",VLOOKUP(Hoja3!T14,Hoja3!$U$2:$V$402,2,0)) -> 
B51: =IF(ISERROR(VLOOKUP(Hoja3!T15,Hoja3!$U$2:$V$402,2,0)),"",VLOOKUP(Hoja3!T15,Hoja3!$U$2:$V$402,2,0)) -> 
B52: =IF(ISERROR(VLOOKUP(Hoja3!T16,Hoja3!$U$2:$V$402,2,0)),"",VLOOKUP(Hoja3!T16,Hoja3!$U$2:$V$402,2,0)) -> 
B53: =IF(ISERROR(VLOOKUP(Hoja3!T17,Hoja3!$U$2:$V$402,2,0)),"",VLOOKUP(Hoja3!T17,Hoja3!$U$2:$V$402,2,0)) -> 
B54: =IF(ISERROR(VLOOKUP(Hoja3!T18,Hoja3!$U$2:$V$402,2,0)),"",VLOOKUP(Hoja3!T18,Hoja3!$U$2:$V$402,2,0)) -> 
B55: =IF(ISERROR(VLOOKUP(Hoja3!T19,Hoja3!$U$2:$V$402,2,0)),"",VLOOKUP(Hoja3!T19,Hoja3!$U$2:$V$402,2,0)) -> 
B56: =IF(ISERROR(VLOOKUP(Hoja3!T20,Hoja3!$U$2:$V$402,2,0)),"",VLOOKUP(Hoja3!T20,Hoja3!$U$2:$V$402,2,0)) -> 
B57: =IF(ISERROR(VLOOKUP(Hoja3!T21,Hoja3!$U$2:$V$402,2,0)),"",VLOOKUP(Hoja3!T21,Hoja3!$U$2:$V$402,2,0)) -> 
B58: =IF(ISERROR(VLOOKUP(Hoja3!T22,Hoja3!$U$2:$V$402,2,0)),"",VLOOKUP(Hoja3!T22,Hoja3!$U$2:$V$402,2,0)) -> 
B59: =IF(ISERROR(VLOOKUP(Hoja3!T23,Hoja3!$U$2:$V$402,2,0)),"",VLOOKUP(Hoja3!T23,Hoja3!$U$2:$V$402,2,0)) -> 
B60: =IF(ISERROR(VLOOKUP(Hoja3!T24,Hoja3!$U$2:$V$402,2,0)),"",VLOOKUP(Hoja3!T24,Hoja3!$U$2:$V$402,2,0)) -> 
B61: =IF(ISERROR(VLOOKUP(Hoja3!T25,Hoja3!$U$2:$V$402,2,0)),"",VLOOKUP(Hoja3!T25,Hoja3!$U$2:$V$402,2,0)) -> 
B62: =IF(ISERROR(VLOOKUP(Hoja3!T26,Hoja3!$U$2:$V$402,2,0)),"",VLOOKUP(Hoja3!T26,Hoja3!$U$2:$V$402,2,0)) -> 
B63: =IF(ISERROR(VLOOKUP(Hoja3!T27,Hoja3!$U$2:$V$402,2,0)),"",VLOOKUP(Hoja3!T27,Hoja3!$U$2:$V$402,2,0)) -> 
B64: =IF(ISERROR(VLOOKUP(Hoja3!T28,Hoja3!$U$2:$V$402,2,0)),"",VLOOKUP(Hoja3!T28,Hoja3!$U$2:$V$402,2,0)) -> 
B65: =IF(ISERROR(VLOOKUP(Hoja3!T29,Hoja3!$U$2:$V$402,2,0)),"",VLOOKUP(Hoja3!T29,Hoja3!$U$2:$V$402,2,0)) -> 
B66: =IF(ISERROR(VLOOKUP(Hoja3!T30,Hoja3!$U$2:$V$402,2,0)),"",VLOOKUP(Hoja3!T30,Hoja3!$U$2:$V$402,2,0)) -> 
B67: =IF(ISERROR(VLOOKUP(Hoja3!T31,Hoja3!$U$2:$V$402,2,0)),"",VLOOKUP(Hoja3!T31,Hoja3!$U$2:$V$402,2,0)) -> 
B68: =IF(ISERROR(VLOOKUP(Hoja3!T32,Hoja3!$U$2:$V$402,2,0)),"",VLOOKUP(Hoja3!T32,Hoja3!$U$2:$V$402,2,0)) -> 
B69: =IF(ISERROR(VLOOKUP(Hoja3!T33,Hoja3!$U$2:$V$402,2,0)),"",VLOOKUP(Hoja3!T33,Hoja3!$U$2:$V$402,2,0)) -> 
B70: =IF(ISERROR(VLOOKUP(Hoja3!T34,Hoja3!$U$2:$V$402,2,0)),"",VLOOKUP(Hoja3!T34,Hoja3!$U$2:$V$402,2,0)) ->  | C70: =IF(ISERROR(VLOOKUP(B70,personal,1,0))," ",VLOOKUP(B70,personal,3,0)) ->  | D70: =IF(ISERROR(VLOOKUP(B70,personal,1,0))," ",VLOOKUP(B70,personal,4,0)) ->  | E70: =IF(ISERROR(VLOOKUP(B70,personal,9,0))," ",(VLOOKUP(B70,personal,9,0))) ->  | F70: =IF(ISERROR(VLOOKUP(B70,personal,19,0))," ",(VLOOKUP(B70,personal,19,0))) ->  | N70: =IF(ISERROR(VLOOKUP($B70,personal,G$33,0)),"",(VLOOKUP($B70,personal,G$33,0))) ->  | O70: =IF(ISERROR(VLOOKUP($B70,personal,H$33,0)),"",(VLOOKUP($B70,personal,H$33,0))) ->  | P70: =IF(ISERROR(VLOOKUP($B70,personal,I$33,0)),"",(VLOOKUP($B70,personal,I$33,0))) ->  | Q70: =IF(ISERROR(VLOOKUP($B70,personal,J$33,0)),"",(VLOOKUP($B70,personal,J$33,0))) ->  | R70: =IF(ISERROR(VLOOKUP($B70,personal,K$33,0)),"",(VLOOKUP($B70,personal,K$33,0))) ->  | S70: =IF(ISERROR(VLOOKUP($B70,personal,L$33,0)),"",(VLOOKUP($B70,personal,L$33,0))) -> 
B71: =IF(ISERROR(VLOOKUP(Hoja3!T35,Hoja3!$U$2:$V$402,2,0)),"",VLOOKUP(Hoja3!T35,Hoja3!$U$2:$V$402,2,0)) -> 
B72: =IF(ISERROR(VLOOKUP(Hoja3!T36,Hoja3!$U$2:$V$402,2,0)),"",VLOOKUP(Hoja3!T36,Hoja3!$U$2:$V$402,2,0)) -> 
B73: =IF(ISERROR(VLOOKUP(Hoja3!T37,Hoja3!$U$2:$V$402,2,0)),"",VLOOKUP(Hoja3!T37,Hoja3!$U$2:$V$402,2,0)) -> 
B74: =IF(ISERROR(VLOOKUP(Hoja3!T38,Hoja3!$U$2:$V$402,2,0)),"",VLOOKUP(Hoja3!T38,Hoja3!$U$2:$V$402,2,0)) -> 
B75: =IF(ISERROR(VLOOKUP(Hoja3!T39,Hoja3!$U$2:$V$402,2,0)),"",VLOOKUP(Hoja3!T39,Hoja3!$U$2:$V$402,2,0)) -> 
B76: =IF(ISERROR(VLOOKUP(Hoja3!T40,Hoja3!$U$2:$V$402,2,0)),"",VLOOKUP(Hoja3!T40,Hoja3!$U$2:$V$402,2,0)) -> 
B77: =IF(ISERROR(VLOOKUP(Hoja3!T41,Hoja3!$U$2:$V$402,2,0)),"",VLOOKUP(Hoja3!T41,Hoja3!$U$2:$V$402,2,0)) -> 
B78: =IF(ISERROR(VLOOKUP(Hoja3!T42,Hoja3!$U$2:$V$402,2,0)),"",VLOOKUP(Hoja3!T42,Hoja3!$U$2:$V$402,2,0)) -> 
B79: =IF(ISERROR(VLOOKUP(Hoja3!T43,Hoja3!$U$2:$V$402,2,0)),"",VLOOKUP(Hoja3!T43,Hoja3!$U$2:$V$402,2,0)) -> 
B80: =IF(ISERROR(VLOOKUP(Hoja3!T44,Hoja3!$U$2:$V$402,2,0)),"",VLOOKUP(Hoja3!T44,Hoja3!$U$2:$V$402,2,0)) -> 
B81: =IF(ISERROR(VLOOKUP(Hoja3!T45,Hoja3!$U$2:$V$402,2,0)),"",VLOOKUP(Hoja3!T45,Hoja3!$U$2:$V$402,2,0)) -> 
B82: =IF(ISERROR(VLOOKUP(Hoja3!T46,Hoja3!$U$2:$V$402,2,0)),"",VLOOKUP(Hoja3!T46,Hoja3!$U$2:$V$402,2,0)) -> 
B83: =IF(ISERROR(VLOOKUP(Hoja3!T47,Hoja3!$U$2:$V$402,2,0)),"",VLOOKUP(Hoja3!T47,Hoja3!$U$2:$V$402,2,0)) -> 
B84: =IF(ISERROR(VLOOKUP(Hoja3!T48,Hoja3!$U$2:$V$402,2,0)),"",VLOOKUP(Hoja3!T48,Hoja3!$U$2:$V$402,2,0)) -> 
B85: =IF(ISERROR(VLOOKUP(Hoja3!T49,Hoja3!$U$2:$V$402,2,0)),"",VLOOKUP(Hoja3!T49,Hoja3!$U$2:$V$402,2,0)) -> 
B86: =IF(ISERROR(VLOOKUP(Hoja3!T50,Hoja3!$U$2:$V$402,2,0)),"",VLOOKUP(Hoja3!T50,Hoja3!$U$2:$V$402,2,0)) -> 
B88: Dobles | G88: Abs | I88: Ale-Ben | K88: Fem | N88: Abs | P88: Ale-Ben | R88: Fem
B89: nº personal | C89: COGNOM Nom | D89: Edat | E89: RK | F89: Observacions | G89: 15 | I89: 16 | K89: 17 | N89: Posició relativa
C90: =IF(ISERROR(VLOOKUP(B90,personal,1,0))," ",VLOOKUP(B90,personal,3,0)) ->  | D90: =IF(ISERROR(VLOOKUP(B90,personal,1,0))," ",VLOOKUP(B90,personal,4,0)) ->  | E90: =IF(ISERROR(VLOOKUP(B90,personal,9,0))," ",(VLOOKUP(B90,personal,9,0))) ->  | F90: =IF(ISERROR(VLOOKUP(B90,personal,19,0))," ",(VLOOKUP(B90,personal,19,0))) ->  | N90: =IF(ISERROR(VLOOKUP($B90,personal,G$89,0)),"",(VLOOKUP($B90,personal,G$89,0))) ->  | P90: =IF(ISERROR(VLOOKUP($B90,personal,I$89,0)),"",(VLOOKUP($B90,personal,I$89,0))) ->  | R90: =IF(ISERROR(VLOOKUP($B90,personal,K$89,0)),"",(VLOOKUP($B90,personal,K$89,0))) -> 

Sheet Hoja3
R2: CTT AMICS TERRASSA | S2: AMICS | T2: 1 | U2: =IF(V2="","",MAX(U$1:U1)+1) ->  | V2: =IF(ISERROR(IF(ranquing!G3=VLOOKUP(INSCRIPCIÓ!$D$30,$R$2:$S$38,2,0),ranquing!A3,"")),"",IF(ranquing!G3=VLOOKUP(INSCRIPCIÓ!$D$30,$R$2:$S$38,2,0),ranquing!A3,"")) -> 
R3: CTT ATENEU 1882 | S3: ATEN82 | T3: =T2+1 -> 2 | U3: =IF(V3="","",MAX(U$1:U2)+1) ->  | V3: =IF(ISERROR(IF(ranquing!G4=VLOOKUP(INSCRIPCIÓ!$D$30,$R$2:$S$38,2,0),ranquing!A4,"")),"",IF(ranquing!G4=VLOOKUP(INSCRIPCIÓ!$D$30,$R$2:$S$38,2,0),ranquing!A4,"")) -> 
F4: 1 | J4: 1 | R4: CTT CALELLA | S4: CALELLA | T4: 3 | U4: =IF(V4="","",MAX(U$1:U3)+1) ->  | V4: =IF(ISERROR(IF(ranquing!G5=VLOOKUP(INSCRIPCIÓ!$D$30,$R$2:$S$38,2,0),ranquing!A5,"")),"",IF(ranquing!G5=VLOOKUP(INSCRIPCIÓ!$D$30,$R$2:$S$38,2,0),ranquing!A5,"")) -> 
B5: 1 | C5: 1 | E5: 0 | F5: 2 | G5: CTT ELS AMICS TERRASSA | H5: 43100024 | I5: AMICS | M5: 43100062 | N5: C9062 | O5: CLUB DE 7 A 9 | R5: CTT CARDEDEU | S5: CARDEDEU | T5: 4 | U5: =IF(V5="","",MAX(U$1:U4)+1) ->  | V5: =IF(ISERROR(IF(ranquing!G6=VLOOKUP(INSCRIPCIÓ!$D$30,$R$2:$S$38,2,0),ranquing!A6,"")),"",IF(ranquing!G6=VLOOKUP(INSCRIPCIÓ!$D$30,$R$2:$S$38,2,0),ranquing!A6,"")) -> 
A6: Sènior PREFERENT | B6: 1 | C6: 2 | D6: =A6 -> Sènior PREFERENT | E6: 120 | F6: 3 | G6: CLUB ARIEL | H6: 43100005 | I6: ARIEL | J6: =VLOOKUP(J4,club3,2,0) ->  | M6: 43100005 | N6: 581 | O6: CLUB ARIEL | R6: CASTELLAR DEL VALLÈS | S6: CASTELLAR | T6: 5 | U6: =IF(V6="","",MAX(U$1:U5)+1) ->  | V6: =IF(ISERROR(IF(ranquing!G7=VLOOKUP(INSCRIPCIÓ!$D$30,$R$2:$S$38,2,0),ranquing!A7,"")),"",IF(ranquing!G7=VLOOKUP(INSCRIPCIÓ!$D$30,$R$2:$S$38,2,0),ranquing!A7,"")) -> 
A7: Sènior PRIMERA | B7: 1 | C7: 3 | D7: Sènior PRIMERA | E7: 105 | F7: 4 | G7: CM ARENYS DE MUNT | H7: 43100004 | I7: ARMUNT | J7: =VLOOKUP(J4,club3,3,0) ->  | M7: 43100004 | N7: 597 | O7: CM ARENYS DE MUNT | R7: CTT CASTELLDEFELS | S7: CASTELLDEFELS | T7: 6 | U7: =IF(V7="","",MAX(U$1:U6)+1) ->  | V7: =IF(ISERROR(IF(ranquing!G8=VLOOKUP(INSCRIPCIÓ!$D$30,$R$2:$S$38,2,0),ranquing!A8,"")),"",IF(ranquing!G8=VLOOKUP(INSCRIPCIÓ!$D$30,$R$2:$S$38,2,0),ranquing!A8,"")) -> 
A8: Sènior SEGONA | B8: 1 | C8: 4 | D8: Sènior SEGONA | E8: 90 | F8: 5 | G8: CTT ATENEU 1882 | H8: 43100007 | I8: ATEN82 | M8: 43100006 | N8: 435 | O8: TT ATENEU LA FLOR DE MAIG | R8: CTT CASTELLGALÍ | S8: CLARAM | T8: 7 | U8: =IF(V8="","",MAX(U$1:U7)+1) ->  | V8: =IF(ISERROR(IF(ranquing!G9=VLOOKUP(INSCRIPCIÓ!$D$30,$R$2:$S$38,2,0),ranquing!A9,"")),"",IF(ranquing!G9=VLOOKUP(INSCRIPCIÓ!$D$30,$R$2:$S$38,2,0),ranquing!A9,"")) -> 
A9: Sènior TERCERA | B9: 1 | C9: 5 | D9: Sènior TERCERA | E9: 75 | F9: 6 | G9: CTT ATENEU POBLENOU | H9: 43100204 | I9: ATEPN | M9: 43100007 | N9: 291 | O9: CTT ATENEU 1882 | R9: CLUB NATACIO SABADELL | S9: CNSABA | T9: 8 | U9: =IF(V9="","",MAX(U$1:U8)+1) ->  | V9: =IF(ISERROR(IF(ranquing!G10=VLOOKUP(INSCRIPCIÓ!$D$30,$R$2:$S$38,2,0),ranquing!A10,"")),"",IF(ranquing!G10=VLOOKUP(INSCRIPCIÓ!$D$30,$R$2:$S$38,2,0),ranquing!A10,"")) -> 
A10: VETERANS 1ª | C10: 6 | D10: VETERANS 1ª | E10: 80 | F10: 7 | G10: CTT L'AVENÇ | H10: 43100008 | I10: AVENÇ | M10: 43100008 | N10: C9008 | O10: CTT L'AVENÇ | R10: CTT VILANOVA DEL CAMÍ | S10: COLLBATO | T10: 9 | U10: =IF(V10="","",MAX(U$1:U9)+1) ->  | V10: =IF(ISERROR(IF(ranquing!G11=VLOOKUP(INSCRIPCIÓ!$D$30,$R$2:$S$38,2,0),ranquing!A11,"")),"",IF(ranquing!G11=VLOOKUP(INSCRIPCIÓ!$D$30,$R$2:$S$38,2,0),ranquing!A11,"")) -> 
A11: VETERANS 2ª | C11: 7 | D11: VETERANS 2ª | E11: 80 | F11: 8 | G11: CTT BADALONA | H11: 43100009 | I11: BADALO | M11: 43100009 | N11: 293 | O11: CTT BADALONA | R11: AGRUPACIÓ CONGRÉS | S11: CONGRES | T11: 10 | U11: =IF(V11="","",MAX(U$1:U10)+1) ->  | V11: =IF(ISERROR(IF(ranquing!G12=VLOOKUP(INSCRIPCIÓ!$D$30,$R$2:$S$38,2,0),ranquing!A12,"")),"",IF(ranquing!G12=VLOOKUP(INSCRIPCIÓ!$D$30,$R$2:$S$38,2,0),ranquing!A12,"")) -> 
A12: VETERANS 3ª | C12: 8 | D12: VETERANS 3ª | E12: 80 | F12: 9 | G12: CTT BAGÀ | H12: 43100010 | I12: BAGA | M12: 43100010 | N12: 247 | O12: CTT BAGÀ | R12: CTT COLLBATÓ | S12: CTGALI | T12: 11 | U12: =IF(V12="","",MAX(U$1:U11)+1) ->  | V12: =IF(ISERROR(IF(ranquing!G13=VLOOKUP(INSCRIPCIÓ!$D$30,$R$2:$S$38,2,0),ranquing!A13,"")),"",IF(ranquing!G13=VLOOKUP(INSCRIPCIÓ!$D$30,$R$2:$S$38,2,0),ranquing!A13,"")) -> 
A13: FEMENÍ | C13: 9 | D13: FEMENÍ | E13: 75 | F13: 10 | G13: CT BARCINO | H13: 43100012 | I13: BARCIN | M13: 43100012 | N13: 253 | O13: CT BARCINO | R13: CTT DELS HORTS 2000 | S13: DELS HORTS | T13: 12 | U13: =IF(V13="","",MAX(U$1:U12)+1) ->  | V13: =IF(ISERROR(IF(ranquing!G14=VLOOKUP(INSCRIPCIÓ!$D$30,$R$2:$S$38,2,0),ranquing!A14,"")),"",IF(ranquing!G14=VLOOKUP(INSCRIPCIÓ!$D$30,$R$2:$S$38,2,0),ranquing!A14,"")) -> 
A14: VET +50 | C14: 10 | D14: VET +50 | E14: 80 | F14: 11 | G14: BELLVITGE ALHEÑA | H14: 43100014 | I14: BELLVI | M14: 43100014 | N14: C9014 | O14: BELLVITGE ALHEÑA | R14: CETT ESPARREGUERA | S14: ESPARREGU. | T14: 13 | U14: =IF(V14="","",MAX(U$1:U13)+1) ->  | V14: =IF(ISERROR(IF(ranquing!G15=VLOOKUP(INSCRIPCIÓ!$D$30,$R$2:$S$38,2,0),ranquing!A15,"")),"",IF(ranquing!G15=VLOOKUP(INSCRIPCIÓ!$D$30,$R$2:$S$38,2,0),ranquing!A15,"")) -> 
F15: 12 | G15: AP LA CAIXA | H15: 43100016 | I15: CAIXA | M15: 43100016 | N15: 423 | O15: AP LA CAIXA | R15: EUROCLIMA BADALONA | S15: EUROCLIMA BDN | T15: 14 | U15: =IF(V15="","",MAX(U$1:U14)+1) ->  | V15: =IF(ISERROR(IF(ranquing!G16=VLOOKUP(INSCRIPCIÓ!$D$30,$R$2:$S$38,2,0),ranquing!A16,"")),"",IF(ranquing!G16=VLOOKUP(INSCRIPCIÓ!$D$30,$R$2:$S$38,2,0),ranquing!A16,"")) -> 
F16: 13 | G16: CTT CALELLA | H16: 43100018 | I16: CALEL | M16: 43100017 | N16: C9017 | O16: CTT CALAF | R16: CLUB FALCONS DE SABADELL | S16: FALCONS | T16: 15 | U16: =IF(V16="","",MAX(U$1:U15)+1) ->  | V16: =IF(ISERROR(IF(ranquing!G17=VLOOKUP(INSCRIPCIÓ!$D$30,$R$2:$S$38,2,0),ranquing!A17,"")),"",IF(ranquing!G17=VLOOKUP(INSCRIPCIÓ!$D$30,$R$2:$S$38,2,0),ranquing!A17,"")) -> 
F17: 14 | G17: CTT CANET DE MAR | H17: 43100020 | I17: CANET | M17: 43100018 | N17: 248 | O17: CTT CALELLA | R17: LLUÏSOS D'HORTA TT | S17: HORTA | T17: 16 | U17: =IF(V17="","",MAX(U$1:U16)+1) ->  | V17: =IF(ISERROR(IF(ranquing!G18=VLOOKUP(INSCRIPCIÓ!$D$30,$R$2:$S$38,2,0),ranquing!A18,"")),"",IF(ranquing!G18=VLOOKUP(INSCRIPCIÓ!$D$30,$R$2:$S$38,2,0),ranquing!A18,"")) -> 
B18: =VLOOKUP(B5,_cat10,3,0) -> 0 | F18: 15 | G18: CTT CARDEDEU | H18: 43100190 | I18: CARDED | M18: 43100020 | N18: C9020 | O18: CTT CANET DE MAR | R18: TT L'HOSPITALET | S18: HOSPIT | T18: 17 | U18: =IF(V18="","",MAX(U$1:U17)+1) ->  | V18: =IF(ISERROR(IF(ranquing!G19=VLOOKUP(INSCRIPCIÓ!$D$30,$R$2:$S$38,2,0),ranquing!A19,"")),"",IF(ranquing!G19=VLOOKUP(INSCRIPCIÓ!$D$30,$R$2:$S$38,2,0),ranquing!A19,"")) -> 
B19: =VLOOKUP(B5,_cat10,3,0) -> 0 | F19: 16 | G19: CTT CASTELLDEFELS | H19: 43100090 | I19: CASTDF | M19: 43100090 | N19: C9090 | O19: CTT CASTELLDEFELS | R19: ICELAND ELS 8 | S19: ICELAND ELS 8 | T19: 18 | U19: =IF(V19="","",MAX(U$1:U18)+1) ->  | V19: =IF(ISERROR(IF(ranquing!G20=VLOOKUP(INSCRIPCIÓ!$D$30,$R$2:$S$38,2,0),ranquing!A20,"")),"",IF(ranquing!G20=VLOOKUP(INSCRIPCIÓ!$D$30,$R$2:$S$38,2,0),ranquing!A20,"")) -> 
F20: 17 | G20: CERCLE CATOLIC DE GRACIA | H20: 43100030 | I20: CCGRAC | M20: 43100030 | N20: C9030 | O20: CERCLE CATOLIC DE GRACIA | R20: CPP IGUALADA | S20: IGUALA | T20: 19 | U20: =IF(V20="","",MAX(U$1:U19)+1) ->  | V20: =IF(ISERROR(IF(ranquing!G21=VLOOKUP(INSCRIPCIÓ!$D$30,$R$2:$S$38,2,0),ranquing!A21,"")),"",IF(ranquing!G21=VLOOKUP(INSCRIPCIÓ!$D$30,$R$2:$S$38,2,0),ranquing!A21,"")) -> 
F21: 18 | G21: EL CENTRE | H21: 43100031 | I21: CENTRE | M21: 43100031 | N21: 598 | O21: EL CENTRE | R21: INDEPENDENT | S21: INDEPEN | T21: 20 | U21: =IF(V21="","",MAX(U$1:U20)+1) ->  | V21: =IF(ISERROR(IF(ranquing!G22=VLOOKUP(INSCRIPCIÓ!$D$30,$R$2:$S$38,2,0),ranquing!A22,"")),"",IF(ranquing!G22=VLOOKUP(INSCRIPCIÓ!$D$30,$R$2:$S$38,2,0),ranquing!A22,"")) -> 
B22: 1 | C22: 1 | E22: 0 | F22: 19 | G22: SCR EL CIERVO | H22: 43100080 | I22: CIERVO | M22: 43100080 | N22: 243 | O22: SCR EL CIERVO | R22: LA UNIÓ | S22: LA UNIÓ | T22: 21 | U22: =IF(V22="","",MAX(U$1:U21)+1) ->  | V22: =IF(ISERROR(IF(ranquing!G23=VLOOKUP(INSCRIPCIÓ!$D$30,$R$2:$S$38,2,0),ranquing!A23,"")),"",IF(ranquing!G23=VLOOKUP(INSCRIPCIÓ!$D$30,$R$2:$S$38,2,0),ranquing!A23,"")) -> 
A23: Sènior PREFERENT | B23: 1 | C23: 2 | D23: =A23 -> Sènior PREFERENT | E23: 120 | F23: 20 | G23: CTT LA TORRE DE CLARAMUNT | H23: 43100191 | I23: CLARAM | M23: 43100022 | N23: C9022 | O23: CB CIUTAT VELLA | R23: LLUÏSOS DE GRÀCIA | S23: LLUÏSOS | T23: 22 | U23: =IF(V23="","",MAX(U$1:U22)+1) ->  | V23: =IF(ISERROR(IF(ranquing!G24=VLOOKUP(INSCRIPCIÓ!$D$30,$R$2:$S$38,2,0),ranquing!A24,"")),"",IF(ranquing!G24=VLOOKUP(INSCRIPCIÓ!$D$30,$R$2:$S$38,2,0),ranquing!A24,"")) -> 
A24: Sènior PRIMERA | B24: 1 | C24: 3 | D24: Sènior PRIMERA | E24: 105 | F24: 21 | G24: CLUB NATACIO SABADELL | H24: 43100076 | I24: CNSABA | M24: 43100076 | N24: C9076 | O24: CLUB NATACIO SABADELL | R24: MASQUEFA TTC | S24: MASQUEFA | T24: 23 | U24: =IF(V24="","",MAX(U$1:U23)+1) ->  | V24: =IF(ISERROR(IF(ranquing!G25=VLOOKUP(INSCRIPCIÓ!$D$30,$R$2:$S$38,2,0),ranquing!A25,"")),"",IF(ranquing!G25=VLOOKUP(INSCRIPCIÓ!$D$30,$R$2:$S$38,2,0),ranquing!A25,"")) -> 
A25: Sènior SEGONA | B25: 1 | C25: 4 | D25: Sènior SEGONA | E25: 90 | F25: 22 | G25: CTT COLLBATO | H25: 43100083 | I25: COLLBA | M25: 43100083 | N25: C9080 | O25: CTT COLLBATO | R25: CN MATARÓ | S25: MATARO | T25: 24 | U25: =IF(V25="","",MAX(U$1:U24)+1) ->  | V25: =IF(ISERROR(IF(ranquing!G26=VLOOKUP(INSCRIPCIÓ!$D$30,$R$2:$S$38,2,0),ranquing!A26,"")),"",IF(ranquing!G26=VLOOKUP(INSCRIPCIÓ!$D$30,$R$2:$S$38,2,0),ranquing!A26,"")) -> 
A26: Sènior TERCERA | B26: 1 | C26: 5 | D26: Sènior TERCERA | E26: 75 | F26: 23 | G26: AGRUPACIÓ CONGRÉS | H26: 43100001 | I26: CONGRE | M26: 43100001 | N26: 300 | O26: AGRUPACIÓ CONGRÉS | R26: CTT OLESA | S26: OLESA | T26: 25 | U26: =IF(V26="","",MAX(U$1:U25)+1) ->  | V26: =IF(ISERROR(IF(ranquing!G27=VLOOKUP(INSCRIPCIÓ!$D$30,$R$2:$S$38,2,0),ranquing!A27,"")),"",IF(ranquing!G27=VLOOKUP(INSCRIPCIÓ!$D$30,$R$2:$S$38,2,0),ranquing!A27,"")) -> 
A27: VETERANS 1ª | C27: 6 | D27: VETERANS 1ª | E27: 80 | F27: 24 | G27: ATT CASTELLAR | H27: 43100203 | I27: CTLLAR | M27: 43100023 | N27: C9023 | O27: CTT CUBELLES | R27: TT PARETS | S27: PARETS | T27: 26 | U27: =IF(V27="","",MAX(U$1:U26)+1) ->  | V27: =IF(ISERROR(IF(ranquing!G28=VLOOKUP(INSCRIPCIÓ!$D$30,$R$2:$S$38,2,0),ranquing!A28,"")),"",IF(ranquing!G28=VLOOKUP(INSCRIPCIÓ!$D$30,$R$2:$S$38,2,0),ranquing!A28,"")) -> 
A28: VETERANS 2ª | C28: 7 | D28: VETERANS 2ª | E28: 80 | F28: 25 | G28: CTT CUBELLES | H28: 43100023 | I28: CUBEL | M28: 43100025 | N28: C9025 | O28: ELS 8 DE LA GARRIGA | R28: TT ATENEU POBLE NOU | S28: POBLENOU | T28: 27 | U28: =IF(V28="","",MAX(U$1:U27)+1) ->  | V28: =IF(ISERROR(IF(ranquing!G29=VLOOKUP(INSCRIPCIÓ!$D$30,$R$2:$S$38,2,0),ranquing!A29,"")),"",IF(ranquing!G29=VLOOKUP(INSCRIPCIÓ!$D$30,$R$2:$S$38,2,0),ranquing!A29,"")) -> 
A29: VETERANS 3ª | C29: 8 | D29: VETERANS 3ª | E29: 80 | F29: 26 | G29: ELS 8 DE LA GARRIGA | H29: 43100025 | I29: ELS 8 | M29: 43100026 | N29: 96 | O29: EPIC CASINO COMERÇ | R29: ATT PREMIÀ DE MAR | S29: PREMIA | T29: 28 | U29: =IF(V29="","",MAX(U$1:U28)+1) ->  | V29: =IF(ISERROR(IF(ranquing!G30=VLOOKUP(INSCRIPCIÓ!$D$30,$R$2:$S$38,2,0),ranquing!A30,"")),"",IF(ranquing!G30=VLOOKUP(INSCRIPCIÓ!$D$30,$R$2:$S$38,2,0),ranquing!A30,"")) -> 
A30: FEMENÍ | C30: 9 | D30: FEMENÍ | E30: 75 | F30: 27 | G30: CETT ESPARREGUERA | H30: 43100178 | I30: ESPARR | M30: 43100027 | N30: 195 | O30: CLUB FALCONS | R30: CEM REINA ELISENDA | S30: R.ELISENDA | T30: 29 | U30: =IF(V30="","",MAX(U$1:U29)+1) ->  | V30: =IF(ISERROR(IF(ranquing!G31=VLOOKUP(INSCRIPCIÓ!$D$30,$R$2:$S$38,2,0),ranquing!A31,"")),"",IF(ranquing!G31=VLOOKUP(INSCRIPCIÓ!$D$30,$R$2:$S$38,2,0),ranquing!A31,"")) -> 
A31: VET +50 | C31: 10 | D31: VET +50 | E31: 80 | F31: 28 | G31: CLUB FALCONS SABADELL AE | H31: 43100027 | I31: FALCO | M31: 43100075 | N31: C9075 | O31: TT CAN FATJO | R31: CTT RIPOLLET | S31: RIPOLLET | T31: 30 | U31: =IF(V31="","",MAX(U$1:U30)+1) ->  | V31: =IF(ISERROR(IF(ranquing!G32=VLOOKUP(INSCRIPCIÓ!$D$30,$R$2:$S$38,2,0),ranquing!A32,"")),"",IF(ranquing!G32=VLOOKUP(INSCRIPCIÓ!$D$30,$R$2:$S$38,2,0),ranquing!A32,"")) -> 
F32: 29 | G32: CAN FATJÓ 100X100 PINGPONG | H32: 43100075 | I32: FATJO | M32: 43100028 | N32: C9028 | O32: FOMENT MARTINENC | R32: RODA DE TER | S32: RODA | T32: 31 | U32: =IF(V32="","",MAX(U$1:U31)+1) ->  | V32: =IF(ISERROR(IF(ranquing!G33=VLOOKUP(INSCRIPCIÓ!$D$30,$R$2:$S$38,2,0),ranquing!A33,"")),"",IF(ranquing!G33=VLOOKUP(INSCRIPCIÓ!$D$30,$R$2:$S$38,2,0),ranquing!A33,"")) -> 
F33: 30 | G33: FOMENT MARTINENC | H33: 43100028 | I33: FOMEN | M33: 43100033 | N33: 260 | O33: CP HORTA TT | R33: CTT SALLENT | S33: SALLENT | T33: 32 | U33: =IF(V33="","",MAX(U$1:U32)+1) ->  | V33: =IF(ISERROR(IF(ranquing!G34=VLOOKUP(INSCRIPCIÓ!$D$30,$R$2:$S$38,2,0),ranquing!A34,"")),"",IF(ranquing!G34=VLOOKUP(INSCRIPCIÓ!$D$30,$R$2:$S$38,2,0),ranquing!A34,"")) -> 
F34: 31 | G34: LLUÏSOS D'HORTA TT | H34: 43100033 | I34: HORTA | M34: 43100034 | N34: 261 | O34: TT L'HOSPITALET | R34: UE SANT CUGAT | S34: STCUGAT | T34: 33 | U34: =IF(V34="","",MAX(U$1:U33)+1) ->  | V34: =IF(ISERROR(IF(ranquing!G35=VLOOKUP(INSCRIPCIÓ!$D$30,$R$2:$S$38,2,0),ranquing!A35,"")),"",IF(ranquing!G35=VLOOKUP(INSCRIPCIÓ!$D$30,$R$2:$S$38,2,0),ranquing!A35,"")) -> 
B35: =VLOOKUP(B22,_cat20,3,0) -> 0 | F35: 32 | G35: TT L'HOSPITALET | H35: 43100034 | I35: HOSPIT | M35: 43100035 | N35: 259 | O35: CPP IGUALADA | R35: VIC TT | S35: VIC | T35: 34 | U35: =IF(V35="","",MAX(U$1:U34)+1) ->  | V35: =IF(ISERROR(IF(ranquing!G36=VLOOKUP(INSCRIPCIÓ!$D$30,$R$2:$S$38,2,0),ranquing!A36,"")),"",IF(ranquing!G36=VLOOKUP(INSCRIPCIÓ!$D$30,$R$2:$S$38,2,0),ranquing!A36,"")) -> 
B36: =VLOOKUP(B22,_cat20,3,0) -> 0 | F36: 33 | G36: IES Ma. AURELIA CAPMANY | H36: 43100189 | I36: IESMAC | M36: 43100036 | N36: 449 | O36: ACR EL JARDI | R36: CTT VILAFRANCA | S36: VILAFRANCA | T36: 35 | U36: =IF(V36="","",MAX(U$1:U35)+1) ->  | V36: =IF(ISERROR(IF(ranquing!G37=VLOOKUP(INSCRIPCIÓ!$D$30,$R$2:$S$38,2,0),ranquing!A37,"")),"",IF(ranquing!G37=VLOOKUP(INSCRIPCIÓ!$D$30,$R$2:$S$38,2,0),ranquing!A37,"")) -> 
F37: 34 | G37: CPP IGUALADA | H37: 43100035 | I37: IGUALA | M37: 43100037 | N37: C9037 | O37: TT JEMA | R37: CTT VILANOVA I LA GELTRÚ | S37: VILANOVA | T37: 36 | U37: =IF(V37="","",MAX(U$1:U36)+1) ->  | V37: =IF(ISERROR(IF(ranquing!G38=VLOOKUP(INSCRIPCIÓ!$D$30,$R$2:$S$38,2,0),ranquing!A38,"")),"",IF(ranquing!G38=VLOOKUP(INSCRIPCIÓ!$D$30,$R$2:$S$38,2,0),ranquing!A38,"")) -> 
F38: 35 | G38: INDEPENDENT | I38: INDEPE | M38: 43100081 | N38: 622 | O38: ALIANÇA LLIÇÀ | R38: CTT LA TORRE DE CLARAMUNT | S38: VILCAMI | T38: 37 | U38: =IF(V38="","",MAX(U$1:U37)+1) ->  | V38: =IF(ISERROR(IF(ranquing!G39=VLOOKUP(INSCRIPCIÓ!$D$30,$R$2:$S$38,2,0),ranquing!A39,"")),"",IF(ranquing!G39=VLOOKUP(INSCRIPCIÓ!$D$30,$R$2:$S$38,2,0),ranquing!A39,"")) -> 
B39: 1 | C39: 1 | E39: 0 | F39: 36 | G39: CTT SANT QUINTÍ DE MEDIONA | H39: 43100036 | I39: JARDÍ | M39: 43100039 | N39: 290 | O39: LLUÏSOS DE GRÀCIA | T39: 38 | U39: =IF(V39="","",MAX(U$1:U38)+1) ->  | V39: =IF(ISERROR(IF(ranquing!G40=VLOOKUP(INSCRIPCIÓ!$D$30,$R$2:$S$38,2,0),ranquing!A40,"")),"",IF(ranquing!G40=VLOOKUP(INSCRIPCIÓ!$D$30,$R$2:$S$38,2,0),ranquing!A40,"")) -> 
A40: Sènior PREFERENT | B40: 1 | C40: 2 | D40: =A40 -> Sènior PREFERENT | E40: 120 | F40: 37 | G40: TT C JEMA | H40: 43100037 | I40: JEMAC | M40: 43100044 | N40: C9044 | O40: CTT MARINA | T40: 39 | U40: =IF(V40="","",MAX(U$1:U39)+1) ->  | V40: =IF(ISERROR(IF(ranquing!G41=VLOOKUP(INSCRIPCIÓ!$D$30,$R$2:$S$38,2,0),ranquing!A41,"")),"",IF(ranquing!G41=VLOOKUP(INSCRIPCIÓ!$D$30,$R$2:$S$38,2,0),ranquing!A41,"")) -> 
A41: Sènior PRIMERA | B41: 1 | C41: 3 | D41: Sènior PRIMERA | E41: 105 | F41: 38 | G41: ALIANÇA LLIÇÀ | H41: 43100081 | I41: LLIÇA | M41: 43100040 | N41: 278 | O41: CN MATARÓ | T41: 40 | U41: =IF(V41="","",MAX(U$1:U40)+1) ->  | V41: =IF(ISERROR(IF(ranquing!G42=VLOOKUP(INSCRIPCIÓ!$D$30,$R$2:$S$38,2,0),ranquing!A42,"")),"",IF(ranquing!G42=VLOOKUP(INSCRIPCIÓ!$D$30,$R$2:$S$38,2,0),ranquing!A42,"")) -> 
A42: Sènior SEGONA | B42: 1 | C42: 4 | D42: Sènior SEGONA | E42: 90 | F42: 39 | G42: LLUÏSOS DE GRÀCIA | H42: 43100039 | I42: LLUÏSO | M42: 43100042 | N42: 575 | O42: CTT ATC MOLINS DE REI | T42: 41 | U42: =IF(V42="","",MAX(U$1:U41)+1) ->  | V42: =IF(ISERROR(IF(ranquing!G43=VLOOKUP(INSCRIPCIÓ!$D$30,$R$2:$S$38,2,0),ranquing!A43,"")),"",IF(ranquing!G43=VLOOKUP(INSCRIPCIÓ!$D$30,$R$2:$S$38,2,0),ranquing!A43,"")) -> 
A43: Sènior TERCERA | B43: 1 | C43: 5 | D43: Sènior TERCERA | E43: 75 | F43: 40 | G43: MASQUEFA TTC | H43: 43100177 | I43: MASQUE | M43: 43100043 | N43: 433 | O43: MOLLET 2002 TT | T43: 42 | U43: =IF(V43="","",MAX(U$1:U42)+1) ->  | V43: =IF(ISERROR(IF(ranquing!G44=VLOOKUP(INSCRIPCIÓ!$D$30,$R$2:$S$38,2,0),ranquing!A44,"")),"",IF(ranquing!G44=VLOOKUP(INSCRIPCIÓ!$D$30,$R$2:$S$38,2,0),ranquing!A44,"")) -> 
A44: VETERANS 1ª | C44: 6 | D44: VETERANS 1ª | E44: 80 | F44: 41 | G44: CN MATARÓ | H44: 43100040 | I44: MATARO | M44: 43100045 | N44: C9045 | O44: CTT MONTBUI | T44: 43 | U44: =IF(V44="","",MAX(U$1:U43)+1) ->  | V44: =IF(ISERROR(IF(ranquing!G45=VLOOKUP(INSCRIPCIÓ!$D$30,$R$2:$S$38,2,0),ranquing!A45,"")),"",IF(ranquing!G45=VLOOKUP(INSCRIPCIÓ!$D$30,$R$2:$S$38,2,0),ranquing!A45,"")) -> 
A45: VETERANS 2ª | C45: 7 | D45: VETERANS 2ª | E45: 80 | F45: 42 | G45: CTT ATC MOLINS DE REI | H45: 43100042 | I45: MOLINS | M45: 43100047 | N45: 252 | O45: CTT OLESA | T45: 44 | U45: =IF(V45="","",MAX(U$1:U44)+1) ->  | V45: =IF(ISERROR(IF(ranquing!G46=VLOOKUP(INSCRIPCIÓ!$D$30,$R$2:$S$38,2,0),ranquing!A46,"")),"",IF(ranquing!G46=VLOOKUP(INSCRIPCIÓ!$D$30,$R$2:$S$38,2,0),ranquing!A46,"")) -> 
A46: VETERANS 3ª | C46: 8 | D46: VETERANS 3ª | E46: 80 | F46: 43 | G46: MOLLET 2002 TT | H46: 43100043 | I46: MOLLET | M46: 43100038 | N46: 498 | O46: CTT JOSEP M. PALES | T46: 45 | U46: =IF(V46="","",MAX(U$1:U45)+1) ->  | V46: =IF(ISERROR(IF(ranquing!G47=VLOOKUP(INSCRIPCIÓ!$D$30,$R$2:$S$38,2,0),ranquing!A47,"")),"",IF(ranquing!G47=VLOOKUP(INSCRIPCIÓ!$D$30,$R$2:$S$38,2,0),ranquing!A47,"")) -> 
A47: FEMENÍ | C47: 9 | D47: FEMENÍ | E47: 75 | F47: 44 | G47: CTT MONTBUI | H47: 43100045 | I47: MONTBU | M47: 43100049 | N47: 292 | O47: TT PARETS | T47: 46 | U47: =IF(V47="","",MAX(U$1:U46)+1) ->  | V47: =IF(ISERROR(IF(ranquing!G48=VLOOKUP(INSCRIPCIÓ!$D$30,$R$2:$S$38,2,0),ranquing!A48,"")),"",IF(ranquing!G48=VLOOKUP(INSCRIPCIÓ!$D$30,$R$2:$S$38,2,0),ranquing!A48,"")) -> 
A48: VET +50 | C48: 10 | D48: VET +50 | E48: 80 | F48: 45 | G48: CTT OLESA | H48: 43100047 | I48: OLESA | M48: 43100050 | N48: 262 | O48: TT LA PASSIÓ D'ESP. | T48: 47 | U48: =IF(V48="","",MAX(U$1:U47)+1) ->  | V48: =IF(ISERROR(IF(ranquing!G49=VLOOKUP(INSCRIPCIÓ!$D$30,$R$2:$S$38,2,0),ranquing!A49,"")),"",IF(ranquing!G49=VLOOKUP(INSCRIPCIÓ!$D$30,$R$2:$S$38,2,0),ranquing!A49,"")) -> 
F49: 46 | G49: TT PEP PALÉS | H49: 43100038 | I49: PALES | M49: 43100082 | N49: C9082 | O49: CTT LA POBLA DE LILLET | T49: 48 | U49: =IF(V49="","",MAX(U$1:U48)+1) ->  | V49: =IF(ISERROR(IF(ranquing!G50=VLOOKUP(INSCRIPCIÓ!$D$30,$R$2:$S$38,2,0),ranquing!A50,"")),"",IF(ranquing!G50=VLOOKUP(INSCRIPCIÓ!$D$30,$R$2:$S$38,2,0),ranquing!A50,"")) -> 
F50: 47 | G50: TT PARETS | H50: 43100049 | I50: PARETS | M50: 43100052 | N50: C9052 | O50: TT PRAT | T50: 49 | U50: =IF(V50="","",MAX(U$1:U49)+1) ->  | V50: =IF(ISERROR(IF(ranquing!G51=VLOOKUP(INSCRIPCIÓ!$D$30,$R$2:$S$38,2,0),ranquing!A51,"")),"",IF(ranquing!G51=VLOOKUP(INSCRIPCIÓ!$D$30,$R$2:$S$38,2,0),ranquing!A51,"")) -> 
B51: =VLOOKUP(B39,_cat30,3,0) -> 0 | F51: 48 | G51: CTT LA POBLA DE LILLET | H51: 43100082 | I51: POBLA | M51: 43100053 | N51: 268 | O51: ATT PREMIÀ DE MAR | T51: 50 | U51: =IF(V51="","",MAX(U$1:U50)+1) ->  | V51: =IF(ISERROR(IF(ranquing!G52=VLOOKUP(INSCRIPCIÓ!$D$30,$R$2:$S$38,2,0),ranquing!A52,"")),"",IF(ranquing!G52=VLOOKUP(INSCRIPCIÓ!$D$30,$R$2:$S$38,2,0),ranquing!A52,"")) -> 
B52: =VLOOKUP(B39,_cat20,3,0) -> 0 | F52: 49 | G52: TT PRAT | H52: 43100052 | I52: PRAT | M52: 43100079 | N52: C9079 | O52: CTT SANT QUIRZE DEL VALLÈS | T52: 51 | U52: =IF(V52="","",MAX(U$1:U51)+1) ->  | V52: =IF(ISERROR(IF(ranquing!G53=VLOOKUP(INSCRIPCIÓ!$D$30,$R$2:$S$38,2,0),ranquing!A53,"")),"",IF(ranquing!G53=VLOOKUP(INSCRIPCIÓ!$D$30,$R$2:$S$38,2,0),ranquing!A53,"")) -> 
F53: 50 | G53: ATT PREMIÀ DE MAR | H53: 43100053 | I53: PREMIA | M53: 43100054 | N53: 246 | O53: CTT RIPOLLET | T53: 52 | U53: =IF(V53="","",MAX(U$1:U52)+1) ->  | V53: =IF(ISERROR(IF(ranquing!G54=VLOOKUP(INSCRIPCIÓ!$D$30,$R$2:$S$38,2,0),ranquing!A54,"")),"",IF(ranquing!G54=VLOOKUP(INSCRIPCIÓ!$D$30,$R$2:$S$38,2,0),ranquing!A54,"")) -> 
F54: 51 | G54: CTT SANT QUIRZE DEL VALLÈS | H54: 43100079 | I54: QUIRZ | M54: 43100057 | N54: 335 | O54: CC SANT ANDREU | T54: 53 | U54: =IF(V54="","",MAX(U$1:U53)+1) ->  | V54: =IF(ISERROR(IF(ranquing!G55=VLOOKUP(INSCRIPCIÓ!$D$30,$R$2:$S$38,2,0),ranquing!A55,"")),"",IF(ranquing!G55=VLOOKUP(INSCRIPCIÓ!$D$30,$R$2:$S$38,2,0),ranquing!A55,"")) -> 
F55: 52 | G55: CTT RIBERA D'ONDARA | H55: 43100192 | I55: RIBERA | M55: 43100078 | N55: C9078 | O55: CATT SANT CELONI | T55: 54 | U55: =IF(V55="","",MAX(U$1:U54)+1) ->  | V55: =IF(ISERROR(IF(ranquing!G56=VLOOKUP(INSCRIPCIÓ!$D$30,$R$2:$S$38,2,0),ranquing!A56,"")),"",IF(ranquing!G56=VLOOKUP(INSCRIPCIÓ!$D$30,$R$2:$S$38,2,0),ranquing!A56,"")) -> 
B56: 1 | C56: 1 | E56: 0 | F56: 53 | G56: CTT RIPOLLET | H56: 43100054 | I56: RIPLET | M56: 43100058 | N56: 406 | O56: UE SANT CUGAT | T56: 55 | U56: =IF(V56="","",MAX(U$1:U55)+1) ->  | V56: =IF(ISERROR(IF(ranquing!G57=VLOOKUP(INSCRIPCIÓ!$D$30,$R$2:$S$38,2,0),ranquing!A57,"")),"",IF(ranquing!G57=VLOOKUP(INSCRIPCIÓ!$D$30,$R$2:$S$38,2,0),ranquing!A57,"")) -> 
A57: Sènior PREFERENT | B57: 1 | C57: 2 | D57: =A57 -> Sènior PREFERENT | E57: 120 | F57: 54 | G57: CTT RODA DE TER | H57: 43100209 | I57: RODA | M57: 43100056 | N57: 256 | O57: CTT SALLENT | T57: 56 | U57: =IF(V57="","",MAX(U$1:U56)+1) ->  | V57: =IF(ISERROR(IF(ranquing!G58=VLOOKUP(INSCRIPCIÓ!$D$30,$R$2:$S$38,2,0),ranquing!A58,"")),"",IF(ranquing!G58=VLOOKUP(INSCRIPCIÓ!$D$30,$R$2:$S$38,2,0),ranquing!A58,"")) -> 
A58: Sènior PRIMERA | B58: 1 | C58: 3 | D58: Sènior PRIMERA | E58: 105 | F58: 55 | G58: CC SANT ANDREU | H58: 43100057 | I58: S.ANDR | M58: 43100061 | N58: 269 | O58: CC SANTS - BERNADÍ | T58: 57 | U58: =IF(V58="","",MAX(U$1:U57)+1) ->  | V58: =IF(ISERROR(IF(ranquing!G59=VLOOKUP(INSCRIPCIÓ!$D$30,$R$2:$S$38,2,0),ranquing!A59,"")),"",IF(ranquing!G59=VLOOKUP(INSCRIPCIÓ!$D$30,$R$2:$S$38,2,0),ranquing!A59,"")) -> 
A59: Sènior SEGONA | B59: 1 | C59: 4 | D59: Sènior SEGONA | E59: 90 | F59: 56 | G59: CATT SANT CELONI | H59: 43100078 | I59: S.CELO | M59: 43100055 | N59: C9055 | O59: CTT SANT FELIU DE CODINES | T59: 58 | U59: =IF(V59="","",MAX(U$1:U58)+1) ->  | V59: =IF(ISERROR(IF(ranquing!G60=VLOOKUP(INSCRIPCIÓ!$D$30,$R$2:$S$38,2,0),ranquing!A60,"")),"",IF(ranquing!G60=VLOOKUP(INSCRIPCIÓ!$D$30,$R$2:$S$38,2,0),ranquing!A60,"")) -> 
A60: Sènior TERCERA | B60: 1 | C60: 5 | D60: Sènior TERCERA | E60: 75 | F60: 57 | G60: UE SANT CUGAT | H60: 43100058 | I60: S.CUGA | M60: 43100060 | N60: C9060 | O60: CTT DELS HORTS 2000 | T60: 59 | U60: =IF(V60="","",MAX(U$1:U59)+1) ->  | V60: =IF(ISERROR(IF(ranquing!G61=VLOOKUP(INSCRIPCIÓ!$D$30,$R$2:$S$38,2,0),ranquing!A61,"")),"",IF(ranquing!G61=VLOOKUP(INSCRIPCIÓ!$D$30,$R$2:$S$38,2,0),ranquing!A61,"")) -> 
A61: VETERANS 1ª | C61: 6 | D61: VETERANS 1ª | E61: 80 | F61: 58 | G61: CTT SALLENT | H61: 43100056 | I61: SALLEN | M61: 43100137 | N61: C9137 | O61: CTT SANT VICENÇ DE TORELLO | T61: 60 | U61: =IF(V61="","",MAX(U$1:U60)+1) ->  | V61: =IF(ISERROR(IF(ranquing!G62=VLOOKUP(INSCRIPCIÓ!$D$30,$R$2:$S$38,2,0),ranquing!A62,"")),"",IF(ranquing!G62=VLOOKUP(INSCRIPCIÓ!$D$30,$R$2:$S$38,2,0),ranquing!A62,"")) -> 
A62: VETERANS 2ª | C62: 7 | D62: VETERANS 2ª | E62: 80 | F62: 59 | G62: CC SANTS | H62: 43100061 | I62: SANTS | M62: 43100072 | N62: 599 | O62: CTT LA TENDA | T62: 61 | U62: =IF(V62="","",MAX(U$1:U61)+1) ->  | V62: =IF(ISERROR(IF(ranquing!G63=VLOOKUP(INSCRIPCIÓ!$D$30,$R$2:$S$38,2,0),ranquing!A63,"")),"",IF(ranquing!G63=VLOOKUP(INSCRIPCIÓ!$D$30,$R$2:$S$38,2,0),ranquing!A63,"")) -> 
A63: VETERANS 3ª | C63: 8 | D63: VETERANS 3ª | E63: 80 | F63: 60 | G63: CTT SANT FELIU DE CODINES | H63: 43100055 | I63: SFCODI | M63: 43100063 | N63: 298 | O63: CTT TONA-SEVA | T63: 62 | U63: =IF(V63="","",MAX(U$1:U62)+1) ->  | V63: =IF(ISERROR(IF(ranquing!G64=VLOOKUP(INSCRIPCIÓ!$D$30,$R$2:$S$38,2,0),ranquing!A64,"")),"",IF(ranquing!G64=VLOOKUP(INSCRIPCIÓ!$D$30,$R$2:$S$38,2,0),ranquing!A64,"")) -> 
A64: FEMENÍ | C64: 9 | D64: FEMENÍ | E64: 75 | F64: 61 | G64: CTT DELS HORTS 2000 | H64: 43100060 | I64: SVHORT | M64: 43100064 | N64: 299 | O64: TT TORELLÓ | T64: 63 | U64: =IF(V64="","",MAX(U$1:U63)+1) ->  | V64: =IF(ISERROR(IF(ranquing!G65=VLOOKUP(INSCRIPCIÓ!$D$30,$R$2:$S$38,2,0),ranquing!A65,"")),"",IF(ranquing!G65=VLOOKUP(INSCRIPCIÓ!$D$30,$R$2:$S$38,2,0),ranquing!A65,"")) -> 
A65: VET +50 | C65: 10 | D65: VET +50 | E65: 80 | F65: 62 | G65: CPE TARADELL | H65: 43100212 | I65: TARAD | M65: 43100065 | N65: C9065 | O65: CE UNIVERSITARI | T65: 64 | U65: =IF(V65="","",MAX(U$1:U64)+1) ->  | V65: =IF(ISERROR(IF(ranquing!G66=VLOOKUP(INSCRIPCIÓ!$D$30,$R$2:$S$38,2,0),ranquing!A66,"")),"",IF(ranquing!G66=VLOOKUP(INSCRIPCIÓ!$D$30,$R$2:$S$38,2,0),ranquing!A66,"")) -> 
F66: 63 | G66: CTT TONA | H66: 43100063 | I66: TONA | M66: 43100073 | N66: 59 | O66: VIC TT | T66: 65 | U66: =IF(V66="","",MAX(U$1:U65)+1) ->  | V66: =IF(ISERROR(IF(ranquing!G67=VLOOKUP(INSCRIPCIÓ!$D$30,$R$2:$S$38,2,0),ranquing!A67,"")),"",IF(ranquing!G67=VLOOKUP(INSCRIPCIÓ!$D$30,$R$2:$S$38,2,0),ranquing!A67,"")) -> 
F67: 64 | G67: TT TORELLÓ | H67: 43100064 | I67: TORELL | M67: 43100067 | N67: 425 | O67: CTT VILAFRANCA | T67: =T66+1 -> 66 | U67: =IF(V67="","",MAX(U$1:U66)+1) ->  | V67: =IF(ISERROR(IF(ranquing!G68=VLOOKUP(INSCRIPCIÓ!$D$30,$R$2:$S$38,2,0),ranquing!A68,"")),"",IF(ranquing!G68=VLOOKUP(INSCRIPCIÓ!$D$30,$R$2:$S$38,2,0),ranquing!A68,"")) -> 
F68: 65 | G68: CTT LA UNIÓ MONTCADA I REIXAC | H68: 43100201 | I68: UNIO | M68: 43100068 | N68: 130 | O68: CTT VILANOVA | T68: 67 | U68: =IF(V68="","",MAX(U$1:U67)+1) ->  | V68: =IF(ISERROR(IF(ranquing!G69=VLOOKUP(INSCRIPCIÓ!$D$30,$R$2:$S$38,2,0),ranquing!A69,"")),"",IF(ranquing!G69=VLOOKUP(INSCRIPCIÓ!$D$30,$R$2:$S$38,2,0),ranquing!A69,"")) -> 
B69: =VLOOKUP(B56,_cat40,3,0) -> 0 | F69: 66 | G69: VIC TT | H69: 43100073 | I69: VICTT | M69: 43100070 | N69: 620 | O69: CTT VILASSAR DE DALT | T69: 68 | U69: =IF(V69="","",MAX(U$1:U68)+1) ->  | V69: =IF(ISERROR(IF(ranquing!G70=VLOOKUP(INSCRIPCIÓ!$D$30,$R$2:$S$38,2,0),ranquing!A70,"")),"",IF(ranquing!G70=VLOOKUP(INSCRIPCIÓ!$D$30,$R$2:$S$38,2,0),ranquing!A70,"")) -> 
B70: =VLOOKUP(B56,_cat40,3,0) -> 0 | F70: 67 | G70: CTT VILAFRANCA | H70: 43100067 | I70: VILAFR | M70: 43100069 | N70: C9069 | O70: CTT VILANOVA DEL CAMI | T70: 69 | U70: =IF(V70="","",MAX(U$1:U69)+1) ->  | V70: =IF(ISERROR(IF(ranquing!G71=VLOOKUP(INSCRIPCIÓ!$D$30,$R$2:$S$38,2,0),ranquing!A71,"")),"",IF(ranquing!G71=VLOOKUP(INSCRIPCIÓ!$D$30,$R$2:$S$38,2,0),ranquing!A71,"")) -> 
F71: 68 | G71: CTT VILANOVA I LA GELTRU | H71: 43100068 | I71: VILANO | M71: 43100071 | N71: 258 | O71: CTT XARXA MALGRAT | T71: 70 | U71: =IF(V71="","",MAX(U$1:U70)+1) ->  | V71: =IF(ISERROR(IF(ranquing!G72=VLOOKUP(INSCRIPCIÓ!$D$30,$R$2:$S$38,2,0),ranquing!A72,"")),"",IF(ranquing!G72=VLOOKUP(INSCRIPCIÓ!$D$30,$R$2:$S$38,2,0),ranquing!A72,"")) -> 
F72: 69 | G72: CTT VILASSAR DE DALT | H72: 43100070 | I72: VILASS | M72: 43400000 | N72: 390 | O72: INDEPENDENT | T72: 71 | U72: =IF(V72="","",MAX(U$1:U71)+1) ->  | V72: =IF(ISERROR(IF(ranquing!G73=VLOOKUP(INSCRIPCIÓ!$D$30,$R$2:$S$38,2,0),ranquing!A73,"")),"",IF(ranquing!G73=VLOOKUP(INSCRIPCIÓ!$D$30,$R$2:$S$38,2,0),ranquing!A73,"")) -> 
F73: 70 | G73: CTT VILANOVA DEL CAMI | H73: 43100069 | I73: VILCA | T73: 72 | U73: =IF(V73="","",MAX(U$1:U72)+1) ->  | V73: =IF(ISERROR(IF(ranquing!G74=VLOOKUP(INSCRIPCIÓ!$D$30,$R$2:$S$38,2,0),ranquing!A74,"")),"",IF(ranquing!G74=VLOOKUP(INSCRIPCIÓ!$D$30,$R$2:$S$38,2,0),ranquing!A74,"")) -> 
F74: 71 | G74: CTT XARXA MALGRAT | H74: 43100071 | I74: XARXA | T74: 73 | U74: =IF(V74="","",MAX(U$1:U73)+1) ->  | V74: =IF(ISERROR(IF(ranquing!G75=VLOOKUP(INSCRIPCIÓ!$D$30,$R$2:$S$38,2,0),ranquing!A75,"")),"",IF(ranquing!G75=VLOOKUP(INSCRIPCIÓ!$D$30,$R$2:$S$38,2,0),ranquing!A75,"")) -> 
F75: 72 | T75: 74 | U75: =IF(V75="","",MAX(U$1:U74)+1) ->  | V75: =IF(ISERROR(IF(ranquing!G76=VLOOKUP(INSCRIPCIÓ!$D$30,$R$2:$S$38,2,0),ranquing!A76,"")),"",IF(ranquing!G76=VLOOKUP(INSCRIPCIÓ!$D$30,$R$2:$S$38,2,0),ranquing!A76,"")) -> 
F76: 73 | T76: 75 | U76: =IF(V76="","",MAX(U$1:U75)+1) ->  | V76: =IF(ISERROR(IF(ranquing!G77=VLOOKUP(INSCRIPCIÓ!$D$30,$R$2:$S$38,2,0),ranquing!A77,"")),"",IF(ranquing!G77=VLOOKUP(INSCRIPCIÓ!$D$30,$R$2:$S$38,2,0),ranquing!A77,"")) -> 
F77: 74 | T77: 76 | U77: =IF(V77="","",MAX(U$1:U76)+1) ->  | V77: =IF(ISERROR(IF(ranquing!G78=VLOOKUP(INSCRIPCIÓ!$D$30,$R$2:$S$38,2,0),ranquing!A78,"")),"",IF(ranquing!G78=VLOOKUP(INSCRIPCIÓ!$D$30,$R$2:$S$38,2,0),ranquing!A78,"")) -> 
F78: 75 | T78: 77 | U78: =IF(V78="","",MAX(U$1:U77)+1) ->  | V78: =IF(ISERROR(IF(ranquing!G79=VLOOKUP(INSCRIPCIÓ!$D$30,$R$2:$S$38,2,0),ranquing!A79,"")),"",IF(ranquing!G79=VLOOKUP(INSCRIPCIÓ!$D$30,$R$2:$S$38,2,0),ranquing!A79,"")) -> 
F79: 76 | T79: 78 | U79: =IF(V79="","",MAX(U$1:U78)+1) ->  | V79: =IF(ISERROR(IF(ranquing!G80=VLOOKUP(INSCRIPCIÓ!$D$30,$R$2:$S$38,2,0),ranquing!A80,"")),"",IF(ranquing!G80=VLOOKUP(INSCRIPCIÓ!$D$30,$R$2:$S$38,2,0),ranquing!A80,"")) -> 
T80: 79 | U80: =IF(V80="","",MAX(U$1:U79)+1) ->  | V80: =IF(ISERROR(IF(ranquing!G81=VLOOKUP(INSCRIPCIÓ!$D$30,$R$2:$S$38,2,0),ranquing!A81,"")),"",IF(ranquing!G81=VLOOKUP(INSCRIPCIÓ!$D$30,$R$2:$S$38,2,0),ranquing!A81,"")) -> 
T81: 80 | U81: =IF(V81="","",MAX(U$1:U80)+1) ->  | V81: =IF(ISERROR(IF(ranquing!G82=VLOOKUP(INSCRIPCIÓ!$D$30,$R$2:$S$38,2,0),ranquing!A82,"")),"",IF(ranquing!G82=VLOOKUP(INSCRIPCIÓ!$D$30,$R$2:$S$38,2,0),ranquing!A82,"")) -> 
T82: 81 | U82: =IF(V82="","",MAX(U$1:U81)+1) ->  | V82: =IF(ISERROR(IF(ranquing!G83=VLOOKUP(INSCRIPCIÓ!$D$30,$R$2:$S$38,2,0),ranquing!A83,"")),"",IF(ranquing!G83=VLOOKUP(INSCRIPCIÓ!$D$30,$R$2:$S$38,2,0),ranquing!A83,"")) -> 
T83: 82 | U83: =IF(V83="","",MAX(U$1:U82)+1) ->  | V83: =IF(ISERROR(IF(ranquing!G84=VLOOKUP(INSCRIPCIÓ!$D$30,$R$2:$S$38,2,0),ranquing!A84,"")),"",IF(ranquing!G84=VLOOKUP(INSCRIPCIÓ!$D$30,$R$2:$S$38,2,0),ranquing!A84,"")) -> 
T84: 83 | U84: =IF(V84="","",MAX(U$1:U83)+1) ->  | V84: =IF(ISERROR(IF(ranquing!G85=VLOOKUP(INSCRIPCIÓ!$D$30,$R$2:$S$38,2,0),ranquing!A85,"")),"",IF(ranquing!G85=VLOOKUP(INSCRIPCIÓ!$D$30,$R$2:$S$38,2,0),ranquing!A85,"")) -> 
T85: 84 | U85: =IF(V85="","",MAX(U$1:U84)+1) ->  | V85: =IF(ISERROR(IF(ranquing!G86=VLOOKUP(INSCRIPCIÓ!$D$30,$R$2:$S$38,2,0),ranquing!A86,"")),"",IF(ranquing!G86=VLOOKUP(INSCRIPCIÓ!$D$30,$R$2:$S$38,2,0),ranquing!A86,"")) -> 
T86: 85 | U86: =IF(V86="","",MAX(U$1:U85)+1) ->  | V86: =IF(ISERROR(IF(ranquing!G87=VLOOKUP(INSCRIPCIÓ!$D$30,$R$2:$S$38,2,0),ranquing!A87,"")),"",IF(ranquing!G87=VLOOKUP(INSCRIPCIÓ!$D$30,$R$2:$S$38,2,0),ranquing!A87,"")) -> 
T87: 86 | U87: =IF(V87="","",MAX(U$1:U86)+1) ->  | V87: =IF(ISERROR(IF(ranquing!G88=VLOOKUP(INSCRIPCIÓ!$D$30,$R$2:$S$38,2,0),ranquing!A88,"")),"",IF(ranquing!G88=VLOOKUP(INSCRIPCIÓ!$D$30,$R$2:$S$38,2,0),ranquing!A88,"")) -> 
T88: 87 | U88: =IF(V88="","",MAX(U$1:U87)+1) ->  | V88: =IF(ISERROR(IF(ranquing!G89=VLOOKUP(INSCRIPCIÓ!$D$30,$R$2:$S$38,2,0),ranquing!A89,"")),"",IF(ranquing!G89=VLOOKUP(INSCRIPCIÓ!$D$30,$R$2:$S$38,2,0),ranquing!A89,"")) -> 
T89: 88 | U89: =IF(V89="","",MAX(U$1:U88)+1) ->  | V89: =IF(ISERROR(IF(ranquing!G90=VLOOKUP(INSCRIPCIÓ!$D$30,$R$2:$S$38,2,0),ranquing!A90,"")),"",IF(ranquing!G90=VLOOKUP(INSCRIPCIÓ!$D$30,$R$2:$S$38,2,0),ranquing!A90,"")) -> 
T90: 89 | U90: =IF(V90="","",MAX(U$1:U89)+1) ->  | V90: =IF(ISERROR(IF(ranquing!G91=VLOOKUP(INSCRIPCIÓ!$D$30,$R$2:$S$38,2,0),ranquing!A91,"")),"",IF(ranquing!G91=VLOOKUP(INSCRIPCIÓ!$D$30,$R$2:$S$38,2,0),ranquing!A91,"")) -> 
T91: 90 | U91: =IF(V91="","",MAX(U$1:U90)+1) ->  | V91: =IF(ISERROR(IF(ranquing!G92=VLOOKUP(INSCRIPCIÓ!$D$30,$R$2:$S$38,2,0),ranquing!A92,"")),"",IF(ranquing!G92=VLOOKUP(INSCRIPCIÓ!$D$30,$R$2:$S$38,2,0),ranquing!A92,"")) -> 
T92: 91 | U92: =IF(V92="","",MAX(U$1:U91)+1) ->  | V92: =IF(ISERROR(IF(ranquing!G93=VLOOKUP(INSCRIPCIÓ!$D$30,$R$2:$S$38,2,0),ranquing!A93,"")),"",IF(ranquing!G93=VLOOKUP(INSCRIPCIÓ!$D$30,$R$2:$S$38,2,0),ranquing!A93,"")) -> 
T93: 92 | U93: =IF(V93="","",MAX(U$1:U92)+1) ->  | V93: =IF(ISERROR(IF(ranquing!G94=VLOOKUP(INSCRIPCIÓ!$D$30,$R$2:$S$38,2,0),ranquing!A94,"")),"",IF(ranquing!G94=VLOOKUP(INSCRIPCIÓ!$D$30,$R$2:$S$38,2,0),ranquing!A94,"")) -> 
T94: 93 | U94: =IF(V94="","",MAX(U$1:U93)+1) ->  | V94: =IF(ISERROR(IF(ranquing!G95=VLOOKUP(INSCRIPCIÓ!$D$30,$R$2:$S$38,2,0),ranquing!A95,"")),"",IF(ranquing!G95=VLOOKUP(INSCRIPCIÓ!$D$30,$R$2:$S$38,2,0),ranquing!A95,"")) -> 
T95: 94 | U95: =IF(V95="","",MAX(U$1:U94)+1) ->  | V95: =IF(ISERROR(IF(ranquing!G96=VLOOKUP(INSCRIPCIÓ!$D$30,$R$2:$S$38,2,0),ranquing!A96,"")),"",IF(ranquing!G96=VLOOKUP(INSCRIPCIÓ!$D$30,$R$2:$S$38,2,0),ranquing!A96,"")) -> 
T96: 95 | U96: =IF(V96="","",MAX(U$1:U95)+1) ->  | V96: =IF(ISERROR(IF(ranquing!G97=VLOOKUP(INSCRIPCIÓ!$D$30,$R$2:$S$38,2,0),ranquing!A97,"")),"",IF(ranquing!G97=VLOOKUP(INSCRIPCIÓ!$D$30,$R$2:$S$38,2,0),ranquing!A97,"")) -> 
T97: 96 | U97: =IF(V97="","",MAX(U$1:U96)+1) ->  | V97: =IF(ISERROR(IF(ranquing!G98=VLOOKUP(INSCRIPCIÓ!$D$30,$R$2:$S$38,2,0),ranquing!A98,"")),"",IF(ranquing!G98=VLOOKUP(INSCRIPCIÓ!$D$30,$R$2:$S$38,2,0),ranquing!A98,"")) -> 
T98: 97 | U98: =IF(V98="","",MAX(U$1:U97)+1) ->  | V98: =IF(ISERROR(IF(ranquing!G99=VLOOKUP(INSCRIPCIÓ!$D$30,$R$2:$S$38,2,0),ranquing!A99,"")),"",IF(ranquing!G99=VLOOKUP(INSCRIPCIÓ!$D$30,$R$2:$S$38,2,0),ranquing!A99,"")) -> 
T99: 98 | U99: =IF(V99="","",MAX(U$1:U98)+1) ->  | V99: =IF(ISERROR(IF(ranquing!G100=VLOOKUP(INSCRIPCIÓ!$D$30,$R$2:$S$38,2,0),ranquing!A100,"")),"",IF(ranquing!G100=VLOOKUP(INSCRIPCIÓ!$D$30,$R$2:$S$38,2,0),ranquing!A100,"")) -> 
T100: 99 | U100: =IF(V100="","",MAX(U$1:U99)+1) ->  | V100: =IF(ISERROR(IF(ranquing!G101=VLOOKUP(INSCRIPCIÓ!$D$30,$R$2:$S$38,2,0),ranquing!A101,"")),"",IF(ranquing!G101=VLOOKUP(INSCRIPCIÓ!$D$30,$R$2:$S$38,2,0),ranquing!A101,"")) -> 
T101: 100 | U101: =IF(V101="","",MAX(U$1:U100)+1) ->  | V101: =IF(ISERROR(IF(ranquing!G102=VLOOKUP(INSCRIPCIÓ!$D$30,$R$2:$S$38,2,0),ranquing!A102,"")),"",IF(ranquing!G102=VLOOKUP(INSCRIPCIÓ!$D$30,$R$2:$S$38,2,0),ranquing!A102,"")) -> 
T102: 101 | U102: =IF(V102="","",MAX(U$1:U101)+1) ->  | V102: =IF(ISERROR(IF(ranquing!G103=VLOOKUP(INSCRIPCIÓ!$D$30,$R$2:$S$38,2,0),ranquing!A103,"")),"",IF(ranquing!G103=VLOOKUP(INSCRIPCIÓ!$D$30,$R$2:$S$38,2,0),ranquing!A103,"")) -> 
T103: 102 | U103: =IF(V103="","",MAX(U$1:U102)+1) ->  | V103: =IF(ISERROR(IF(ranquing!G104=VLOOKUP(INSCRIPCIÓ!$D$30,$R$2:$S$38,2,0),ranquing!A104,"")),"",IF(ranquing!G104=VLOOKUP(INSCRIPCIÓ!$D$30,$R$2:$S$38,2,0),ranquing!A104,"")) -> 
T104: 103 | U104: =IF(V104="","",MAX(U$1:U103)+1) ->  | V104: =IF(ISERROR(IF(ranquing!G105=VLOOKUP(INSCRIPCIÓ!$D$30,$R$2:$S$38,2,0),ranquing!A105,"")),"",IF(ranquing!G105=VLOOKUP(INSCRIPCIÓ!$D$30,$R$2:$S$38,2,0),ranquing!A105,"")) -> 
T105: 104 | U105: =IF(V105="","",MAX(U$1:U104)+1) ->  | V105: =IF(ISERROR(IF(ranquing!G106=VLOOKUP(INSCRIPCIÓ!$D$30,$R$2:$S$38,2,0),ranquing!A106,"")),"",IF(ranquing!G106=VLOOKUP(INSCRIPCIÓ!$D$30,$R$2:$S$38,2,0),ranquing!A106,"")) -> 
T106: 105 | U106: =IF(V106="","",MAX(U$1:U105)+1) ->  | V106: =IF(ISERROR(IF(ranquing!G107=VLOOKUP(INSCRIPCIÓ!$D$30,$R$2:$S$38,2,0),ranquing!A107,"")),"",IF(ranquing!G107=VLOOKUP(INSCRIPCIÓ!$D$30,$R$2:$S$38,2,0),ranquing!A107,"")) -> 
T107: 106 | U107: =IF(V107="","",MAX(U$1:U106)+1) ->  | V107: =IF(ISERROR(IF(ranquing!G108=VLOOKUP(INSCRIPCIÓ!$D$30,$R$2:$S$38,2,0),ranquing!A108,"")),"",IF(ranquing!G108=VLOOKUP(INSCRIPCIÓ!$D$30,$R$2:$S$38,2,0),ranquing!A108,"")) -> 
T108: 107 | U108: =IF(V108="","",MAX(U$1:U107)+1) ->  | V108: =IF(ISERROR(IF(ranquing!G109=VLOOKUP(INSCRIPCIÓ!$D$30,$R$2:$S$38,2,0),ranquing!A109,"")),"",IF(ranquing!G109=VLOOKUP(INSCRIPCIÓ!$D$30,$R$2:$S$38,2,0),ranquing!A109,"")) -> 
T109: 108 | U109: =IF(V109="","",MAX(U$1:U108)+1) ->  | V109: =IF(ISERROR(IF(ranquing!G110=VLOOKUP(INSCRIPCIÓ!$D$30,$R$2:$S$38,2,0),ranquing!A110,"")),"",IF(ranquing!G110=VLOOKUP(INSCRIPCIÓ!$D$30,$R$2:$S$38,2,0),ranquing!A110,"")) -> 
T110: 109 | U110: =IF(V110="","",MAX(U$1:U109)+1) ->  | V110: =IF(ISERROR(IF(ranquing!G111=VLOOKUP(INSCRIPCIÓ!$D$30,$R$2:$S$38,2,0),ranquing!A111,"")),"",IF(ranquing!G111=VLOOKUP(INSCRIPCIÓ!$D$30,$R$2:$S$38,2,0),ranquing!A111,"")) -> 
T111: 110 | U111: =IF(V111="","",MAX(U$1:U110)+1) ->  | V111: =IF(ISERROR(IF(ranquing!G112=VLOOKUP(INSCRIPCIÓ!$D$30,$R$2:$S$38,2,0),ranquing!A112,"")),"",IF(ranquing!G112=VLOOKUP(INSCRIPCIÓ!$D$30,$R$2:$S$38,2,0),ranquing!A112,"")) -> 
T112: 111 | U112: =IF(V112="","",MAX(U$1:U111)+1) ->  | V112: =IF(ISERROR(IF(ranquing!G113=VLOOKUP(INSCRIPCIÓ!$D$30,$R$2:$S$38,2,0),ranquing!A113,"")),"",IF(ranquing!G113=VLOOKUP(INSCRIPCIÓ!$D$30,$R$2:$S$38,2,0),ranquing!A113,"")) -> 
T113: 112 | U113: =IF(V113="","",MAX(U$1:U112)+1) ->  | V113: =IF(ISERROR(IF(ranquing!G114=VLOOKUP(INSCRIPCIÓ!$D$30,$R$2:$S$38,2,0),ranquing!A114,"")),"",IF(ranquing!G114=VLOOKUP(INSCRIPCIÓ!$D$30,$R$2:$S$38,2,0),ranquing!A114,"")) -> 
T114: 113 | U114: =IF(V114="","",MAX(U$1:U113)+1) ->  | V114: =IF(ISERROR(IF(ranquing!G115=VLOOKUP(INSCRIPCIÓ!$D$30,$R$2:$S$38,2,0),ranquing!A115,"")),"",IF(ranquing!G115=VLOOKUP(INSCRIPCIÓ!$D$30,$R$2:$S$38,2,0),ranquing!A115,"")) -> 
T115: 114 | U115: =IF(V115="","",MAX(U$1:U114)+1) ->  | V115: =IF(ISERROR(IF(ranquing!G116=VLOOKUP(INSCRIPCIÓ!$D$30,$R$2:$S$38,2,0),ranquing!A116,"")),"",IF(ranquing!G116=VLOOKUP(INSCRIPCIÓ!$D$30,$R$2:$S$38,2,0),ranquing!A116,"")) -> 
T116: 115 | U116: =IF(V116="","",MAX(U$1:U115)+1) ->  | V116: =IF(ISERROR(IF(ranquing!G117=VLOOKUP(INSCRIPCIÓ!$D$30,$R$2:$S$38,2,0),ranquing!A117,"")),"",IF(ranquing!G117=VLOOKUP(INSCRIPCIÓ!$D$30,$R$2:$S$38,2,0),ranquing!A117,"")) -> 
T117: 116 | U117: =IF(V117="","",MAX(U$1:U116)+1) ->  | V117: =IF(ISERROR(IF(ranquing!G118=VLOOKUP(INSCRIPCIÓ!$D$30,$R$2:$S$38,2,0),ranquing!A118,"")),"",IF(ranquing!G118=VLOOKUP(INSCRIPCIÓ!$D$30,$R$2:$S$38,2,0),ranquing!A118,"")) -> 
T118: 117 | U118: =IF(V118="","",MAX(U$1:U117)+1) ->  | V118: =IF(ISERROR(IF(ranquing!G119=VLOOKUP(INSCRIPCIÓ!$D$30,$R$2:$S$38,2,0),ranquing!A119,"")),"",IF(ranquing!G119=VLOOKUP(INSCRIPCIÓ!$D$30,$R$2:$S$38,2,0),ranquing!A119,"")) -> 
T119: 118 | U119: =IF(V119="","",MAX(U$1:U118)+1) ->  | V119: =IF(ISERROR(IF(ranquing!G120=VLOOKUP(INSCRIPCIÓ!$D$30,$R$2:$S$38,2,0),ranquing!A120,"")),"",IF(ranquing!G120=VLOOKUP(INSCRIPCIÓ!$D$30,$R$2:$S$38,2,0),ranquing!A120,"")) -> 
T120: 119 | U120: =IF(V120="","",MAX(U$1:U119)+1) ->  | V120: =IF(ISERROR(IF(ranquing!G121=VLOOKUP(INSCRIPCIÓ!$D$30,$R$2:$S$38,2,0),ranquing!A121,"")),"",IF(ranquing!G121=VLOOKUP(INSCRIPCIÓ!$D$30,$R$2:$S$38,2,0),ranquing!A121,"")) -> 
T121: 120 | U121: =IF(V121="","",MAX(U$1:U120)+1) ->  | V121: =IF(ISERROR(IF(ranquing!G122=VLOOKUP(INSCRIPCIÓ!$D$30,$R$2:$S$38,2,0),ranquing!A122,"")),"",IF(ranquing!G122=VLOOKUP(INSCRIPCIÓ!$D$30,$R$2:$S$38,2,0),ranquing!A122,"")) -> 
T122: 121 | U122: =IF(V122="","",MAX(U$1:U121)+1) ->  | V122: =IF(ISERROR(IF(ranquing!G123=VLOOKUP(INSCRIPCIÓ!$D$30,$R$2:$S$38,2,0),ranquing!A123,"")),"",IF(ranquing!G123=VLOOKUP(INSCRIPCIÓ!$D$30,$R$2:$S$38,2,0),ranquing!A123,"")) -> 
T123: 122 | U123: =IF(V123="","",MAX(U$1:U122)+1) ->  | V123: =IF(ISERROR(IF(ranquing!G124=VLOOKUP(INSCRIPCIÓ!$D$30,$R$2:$S$38,2,0),ranquing!A124,"")),"",IF(ranquing!G124=VLOOKUP(INSCRIPCIÓ!$D$30,$R$2:$S$38,2,0),ranquing!A124,"")) -> 
T124: 123 | U124: =IF(V124="","",MAX(U$1:U123)+1) ->  | V124: =IF(ISERROR(IF(ranquing!G125=VLOOKUP(INSCRIPCIÓ!$D$30,$R$2:$S$38,2,0),ranquing!A125,"")),"",IF(ranquing!G125=VLOOKUP(INSCRIPCIÓ!$D$30,$R$2:$S$38,2,0),ranquing!A125,"")) -> 
T125: 124 | U125: =IF(V125="","",MAX(U$1:U124)+1) ->  | V125: =IF(ISERROR(IF(ranquing!G126=VLOOKUP(INSCRIPCIÓ!$D$30,$R$2:$S$38,2,0),ranquing!A126,"")),"",IF(ranquing!G126=VLOOKUP(INSCRIPCIÓ!$D$30,$R$2:$S$38,2,0),ranquing!A126,"")) -> 
T126: 125 | U126: =IF(V126="","",MAX(U$1:U125)+1) ->  | V126: =IF(ISERROR(IF(ranquing!G127=VLOOKUP(INSCRIPCIÓ!$D$30,$R$2:$S$38,2,0),ranquing!A127,"")),"",IF(ranquing!G127=VLOOKUP(INSCRIPCIÓ!$D$30,$R$2:$S$38,2,0),ranquing!A127,"")) -> 
T127: 126 | U127: =IF(V127="","",MAX(U$1:U126)+1) ->  | V127: =IF(ISERROR(IF(ranquing!G128=VLOOKUP(INSCRIPCIÓ!$D$30,$R$2:$S$38,2,0),ranquing!A128,"")),"",IF(ranquing!G128=VLOOKUP(INSCRIPCIÓ!$D$30,$R$2:$S$38,2,0),ranquing!A128,"")) -> 
T128: 127 | U128: =IF(V128="","",MAX(U$1:U127)+1) ->  | V128: =IF(ISERROR(IF(ranquing!G129=VLOOKUP(INSCRIPCIÓ!$D$30,$R$2:$S$38,2,0),ranquing!A129,"")),"",IF(ranquing!G129=VLOOKUP(INSCRIPCIÓ!$D$30,$R$2:$S$38,2,0),ranquing!A129,"")) -> 
T129: 128 | U129: =IF(V129="","",MAX(U$1:U128)+1) ->  | V129: =IF(ISERROR(IF(ranquing!G130=VLOOKUP(INSCRIPCIÓ!$D$30,$R$2:$S$38,2,0),ranquing!A130,"")),"",IF(ranquing!G130=VLOOKUP(INSCRIPCIÓ!$D$30,$R$2:$S$38,2,0),ranquing!A130,"")) -> 
T130: 129 | U130: =IF(V130="","",MAX(U$1:U129)+1) ->  | V130: =IF(ISERROR(IF(ranquing!G131=VLOOKUP(INSCRIPCIÓ!$D$30,$R$2:$S$38,2,0),ranquing!A131,"")),"",IF(ranquing!G131=VLOOKUP(INSCRIPCIÓ!$D$30,$R$2:$S$38,2,0),ranquing!A131,"")) -> 
T131: =T130+1 -> 130 | U131: =IF(V131="","",MAX(U$1:U130)+1) ->  | V131: =IF(ISERROR(IF(ranquing!G132=VLOOKUP(INSCRIPCIÓ!$D$30,$R$2:$S$38,2,0),ranquing!A132,"")),"",IF(ranquing!G132=VLOOKUP(INSCRIPCIÓ!$D$30,$R$2:$S$38,2,0),ranquing!A132,"")) -> 
T132: 131 | U132: =IF(V132="","",MAX(U$1:U131)+1) ->  | V132: =IF(ISERROR(IF(ranquing!G133=VLOOKUP(INSCRIPCIÓ!$D$30,$R$2:$S$38,2,0),ranquing!A133,"")),"",IF(ranquing!G133=VLOOKUP(INSCRIPCIÓ!$D$30,$R$2:$S$38,2,0),ranquing!A133,"")) -> 
T133: 132 | U133: =IF(V133="","",MAX(U$1:U132)+1) ->  | V133: =IF(ISERROR(IF(ranquing!G134=VLOOKUP(INSCRIPCIÓ!$D$30,$R$2:$S$38,2,0),ranquing!A134,"")),"",IF(ranquing!G134=VLOOKUP(INSCRIPCIÓ!$D$30,$R$2:$S$38,2,0),ranquing!A134,"")) -> 
T134: 133 | U134: =IF(V134="","",MAX(U$1:U133)+1) ->  | V134: =IF(ISERROR(IF(ranquing!G135=VLOOKUP(INSCRIPCIÓ!$D$30,$R$2:$S$38,2,0),ranquing!A135,"")),"",IF(ranquing!G135=VLOOKUP(INSCRIPCIÓ!$D$30,$R$2:$S$38,2,0),ranquing!A135,"")) -> 
T135: 134 | U135: =IF(V135="","",MAX(U$1:U134)+1) ->  | V135: =IF(ISERROR(IF(ranquing!G136=VLOOKUP(INSCRIPCIÓ!$D$30,$R$2:$S$38,2,0),ranquing!A136,"")),"",IF(ranquing!G136=VLOOKUP(INSCRIPCIÓ!$D$30,$R$2:$S$38,2,0),ranquing!A136,"")) -> 
T136: 135 | U136: =IF(V136="","",MAX(U$1:U135)+1) ->  | V136: =IF(ISERROR(IF(ranquing!G137=VLOOKUP(INSCRIPCIÓ!$D$30,$R$2:$S$38,2,0),ranquing!A137,"")),"",IF(ranquing!G137=VLOOKUP(INSCRIPCIÓ!$D$30,$R$2:$S$38,2,0),ranquing!A137,"")) -> 
T137: 136 | U137: =IF(V137="","",MAX(U$1:U136)+1) ->  | V137: =IF(ISERROR(IF(ranquing!G138=VLOOKUP(INSCRIPCIÓ!$D$30,$R$2:$S$38,2,0),ranquing!A138,"")),"",IF(ranquing!G138=VLOOKUP(INSCRIPCIÓ!$D$30,$R$2:$S$38,2,0),ranquing!A138,"")) -> 
T138: 137 | U138: =IF(V138="","",MAX(U$1:U137)+1) ->  | V138: =IF(ISERROR(IF(ranquing!G139=VLOOKUP(INSCRIPCIÓ!$D$30,$R$2:$S$38,2,0),ranquing!A139,"")),"",IF(ranquing!G139=VLOOKUP(INSCRIPCIÓ!$D$30,$R$2:$S$38,2,0),ranquing!A139,"")) -> 
T139: 138 | U139: =IF(V139="","",MAX(U$1:U138)+1) ->  | V139: =IF(ISERROR(IF(ranquing!G140=VLOOKUP(INSCRIPCIÓ!$D$30,$R$2:$S$38,2,0),ranquing!A140,"")),"",IF(ranquing!G140=VLOOKUP(INSCRIPCIÓ!$D$30,$R$2:$S$38,2,0),ranquing!A140,"")) -> 
T140: 139 | U140: =IF(V140="","",MAX(U$1:U139)+1) ->  | V140: =IF(ISERROR(IF(ranquing!G141=VLOOKUP(INSCRIPCIÓ!$D$30,$R$2:$S$38,2,0),ranquing!A141,"")),"",IF(ranquing!G141=VLOOKUP(INSCRIPCIÓ!$D$30,$R$2:$S$38,2,0),ranquing!A141,"")) -> 
T141: 140 | U141: =IF(V141="","",MAX(U$1:U140)+1) ->  | V141: =IF(ISERROR(IF(ranquing!G142=VLOOKUP(INSCRIPCIÓ!$D$30,$R$2:$S$38,2,0),ranquing!A142,"")),"",IF(ranquing!G142=VLOOKUP(INSCRIPCIÓ!$D$30,$R$2:$S$38,2,0),ranquing!A142,"")) -> 
T142: 141 | U142: =IF(V142="","",MAX(U$1:U141)+1) ->  | V142: =IF(ISERROR(IF(ranquing!G143=VLOOKUP(INSCRIPCIÓ!$D$30,$R$2:$S$38,2,0),ranquing!A143,"")),"",IF(ranquing!G143=VLOOKUP(INSCRIPCIÓ!$D$30,$R$2:$S$38,2,0),ranquing!A143,"")) -> 
T143: 142 | U143: =IF(V143="","",MAX(U$1:U142)+1) ->  | V143: =IF(ISERROR(IF(ranquing!G144=VLOOKUP(INSCRIPCIÓ!$D$30,$R$2:$S$38,2,0),ranquing!A144,"")),"",IF(ranquing!G144=VLOOKUP(INSCRIPCIÓ!$D$30,$R$2:$S$38,2,0),ranquing!A144,"")) -> 
T144: 143 | U144: =IF(V144="","",MAX(U$1:U143)+1) ->  | V144: =IF(ISERROR(IF(ranquing!G145=VLOOKUP(INSCRIPCIÓ!$D$30,$R$2:$S$38,2,0),ranquing!A145,"")),"",IF(ranquing!G145=VLOOKUP(INSCRIPCIÓ!$D$30,$R$2:$S$38,2,0),ranquing!A145,"")) -> 
T145: 144 | U145: =IF(V145="","",MAX(U$1:U144)+1) ->  | V145: =IF(ISERROR(IF(ranquing!G146=VLOOKUP(INSCRIPCIÓ!$D$30,$R$2:$S$38,2,0),ranquing!A146,"")),"",IF(ranquing!G146=VLOOKUP(INSCRIPCIÓ!$D$30,$R$2:$S$38,2,0),ranquing!A146,"")) -> 
T146: 145 | U146: =IF(V146="","",MAX(U$1:U145)+1) ->  | V146: =IF(ISERROR(IF(ranquing!G147=VLOOKUP(INSCRIPCIÓ!$D$30,$R$2:$S$38,2,0),ranquing!A147,"")),"",IF(ranquing!G147=VLOOKUP(INSCRIPCIÓ!$D$30,$R$2:$S$38,2,0),ranquing!A147,"")) -> 
T147: 146 | U147: =IF(V147="","",MAX(U$1:U146)+1) ->  | V147: =IF(ISERROR(IF(ranquing!G148=VLOOKUP(INSCRIPCIÓ!$D$30,$R$2:$S$38,2,0),ranquing!A148,"")),"",IF(ranquing!G148=VLOOKUP(INSCRIPCIÓ!$D$30,$R$2:$S$38,2,0),ranquing!A148,"")) -> 
T148: 147 | U148: =IF(V148="","",MAX(U$1:U147)+1) ->  | V148: =IF(ISERROR(IF(ranquing!G149=VLOOKUP(INSCRIPCIÓ!$D$30,$R$2:$S$38,2,0),ranquing!A149,"")),"",IF(ranquing!G149=VLOOKUP(INSCRIPCIÓ!$D$30,$R$2:$S$38,2,0),ranquing!A149,"")) -> 
T149: 148 | U149: =IF(V149="","",MAX(U$1:U148)+1) ->  | V149: =IF(ISERROR(IF(ranquing!G150=VLOOKUP(INSCRIPCIÓ!$D$30,$R$2:$S$38,2,0),ranquing!A150,"")),"",IF(ranquing!G150=VLOOKUP(INSCRIPCIÓ!$D$30,$R$2:$S$38,2,0),ranquing!A150,"")) -> 
T150: 149 | U150: =IF(V150="","",MAX(U$1:U149)+1) ->  | V150: =IF(ISERROR(IF(ranquing!G151=VLOOKUP(INSCRIPCIÓ!$D$30,$R$2:$S$38,2,0),ranquing!A151,"")),"",IF(ranquing!G151=VLOOKUP(INSCRIPCIÓ!$D$30,$R$2:$S$38,2,0),ranquing!A151,"")) -> 
T151: 150 | U151: =IF(V151="","",MAX(U$1:U150)+1) ->  | V151: =IF(ISERROR(IF(ranquing!G152=VLOOKUP(INSCRIPCIÓ!$D$30,$R$2:$S$38,2,0),ranquing!A152,"")),"",IF(ranquing!G152=VLOOKUP(INSCRIPCIÓ!$D$30,$R$2:$S$38,2,0),ranquing!A152,"")) -> 
T152: 151 | U152: =IF(V152="","",MAX(U$1:U151)+1) ->  | V152: =IF(ISERROR(IF(ranquing!G153=VLOOKUP(INSCRIPCIÓ!$D$30,$R$2:$S$38,2,0),ranquing!A153,"")),"",IF(ranquing!G153=VLOOKUP(INSCRIPCIÓ!$D$30,$R$2:$S$38,2,0),ranquing!A153,"")) -> 
T153: 152 | U153: =IF(V153="","",MAX(U$1:U152)+1) ->  | V153: =IF(ISERROR(IF(ranquing!G154=VLOOKUP(INSCRIPCIÓ!$D$30,$R$2:$S$38,2,0),ranquing!A154,"")),"",IF(ranquing!G154=VLOOKUP(INSCRIPCIÓ!$D$30,$R$2:$S$38,2,0),ranquing!A154,"")) -> 
T154: 153 | U154: =IF(V154="","",MAX(U$1:U153)+1) ->  | V154: =IF(ISERROR(IF(ranquing!G155=VLOOKUP(INSCRIPCIÓ!$D$30,$R$2:$S$38,2,0),ranquing!A155,"")),"",IF(ranquing!G155=VLOOKUP(INSCRIPCIÓ!$D$30,$R$2:$S$38,2,0),ranquing!A155,"")) -> 
T155: 154 | U155: =IF(V155="","",MAX(U$1:U154)+1) ->  | V155: =IF(ISERROR(IF(ranquing!G156=VLOOKUP(INSCRIPCIÓ!$D$30,$R$2:$S$38,2,0),ranquing!A156,"")),"",IF(ranquing!G156=VLOOKUP(INSCRIPCIÓ!$D$30,$R$2:$S$38,2,0),ranquing!A156,"")) -> 
T156: 155 | U156: =IF(V156="","",MAX(U$1:U155)+1) ->  | V156: =IF(ISERROR(IF(ranquing!G157=VLOOKUP(INSCRIPCIÓ!$D$30,$R$2:$S$38,2,0),ranquing!A157,"")),"",IF(ranquing!G157=VLOOKUP(INSCRIPCIÓ!$D$30,$R$2:$S$38,2,0),ranquing!A157,"")) -> 
T157: 156 | U157: =IF(V157="","",MAX(U$1:U156)+1) ->  | V157: =IF(ISERROR(IF(ranquing!G158=VLOOKUP(INSCRIPCIÓ!$D$30,$R$2:$S$38,2,0),ranquing!A158,"")),"",IF(ranquing!G158=VLOOKUP(INSCRIPCIÓ!$D$30,$R$2:$S$38,2,0),ranquing!A158,"")) -> 
T158: 157 | U158: =IF(V158="","",MAX(U$1:U157)+1) ->  | V158: =IF(ISERROR(IF(ranquing!G159=VLOOKUP(INSCRIPCIÓ!$D$30,$R$2:$S$38,2,0),ranquing!A159,"")),"",IF(ranquing!G159=VLOOKUP(INSCRIPCIÓ!$D$30,$R$2:$S$38,2,0),ranquing!A159,"")) -> 
T159: 158 | U159: =IF(V159="","",MAX(U$1:U158)+1) ->  | V159: =IF(ISERROR(IF(ranquing!G160=VLOOKUP(INSCRIPCIÓ!$D$30,$R$2:$S$38,2,0),ranquing!A160,"")),"",IF(ranquing!G160=VLOOKUP(INSCRIPCIÓ!$D$30,$R$2:$S$38,2,0),ranquing!A160,"")) -> 
T160: 159 | U160: =IF(V160="","",MAX(U$1:U159)+1) ->  | V160: =IF(ISERROR(IF(ranquing!G161=VLOOKUP(INSCRIPCIÓ!$D$30,$R$2:$S$38,2,0),ranquing!A161,"")),"",IF(ranquing!G161=VLOOKUP(INSCRIPCIÓ!$D$30,$R$2:$S$38,2,0),ranquing!A161,"")) -> 
T161: 160 | U161: =IF(V161="","",MAX(U$1:U160)+1) ->  | V161: =IF(ISERROR(IF(ranquing!G162=VLOOKUP(INSCRIPCIÓ!$D$30,$R$2:$S$38,2,0),ranquing!A162,"")),"",IF(ranquing!G162=VLOOKUP(INSCRIPCIÓ!$D$30,$R$2:$S$38,2,0),ranquing!A162,"")) -> 
T162: 161 | U162: =IF(V162="","",MAX(U$1:U161)+1) ->  | V162: =IF(ISERROR(IF(ranquing!G163=VLOOKUP(INSCRIPCIÓ!$D$30,$R$2:$S$38,2,0),ranquing!A163,"")),"",IF(ranquing!G163=VLOOKUP(INSCRIPCIÓ!$D$30,$R$2:$S$38,2,0),ranquing!A163,"")) -> 
T163: 162 | U163: =IF(V163="","",MAX(U$1:U162)+1) ->  | V163: =IF(ISERROR(IF(ranquing!G164=VLOOKUP(INSCRIPCIÓ!$D$30,$R$2:$S$38,2,0),ranquing!A164,"")),"",IF(ranquing!G164=VLOOKUP(INSCRIPCIÓ!$D$30,$R$2:$S$38,2,0),ranquing!A164,"")) -> 
T164: 163 | U164: =IF(V164="","",MAX(U$1:U163)+1) ->  | V164: =IF(ISERROR(IF(ranquing!G165=VLOOKUP(INSCRIPCIÓ!$D$30,$R$2:$S$38,2,0),ranquing!A165,"")),"",IF(ranquing!G165=VLOOKUP(INSCRIPCIÓ!$D$30,$R$2:$S$38,2,0),ranquing!A165,"")) -> 
T165: 164 | U165: =IF(V165="","",MAX(U$1:U164)+1) ->  | V165: =IF(ISERROR(IF(ranquing!G166=VLOOKUP(INSCRIPCIÓ!$D$30,$R$2:$S$38,2,0),ranquing!A166,"")),"",IF(ranquing!G166=VLOOKUP(INSCRIPCIÓ!$D$30,$R$2:$S$38,2,0),ranquing!A166,"")) -> 
T166: 165 | U166: =IF(V166="","",MAX(U$1:U165)+1) ->  | V166: =IF(ISERROR(IF(ranquing!G167=VLOOKUP(INSCRIPCIÓ!$D$30,$R$2:$S$38,2,0),ranquing!A167,"")),"",IF(ranquing!G167=VLOOKUP(INSCRIPCIÓ!$D$30,$R$2:$S$38,2,0),ranquing!A167,"")) -> 
T167: 166 | U167: =IF(V167="","",MAX(U$1:U166)+1) ->  | V167: =IF(ISERROR(IF(ranquing!G168=VLOOKUP(INSCRIPCIÓ!$D$30,$R$2:$S$38,2,0),ranquing!A168,"")),"",IF(ranquing!G168=VLOOKUP(INSCRIPCIÓ!$D$30,$R$2:$S$38,2,0),ranquing!A168,"")) -> 
T168: 167 | U168: =IF(V168="","",MAX(U$1:U167)+1) ->  | V168: =IF(ISERROR(IF(ranquing!G169=VLOOKUP(INSCRIPCIÓ!$D$30,$R$2:$S$38,2,0),ranquing!A169,"")),"",IF(ranquing!G169=VLOOKUP(INSCRIPCIÓ!$D$30,$R$2:$S$38,2,0),ranquing!A169,"")) -> 
T169: 168 | U169: =IF(V169="","",MAX(U$1:U168)+1) ->  | V169: =IF(ISERROR(IF(ranquing!G170=VLOOKUP(INSCRIPCIÓ!$D$30,$R$2:$S$38,2,0),ranquing!A170,"")),"",IF(ranquing!G170=VLOOKUP(INSCRIPCIÓ!$D$30,$R$2:$S$38,2,0),ranquing!A170,"")) -> 
T170: 169 | U170: =IF(V170="","",MAX(U$1:U169)+1) ->  | V170: =IF(ISERROR(IF(ranquing!G171=VLOOKUP(INSCRIPCIÓ!$D$30,$R$2:$S$38,2,0),ranquing!A171,"")),"",IF(ranquing!G171=VLOOKUP(INSCRIPCIÓ!$D$30,$R$2:$S$38,2,0),ranquing!A171,"")) -> 
T171: 170 | U171: =IF(V171="","",MAX(U$1:U170)+1) ->  | V171: =IF(ISERROR(IF(ranquing!G172=VLOOKUP(INSCRIPCIÓ!$D$30,$R$2:$S$38,2,0),ranquing!A172,"")),"",IF(ranquing!G172=VLOOKUP(INSCRIPCIÓ!$D$30,$R$2:$S$38,2,0),ranquing!A172,"")) -> 
T172: 171 | U172: =IF(V172="","",MAX(U$1:U171)+1) ->  | V172: =IF(ISERROR(IF(ranquing!G173=VLOOKUP(INSCRIPCIÓ!$D$30,$R$2:$S$38,2,0),ranquing!A173,"")),"",IF(ranquing!G173=VLOOKUP(INSCRIPCIÓ!$D$30,$R$2:$S$38,2,0),ranquing!A173,"")) -> 
T173: 172 | U173: =IF(V173="","",MAX(U$1:U172)+1) ->  | V173: =IF(ISERROR(IF(ranquing!G174=VLOOKUP(INSCRIPCIÓ!$D$30,$R$2:$S$38,2,0),ranquing!A174,"")),"",IF(ranquing!G174=VLOOKUP(INSCRIPCIÓ!$D$30,$R$2:$S$38,2,0),ranquing!A174,"")) -> 
T174: 173 | U174: =IF(V174="","",MAX(U$1:U173)+1) ->  | V174: =IF(ISERROR(IF(ranquing!G175=VLOOKUP(INSCRIPCIÓ!$D$30,$R$2:$S$38,2,0),ranquing!A175,"")),"",IF(ranquing!G175=VLOOKUP(INSCRIPCIÓ!$D$30,$R$2:$S$38,2,0),ranquing!A175,"")) -> 
T175: 174 | U175: =IF(V175="","",MAX(U$1:U174)+1) ->  | V175: =IF(ISERROR(IF(ranquing!G176=VLOOKUP(INSCRIPCIÓ!$D$30,$R$2:$S$38,2,0),ranquing!A176,"")),"",IF(ranquing!G176=VLOOKUP(INSCRIPCIÓ!$D$30,$R$2:$S$38,2,0),ranquing!A176,"")) -> 
T176: 175 | U176: =IF(V176="","",MAX(U$1:U175)+1) ->  | V176: =IF(ISERROR(IF(ranquing!G177=VLOOKUP(INSCRIPCIÓ!$D$30,$R$2:$S$38,2,0),ranquing!A177,"")),"",IF(ranquing!G177=VLOOKUP(INSCRIPCIÓ!$D$30,$R$2:$S$38,2,0),ranquing!A177,"")) -> 
T177: 176 | U177: =IF(V177="","",MAX(U$1:U176)+1) ->  | V177: =IF(ISERROR(IF(ranquing!G178=VLOOKUP(INSCRIPCIÓ!$D$30,$R$2:$S$38,2,0),ranquing!A178,"")),"",IF(ranquing!G178=VLOOKUP(INSCRIPCIÓ!$D$30,$R$2:$S$38,2,0),ranquing!A178,"")) -> 
T178: 177 | U178: =IF(V178="","",MAX(U$1:U177)+1) ->  | V178: =IF(ISERROR(IF(ranquing!G179=VLOOKUP(INSCRIPCIÓ!$D$30,$R$2:$S$38,2,0),ranquing!A179,"")),"",IF(ranquing!G179=VLOOKUP(INSCRIPCIÓ!$D$30,$R$2:$S$38,2,0),ranquing!A179,"")) -> 
T179: 178 | U179: =IF(V179="","",MAX(U$1:U178)+1) ->  | V179: =IF(ISERROR(IF(ranquing!G180=VLOOKUP(INSCRIPCIÓ!$D$30,$R$2:$S$38,2,0),ranquing!A180,"")),"",IF(ranquing!G180=VLOOKUP(INSCRIPCIÓ!$D$30,$R$2:$S$38,2,0),ranquing!A180,"")) -> 
T180: 179 | U180: =IF(V180="","",MAX(U$1:U179)+1) ->  | V180: =IF(ISERROR(IF(ranquing!G181=VLOOKUP(INSCRIPCIÓ!$D$30,$R$2:$S$38,2,0),ranquing!A181,"")),"",IF(ranquing!G181=VLOOKUP(INSCRIPCIÓ!$D$30,$R$2:$S$38,2,0),ranquing!A181,"")) -> 
T181: 180 | U181: =IF(V181="","",MAX(U$1:U180)+1) ->  | V181: =IF(ISERROR(IF(ranquing!G182=VLOOKUP(INSCRIPCIÓ!$D$30,$R$2:$S$38,2,0),ranquing!A182,"")),"",IF(ranquing!G182=VLOOKUP(INSCRIPCIÓ!$D$30,$R$2:$S$38,2,0),ranquing!A182,"")) -> 
T182: 181 | U182: =IF(V182="","",MAX(U$1:U181)+1) ->  | V182: =IF(ISERROR(IF(ranquing!G183=VLOOKUP(INSCRIPCIÓ!$D$30,$R$2:$S$38,2,0),ranquing!A183,"")),"",IF(ranquing!G183=VLOOKUP(INSCRIPCIÓ!$D$30,$R$2:$S$38,2,0),ranquing!A183,"")) -> 
T183: 182 | U183: =IF(V183="","",MAX(U$1:U182)+1) ->  | V183: =IF(ISERROR(IF(ranquing!G184=VLOOKUP(INSCRIPCIÓ!$D$30,$R$2:$S$38,2,0),ranquing!A184,"")),"",IF(ranquing!G184=VLOOKUP(INSCRIPCIÓ!$D$30,$R$2:$S$38,2,0),ranquing!A184,"")) -> 
T184: 183 | U184: =IF(V184="","",MAX(U$1:U183)+1) ->  | V184: =IF(ISERROR(IF(ranquing!G185=VLOOKUP(INSCRIPCIÓ!$D$30,$R$2:$S$38,2,0),ranquing!A185,"")),"",IF(ranquing!G185=VLOOKUP(INSCRIPCIÓ!$D$30,$R$2:$S$38,2,0),ranquing!A185,"")) -> 
T185: 184 | U185: =IF(V185="","",MAX(U$1:U184)+1) ->  | V185: =IF(ISERROR(IF(ranquing!G186=VLOOKUP(INSCRIPCIÓ!$D$30,$R$2:$S$38,2,0),ranquing!A186,"")),"",IF(ranquing!G186=VLOOKUP(INSCRIPCIÓ!$D$30,$R$2:$S$38,2,0),ranquing!A186,"")) -> 
T186: 185 | U186: =IF(V186="","",MAX(U$1:U185)+1) ->  | V186: =IF(ISERROR(IF(ranquing!G187=VLOOKUP(INSCRIPCIÓ!$D$30,$R$2:$S$38,2,0),ranquing!A187,"")),"",IF(ranquing!G187=VLOOKUP(INSCRIPCIÓ!$D$30,$R$2:$S$38,2,0),ranquing!A187,"")) -> 
T187: 186 | U187: =IF(V187="","",MAX(U$1:U186)+1) ->  | V187: =IF(ISERROR(IF(ranquing!G188=VLOOKUP(INSCRIPCIÓ!$D$30,$R$2:$S$38,2,0),ranquing!A188,"")),"",IF(ranquing!G188=VLOOKUP(INSCRIPCIÓ!$D$30,$R$2:$S$38,2,0),ranquing!A188,"")) -> 
T188: 187 | U188: =IF(V188="","",MAX(U$1:U187)+1) ->  | V188: =IF(ISERROR(IF(ranquing!G189=VLOOKUP(INSCRIPCIÓ!$D$30,$R$2:$S$38,2,0),ranquing!A189,"")),"",IF(ranquing!G189=VLOOKUP(INSCRIPCIÓ!$D$30,$R$2:$S$38,2,0),ranquing!A189,"")) -> 
T189: 188 | U189: =IF(V189="","",MAX(U$1:U188)+1) ->  | V189: =IF(ISERROR(IF(ranquing!G190=VLOOKUP(INSCRIPCIÓ!$D$30,$R$2:$S$38,2,0),ranquing!A190,"")),"",IF(ranquing!G190=VLOOKUP(INSCRIPCIÓ!$D$30,$R$2:$S$38,2,0),ranquing!A190,"")) -> 
T190: 189 | U190: =IF(V190="","",MAX(U$1:U189)+1) ->  | V190: =IF(ISERROR(IF(ranquing!G191=VLOOKUP(INSCRIPCIÓ!$D$30,$R$2:$S$38,2,0),ranquing!A191,"")),"",IF(ranquing!G191=VLOOKUP(INSCRIPCIÓ!$D$30,$R$2:$S$38,2,0),ranquing!A191,"")) -> 
T191: 190 | U191: =IF(V191="","",MAX(U$1:U190)+1) ->  | V191: =IF(ISERROR(IF(ranquing!G192=VLOOKUP(INSCRIPCIÓ!$D$30,$R$2:$S$38,2,0),ranquing!A192,"")),"",IF(ranquing!G192=VLOOKUP(INSCRIPCIÓ!$D$30,$R$2:$S$38,2,0),ranquing!A192,"")) -> 
T192: 191 | U192: =IF(V192="","",MAX(U$1:U191)+1) ->  | V192: =IF(ISERROR(IF(ranquing!G193=VLOOKUP(INSCRIPCIÓ!$D$30,$R$2:$S$38,2,0),ranquing!A193,"")),"",IF(ranquing!G193=VLOOKUP(INSCRIPCIÓ!$D$30,$R$2:$S$38,2,0),ranquing!A193,"")) -> 
T193: 192 | U193: =IF(V193="","",MAX(U$1:U192)+1) ->  | V193: =IF(ISERROR(IF(ranquing!G194=VLOOKUP(INSCRIPCIÓ!$D$30,$R$2:$S$38,2,0),ranquing!A194,"")),"",IF(ranquing!G194=VLOOKUP(INSCRIPCIÓ!$D$30,$R$2:$S$38,2,0),ranquing!A194,"")) -> 
T194: 193 | U194: =IF(V194="","",MAX(U$1:U193)+1) ->  | V194: =IF(ISERROR(IF(ranquing!G195=VLOOKUP(INSCRIPCIÓ!$D$30,$R$2:$S$38,2,0),ranquing!A195,"")),"",IF(ranquing!G195=VLOOKUP(INSCRIPCIÓ!$D$30,$R$2:$S$38,2,0),ranquing!A195,"")) -> 
T195: =T194+1 -> 194 | U195: =IF(V195="","",MAX(U$1:U194)+1) ->  | V195: =IF(ISERROR(IF(ranquing!G196=VLOOKUP(INSCRIPCIÓ!$D$30,$R$2:$S$38,2,0),ranquing!A196,"")),"",IF(ranquing!G196=VLOOKUP(INSCRIPCIÓ!$D$30,$R$2:$S$38,2,0),ranquing!A196,"")) -> 
T196: 195 | U196: =IF(V196="","",MAX(U$1:U195)+1) ->  | V196: =IF(ISERROR(IF(ranquing!G197=VLOOKUP(INSCRIPCIÓ!$D$30,$R$2:$S$38,2,0),ranquing!A197,"")),"",IF(ranquing!G197=VLOOKUP(INSCRIPCIÓ!$D$30,$R$2:$S$38,2,0),ranquing!A197,"")) -> 
T197: 196 | U197: =IF(V197="","",MAX(U$1:U196)+1) ->  | V197: =IF(ISERROR(IF(ranquing!G198=VLOOKUP(INSCRIPCIÓ!$D$30,$R$2:$S$38,2,0),ranquing!A198,"")),"",IF(ranquing!G198=VLOOKUP(INSCRIPCIÓ!$D$30,$R$2:$S$38,2,0),ranquing!A198,"")) -> 
T198: 197 | U198: =IF(V198="","",MAX(U$1:U197)+1) ->  | V198: =IF(ISERROR(IF(ranquing!G199=VLOOKUP(INSCRIPCIÓ!$D$30,$R$2:$S$38,2,0),ranquing!A199,"")),"",IF(ranquing!G199=VLOOKUP(INSCRIPCIÓ!$D$30,$R$2:$S$38,2,0),ranquing!A199,"")) -> 
T199: 198 | U199: =IF(V199="","",MAX(U$1:U198)+1) ->  | V199: =IF(ISERROR(IF(ranquing!G200=VLOOKUP(INSCRIPCIÓ!$D$30,$R$2:$S$38,2,0),ranquing!A200,"")),"",IF(ranquing!G200=VLOOKUP(INSCRIPCIÓ!$D$30,$R$2:$S$38,2,0),ranquing!A200,"")) -> 
T200: 199 | U200: =IF(V200="","",MAX(U$1:U199)+1) ->  | V200: =IF(ISERROR(IF(ranquing!G201=VLOOKUP(INSCRIPCIÓ!$D$30,$R$2:$S$38,2,0),ranquing!A201,"")),"",IF(ranquing!G201=VLOOKUP(INSCRIPCIÓ!$D$30,$R$2:$S$38,2,0),ranquing!A201,"")) -> 
T201: 200 | U201: =IF(V201="","",MAX(U$1:U200)+1) ->  | V201: =IF(ISERROR(IF(ranquing!G202=VLOOKUP(INSCRIPCIÓ!$D$30,$R$2:$S$38,2,0),ranquing!A202,"")),"",IF(ranquing!G202=VLOOKUP(INSCRIPCIÓ!$D$30,$R$2:$S$38,2,0),ranquing!A202,"")) -> 
... 201 more rows

Sheet ranquing
J1: 4 | K1: 3 | L1: 2 | M1: 1 | N1: 4 | O1: 2 | P1: 2 | Q1: 1 | R1: 0 | X1: J1 | Y1: J2 | Z1: J3 | AA1: J4 | AB1: J5 | AC1: J6 | AD1: J7 | AF1: J1 | AG1: J2 | AH1: J3 | AI1: J4 | AJ1: J5 | AK1: J6 | AL1: J7
A2: nº | C2: Jugador | D2: Cat | E2: Cat I | F2: Cat D | G2: Club | I2: RK 1617 | J2: JUV | K2: INF | L2: ALE | M2: BEN | N2: FEM | O2: ALE F | P2: D Abs | Q2: D Ale | R2: D Fem | S2: Pot jugar? | T2: Jornades inscrit | U2: BC | V2: BN | W2: BD | X2: Nivell | Y2: Nivell | Z2: Nivell | AA2: Nivell | AB2: Nivell | AC2: Nivell | AD2: Nivell | AE2: On queda | AF2: Obs | AG2: Obs | AH2: Obs | AI2: Obs | AJ2: Obs | AK2: Obs | AL2: Obs
A3: 4424 | B3: M | C3: MARTORELL Neil | D3: INF-2 | E3: =IF(LEFT(D3,1)="P",1,IF(LEFT(D3,1)="B",1,IF(LEFT(D3,1)="A",2,IF(LEFT(D3,1)="I",3,4)))) -> 3 | F3: =IF(B3="F",0,IF(LEFT(D3,1)="P",1,IF(LEFT(D3,1)="B",1,IF(LEFT(D3,1)="A",1,IF(LEFT(D3,1)="I",2,2))))) -> 2 | G3: LLUÏSOS | H3: LLUÏSOS | I3: 9820.17 | J3: =IF($S3<>"","",IF(AND($E3<=J$1,$B3="M"),MAX(J$2:J2)+1,"")) -> 1 | K3: =IF($S3<>"","",IF(AND($E3<=K$1,$B3="M"),MAX(K$2:K2)+1,"")) -> 1 | L3: =IF($S3<>"","",IF(AND($E3<=L$1,$B3="M"),MAX(L$2:L2)+1,"")) ->  | M3: =IF($S3<>"","",IF(AND($E3<=M$1,$B3="M"),MAX(M$2:M2)+1,"")) ->  | N3: =IF($S3<>"","",IF(AND($E3<=N$1,$B3="F"),MAX(N$2:N2)+1,"")) ->  | O3: =IF($S3<>"","",IF(AND($E3<=O$1,$B3="F"),MAX(O$2:O2)+1,"")) ->  | P3: =IF(AND($S3<>"",$S3<>"No pot jugar individual"),"",IF(AND($F3<=P$1,$B3="M"),MAX(P$2:P2)+1,"")) -> 1 | Q3: =IF(AND($S3<>"",$S3<>"No pot jugar individual"),"",IF(AND($F3<=Q$1,$B3="M"),MAX(Q$2:Q2)+1,"")) ->  | R3: =IF($S3<>"","",IF($F3<=R$1,MAX(R$2:R2)+1,"")) ->  | S3: =IF(1=1,"",IF(W3<>0,"No pot jugar",IF(OR(AE3="Y",AE3="Z",G3="INDEPEN",G3="R.ELISENDA"),"No pot jugar",IF(T3-U3-V3-W3=0,IF(V3<>0,"No pot jugar",IF(AND(B3="M",OR(G3="INDEPEN",G3="R.ELISENDA")),"No pot jugar individual","")),IF(AND(B3="M",OR(G3="INDEPEN",G3="R.ELISENDA")),"No pot jugar individual",""))))) ->  | T3: =7-COUNTBLANK(X3:AD3) -> 7 | U3: =COUNTIF($AF3:$AL3,U$2) -> 0 | V3: 0 | W3: 0 | X3: A | Y3: A | Z3: A | AA3: A | AB3: A | AC3: A | AD3: A | AE3: A
A4: 8661 | B4: M | C4: GONZALEZ Daniel | D4: JUV-2 | E4: 4 | F4: 2 | G4: CASTELLAR | H4: CASTELLAR | I4: 8820.17 | J4: =IF($S4<>"","",IF(AND($E4<=J$1,$B4="M"),MAX(J$2:J3)+1,"")) -> 2 | K4: =IF($S4<>"","",IF(AND($E4<=K$1,$B4="M"),MAX(K$2:K3)+1,"")) ->  | L4: =IF($S4<>"","",IF(AND($E4<=L$1,$B4="M"),MAX(L$2:L3)+1,"")) ->  | M4: =IF($S4<>"","",IF(AND($E4<=M$1,$B4="M"),MAX(M$2:M3)+1,"")) ->  | N4: =IF($S4<>"","",IF(AND($E4<=N$1,$B4="F"),MAX(N$2:N3)+1,"")) ->  | O4: =IF($S4<>"","",IF(AND($E4<=O$1,$B4="F"),MAX(O$2:O3)+1,"")) ->  | P4: =IF(AND($S4<>"",$S4<>"No pot jugar individual"),"",IF(AND($F4<=P$1,$B4="M"),MAX(P$2:P3)+1,"")) -> 2 | Q4: =IF(AND($S4<>"",$S4<>"No pot jugar individual"),"",IF(AND($F4<=Q$1,$B4="M"),MAX(Q$2:Q3)+1,"")) ->  | R4: =IF($S4<>"","",IF($F4<=R$1,MAX(R$2:R3)+1,"")) ->  | T4: 7 | U4: 0 | V4: 0 | W4: 0 | X4: A | Y4: A | Z4: A | AA4: A | AB4: A | AC4: A | AD4: A | AE4: A
A5: 5154 | B5: M | C5: MENENDEZ Marius | D5: JUV-1 | E5: 4 | F5: 2 | G5: CNSABA | H5: CNSABA | I5: 8443 | J5: =IF($S5<>"","",IF(AND($E5<=J$1,$B5="M"),MAX(J$2:J4)+1,"")) -> 3 | K5: =IF($S5<>"","",IF(AND($E5<=K$1,$B5="M"),MAX(K$2:K4)+1,"")) ->  | L5: =IF($S5<>"","",IF(AND($E5<=L$1,$B5="M"),MAX(L$2:L4)+1,"")) ->  | M5: =IF($S5<>"","",IF(AND($E5<=M$1,$B5="M"),MAX(M$2:M4)+1,"")) ->  | N5: =IF($S5<>"","",IF(AND($E5<=N$1,$B5="F"),MAX(N$2:N4)+1,"")) ->  | O5: =IF($S5<>"","",IF(AND($E5<=O$1,$B5="F"),MAX(O$2:O4)+1,"")) ->  | P5: =IF(AND($S5<>"",$S5<>"No pot jugar individual"),"",IF(AND($F5<=P$1,$B5="M"),MAX(P$2:P4)+1,"")) -> 3 | Q5: =IF(AND($S5<>"",$S5<>"No pot jugar individual"),"",IF(AND($F5<=Q$1,$B5="M"),MAX(Q$2:Q4)+1,"")) ->  | R5: =IF($S5<>"","",IF($F5<=R$1,MAX(R$2:R4)+1,"")) ->  | T5: 7 | U5: 1 | V5: 0 | W5: 0 | X5: A | Y5: A | Z5: A | AA5: B | AB5: A | AC5: A | AD5: A | AE5: A | AH5: BC
A6: 6576 | B6: M | C6: NAVIO Biel | D6: INF-2 | E6: 3 | F6: 2 | G6: VIC | H6: VIC | I6: 8320.17 | J6: =IF($S6<>"","",IF(AND($E6<=J$1,$B6="M"),MAX(J$2:J5)+1,"")) -> 4 | K6: =IF($S6<>"","",IF(AND($E6<=K$1,$B6="M"),MAX(K$2:K5)+1,"")) -> 2 | L6: =IF($S6<>"","",IF(AND($E6<=L$1,$B6="M"),MAX(L$2:L5)+1,"")) ->  | M6: =IF($S6<>"","",IF(AND($E6<=M$1,$B6="M"),MAX(M$2:M5)+1,"")) ->  | N6: =IF($S6<>"","",IF(AND($E6<=N$1,$B6="F"),MAX(N$2:N5)+1,"")) ->  | O6: =IF($S6<>"","",IF(AND($E6<=O$1,$B6="F"),MAX(O$2:O5)+1,"")) ->  | P6: =IF(AND($S6<>"",$S6<>"No pot jugar individual"),"",IF(AND($F6<=P$1,$B6="M"),MAX(P$2:P5)+1,"")) -> 4 | Q6: =IF(AND($S6<>"",$S6<>"No pot jugar individual"),"",IF(AND($F6<=Q$1,$B6="M"),MAX(Q$2:Q5)+1,"")) ->  | R6: =IF($S6<>"","",IF($F6<=R$1,MAX(R$2:R5)+1,"")) ->  | T6: 7 | U6: 0 | V6: 0 | W6: 0 | X6: A | Y6: A | Z6: A | AA6: A | AB6: A | AC6: A | AD6: A | AE6: A
A7: 8557 | B7: M | C7: CALVILLO Izan | D7: JUV-1 | E7: 4 | F7: 2 | G7: MATARO | H7: MATARO | I7: 7703.5 | J7: =IF($S7<>"","",IF(AND($E7<=J$1,$B7="M"),MAX(J$2:J6)+1,"")) -> 5 | K7: =IF($S7<>"","",IF(AND($E7<=K$1,$B7="M"),MAX(K$2:K6)+1,"")) ->  | L7: =IF($S7<>"","",IF(AND($E7<=L$1,$B7="M"),MAX(L$2:L6)+1,"")) ->  | M7: =IF($S7<>"","",IF(AND($E7<=M$1,$B7="M"),MAX(M$2:M6)+1,"")) ->  | N7: =IF($S7<>"","",IF(AND($E7<=N$1,$B7="F"),MAX(N$2:N6)+1,"")) ->  | O7: =IF($S7<>"","",IF(AND($E7<=O$1,$B7="F"),MAX(O$2:O6)+1,"")) ->  | P7: =IF(AND($S7<>"",$S7<>"No pot jugar individual"),"",IF(AND($F7<=P$1,$B7="M"),MAX(P$2:P6)+1,"")) -> 5 | Q7: =IF(AND($S7<>"",$S7<>"No pot jugar individual"),"",IF(AND($F7<=Q$1,$B7="M"),MAX(Q$2:Q6)+1,"")) ->  | R7: =IF($S7<>"","",IF($F7<=R$1,MAX(R$2:R6)+1,"")) ->  | T7: 7 | U7: 0 | V7: 0 | W7: 0 | X7: A | Y7: A | Z7: A | AA7: A | AB7: A | AC7: A | AD7: A | AE7: A
A8: 8597 | B8: M | C8: FERRUZ Marc | D8: INF-2 | E8: 3 | F8: 2 | G8: CNSABA | H8: CNSABA | I8: 7603 | J8: =IF($S8<>"","",IF(AND($E8<=J$1,$B8="M"),MAX(J$2:J7)+1,"")) -> 6 | K8: =IF($S8<>"","",IF(AND($E8<=K$1,$B8="M"),MAX(K$2:K7)+1,"")) -> 3 | L8: =IF($S8<>"","",IF(AND($E8<=L$1,$B8="M"),MAX(L$2:L7)+1,"")) ->  | M8: =IF($S8<>"","",IF(AND($E8<=M$1,$B8="M"),MAX(M$2:M7)+1,"")) ->  | N8: =IF($S8<>"","",IF(AND($E8<=N$1,$B8="F"),MAX(N$2:N7)+1,"")) ->  | O8: =IF($S8<>"","",IF(AND($E8<=O$1,$B8="F"),MAX(O$2:O7)+1,"")) ->  | P8: =IF(AND($S8<>"",$S8<>"No pot jugar individual"),"",IF(AND($F8<=P$1,$B8="M"),MAX(P$2:P7)+1,"")) -> 6 | Q8: =IF(AND($S8<>"",$S8<>"No pot jugar individual"),"",IF(AND($F8<=Q$1,$B8="M"),MAX(Q$2:Q7)+1,"")) ->  | R8: =IF($S8<>"","",IF($F8<=R$1,MAX(R$2:R7)+1,"")) ->  | T8: 7 | U8: 0 | V8: 0 | W8: 0 | X8: A | Y8: A | Z8: A | AA8: A | AB8: A | AC8: A | AD8: A | AE8: A | AI8: BJ
A9: 8593 | B9: M | C9: GIMENO Biel | D9: INF-1 | E9: 3 | F9: 2 | G9: VIC | H9: VIC | I9: 7303.5 | J9: =IF($S9<>"","",IF(AND($E9<=J$1,$B9="M"),MAX(J$2:J8)+1,"")) -> 7 | K9: =IF($S9<>"","",IF(AND($E9<=K$1,$B9="M"),MAX(K$2:K8)+1,"")) -> 4 | L9: =IF($S9<>"","",IF(AND($E9<=L$1,$B9="M"),MAX(L$2:L8)+1,"")) ->  | M9: =IF($S9<>"","",IF(AND($E9<=M$1,$B9="M"),MAX(M$2:M8)+1,"")) ->  | N9: =IF($S9<>"","",IF(AND($E9<=N$1,$B9="F"),MAX(N$2:N8)+1,"")) ->  | O9: =IF($S9<>"","",IF(AND($E9<=O$1,$B9="F"),MAX(O$2:O8)+1,"")) ->  | P9: =IF(AND($S9<>"",$S9<>"No pot jugar individual"),"",IF(AND($F9<=P$1,$B9="M"),MAX(P$2:P8)+1,"")) -> 7 | Q9: =IF(AND($S9<>"",$S9<>"No pot jugar individual"),"",IF(AND($F9<=Q$1,$B9="M"),MAX(Q$2:Q8)+1,"")) ->  | R9: =IF($S9<>"","",IF($F9<=R$1,MAX(R$2:R8)+1,"")) ->  | T9: 7 | U9: 0 | V9: 0 | W9: 0 | X9: A | Y9: A | Z9: A | AA9: A | AB9: A | AC9: A | AD9: A | AE9: A
A10: 6464 | B10: M | C10: MENINO Pau | D10: JUV-3 | E10: 4 | F10: 2 | G10: EUROCLIMA BDN | H10: EUROCLIMA BDN | I10: 6555.5 | J10: =IF($S10<>"","",IF(AND($E10<=J$1,$B10="M"),MAX(J$2:J9)+1,"")) -> 8 | K10: =IF($S10<>"","",IF(AND($E10<=K$1,$B10="M"),MAX(K$2:K9)+1,"")) ->  | L10: =IF($S10<>"","",IF(AND($E10<=L$1,$B10="M"),MAX(L$2:L9)+1,"")) ->  | M10: =IF($S10<>"","",IF(AND($E10<=M$1,$B10="M"),MAX(M$2:M9)+1,"")) ->  | N10: =IF($S10<>"","",IF(AND($E10<=N$1,$B10="F"),MAX(N$2:N9)+1,"")) ->  | O10: =IF($S10<>"","",IF(AND($E10<=O$1,$B10="F"),MAX(O$2:O9)+1,"")) ->  | P10: =IF(AND($S10<>"",$S10<>"No pot jugar individual"),"",IF(AND($F10<=P$1,$B10="M"),MAX(P$2:P9)+1,"")) -> 8 | Q10: =IF(AND($S10<>"",$S10<>"No pot jugar individual"),"",IF(AND($F10<=Q$1,$B10="M"),MAX(Q$2:Q9)+1,"")) ->  | R10: =IF($S10<>"","",IF($F10<=R$1,MAX(R$2:R9)+1,"")) ->  | T10: 7 | U10: 0 | V10: 0 | W10: 0 | X10: C | Y10: B | Z10: A | AA10: A | AB10: A | AC10: A | AD10: A | AE10: A
A11: 7271 | B11: M | C11: GARROTE Biel | D11: INF-2 | E11: 3 | F11: 2 | G11: VILANOVA | H11: VILANOVA | I11: 6420.17 | J11: =IF($S11<>"","",IF(AND($E11<=J$1,$B11="M"),MAX(J$2:J10)+1,"")) -> 9 | K11: =IF($S11<>"","",IF(AND($E11<=K$1,$B11="M"),MAX(K$2:K10)+1,"")) -> 5 | L11: =IF($S11<>"","",IF(AND($E11<=L$1,$B11="M"),MAX(L$2:L10)+1,"")) ->  | M11: =IF($S11<>"","",IF(AND($E11<=M$1,$B11="M"),MAX(M$2:M10)+1,"")) ->  | N11: =IF($S11<>"","",IF(AND($E11<=N$1,$B11="F"),MAX(N$2:N10)+1,"")) ->  | O11: =IF($S11<>"","",IF(AND($E11<=O$1,$B11="F"),MAX(O$2:O10)+1,"")) ->  | P11: =IF(AND($S11<>"",$S11<>"No pot jugar individual"),"",IF(AND($F11<=P$1,$B11="M"),MAX(P$2:P10)+1,"")) -> 9 | Q11: =IF(AND($S11<>"",$S11<>"No pot jugar individual"),"",IF(AND($F11<=Q$1,$B11="M"),MAX(Q$2:Q10)+1,"")) ->  | R11: =IF($S11<>"","",IF($F11<=R$1,MAX(R$2:R10)+1,"")) ->  | T11: 7 | U11: 0 | V11: 0 | W11: 0 | X11: A | Y11: A | Z11: A | AA11: A | AB11: A | AC11: A | AD11: A | AE11: A
A12: 7801 | B12: M | C12: EDO Jordi | D12: JUV-1 | E12: 4 | F12: 2 | G12: ICELAND ELS 8 | H12: ICELAND ELS 8 | I12: 6032 | J12: =IF($S12<>"","",IF(AND($E12<=J$1,$B12="M"),MAX(J$2:J11)+1,"")) -> 10 | K12: =IF($S12<>"","",IF(AND($E12<=K$1,$B12="M"),MAX(K$2:K11)+1,"")) ->  | L12: =IF($S12<>"","",IF(AND($E12<=L$1,$B12="M"),MAX(L$2:L11)+1,"")) ->  | M12: =IF($S12<>"","",IF(AND($E12<=M$1,$B12="M"),MAX(M$2:M11)+1,"")) ->  | N12: =IF($S12<>"","",IF(AND($E12<=N$1,$B12="F"),MAX(N$2:N11)+1,"")) ->  | O12: =IF($S12<>"","",IF(AND($E12<=O$1,$B12="F"),MAX(O$2:O11)+1,"")) ->  | P12: =IF(AND($S12<>"",$S12<>"No pot jugar individual"),"",IF(AND($F12<=P$1,$B12="M"),MAX(P$2:P11)+1,"")) -> 10 | Q12: =IF(AND($S12<>"",$S12<>"No pot jugar individual"),"",IF(AND($F12<=Q$1,$B12="M"),MAX(Q$2:Q11)+1,"")) ->  | R12: =IF($S12<>"","",IF($F12<=R$1,MAX(R$2:R11)+1,"")) ->  | T12: 7 | U12: 1 | V12: 1 | W12: 0 | X12: A | Y12: B | Z12: A | AA12: A | AB12: A | AC12: A | AD12: B | AE12: C | AF12: BJ | AK12: BC | AL12: BN
A13: 7438 | B13: M | C13: NOVELL Ferran | D13: JUV-3 | E13: 4 | F13: 2 | G13: EUROCLIMA BDN | H13: EUROCLIMA BDN | I13: 5606.33 | J13: =IF($S13<>"","",IF(AND($E13<=J$1,$B13="M"),MAX(J$2:J12)+1,"")) -> 11 | K13: =IF($S13<>"","",IF(AND($E13<=K$1,$B13="M"),MAX(K$2:K12)+1,"")) ->  | L13: =IF($S13<>"","",IF(AND($E13<=L$1,$B13="M"),MAX(L$2:L12)+1,"")) ->  | M13: =IF($S13<>"","",IF(AND($E13<=M$1,$B13="M"),MAX(M$2:M12)+1,"")) ->  | N13: =IF($S13<>"","",IF(AND($E13<=N$1,$B13="F"),MAX(N$2:N12)+1,"")) ->  | O13: =IF($S13<>"","",IF(AND($E13<=O$1,$B13="F"),MAX(O$2:O12)+1,"")) ->  | P13: =IF(AND($S13<>"",$S13<>"No pot jugar individual"),"",IF(AND($F13<=P$1,$B13="M"),MAX(P$2:P12)+1,"")) -> 11 | Q13: =IF(AND($S13<>"",$S13<>"No pot jugar individual"),"",IF(AND($F13<=Q$1,$B13="M"),MAX(Q$2:Q12)+1,"")) ->  | R13: =IF($S13<>"","",IF($F13<=R$1,MAX(R$2:R12)+1,"")) ->  | T13: 7 | U13: 0 | V13: 0 | W13: 0 | X13: A | Y13: B | Z13: B | AA13: A | AB13: A | AC13: A | AD13: A | AE13: A | AF13: BJ
A14: 8843 | B14: M | C14: COSTA Tomas | D14: JUV-1 | E14: 4 | F14: 2 | G14: HOSPIT | H14: HOSPIT | I14: 5283.5 | J14: =IF($S14<>"","",IF(AND($E14<=J$1,$B14="M"),MAX(J$2:J13)+1,"")) -> 12 | K14: =IF($S14<>"","",IF(AND($E14<=K$1,$B14="M"),MAX(K$2:K13)+1,"")) ->  | L14: =IF($S14<>"","",IF(AND($E14<=L$1,$B14="M"),MAX(L$2:L13)+1,"")) ->  | M14: =IF($S14<>"","",IF(AND($E14<=M$1,$B14="M"),MAX(M$2:M13)+1,"")) ->  | N14: =IF($S14<>"","",IF(AND($E14<=N$1,$B14="F"),MAX(N$2:N13)+1,"")) ->  | O14: =IF($S14<>"","",IF(AND($E14<=O$1,$B14="F"),MAX(O$2:O13)+1,"")) ->  | P14: =IF(AND($S14<>"",$S14<>"No pot jugar individual"),"",IF(AND($F14<=P$1,$B14="M"),MAX(P$2:P13)+1,"")) -> 12 | Q14: =IF(AND($S14<>"",$S14<>"No pot jugar individual"),"",IF(AND($F14<=Q$1,$B14="M"),MAX(Q$2:Q13)+1,"")) ->  | R14: =IF($S14<>"","",IF($F14<=R$1,MAX(R$2:R13)+1,"")) ->  | T14: 7 | U14: 0 | V14: 0 | W14: 0 | X14: B | Y14: A | Z14: A | AA14: A | AB14: A | AC14: A | AD14: A | AE14: A
A15: 7503 | B15: M | C15: GUARDIOLA Ferran | D15: INF-2 | E15: 3 | F15: 2 | G15: LLUÏSOS | H15: LLUÏSOS | I15: 4883 | J15: =IF($S15<>"","",IF(AND($E15<=J$1,$B15="M"),MAX(J$2:J14)+1,"")) -> 13 | K15: =IF($S15<>"","",IF(AND($E15<=K$1,$B15="M"),MAX(K$2:K14)+1,"")) -> 6 | L15: =IF($S15<>"","",IF(AND($E15<=L$1,$B15="M"),MAX(L$2:L14)+1,"")) ->  | M15: =IF($S15<>"","",IF(AND($E15<=M$1,$B15="M"),MAX(M$2:M14)+1,"")) ->  | N15: =IF($S15<>"","",IF(AND($E15<=N$1,$B15="F"),MAX(N$2:N14)+1,"")) ->  | O15: =IF($S15<>"","",IF(AND($E15<=O$1,$B15="F"),MAX(O$2:O14)+1,"")) ->  | P15: =IF(AND($S15<>"",$S15<>"No pot jugar individual"),"",IF(AND($F15<=P$1,$B15="M"),MAX(P$2:P14)+1,"")) -> 13 | Q15: =IF(AND($S15<>"",$S15<>"No pot jugar individual"),"",IF(AND($F15<=Q$1,$B15="M"),MAX(Q$2:Q14)+1,"")) ->  | R15: =IF($S15<>"","",IF($F15<=R$1,MAX(R$2:R14)+1,"")) ->  | T15: 7 | U15: 0 | V15: 0 | W15: 0 | X15: A | Y15: B | Z15: A | AA15: A | AB15: B | AC15: B | AD15: A | AE15: A | AI15: BJ
A16: 6952 | B16: M | C16: CARMONA Albert | D16: INF-2 | E16: 3 | F16: 2 | G16: VILANOVA | H16: VILANOVA | I16: 4786.83 | J16: =IF($S16<>"","",IF(AND($E16<=J$1,$B16="M"),MAX(J$2:J15)+1,"")) -> 14 | K16: =IF($S16<>"","",IF(AND($E16<=K$1,$B16="M"),MAX(K$2:K15)+1,"")) -> 7 | L16: =IF($S16<>"","",IF(AND($E16<=L$1,$B16="M"),MAX(L$2:L15)+1,"")) ->  | M16: =IF($S16<>"","",IF(AND($E16<=M$1,$B16="M"),MAX(M$2:M15)+1,"")) ->  | N16: =IF($S16<>"","",IF(AND($E16<=N$1,$B16="F"),MAX(N$2:N15)+1,"")) ->  | O16: =IF($S16<>"","",IF(AND($E16<=O$1,$B16="F"),MAX(O$2:O15)+1,"")) ->  | P16: =IF(AND($S16<>"",$S16<>"No pot jugar individual"),"",IF(AND($F16<=P$1,$B16="M"),MAX(P$2:P15)+1,"")) -> 14 | Q16: =IF(AND($S16<>"",$S16<>"No pot jugar individual"),"",IF(AND($F16<=Q$1,$B16="M"),MAX(Q$2:Q15)+1,"")) ->  | R16: =IF($S16<>"","",IF($F16<=R$1,MAX(R$2:R15)+1,"")) ->  | T16: 7 | U16: 0 | V16: 0 | W16: 0 | X16: A | Y16: A | Z16: B | AA16: A | AB16: A | AC16: A | AD16: A | AE16: A
A17: 8652 | B17: M | C17: KUMAR Aman | D17: INF-1 | E17: 3 | F17: 2 | G17: CALELLA | H17: CALELLA | I17: 4693.5 | J17: =IF($S17<>"","",IF(AND($E17<=J$1,$B17="M"),MAX(J$2:J16)+1,"")) -> 15 | K17: =IF($S17<>"","",IF(AND($E17<=K$1,$B17="M"),MAX(K$2:K16)+1,"")) -> 8 | L17: =IF($S17<>"","",IF(AND($E17<=L$1,$B17="M"),MAX(L$2:L16)+1,"")) ->  | M17: =IF($S17<>"","",IF(AND($E17<=M$1,$B17="M"),MAX(M$2:M16)+1,"")) ->  | N17: =IF($S17<>"","",IF(AND($E17<=N$1,$B17="F"),MAX(N$2:N16)+1,"")) ->  | O17: =IF($S17<>"","",IF(AND($E17<=O$1,$B17="F"),MAX(O$2:O16)+1,"")) ->  | P17: =IF(AND($S17<>"",$S17<>"No pot jugar individual"),"",IF(AND($F17<=P$1,$B17="M"),MAX(P$2:P16)+1,"")) -> 15 | Q17: =IF(AND($S17<>"",$S17<>"No pot jugar individual"),"",IF(AND($F17<=Q$1,$B17="M"),MAX(Q$2:Q16)+1,"")) ->  | R17: =IF($S17<>"","",IF($F17<=R$1,MAX(R$2:R16)+1,"")) ->  | T17: 7 | U17: 0 | V17: 0 | W17: 0 | X17: B | Y17: A | Z17: A | AA17: A | AB17: A | AC17: A | AD17: A | AE17: A
A18: 6826 | B18: M | C18: VENEGAS Edgar | D18: INF-1 | E18: 3 | F18: 2 | G18: VIC | H18: VIC | I18: 4563.5 | J18: =IF($S18<>"","",IF(AND($E18<=J$1,$B18="M"),MAX(J$2:J17)+1,"")) -> 16 | K18: =IF($S18<>"","",IF(AND($E18<=K$1,$B18="M"),MAX(K$2:K17)+1,"")) -> 9 | L18: =IF($S18<>"","",IF(AND($E18<=L$1,$B18="M"),MAX(L$2:L17)+1,"")) ->  | M18: =IF($S18<>"","",IF(AND($E18<=M$1,$B18="M"),MAX(M$2:M17)+1,"")) ->  | N18: =IF($S18<>"","",IF(AND($E18<=N$1,$B18="F"),MAX(N$2:N17)+1,"")) ->  | O18: =IF($S18<>"","",IF(AND($E18<=O$1,$B18="F"),MAX(O$2:O17)+1,"")) ->  | P18: =IF(AND($S18<>"",$S18<>"No pot jugar individual"),"",IF(AND($F18<=P$1,$B18="M"),MAX(P$2:P17)+1,"")) -> 16 | Q18: =IF(AND($S18<>"",$S18<>"No pot jugar individual"),"",IF(AND($F18<=Q$1,$B18="M"),MAX(Q$2:Q17)+1,"")) ->  | R18: =IF($S18<>"","",IF($F18<=R$1,MAX(R$2:R17)+1,"")) ->  | T18: 7 | U18: 0 | V18: 0 | W18: 0 | X18: B | Y18: B | Z18: A | AA18: B | AB18: B | AC18: A | AD18: A | AE18: A
A19: 6340 | B19: F | C19: CABANAS Elisabeth | D19: INF-2 | E19: 3 | F19: 0 | G19: MATARO | H19: MATARO | I19: 4513 | J19: =IF($S19<>"","",IF(AND($E19<=J$1,$B19="M"),MAX(J$2:J18)+1,"")) ->  | K19: =IF($S19<>"","",IF(AND($E19<=K$1,$B19="M"),MAX(K$2:K18)+1,"")) ->  | L19: =IF($S19<>"","",IF(AND($E19<=L$1,$B19="M"),MAX(L$2:L18)+1,"")) ->  | M19: =IF($S19<>"","",IF(AND($E19<=M$1,$B19="M"),MAX(M$2:M18)+1,"")) ->  | N19: =IF($S19<>"","",IF(AND($E19<=N$1,$B19="F"),MAX(N$2:N18)+1,"")) -> 1 | O19: =IF($S19<>"","",IF(AND($E19<=O$1,$B19="F"),MAX(O$2:O18)+1,"")) ->  | P19: =IF(AND($S19<>"",$S19<>"No pot jugar individual"),"",IF(AND($F19<=P$1,$B19="M"),MAX(P$2:P18)+1,"")) ->  | Q19: =IF(AND($S19<>"",$S19<>"No pot jugar individual"),"",IF(AND($F19<=Q$1,$B19="M"),MAX(Q$2:Q18)+1,"")) ->  | R19: =IF($S19<>"","",IF($F19<=R$1,MAX(R$2:R18)+1,"")) -> 1 | T19: 7 | U19: 1 | V19: 0 | W19: 0 | X19: B | Y19: A | Z19: A | AA19: B | AB19: B | AC19: A | AD19: A | AE19: A | AH19: BC
A20: 8643 | B20: M | C20: SANCHEZ Eric | D20: JUV-1 | E20: 4 | F20: 2 | G20: ICELAND ELS 8 | H20: ICELAND ELS 8 | I20: 4453 | J20: =IF($S20<>"","",IF(AND($E20<=J$1,$B20="M"),MAX(J$2:J19)+1,"")) -> 17 | K20: =IF($S20<>"","",IF(AND($E20<=K$1,$B20="M"),MAX(K$2:K19)+1,"")) ->  | L20: =IF($S20<>"","",IF(AND($E20<=L$1,$B20="M"),MAX(L$2:L19)+1,"")) ->  | M20: =IF($S20<>"","",IF(AND($E20<=M$1,$B20="M"),MAX(M$2:M19)+1,"")) ->  | N20: =IF($S20<>"","",IF(AND($E20<=N$1,$B20="F"),MAX(N$2:N19)+1,"")) ->  | O20: =IF($S20<>"","",IF(AND($E20<=O$1,$B20="F"),MAX(O$2:O19)+1,"")) ->  | P20: =IF(AND($S20<>"",$S20<>"No pot jugar individual"),"",IF(AND($F20<=P$1,$B20="M"),MAX(P$2:P19)+1,"")) -> 17 | Q20: =IF(AND($S20<>"",$S20<>"No pot jugar individual"),"",IF(AND($F20<=Q$1,$B20="M"),MAX(Q$2:Q19)+1,"")) ->  | R20: =IF($S20<>"","",IF($F20<=R$1,MAX(R$2:R19)+1,"")) ->  | T20: 7 | U20: 0 | V20: 0 | W20: 0 | X20: A | Y20: A | Z20: A | AA20: A | AB20: A | AC20: A | AD20: A | AE20: A | AK20: BJ
A21: 5240 | B21: M | C21: WEISZ Jordi | D21: JUV-2 | E21: 4 | F21: 2 | G21: CNSABA | H21: CNSABA | I21: 4389.17 | J21: =IF($S21<>"","",IF(AND($E21<=J$1,$B21="M"),MAX(J$2:J20)+1,"")) -> 18 | K21: =IF($S21<>"","",IF(AND($E21<=K$1,$B21="M"),MAX(K$2:K20)+1,"")) ->  | L21: =IF($S21<>"","",IF(AND($E21<=L$1,$B21="M"),MAX(L$2:L20)+1,"")) ->  | M21: =IF($S21<>"","",IF(AND($E21<=M$1,$B21="M"),MAX(M$2:M20)+1,"")) ->  | N21: =IF($S21<>"","",IF(AND($E21<=N$1,$B21="F"),MAX(N$2:N20)+1,"")) ->  | O21: =IF($S21<>"","",IF(AND($E21<=O$1,$B21="F"),MAX(O$2:O20)+1,"")) ->  | P21: =IF(AND($S21<>"",$S21<>"No pot jugar individual"),"",IF(AND($F21<=P$1,$B21="M"),MAX(P$2:P20)+1,"")) -> 18 | Q21: =IF(AND($S21<>"",$S21<>"No pot jugar individual"),"",IF(AND($F21<=Q$1,$B21="M"),MAX(Q$2:Q20)+1,"")) ->  | R21: =IF($S21<>"","",IF($F21<=R$1,MAX(R$2:R20)+1,"")) ->  | T21: 7 | U21: 2 | V21: 0 | W21: 0 | X21: A | Y21: A | Z21: A | AA21: B | AB21: B | AC21: A | AD21: B | AE21: A | AH21: BC | AK21: BC
A22: 5953 | B22: M | C22: CUEVAS Joel | D22: ALE-2 | E22: 2 | F22: 1 | G22: STCUGAT | H22: STCUGAT | I22: 4268.7 | J22: =IF($S22<>"","",IF(AND($E22<=J$1,$B22="M"),MAX(J$2:J21)+1,"")) -> 19 | K22: =IF($S22<>"","",IF(AND($E22<=K$1,$B22="M"),MAX(K$2:K21)+1,"")) -> 10 | L22: =IF($S22<>"","",IF(AND($E22<=L$1,$B22="M"),MAX(L$2:L21)+1,"")) -> 1 | M22: =IF($S22<>"","",IF(AND($E22<=M$1,$B22="M"),MAX(M$2:M21)+1,"")) ->  | N22: =IF($S22<>"","",IF(AND($E22<=N$1,$B22="F"),MAX(N$2:N21)+1,"")) ->  | O22: =IF($S22<>"","",IF(AND($E22<=O$1,$B22="F"),MAX(O$2:O21)+1,"")) ->  | P22: =IF(AND($S22<>"",$S22<>"No pot jugar individual"),"",IF(AND($F22<=P$1,$B22="M"),MAX(P$2:P21)+1,"")) -> 19 | Q22: =IF(AND($S22<>"",$S22<>"No pot jugar individual"),"",IF(AND($F22<=Q$1,$B22="M"),MAX(Q$2:Q21)+1,"")) -> 1 | R22: =IF($S22<>"","",IF($F22<=R$1,MAX(R$2:R21)+1,"")) ->  | T22: 7 | U22: 0 | V22: 0 | W22: 0 | X22: D | Y22: C | Z22: B | AA22: A | AB22: A | AC22: A | AD22: A | AE22: A
A23: 5312 | B23: M | C23: LLORET Arnau | D23: INF-1 | E23: 3 | F23: 2 | G23: EUROCLIMA BDN | H23: EUROCLIMA BDN | I23: 4242.5 | J23: =IF($S23<>"","",IF(AND($E23<=J$1,$B23="M"),MAX(J$2:J22)+1,"")) -> 20 | K23: =IF($S23<>"","",IF(AND($E23<=K$1,$B23="M"),MAX(K$2:K22)+1,"")) -> 11 | L23: =IF($S23<>"","",IF(AND($E23<=L$1,$B23="M"),MAX(L$2:L22)+1,"")) ->  | M23: =IF($S23<>"","",IF(AND($E23<=M$1,$B23="M"),MAX(M$2:M22)+1,"")) ->  | N23: =IF($S23<>"","",IF(AND($E23<=N$1,$B23="F"),MAX(N$2:N22)+1,"")) ->  | O23: =IF($S23<>"","",IF(AND($E23<=O$1,$B23="F"),MAX(O$2:O22)+1,"")) ->  | P23: =IF(AND($S23<>"",$S23<>"No pot jugar individual"),"",IF(AND($F23<=P$1,$B23="M"),MAX(P$2:P22)+1,"")) -> 20 | Q23: =IF(AND($S23<>"",$S23<>"No pot jugar individual"),"",IF(AND($F23<=Q$1,$B23="M"),MAX(Q$2:Q22)+1,"")) ->  | R23: =IF($S23<>"","",IF($F23<=R$1,MAX(R$2:R22)+1,"")) ->  | T23: 7 | U23: =COUNTIF($AF23:$AL23,U$2) -> 1 | V23: 0 | W23: 0 | X23: A | Y23: B | Z23: B | AA23: B | AB23: A | AC23: B | AD23: A | AE23: B | AF23: BJ | AL23: BC
A24: 6466 | B24: M | C24: MONTÀÑEZ Xavier | D24: JUV-1 | E24: 4 | F24: 2 | G24: EUROCLIMA BDN | H24: EUROCLIMA BDN | I24: 4083 | J24: =IF($S24<>"","",IF(AND($E24<=J$1,$B24="M"),MAX(J$2:J23)+1,"")) -> 21 | K24: =IF($S24<>"","",IF(AND($E24<=K$1,$B24="M"),MAX(K$2:K23)+1,"")) ->  | L24: =IF($S24<>"","",IF(AND($E24<=L$1,$B24="M"),MAX(L$2:L23)+1,"")) ->  | M24: =IF($S24<>"","",IF(AND($E24<=M$1,$B24="M"),MAX(M$2:M23)+1,"")) ->  | N24: =IF($S24<>"","",IF(AND($E24<=N$1,$B24="F"),MAX(N$2:N23)+1,"")) ->  | O24: =IF($S24<>"","",IF(AND($E24<=O$1,$B24="F"),MAX(O$2:O23)+1,"")) ->  | P24: =IF(AND($S24<>"",$S24<>"No pot jugar individual"),"",IF(AND($F24<=P$1,$B24="M"),MAX(P$2:P23)+1,"")) -> 21 | Q24: =IF(AND($S24<>"",$S24<>"No pot jugar individual"),"",IF(AND($F24<=Q$1,$B24="M"),MAX(Q$2:Q23)+1,"")) ->  | R24: =IF($S24<>"","",IF($F24<=R$1,MAX(R$2:R23)+1,"")) ->  | T24: 7 | U24: 0 | V24: 0 | W24: 0 | X24: A | Y24: B | Z24: B | AA24: A | AB24: A | AC24: B | AD24: A | AE24: A | AF24: BJ
A25: 10258 | B25: M | C25: SALGADO Adrián | D25: JUV-2 | E25: 4 | F25: 2 | G25: CASTELLAR | H25: CASTELLAR | I25: 3911.5 | J25: =IF($S25<>"","",IF(AND($E25<=J$1,$B25="M"),MAX(J$2:J24)+1,"")) -> 22 | K25: =IF($S25<>"","",IF(AND($E25<=K$1,$B25="M"),MAX(K$2:K24)+1,"")) ->  | L25: =IF($S25<>"","",IF(AND($E25<=L$1,$B25="M"),MAX(L$2:L24)+1,"")) ->  | M25: =IF($S25<>"","",IF(AND($E25<=M$1,$B25="M"),MAX(M$2:M24)+1,"")) ->  | N25: =IF($S25<>"","",IF(AND($E25<=N$1,$B25="F"),MAX(N$2:N24)+1,"")) ->  | O25: =IF($S25<>"","",IF(AND($E25<=O$1,$B25="F"),MAX(O$2:O24)+1,"")) ->  | P25: =IF(AND($S25<>"",$S25<>"No pot jugar individual"),"",IF(AND($F25<=P$1,$B25="M"),MAX(P$2:P24)+1,"")) -> 22 | Q25: =IF(AND($S25<>"",$S25<>"No pot jugar individual"),"",IF(AND($F25<=Q$1,$B25="M"),MAX(Q$2:Q24)+1,"")) ->  | R25: =IF($S25<>"","",IF($F25<=R$1,MAX(R$2:R24)+1,"")) ->  | T25: 7 | U25: 0 | V25: 0 | W25: 0 | X25: C | Y25: B | Z25: B | AA25: B | AB25: B | AC25: A | AD25: B | AE25: B
A26: 8977 | B26: M | C26: COMAS Pol | D26: JUV-2 | E26: 4 | F26: 2 | G26: HOSPIT | H26: HOSPIT | I26: 3893.5 | J26: =IF($S26<>"","",IF(AND($E26<=J$1,$B26="M"),MAX(J$2:J25)+1,"")) -> 23 | K26: =IF($S26<>"","",IF(AND($E26<=K$1,$B26="M"),MAX(K$2:K25)+1,"")) ->  | L26: =IF($S26<>"","",IF(AND($E26<=L$1,$B26="M"),MAX(L$2:L25)+1,"")) ->  | M26: =IF($S26<>"","",IF(AND($E26<=M$1,$B26="M"),MAX(M$2:M25)+1,"")) ->  | N26: =IF($S26<>"","",IF(AND($E26<=N$1,$B26="F"),MAX(N$2:N25)+1,"")) ->  | O26: =IF($S26<>"","",IF(AND($E26<=O$1,$B26="F"),MAX(O$2:O25)+1,"")) ->  | P26: =IF(AND($S26<>"",$S26<>"No pot jugar individual"),"",IF(AND($F26<=P$1,$B26="M"),MAX(P$2:P25)+1,"")) -> 23 | Q26: =IF(AND($S26<>"",$S26<>"No pot jugar individual"),"",IF(AND($F26<=Q$1,$B26="M"),MAX(Q$2:Q25)+1,"")) ->  | R26: =IF($S26<>"","",IF($F26<=R$1,MAX(R$2:R25)+1,"")) ->  | T26: 7 | U26: 0 | V26: 0 | W26: 0 | X26: B | Y26: A | Z26: A | AA26: A | AB26: B | AC26: A | AD26: A | AE26: B
A27: 8505 | B27: M | C27: VELEZ Ivan | D27: INF-1 | E27: 3 | F27: 2 | G27: ATEN82 | H27: ATEN82 | I27: 3870.98 | J27: =IF($S27<>"","",IF(AND($E27<=J$1,$B27="M"),MAX(J$2:J26)+1,"")) -> 24 | K27: =IF($S27<>"","",IF(AND($E27<=K$1,$B27="M"),MAX(K$2:K26)+1,"")) -> 12 | L27: =IF($S27<>"","",IF(AND($E27<=L$1,$B27="M"),MAX(L$2:L26)+1,"")) ->  | M27: =IF($S27<>"","",IF(AND($E27<=M$1,$B27="M"),MAX(M$2:M26)+1,"")) ->  | N27: =IF($S27<>"","",IF(AND($E27<=N$1,$B27="F"),MAX(N$2:N26)+1,"")) ->  | O27: =IF($S27<>"","",IF(AND($E27<=O$1,$B27="F"),MAX(O$2:O26)+1,"")) ->  | P27: =IF(AND($S27<>"",$S27<>"No pot jugar individual"),"",IF(AND($F27<=P$1,$B27="M"),MAX(P$2:P26)+1,"")) -> 24 | Q27: =IF(AND($S27<>"",$S27<>"No pot jugar individual"),"",IF(AND($F27<=Q$1,$B27="M"),MAX(Q$2:Q26)+1,"")) ->  | R27: =IF($S27<>"","",IF($F27<=R$1,MAX(R$2:R26)+1,"")) ->  | T27: 7 | U27: 0 | V27: 0 | W27: 0 | X27: E | Y27: D | Z27: C | AA27: B | AB27: B | AC27: B | AD27: B | AE27: B
A28: 5405 | B28: M | C28: LUCO Bernat | D28: JUV-2 | E28: 4 | F28: 2 | G28: IGUALA | H28: IGUALA | I28: 3739.5 | J28: =IF($S28<>"","",IF(AND($E28<=J$1,$B28="M"),MAX(J$2:J27)+1,"")) -> 25 | K28: =IF($S28<>"","",IF(AND($E28<=K$1,$B28="M"),MAX(K$2:K27)+1,"")) ->  | L28: =IF($S28<>"","",IF(AND($E28<=L$1,$B28="M"),MAX(L$2:L27)+1,"")) ->  | M28: =IF($S28<>"","",IF(AND($E28<=M$1,$B28="M"),MAX(M$2:M27)+1,"")) ->  | N28: =IF($S28<>"","",IF(AND($E28<=N$1,$B28="F"),MAX(N$2:N27)+1,"")) ->  | O28: =IF($S28<>"","",IF(AND($E28<=O$1,$B28="F"),MAX(O$2:O27)+1,"")) ->  | P28: =IF(AND($S28<>"",$S28<>"No pot jugar individual"),"",IF(AND($F28<=P$1,$B28="M"),MAX(P$2:P27)+1,"")) -> 25 | Q28: =IF(AND($S28<>"",$S28<>"No pot jugar individual"),"",IF(AND($F28<=Q$1,$B28="M"),MAX(Q$2:Q27)+1,"")) ->  | R28: =IF($S28<>"","",IF($F28<=R$1,MAX(R$2:R27)+1,"")) ->  | T28: 7 | U28: 0 | V28: 0 | W28: 0 | X28: C | Y28: B | Z28: B | AA28: A | AB28: A | AC28: B | AD28: A | AE28: B
A29: 6362 | B29: M | C29: PASCUAL Marc | D29: JUV-1 | E29: 4 | F29: 2 | G29: ATEN82 | H29: ATEN82 | I29: 3599.17 | J29: =IF($S29<>"","",IF(AND($E29<=J$1,$B29="M"),MAX(J$2:J28)+1,"")) -> 26 | K29: =IF($S29<>"","",IF(AND($E29<=K$1,$B29="M"),MAX(K$2:K28)+1,"")) ->  | L29: =IF($S29<>"","",IF(AND($E29<=L$1,$B29="M"),MAX(L$2:L28)+1,"")) ->  | M29: =IF($S29<>"","",IF(AND($E29<=M$1,$B29="M"),MAX(M$2:M28)+1,"")) ->  | N29: =IF($S29<>"","",IF(AND($E29<=N$1,$B29="F"),MAX(N$2:N28)+1,"")) ->  | O29: =IF($S29<>"","",IF(AND($E29<=O$1,$B29="F"),MAX(O$2:O28)+1,"")) ->  | P29: =IF(AND($S29<>"",$S29<>"No pot jugar individual"),"",IF(AND($F29<=P$1,$B29="M"),MAX(P$2:P28)+1,"")) -> 26 | Q29: =IF(AND($S29<>"",$S29<>"No pot jugar individual"),"",IF(AND($F29<=Q$1,$B29="M"),MAX(Q$2:Q28)+1,"")) ->  | R29: =IF($S29<>"","",IF($F29<=R$1,MAX(R$2:R28)+1,"")) ->  | T29: 7 | U29: 1 | V29: 0 | W29: 0 | X29: A | Y29: A | Z29: A | AA29: A | AB29: A | AC29: A | AD29: B | AE29: B | AJ29: BJ | AK29: BC
A30: 4779 | B30: M | C30: OLLE Xavier | D30: INF-1 | E30: 3 | F30: 2 | G30: OLESA | H30: OLESA | I30: 3437 | J30: =IF($S30<>"","",IF(AND($E30<=J$1,$B30="M"),MAX(J$2:J29)+1,"")) -> 27 | K30: =IF($S30<>"","",IF(AND($E30<=K$1,$B30="M"),MAX(K$2:K29)+1,"")) -> 13 | L30: =IF($S30<>"","",IF(AND($E30<=L$1,$B30="M"),MAX(L$2:L29)+1,"")) ->  | M30: =IF($S30<>"","",IF(AND($E30<=M$1,$B30="M"),MAX(M$2:M29)+1,"")) ->  | N30: =IF($S30<>"","",IF(AND($E30<=N$1,$B30="F"),MAX(N$2:N29)+1,"")) ->  | O30: =IF($S30<>"","",IF(AND($E30<=O$1,$B30="F"),MAX(O$2:O29)+1,"")) ->  | P30: =IF(AND($S30<>"",$S30<>"No pot jugar individual"),"",IF(AND($F30<=P$1,$B30="M"),MAX(P$2:P29)+1,"")) -> 27 | Q30: =IF(AND($S30<>"",$S30<>"No pot jugar individual"),"",IF(AND($F30<=Q$1,$B30="M"),MAX(Q$2:Q29)+1,"")) ->  | R30: =IF($S30<>"","",IF($F30<=R$1,MAX(R$2:R29)+1,"")) ->  | T30: 7 | U30: 1 | V30: 0 | W30: 0 | X30: B | Y30: C | Z30: C | AA30: B | AB30: C | AC30: B | AD30: B | AE30: A | AF30: BC
A31: 8055 | B31: M | C31: BARCELO Joan | D31: JUV-2 | E31: 4 | F31: 2 | G31: LLUÏSOS | H31: LLUÏSOS | I31: 3325.33 | J31: =IF($S31<>"","",IF(AND($E31<=J$1,$B31="M"),MAX(J$2:J30)+1,"")) -> 28 | K31: =IF($S31<>"","",IF(AND($E31<=K$1,$B31="M"),MAX(K$2:K30)+1,"")) ->  | L31: =IF($S31<>"","",IF(AND($E31<=L$1,$B31="M"),MAX(L$2:L30)+1,"")) ->  | M31: =IF($S31<>"","",IF(AND($E31<=M$1,$B31="M"),MAX(M$2:M30)+1,"")) ->  | N31: =IF($S31<>"","",IF(AND($E31<=N$1,$B31="F"),MAX(N$2:N30)+1,"")) ->  | O31: =IF($S31<>"","",IF(AND($E31<=O$1,$B31="F"),MAX(O$2:O30)+1,"")) ->  | P31: =IF(AND($S31<>"",$S31<>"No pot jugar individual"),"",IF(AND($F31<=P$1,$B31="M"),MAX(P$2:P30)+1,"")) -> 28 | Q31: =IF(AND($S31<>"",$S31<>"No pot jugar individual"),"",IF(AND($F31<=Q$1,$B31="M"),MAX(Q$2:Q30)+1,"")) ->  | R31: =IF($S31<>"","",IF($F31<=R$1,MAX(R$2:R30)+1,"")) ->  | T31: 7 | U31: 0 | V31: 0 | W31: 0 | X31: A | Y31: A | Z31: A | AA31: A | AB31: B | AC31: B | AD31: B | AE31: A | AI31: BJ | AJ31: BJ | AK31: BJ
A32: 6718 | B32: M | C32: CERETO Marc | D32: JUV-3 | E32: 4 | F32: 2 | G32: VILANOVA | H32: VILANOVA | I32: 3185.83 | J32: =IF($S32<>"","",IF(AND($E32<=J$1,$B32="M"),MAX(J$2:J31)+1,"")) -> 29 | K32: =IF($S32<>"","",IF(AND($E32<=K$1,$B32="M"),MAX(K$2:K31)+1,"")) ->  | L32: =IF($S32<>"","",IF(AND($E32<=L$1,$B32="M"),MAX(L$2:L31)+1,"")) ->  | M32: =IF($S32<>"","",IF(AND($E32<=M$1,$B32="M"),MAX(M$2:M31)+1,"")) ->  | N32: =IF($S32<>"","",IF(AND($E32<=N$1,$B32="F"),MAX(N$2:N31)+1,"")) ->  | O32: =IF($S32<>"","",IF(AND($E32<=O$1,$B32="F"),MAX(O$2:O31)+1,"")) ->  | P32: =IF(AND($S32<>"",$S32<>"No pot jugar individual"),"",IF(AND($F32<=P$1,$B32="M"),MAX(P$2:P31)+1,"")) -> 29 | Q32: =IF(AND($S32<>"",$S32<>"No pot jugar individual"),"",IF(AND($F32<=Q$1,$B32="M"),MAX(Q$2:Q31)+1,"")) ->  | R32: =IF($S32<>"","",IF($F32<=R$1,MAX(R$2:R31)+1,"")) ->  | T32: 7 | U32: 1 | V32: 0 | W32: 0 | X32: A | Y32: A | Z32: A | AA32: A | AB32: B | AC32: A | AD32: A | AE32: B | AI32: BJ | AL32: BC
A33: 6698 | B33: M | C33: MARSAL Josep | D33: JUV-3 | E33: 4 | F33: 2 | G33: VILANOVA | H33: VILANOVA | I33: 3133.5 | J33: =IF($S33<>"","",IF(AND($E33<=J$1,$B33="M"),MAX(J$2:J32)+1,"")) -> 30 | K33: =IF($S33<>"","",IF(AND($E33<=K$1,$B33="M"),MAX(K$2:K32)+1,"")) ->  | L33: =IF($S33<>"","",IF(AND($E33<=L$1,$B33="M"),MAX(L$2:L32)+1,"")) ->  | M33: =IF($S33<>"","",IF(AND($E33<=M$1,$B33="M"),MAX(M$2:M32)+1,"")) ->  | N33: =IF($S33<>"","",IF(AND($E33<=N$1,$B33="F"),MAX(N$2:N32)+1,"")) ->  | O33: =IF($S33<>"","",IF(AND($E33<=O$1,$B33="F"),MAX(O$2:O32)+1,"")) ->  | P33: =IF(AND($S33<>"",$S33<>"No pot jugar individual"),"",IF(AND($F33<=P$1,$B33="M"),MAX(P$2:P32)+1,"")) -> 30 | Q33: =IF(AND($S33<>"",$S33<>"No pot jugar individual"),"",IF(AND($F33<=Q$1,$B33="M"),MAX(Q$2:Q32)+1,"")) ->  | R33: =IF($S33<>"","",IF($F33<=R$1,MAX(R$2:R32)+1,"")) ->  | T33: 7 | U33: 0 | V33: 0 | W33: 0 | X33: B | Y33: A | Z33: B | AA33: B | AB33: A | AC33: B | AD33: B | AE33: B
A34: 6779 | B34: M | C34: LIN Hongxiang | D34: INF-2 | E34: 3 | F34: 2 | G34: LLUÏSOS | H34: LLUÏSOS | I34: 3099.5 | J34: =IF($S34<>"","",IF(AND($E34<=J$1,$B34="M"),MAX(J$2:J33)+1,"")) -> 31 | K34: =IF($S34<>"","",IF(AND($E34<=K$1,$B34="M"),MAX(K$2:K33)+1,"")) -> 14 | L34: =IF($S34<>"","",IF(AND($E34<=L$1,$B34="M"),MAX(L$2:L33)+1,"")) ->  | M34: =IF($S34<>"","",IF(AND($E34<=M$1,$B34="M"),MAX(M$2:M33)+1,"")) ->  | N34: =IF($S34<>"","",IF(AND($E34<=N$1,$B34="F"),MAX(N$2:N33)+1,"")) ->  | O34: =IF($S34<>"","",IF(AND($E34<=O$1,$B34="F"),MAX(O$2:O33)+1,"")) ->  | P34: =IF(AND($S34<>"",$S34<>"No pot jugar individual"),"",IF(AND($F34<=P$1,$B34="M"),MAX(P$2:P33)+1,"")) -> 31 | Q34: =IF(AND($S34<>"",$S34<>"No pot jugar individual"),"",IF(AND($F34<=Q$1,$B34="M"),MAX(Q$2:Q33)+1,"")) ->  | R34: =IF($S34<>"","",IF($F34<=R$1,MAX(R$2:R33)+1,"")) ->  | T34: 7 | U34: 0 | V34: 0 | W34: 0 | X34: B | Y34: B | Z34: B | AA34: C | AB34: B | AC34: B | AD34: B | AE34: B
A35: 8879 | B35: M | C35: MAÑE Alvar | D35: JUV-1 | E35: 4 | F35: 2 | G35: LLUÏSOS | H35: LLUÏSOS | I35: 2985.5 | J35: =IF($S35<>"","",IF(AND($E35<=J$1,$B35="M"),MAX(J$2:J34)+1,"")) -> 32 | K35: =IF($S35<>"","",IF(AND($E35<=K$1,$B35="M"),MAX(K$2:K34)+1,"")) ->  | L35: =IF($S35<>"","",IF(AND($E35<=L$1,$B35="M"),MAX(L$2:L34)+1,"")) ->  | M35: =IF($S35<>"","",IF(AND($E35<=M$1,$B35="M"),MAX(M$2:M34)+1,"")) ->  | N35: =IF($S35<>"","",IF(AND($E35<=N$1,$B35="F"),MAX(N$2:N34)+1,"")) ->  | O35: =IF($S35<>"","",IF(AND($E35<=O$1,$B35="F"),MAX(O$2:O34)+1,"")) ->  | P35: =IF(AND($S35<>"",$S35<>"No pot jugar individual"),"",IF(AND($F35<=P$1,$B35="M"),MAX(P$2:P34)+1,"")) -> 32 | Q35: =IF(AND($S35<>"",$S35<>"No pot jugar individual"),"",IF(AND($F35<=Q$1,$B35="M"),MAX(Q$2:Q34)+1,"")) ->  | R35: =IF($S35<>"","",IF($F35<=R$1,MAX(R$2:R34)+1,"")) ->  | T35: 7 | U35: 0 | V35: 0 | W35: 0 | X35: B | Y35: C | Z35: B | AA35: B | AB35: B | AC35: B | AD35: B | AE35: A
A36: 8603 | B36: M | C36: PONS Roger | D36: JUV-3 | E36: 4 | F36: 2 | G36: ATEN82 | H36: ATEN82 | I36: 2773 | J36: =IF($S36<>"","",IF(AND($E36<=J$1,$B36="M"),MAX(J$2:J35)+1,"")) -> 33 | K36: =IF($S36<>"","",IF(AND($E36<=K$1,$B36="M"),MAX(K$2:K35)+1,"")) ->  | L36: =IF($S36<>"","",IF(AND($E36<=L$1,$B36="M"),MAX(L$2:L35)+1,"")) ->  | M36: =IF($S36<>"","",IF(AND($E36<=M$1,$B36="M"),MAX(M$2:M35)+1,"")) ->  | N36: =IF($S36<>"","",IF(AND($E36<=N$1,$B36="F"),MAX(N$2:N35)+1,"")) ->  | O36: =IF($S36<>"","",IF(AND($E36<=O$1,$B36="F"),MAX(O$2:O35)+1,"")) ->  | P36: =IF(AND($S36<>"",$S36<>"No pot jugar individual"),"",IF(AND($F36<=P$1,$B36="M"),MAX(P$2:P35)+1,"")) -> 33 | Q36: =IF(AND($S36<>"",$S36<>"No pot jugar individual"),"",IF(AND($F36<=Q$1,$B36="M"),MAX(Q$2:Q35)+1,"")) ->  | R36: =IF($S36<>"","",IF($F36<=R$1,MAX(R$2:R35)+1,"")) ->  | T36: 7 | U36: 0 | V36: 1 | W36: 0 | X36: B | Y36: A | Z36: B | AA36: B | AB36: A | AC36: B | AD36: B | AE36: C | AL36: BN
A37: 8551 | B37: M | C37: TELLEZ Jan | D37: JUV-1 | E37: 4 | F37: 2 | G37: HORTA | H37: HORTA | I37: 2692.5 | J37: =IF($S37<>"","",IF(AND($E37<=J$1,$B37="M"),MAX(J$2:J36)+1,"")) -> 34 | K37: =IF($S37<>"","",IF(AND($E37<=K$1,$B37="M"),MAX(K$2:K36)+1,"")) ->  | L37: =IF($S37<>"","",IF(AND($E37<=L$1,$B37="M"),MAX(L$2:L36)+1,"")) ->  | M37: =IF($S37<>"","",IF(AND($E37<=M$1,$B37="M"),MAX(M$2:M36)+1,"")) ->  | N37: =IF($S37<>"","",IF(AND($E37<=N$1,$B37="F"),MAX(N$2:N36)+1,"")) ->  | O37: =IF($S37<>"","",IF(AND($E37<=O$1,$B37="F"),MAX(O$2:O36)+1,"")) ->  | P37: =IF(AND($S37<>"",$S37<>"No pot jugar individual"),"",IF(AND($F37<=P$1,$B37="M"),MAX(P$2:P36)+1,"")) -> 34 | Q37: =IF(AND($S37<>"",$S37<>"No pot jugar individual"),"",IF(AND($F37<=Q$1,$B37="M"),MAX(Q$2:Q36)+1,"")) ->  | R37: =IF($S37<>"","",IF($F37<=R$1,MAX(R$2:R36)+1,"")) ->  | T37: 7 | U37: 1 | V37: 1 | W37: 0 | X37: A | Y37: B | Z37: B | AA37: B | AB37: B | AC37: A | AD37: B | AE37: B | AF37: BN | AL37: BC
A38: 10104 | B38: M | C38: IZQUIERDO Marc | D38: ALE-2 | E38: 2 | F38: 1 | G38: LLUÏSOS | H38: LLUÏSOS | I38: 2683.6 | J38: =IF($S38<>"","",IF(AND($E38<=J$1,$B38="M"),MAX(J$2:J37)+1,"")) -> 35 | K38: =IF($S38<>"","",IF(AND($E38<=K$1,$B38="M"),MAX(K$2:K37)+1,"")) -> 15 | L38: =IF($S38<>"","",IF(AND($E38<=L$1,$B38="M"),MAX(L$2:L37)+1,"")) -> 2 | M38: =IF($S38<>"","",IF(AND($E38<=M$1,$B38="M"),MAX(M$2:M37)+1,"")) ->  | N38: =IF($S38<>"","",IF(AND($E38<=N$1,$B38="F"),MAX(N$2:N37)+1,"")) ->  | O38: =IF($S38<>"","",IF(AND($E38<=O$1,$B38="F"),MAX(O$2:O37)+1,"")) ->  | P38: =IF(AND($S38<>"",$S38<>"No pot jugar individual"),"",IF(AND($F38<=P$1,$B38="M"),MAX(P$2:P37)+1,"")) -> 35 | Q38: =IF(AND($S38<>"",$S38<>"No pot jugar individual"),"",IF(AND($F38<=Q$1,$B38="M"),MAX(Q$2:Q37)+1,"")) -> 2 | R38: =IF($S38<>"","",IF($F38<=R$1,MAX(R$2:R37)+1,"")) ->  | T38: 7 | U38: 0 | V38: 0 | W38: 0 | X38: E | Y38: D | Z38: C | AA38: B | AB38: B | AC38: B | AD38: B | AE38: B
A39: 7640 | B39: M | C39: PRAT Eduard | D39: JUV-1 | E39: 4 | F39: 2 | G39: RODA | H39: RODA | I39: 2603 | J39: =IF($S39<>"","",IF(AND($E39<=J$1,$B39="M"),MAX(J$2:J38)+1,"")) -> 36 | K39: =IF($S39<>"","",IF(AND($E39<=K$1,$B39="M"),MAX(K$2:K38)+1,"")) ->  | L39: =IF($S39<>"","",IF(AND($E39<=L$1,$B39="M"),MAX(L$2:L38)+1,"")) ->  | M39: =IF($S39<>"","",IF(AND($E39<=M$1,$B39="M"),MAX(M$2:M38)+1,"")) ->  | N39: =IF($S39<>"","",IF(AND($E39<=N$1,$B39="F"),MAX(N$2:N38)+1,"")) ->  | O39: =IF($S39<>"","",IF(AND($E39<=O$1,$B39="F"),MAX(O$2:O38)+1,"")) ->  | P39: =IF(AND($S39<>"",$S39<>"No pot jugar individual"),"",IF(AND($F39<=P$1,$B39="M"),MAX(P$2:P38)+1,"")) -> 36 | Q39: =IF(AND($S39<>"",$S39<>"No pot jugar individual"),"",IF(AND($F39<=Q$1,$B39="M"),MAX(Q$2:Q38)+1,"")) ->  | R39: =IF($S39<>"","",IF($F39<=R$1,MAX(R$2:R38)+1,"")) ->  | T39: 7 | U39: 1 | V39: 0 | W39: 0 | X39: A | Y39: A | Z39: B | AA39: A | AB39: B | AC39: B | AD39: B | AE39: C | AL39: BC
A40: 7154 | B40: M | C40: MARTINEZ Sergi | D40: JUV-2 | E40: 4 | F40: 2 | G40: HORTA | H40: HORTA | I40: 2597.5 | J40: =IF($S40<>"","",IF(AND($E40<=J$1,$B40="M"),MAX(J$2:J39)+1,"")) -> 37 | K40: =IF($S40<>"","",IF(AND($E40<=K$1,$B40="M"),MAX(K$2:K39)+1,"")) ->  | L40: =IF($S40<>"","",IF(AND($E40<=L$1,$B40="M"),MAX(L$2:L39)+1,"")) ->  | M40: =IF($S40<>"","",IF(AND($E40<=M$1,$B40="M"),MAX(M$2:M39)+1,"")) ->  | N40: =IF($S40<>"","",IF(AND($E40<=N$1,$B40="F"),MAX(N$2:N39)+1,"")) ->  | O40: =IF($S40<>"","",IF(AND($E40<=O$1,$B40="F"),MAX(O$2:O39)+1,"")) ->  | P40: =IF(AND($S40<>"",$S40<>"No pot jugar individual"),"",IF(AND($F40<=P$1,$B40="M"),MAX(P$2:P39)+1,"")) -> 37 | Q40: =IF(AND($S40<>"",$S40<>"No pot jugar individual"),"",IF(AND($F40<=Q$1,$B40="M"),MAX(Q$2:Q39)+1,"")) ->  | R40: =IF($S40<>"","",IF($F40<=R$1,MAX(R$2:R39)+1,"")) ->  | T40: 7 | U40: 0 | V40: 0 | W40: 0 | X40: B | Y40: B | Z40: C | AA40: B | AB40: C | AC40: B | AD40: B | AE40: B
A41: 7735 | B41: F | C41: COLL Sílvia | D41: ALE-1 | E41: 2 | F41: 0 | G41: VIC | H41: VIC | I41: 2592.5 | J41: =IF($S41<>"","",IF(AND($E41<=J$1,$B41="M"),MAX(J$2:J40)+1,"")) ->  | K41: =IF($S41<>"","",IF(AND($E41<=K$1,$B41="M"),MAX(K$2:K40)+1,"")) ->  | L41: =IF($S41<>"","",IF(AND($E41<=L$1,$B41="M"),MAX(L$2:L40)+1,"")) ->  | M41: =IF($S41<>"","",IF(AND($E41<=M$1,$B41="M"),MAX(M$2:M40)+1,"")) ->  | N41: =IF($S41<>"","",IF(AND($E41<=N$1,$B41="F"),MAX(N$2:N40)+1,"")) -> 2 | O41: =IF($S41<>"","",IF(AND($E41<=O$1,$B41="F"),MAX(O$2:O40)+1,"")) -> 1 | P41: =IF(AND($S41<>"",$S41<>"No pot jugar individual"),"",IF(AND($F41<=P$1,$B41="M"),MAX(P$2:P40)+1,"")) ->  | Q41: =IF(AND($S41<>"",$S41<>"No pot jugar individual"),"",IF(AND($F41<=Q$1,$B41="M"),MAX(Q$2:Q40)+1,"")) ->  | R41: =IF($S41<>"","",IF($F41<=R$1,MAX(R$2:R40)+1,"")) -> 2 | T41: 7 | U41: 0 | V41: 0 | W41: 0 | X41: B | Y41: B | Z41: B | AA41: B | AB41: A | AC41: B | AD41: B | AE41: B | AK41: BJ | AL41: BJ
A42: 8247 | B42: M | C42: FLORIDO Kapil | D42: INF-2 | E42: 3 | F42: 2 | G42: LLUÏSOS | H42: LLUÏSOS | I42: 2531.5 | J42: =IF($S42<>"","",IF(AND($E42<=J$1,$B42="M"),MAX(J$2:J41)+1,"")) -> 38 | K42: =IF($S42<>"","",IF(AND($E42<=K$1,$B42="M"),MAX(K$2:K41)+1,"")) -> 16 | L42: =IF($S42<>"","",IF(AND($E42<=L$1,$B42="M"),MAX(L$2:L41)+1,"")) ->  | M42: =IF($S42<>"","",IF(AND($E42<=M$1,$B42="M"),MAX(M$2:M41)+1,"")) ->  | N42: =IF($S42<>"","",IF(AND($E42<=N$1,$B42="F"),MAX(N$2:N41)+1,"")) ->  | O42: =IF($S42<>"","",IF(AND($E42<=O$1,$B42="F"),MAX(O$2:O41)+1,"")) ->  | P42: =IF(AND($S42<>"",$S42<>"No pot jugar individual"),"",IF(AND($F42<=P$1,$B42="M"),MAX(P$2:P41)+1,"")) -> 38 | Q42: =IF(AND($S42<>"",$S42<>"No pot jugar individual"),"",IF(AND($F42<=Q$1,$B42="M"),MAX(Q$2:Q41)+1,"")) ->  | R42: =IF($S42<>"","",IF($F42<=R$1,MAX(R$2:R41)+1,"")) ->  | T42: 7 | U42: 0 | V42: 0 | W42: 0 | X42: B | Y42: B | Z42: C | AA42: C | AB42: C | AC42: B | AD42: B | AE42: B
A43: 6465 | B43: M | C43: MENINO Eudald | D43: INF-2 | E43: 3 | F43: 2 | G43: EUROCLIMA BDN | H43: EUROCLIMA BDN | I43: 2416.3 | J43: =IF($S43<>"","",IF(AND($E43<=J$1,$B43="M"),MAX(J$2:J42)+1,"")) -> 39 | K43: =IF($S43<>"","",IF(AND($E43<=K$1,$B43="M"),MAX(K$2:K42)+1,"")) -> 17 | L43: =IF($S43<>"","",IF(AND($E43<=L$1,$B43="M"),MAX(L$2:L42)+1,"")) ->  | M43: =IF($S43<>"","",IF(AND($E43<=M$1,$B43="M"),MAX(M$2:M42)+1,"")) ->  | N43: =IF($S43<>"","",IF(AND($E43<=N$1,$B43="F"),MAX(N$2:N42)+1,"")) ->  | O43: =IF($S43<>"","",IF(AND($E43<=O$1,$B43="F"),MAX(O$2:O42)+1,"")) ->  | P43: =IF(AND($S43<>"",$S43<>"No pot jugar individual"),"",IF(AND($F43<=P$1,$B43="M"),MAX(P$2:P42)+1,"")) -> 39 | Q43: =IF(AND($S43<>"",$S43<>"No pot jugar individual"),"",IF(AND($F43<=Q$1,$B43="M"),MAX(Q$2:Q42)+1,"")) ->  | R43: =IF($S43<>"","",IF($F43<=R$1,MAX(R$2:R42)+1,"")) ->  | T43: 7 | U43: =COUNTIF($AF43:$AL43,U$2) -> 0 | V43: 0 | W43: 0 | X43: D | Y43: C | Z43: B | AA43: B | AB43: B | AC43: C | AD43: B | AE43: B
A44: 6256 | B44: M | C44: OLIVELLA Alex | D44: JUV-1 | E44: 4 | F44: 2 | G44: LLUÏSOS | H44: LLUÏSOS | I44: 2403.5 | J44: =IF($S44<>"","",IF(AND($E44<=J$1,$B44="M"),MAX(J$2:J43)+1,"")) -> 40 | K44: =IF($S44<>"","",IF(AND($E44<=K$1,$B44="M"),MAX(K$2:K43)+1,"")) ->  | L44: =IF($S44<>"","",IF(AND($E44<=L$1,$B44="M"),MAX(L$2:L43)+1,"")) ->  | M44: =IF($S44<>"","",IF(AND($E44<=M$1,$B44="M"),MAX(M$2:M43)+1,"")) ->  | N44: =IF($S44<>"","",IF(AND($E44<=N$1,$B44="F"),MAX(N$2:N43)+1,"")) ->  | O44: =IF($S44<>"","",IF(AND($E44<=O$1,$B44="F"),MAX(O$2:O43)+1,"")) ->  | P44: =IF(AND($S44<>"",$S44<>"No pot jugar individual"),"",IF(AND($F44<=P$1,$B44="M"),MAX(P$2:P43)+1,"")) -> 40 | Q44: =IF(AND($S44<>"",$S44<>"No pot jugar individual"),"",IF(AND($F44<=Q$1,$B44="M"),MAX(Q$2:Q43)+1,"")) ->  | R44: =IF($S44<>"","",IF($F44<=R$1,MAX(R$2:R43)+1,"")) ->  | T44: 7 | U44: 0 | V44: 0 | W44: 0 | X44: C | Y44: B | Z44: C | AA44: C | AB44: C | AC44: C | AD44: C | AE44: B
A45: 8912 | B45: M | C45: PAREDES Marco | D45: INF-2 | E45: 3 | F45: 2 | G45: STCUGAT | H45: STCUGAT | I45: 2383.5 | J45: =IF($S45<>"","",IF(AND($E45<=J$1,$B45="M"),MAX(J$2:J44)+1,"")) -> 41 | K45: =IF($S45<>"","",IF(AND($E45<=K$1,$B45="M"),MAX(K$2:K44)+1,"")) -> 18 | L45: =IF($S45<>"","",IF(AND($E45<=L$1,$B45="M"),MAX(L$2:L44)+1,"")) ->  | M45: =IF($S45<>"","",IF(AND($E45<=M$1,$B45="M"),MAX(M$2:M44)+1,"")) ->  | N45: =IF($S45<>"","",IF(AND($E45<=N$1,$B45="F"),MAX(N$2:N44)+1,"")) ->  | O45: =IF($S45<>"","",IF(AND($E45<=O$1,$B45="F"),MAX(O$2:O44)+1,"")) ->  | P45: =IF(AND($S45<>"",$S45<>"No pot jugar individual"),"",IF(AND($F45<=P$1,$B45="M"),MAX(P$2:P44)+1,"")) -> 41 | Q45: =IF(AND($S45<>"",$S45<>"No pot jugar individual"),"",IF(AND($F45<=Q$1,$B45="M"),MAX(Q$2:Q44)+1,"")) ->  | R45: =IF($S45<>"","",IF($F45<=R$1,MAX(R$2:R44)+1,"")) ->  | T45: 7 | U45: 0 | V45: 0 | W45: 0 | X45: B | Y45: A | Z45: B | AA45: B | AB45: B | AC45: B | AD45: B | AE45: B
A46: 7081 | B46: M | C46: LLORENS Angel | D46: ALE-2 | E46: 2 | F46: 1 | G46: RIPOLLET | H46: RIPOLLET | I46: 2349.5 | J46: =IF($S46<>"","",IF(AND($E46<=J$1,$B46="M"),MAX(J$2:J45)+1,"")) -> 42 | K46: =IF($S46<>"","",IF(AND($E46<=K$1,$B46="M"),MAX(K$2:K45)+1,"")) -> 19 | L46: =IF($S46<>"","",IF(AND($E46<=L$1,$B46="M"),MAX(L$2:L45)+1,"")) -> 3 | M46: =IF($S46<>"","",IF(AND($E46<=M$1,$B46="M"),MAX(M$2:M45)+1,"")) ->  | N46: =IF($S46<>"","",IF(AND($E46<=N$1,$B46="F"),MAX(N$2:N45)+1,"")) ->  | O46: =IF($S46<>"","",IF(AND($E46<=O$1,$B46="F"),MAX(O$2:O45)+1,"")) ->  | P46: =IF(AND($S46<>"",$S46<>"No pot jugar individual"),"",IF(AND($F46<=P$1,$B46="M"),MAX(P$2:P45)+1,"")) -> 42 | Q46: =IF(AND($S46<>"",$S46<>"No pot jugar individual"),"",IF(AND($F46<=Q$1,$B46="M"),MAX(Q$2:Q45)+1,"")) -> 3 | R46: =IF($S46<>"","",IF($F46<=R$1,MAX(R$2:R45)+1,"")) ->  | T46: 7 | U46: 0 | V46: 0 | W46: 0 | X46: C | Y46: C | Z46: C | AA46: C | AB46: B | AC46: C | AD46: B | AE46: B
A47: 7772 | B47: M | C47: GONZALEZ Alex | D47: ALE-2 | E47: 2 | F47: 1 | G47: CASTELLAR | H47: CASTELLAR | I47: 2332.7 | J47: =IF($S47<>"","",IF(AND($E47<=J$1,$B47="M"),MAX(J$2:J46)+1,"")) -> 43 | K47: =IF($S47<>"","",IF(AND($E47<=K$1,$B47="M"),MAX(K$2:K46)+1,"")) -> 20 | L47: =IF($S47<>"","",IF(AND($E47<=L$1,$B47="M"),MAX(L$2:L46)+1,"")) -> 4 | M47: =IF($S47<>"","",IF(AND($E47<=M$1,$B47="M"),MAX(M$2:M46)+1,"")) ->  | N47: =IF($S47<>"","",IF(AND($E47<=N$1,$B47="F"),MAX(N$2:N46)+1,"")) ->  | O47: =IF($S47<>"","",IF(AND($E47<=O$1,$B47="F"),MAX(O$2:O46)+1,"")) ->  | P47: =IF(AND($S47<>"",$S47<>"No pot jugar individual"),"",IF(AND($F47<=P$1,$B47="M"),MAX(P$2:P46)+1,"")) -> 43 | Q47: =IF(AND($S47<>"",$S47<>"No pot jugar individual"),"",IF(AND($F47<=Q$1,$B47="M"),MAX(Q$2:Q46)+1,"")) -> 4 | R47: =IF($S47<>"","",IF($F47<=R$1,MAX(R$2:R46)+1,"")) ->  | T47: 7 | U47: 0 | V47: 0 | W47: 0 | X47: D | Y47: C | Z47: C | AA47: C | AB47: C | AC47: C | AD47: C | AE47: B
A48: 6516 | B48: M | C48: RUIZ Genis | D48: INF-2 | E48: 3 | F48: 2 | G48: CNSABA | H48: CNSABA | I48: 2315 | J48: =IF($S48<>"","",IF(AND($E48<=J$1,$B48="M"),MAX(J$2:J47)+1,"")) -> 44 | K48: =IF($S48<>"","",IF(AND($E48<=K$1,$B48="M"),MAX(K$2:K47)+1,"")) -> 21 | L48: =IF($S48<>"","",IF(AND($E48<=L$1,$B48="M"),MAX(L$2:L47)+1,"")) ->  | M48: =IF($S48<>"","",IF(AND($E48<=M$1,$B48="M"),MAX(M$2:M47)+1,"")) ->  | N48: =IF($S48<>"","",IF(AND($E48<=N$1,$B48="F"),MAX(N$2:N47)+1,"")) ->  | O48: =IF($S48<>"","",IF(AND($E48<=O$1,$B48="F"),MAX(O$2:O47)+1,"")) ->  | P48: =IF(AND($S48<>"",$S48<>"No pot jugar individual"),"",IF(AND($F48<=P$1,$B48="M"),MAX(P$2:P47)+1,"")) -> 44 | Q48: =IF(AND($S48<>"",$S48<>"No pot jugar individual"),"",IF(AND($F48<=Q$1,$B48="M"),MAX(Q$2:Q47)+1,"")) ->  | R48: =IF($S48<>"","",IF($F48<=R$1,MAX(R$2:R47)+1,"")) ->  | T48: 7 | U48: 0 | V48: 1 | W48: 0 | X48: B | Y48: B | Z48: C | AA48: C | AB48: B | AC48: B | AD48: A | AE48: B | AG48: BN
A49: 6811 | B49: M | C49: MESTRES Arnau | D49: INF-2 | E49: 3 | F49: 2 | G49: VILANOVA | H49: VILANOVA | I49: 2301.5 | J49: =IF($S49<>"","",IF(AND($E49<=J$1,$B49="M"),MAX(J$2:J48)+1,"")) -> 45 | K49: =IF($S49<>"","",IF(AND($E49<=K$1,$B49="M"),MAX(K$2:K48)+1,"")) -> 22 | L49: =IF($S49<>"","",IF(AND($E49<=L$1,$B49="M"),MAX(L$2:L48)+1,"")) ->  | M49: =IF($S49<>"","",IF(AND($E49<=M$1,$B49="M"),MAX(M$2:M48)+1,"")) ->  | N49: =IF($S49<>"","",IF(AND($E49<=N$1,$B49="F"),MAX(N$2:N48)+1,"")) ->  | O49: =IF($S49<>"","",IF(AND($E49<=O$1,$B49="F"),MAX(O$2:O48)+1,"")) ->  | P49: =IF(AND($S49<>"",$S49<>"No pot jugar individual"),"",IF(AND($F49<=P$1,$B49="M"),MAX(P$2:P48)+1,"")) -> 45 | Q49: =IF(AND($S49<>"",$S49<>"No pot jugar individual"),"",IF(AND($F49<=Q$1,$B49="M"),MAX(Q$2:Q48)+1,"")) ->  | R49: =IF($S49<>"","",IF($F49<=R$1,MAX(R$2:R48)+1,"")) ->  | T49: 7 | U49: 0 | V49: 0 | W49: 0 | X49: C | Y49: B | Z49: B | AA49: B | AB49: B | AC49: B | AD49: B | AE49: B
A50: 8249 | B50: M | C50: GUALLAR Pau | D50: JUV-1 | E50: 4 | F50: 2 | G50: LLUÏSOS | H50: LLUÏSOS | I50: 2265 | J50: =IF($S50<>"","",IF(AND($E50<=J$1,$B50="M"),MAX(J$2:J49)+1,"")) -> 46 | K50: =IF($S50<>"","",IF(AND($E50<=K$1,$B50="M"),MAX(K$2:K49)+1,"")) ->  | L50: =IF($S50<>"","",IF(AND($E50<=L$1,$B50="M"),MAX(L$2:L49)+1,"")) ->  | M50: =IF($S50<>"","",IF(AND($E50<=M$1,$B50="M"),MAX(M$2:M49)+1,"")) ->  | N50: =IF($S50<>"","",IF(AND($E50<=N$1,$B50="F"),MAX(N$2:N49)+1,"")) ->  | O50: =IF($S50<>"","",IF(AND($E50<=O$1,$B50="F"),MAX(O$2:O49)+1,"")) ->  | P50: =IF(AND($S50<>"",$S50<>"No pot jugar individual"),"",IF(AND($F50<=P$1,$B50="M"),MAX(P$2:P49)+1,"")) -> 46 | Q50: =IF(AND($S50<>"",$S50<>"No pot jugar individual"),"",IF(AND($F50<=Q$1,$B50="M"),MAX(Q$2:Q49)+1,"")) ->  | R50: =IF($S50<>"","",IF($F50<=R$1,MAX(R$2:R49)+1,"")) ->  | T50: 7 | U50: 1 | V50: 0 | W50: 0 | X50: C | Y50: B | Z50: B | AA50: B | AB50: B | AC50: B | AD50: C | AE50: B | AK50: BC
A51: 7471 | B51: M | C51: MORA Gerard | D51: JUV-1 | E51: 4 | F51: 2 | G51: ICELAND ELS 8 | H51: ICELAND ELS 8 | I51: 2264.5 | J51: =IF($S51<>"","",IF(AND($E51<=J$1,$B51="M"),MAX(J$2:J50)+1,"")) -> 47 | K51: =IF($S51<>"","",IF(AND($E51<=K$1,$B51="M"),MAX(K$2:K50)+1,"")) ->  | L51: =IF($S51<>"","",IF(AND($E51<=L$1,$B51="M"),MAX(L$2:L50)+1,"")) ->  | M51: =IF($S51<>"","",IF(AND($E51<=M$1,$B51="M"),MAX(M$2:M50)+1,"")) ->  | N51: =IF($S51<>"","",IF(AND($E51<=N$1,$B51="F"),MAX(N$2:N50)+1,"")) ->  | O51: =IF($S51<>"","",IF(AND($E51<=O$1,$B51="F"),MAX(O$2:O50)+1,"")) ->  | P51: =IF(AND($S51<>"",$S51<>"No pot jugar individual"),"",IF(AND($F51<=P$1,$B51="M"),MAX(P$2:P50)+1,"")) -> 47 | Q51: =IF(AND($S51<>"",$S51<>"No pot jugar individual"),"",IF(AND($F51<=Q$1,$B51="M"),MAX(Q$2:Q50)+1,"")) ->  | R51: =IF($S51<>"","",IF($F51<=R$1,MAX(R$2:R50)+1,"")) ->  | T51: 7 | U51: 1 | V51: 0 | W51: 0 | X51: B | Y51: C | Z51: C | AA51: B | AB51: B | AC51: B | AD51: C | AE51: B | AF51: BC | AK51: BJ
A52: 8114 | B52: M | C52: HERRERO Pau | D52: INF-1 | E52: 3 | F52: 2 | G52: HOSPIT | H52: HOSPIT | I52: 2199.5 | J52: =IF($S52<>"","",IF(AND($E52<=J$1,$B52="M"),MAX(J$2:J51)+1,"")) -> 48 | K52: =IF($S52<>"","",IF(AND($E52<=K$1,$B52="M"),MAX(K$2:K51)+1,"")) -> 23 | L52: =IF($S52<>"","",IF(AND($E52<=L$1,$B52="M"),MAX(L$2:L51)+1,"")) ->  | M52: =IF($S52<>"","",IF(AND($E52<=M$1,$B52="M"),MAX(M$2:M51)+1,"")) ->  | N52: =IF($S52<>"","",IF(AND($E52<=N$1,$B52="F"),MAX(N$2:N51)+1,"")) ->  | O52: =IF($S52<>"","",IF(AND($E52<=O$1,$B52="F"),MAX(O$2:O51)+1,"")) ->  | P52: =IF(AND($S52<>"",$S52<>"No pot jugar individual"),"",IF(AND($F52<=P$1,$B52="M"),MAX(P$2:P51)+1,"")) -> 48 | Q52: =IF(AND($S52<>"",$S52<>"No pot jugar individual"),"",IF(AND($F52<=Q$1,$B52="M"),MAX(Q$2:Q51)+1,"")) ->  | R52: =IF($S52<>"","",IF($F52<=R$1,MAX(R$2:R51)+1,"")) ->  | T52: 7 | U52: 0 | V52: 0 | W52: 0 | X52: B | Y52: B | Z52: B | AA52: B | AB52: B | AC52: C | AD52: C | AE52: C
A53: 9164 | B53: M | C53: ROSES Pau | D53: INF-1 | E53: 3 | F53: 2 | G53: LLUÏSOS | H53: LLUÏSOS | I53: 2119 | J53: =IF($S53<>"","",IF(AND($E53<=J$1,$B53="M"),MAX(J$2:J52)+1,"")) -> 49 | K53: =IF($S53<>"","",IF(AND($E53<=K$1,$B53="M"),MAX(K$2:K52)+1,"")) -> 24 | L53: =IF($S53<>"","",IF(AND($E53<=L$1,$B53="M"),MAX(L$2:L52)+1,"")) ->  | M53: =IF($S53<>"","",IF(AND($E53<=M$1,$B53="M"),MAX(M$2:M52)+1,"")) ->  | N53: =IF($S53<>"","",IF(AND($E53<=N$1,$B53="F"),MAX(N$2:N52)+1,"")) ->  | O53: =IF($S53<>"","",IF(AND($E53<=O$1,$B53="F"),MAX(O$2:O52)+1,"")) ->  | P53: =IF(AND($S53<>"",$S53<>"No pot jugar individual"),"",IF(AND($F53<=P$1,$B53="M"),MAX(P$2:P52)+1,"")) -> 49 | Q53: =IF(AND($S53<>"",$S53<>"No pot jugar individual"),"",IF(AND($F53<=Q$1,$B53="M"),MAX(Q$2:Q52)+1,"")) ->  | R53: =IF($S53<>"","",IF($F53<=R$1,MAX(R$2:R52)+1,"")) ->  | T53: 7 | U53: 0 | V53: 0 | W53: 0 | X53: C | Y53: B | Z53: A | AA53: B | AB53: B | AC53: B | AD53: C | AE53: C | AK53: BJ
A54: 8323 | B54: M | C54: RAIMBAULT Gonzalo | D54: JUV-1 | E54: 4 | F54: 2 | G54: CASTELLDEFELS | H54: CASTELLDEFELS | I54: 2091.5 | J54: =IF($S54<>"","",IF(AND($E54<=J$1,$B54="M"),MAX(J$2:J53)+1,"")) -> 50 | K54: =IF($S54<>"","",IF(AND($E54<=K$1,$B54="M"),MAX(K$2:K53)+1,"")) ->  | L54: =IF($S54<>"","",IF(AND($E54<=L$1,$B54="M"),MAX(L$2:L53)+1,"")) ->  | M54: =IF($S54<>"","",IF(AND($E54<=M$1,$B54="M"),MAX(M$2:M53)+1,"")) ->  | N54: =IF($S54<>"","",IF(AND($E54<=N$1,$B54="F"),MAX(N$2:N53)+1,"")) ->  | O54: =IF($S54<>"","",IF(AND($E54<=O$1,$B54="F"),MAX(O$2:O53)+1,"")) ->  | P54: =IF(AND($S54<>"",$S54<>"No pot jugar individual"),"",IF(AND($F54<=P$1,$B54="M"),MAX(P$2:P53)+1,"")) -> 50 | Q54: =IF(AND($S54<>"",$S54<>"No pot jugar individual"),"",IF(AND($F54<=Q$1,$B54="M"),MAX(Q$2:Q53)+1,"")) ->  | R54: =IF($S54<>"","",IF($F54<=R$1,MAX(R$2:R53)+1,"")) ->  | T54: 7 | U54: 0 | V54: 0 | W54: 0 | X54: C | Y54: C | Z54: C | AA54: C | AB54: C | AC54: C | AD54: C | AE54: B
A55: 7542 | B55: M | C55: CUADRADO Gerard | D55: ALE-1 | E55: 2 | F55: 1 | G55: ESPARREGU. | H55: ESPARREGU. | I55: 2076.1 | J55: =IF($S55<>"","",IF(AND($E55<=J$1,$B55="M"),MAX(J$2:J54)+1,"")) -> 51 | K55: =IF($S55<>"","",IF(AND($E55<=K$1,$B55="M"),MAX(K$2:K54)+1,"")) -> 25 | L55: =IF($S55<>"","",IF(AND($E55<=L$1,$B55="M"),MAX(L$2:L54)+1,"")) -> 5 | M55: =IF($S55<>"","",IF(AND($E55<=M$1,$B55="M"),MAX(M$2:M54)+1,"")) ->  | N55: =IF($S55<>"","",IF(AND($E55<=N$1,$B55="F"),MAX(N$2:N54)+1,"")) ->  | O55: =IF($S55<>"","",IF(AND($E55<=O$1,$B55="F"),MAX(O$2:O54)+1,"")) ->  | P55: =IF(AND($S55<>"",$S55<>"No pot jugar individual"),"",IF(AND($F55<=P$1,$B55="M"),MAX(P$2:P54)+1,"")) -> 51 | Q55: =IF(AND($S55<>"",$S55<>"No pot jugar individual"),"",IF(AND($F55<=Q$1,$B55="M"),MAX(Q$2:Q54)+1,"")) -> 5 | R55: =IF($S55<>"","",IF($F55<=R$1,MAX(R$2:R54)+1,"")) ->  | T55: 7 | U55: 1 | V55: 0 | W55: 0 | X55: D | Y55: C | Z55: B | AA55: B | AB55: C | AC55: C | AD55: B | AE55: C | AJ55: BJ | AL55: BC
A56: 6841 | B56: M | C56: ALVAREZ Arturo | D56: ALE-2 | E56: 2 | F56: 1 | G56: STCUGAT | H56: STCUGAT | I56: 2073.5 | J56: =IF($S56<>"","",IF(AND($E56<=J$1,$B56="M"),MAX(J$2:J55)+1,"")) -> 52 | K56: =IF($S56<>"","",IF(AND($E56<=K$1,$B56="M"),MAX(K$2:K55)+1,"")) -> 26 | L56: =IF($S56<>"","",IF(AND($E56<=L$1,$B56="M"),MAX(L$2:L55)+1,"")) -> 6 | M56: =IF($S56<>"","",IF(AND($E56<=M$1,$B56="M"),MAX(M$2:M55)+1,"")) ->  | N56: =IF($S56<>"","",IF(AND($E56<=N$1,$B56="F"),MAX(N$2:N55)+1,"")) ->  | O56: =IF($S56<>"","",IF(AND($E56<=O$1,$B56="F"),MAX(O$2:O55)+1,"")) ->  | P56: =IF(AND($S56<>"",$S56<>"No pot jugar individual"),"",IF(AND($F56<=P$1,$B56="M"),MAX(P$2:P55)+1,"")) -> 52 | Q56: =IF(AND($S56<>"",$S56<>"No pot jugar individual"),"",IF(AND($F56<=Q$1,$B56="M"),MAX(Q$2:Q55)+1,"")) -> 6 | R56: =IF($S56<>"","",IF($F56<=R$1,MAX(R$2:R55)+1,"")) ->  | T56: 7 | U56: 0 | V56: 0 | W56: 0 | X56: C | Y56: C | Z56: C | AA56: C | AB56: C | AC56: C | AD56: C | AE56: C
A57: 6247 | B57: M | C57: LLORENS Victor | D57: INF-1 | E57: 3 | F57: 2 | G57: RIPOLLET | H57: RIPOLLET | I57: 1994.3 | J57: =IF($S57<>"","",IF(AND($E57<=J$1,$B57="M"),MAX(J$2:J56)+1,"")) -> 53 | K57: =IF($S57<>"","",IF(AND($E57<=K$1,$B57="M"),MAX(K$2:K56)+1,"")) -> 27 | L57: =IF($S57<>"","",IF(AND($E57<=L$1,$B57="M"),MAX(L$2:L56)+1,"")) ->  | M57: =IF($S57<>"","",IF(AND($E57<=M$1,$B57="M"),MAX(M$2:M56)+1,"")) ->  | N57: =IF($S57<>"","",IF(AND($E57<=N$1,$B57="F"),MAX(N$2:N56)+1,"")) ->  | O57: =IF($S57<>"","",IF(AND($E57<=O$1,$B57="F"),MAX(O$2:O56)+1,"")) ->  | P57: =IF(AND($S57<>"",$S57<>"No pot jugar individual"),"",IF(AND($F57<=P$1,$B57="M"),MAX(P$2:P56)+1,"")) -> 53 | Q57: =IF(AND($S57<>"",$S57<>"No pot jugar individual"),"",IF(AND($F57<=Q$1,$B57="M"),MAX(Q$2:Q56)+1,"")) ->  | R57: =IF($S57<>"","",IF($F57<=R$1,MAX(R$2:R56)+1,"")) ->  | T57: 7 | U57: 0 | V57: 0 | W57: 0 | X57: D | Y57: D | Z57: D | AA57: D | AB57: C | AC57: C | AD57: B | AE57: C
A58: 7751 | B58: M | C58: VICENTE Pau | D58: ALE-2 | E58: 2 | F58: 1 | G58: RIPOLLET | H58: RIPOLLET | I58: 1953 | J58: =IF($S58<>"","",IF(AND($E58<=J$1,$B58="M"),MAX(J$2:J57)+1,"")) -> 54 | K58: =IF($S58<>"","",IF(AND($E58<=K$1,$B58="M"),MAX(K$2:K57)+1,"")) -> 28 | L58: =IF($S58<>"","",IF(AND($E58<=L$1,$B58="M"),MAX(L$2:L57)+1,"")) -> 7 | M58: =IF($S58<>"","",IF(AND($E58<=M$1,$B58="M"),MAX(M$2:M57)+1,"")) ->  | N58: =IF($S58<>"","",IF(AND($E58<=N$1,$B58="F"),MAX(N$2:N57)+1,"")) ->  | O58: =IF($S58<>"","",IF(AND($E58<=O$1,$B58="F"),MAX(O$2:O57)+1,"")) ->  | P58: =IF(AND($S58<>"",$S58<>"No pot jugar individual"),"",IF(AND($F58<=P$1,$B58="M"),MAX(P$2:P57)+1,"")) -> 54 | Q58: =IF(AND($S58<>"",$S58<>"No pot jugar individual"),"",IF(AND($F58<=Q$1,$B58="M"),MAX(Q$2:Q57)+1,"")) -> 7 | R58: =IF($S58<>"","",IF($F58<=R$1,MAX(R$2:R57)+1,"")) ->  | T58: 7 | U58: 0 | V58: 0 | W58: 0 | X58: B | Y58: C | Z58: B | AA58: C | AB58: B | AC58: C | AD58: C | AE58: C | AJ58: BJ
A59: 8654 | B59: M | C59: LEONE Tomás | D59: INF-1 | E59: 3 | F59: 2 | G59: CALELLA | H59: CALELLA | I59: 1935.5 | J59: =IF($S59<>"","",IF(AND($E59<=J$1,$B59="M"),MAX(J$2:J58)+1,"")) -> 55 | K59: =IF($S59<>"","",IF(AND($E59<=K$1,$B59="M"),MAX(K$2:K58)+1,"")) -> 29 | L59: =IF($S59<>"","",IF(AND($E59<=L$1,$B59="M"),MAX(L$2:L58)+1,"")) ->  | M59: =IF($S59<>"","",IF(AND($E59<=M$1,$B59="M"),MAX(M$2:M58)+1,"")) ->  | N59: =IF($S59<>"","",IF(AND($E59<=N$1,$B59="F"),MAX(N$2:N58)+1,"")) ->  | O59: =IF($S59<>"","",IF(AND($E59<=O$1,$B59="F"),MAX(O$2:O58)+1,"")) ->  | P59: =IF(AND($S59<>"",$S59<>"No pot jugar individual"),"",IF(AND($F59<=P$1,$B59="M"),MAX(P$2:P58)+1,"")) -> 55 | Q59: =IF(AND($S59<>"",$S59<>"No pot jugar individual"),"",IF(AND($F59<=Q$1,$B59="M"),MAX(Q$2:Q58)+1,"")) ->  | R59: =IF($S59<>"","",IF($F59<=R$1,MAX(R$2:R58)+1,"")) ->  | T59: 7 | U59: 0 | V59: 0 | W59: 0 | X59: C | Y59: C | Z59: B | AA59: C | AB59: C | AC59: C | AD59: C | AE59: C
A60: 11166 | B60: M | C60: MUÑOZ Marc | D60: JUV-1 | E60: 4 | F60: 2 | G60: CNSABA | H60: CNSABA | I60: 1932.1 | J60: =IF($S60<>"","",IF(AND($E60<=J$1,$B60="M"),MAX(J$2:J59)+1,"")) -> 56 | K60: =IF($S60<>"","",IF(AND($E60<=K$1,$B60="M"),MAX(K$2:K59)+1,"")) ->  | L60: =IF($S60<>"","",IF(AND($E60<=L$1,$B60="M"),MAX(L$2:L59)+1,"")) ->  | M60: =IF($S60<>"","",IF(AND($E60<=M$1,$B60="M"),MAX(M$2:M59)+1,"")) ->  | N60: =IF($S60<>"","",IF(AND($E60<=N$1,$B60="F"),MAX(N$2:N59)+1,"")) ->  | O60: =IF($S60<>"","",IF(AND($E60<=O$1,$B60="F"),MAX(O$2:O59)+1,"")) ->  | P60: =IF(AND($S60<>"",$S60<>"No pot jugar individual"),"",IF(AND($F60<=P$1,$B60="M"),MAX(P$2:P59)+1,"")) -> 56 | Q60: =IF(AND($S60<>"",$S60<>"No pot jugar individual"),"",IF(AND($F60<=Q$1,$B60="M"),MAX(Q$2:Q59)+1,"")) ->  | R60: =IF($S60<>"","",IF($F60<=R$1,MAX(R$2:R59)+1,"")) ->  | T60: 7 | U60: 0 | V60: 0 | W60: 0 | X60: K | Y60: K | Z60: J | AA60: E | AB60: D | AC60: C | AD60: B | AE60: A
A61: 8089 | B61: M | C61: VILALLONGA Nurjan | D61: ALE-2 | E61: 2 | F61: 1 | G61: RIPOLLET | H61: RIPOLLET | I61: 1875.5 | J61: =IF($S61<>"","",IF(AND($E61<=J$1,$B61="M"),MAX(J$2:J60)+1,"")) -> 57 | K61: =IF($S61<>"","",IF(AND($E61<=K$1,$B61="M"),MAX(K$2:K60)+1,"")) -> 30 | L61: =IF($S61<>"","",IF(AND($E61<=L$1,$B61="M"),MAX(L$2:L60)+1,"")) -> 8 | M61: =IF($S61<>"","",IF(AND($E61<=M$1,$B61="M"),MAX(M$2:M60)+1,"")) ->  | N61: =IF($S61<>"","",IF(AND($E61<=N$1,$B61="F"),MAX(N$2:N60)+1,"")) ->  | O61: =IF($S61<>"","",IF(AND($E61<=O$1,$B61="F"),MAX(O$2:O60)+1,"")) ->  | P61: =IF(AND($S61<>"",$S61<>"No pot jugar individual"),"",IF(AND($F61<=P$1,$B61="M"),MAX(P$2:P60)+1,"")) -> 57 | Q61: =IF(AND($S61<>"",$S61<>"No pot jugar individual"),"",IF(AND($F61<=Q$1,$B61="M"),MAX(Q$2:Q60)+1,"")) -> 8 | R61: =IF($S61<>"","",IF($F61<=R$1,MAX(R$2:R60)+1,"")) ->  | T61: 7 | U61: 0 | V61: 0 | W61: 0 | X61: B | Y61: C | Z61: C | AA61: C | AB61: C | AC61: C | AD61: C | AE61: C
A62: 6064 | B62: M | C62: ROS Guillem | D62: INF-1 | E62: 3 | F62: 2 | G62: STCUGAT | H62: STCUGAT | I62: 1861.15 | J62: =IF($S62<>"","",IF(AND($E62<=J$1,$B62="M"),MAX(J$2:J61)+1,"")) -> 58 | K62: =IF($S62<>"","",IF(AND($E62<=K$1,$B62="M"),MAX(K$2:K61)+1,"")) -> 31 | L62: =IF($S62<>"","",IF(AND($E62<=L$1,$B62="M"),MAX(L$2:L61)+1,"")) ->  | M62: =IF($S62<>"","",IF(AND($E62<=M$1,$B62="M"),MAX(M$2:M61)+1,"")) ->  | N62: =IF($S62<>"","",IF(AND($E62<=N$1,$B62="F"),MAX(N$2:N61)+1,"")) ->  | O62: =IF($S62<>"","",IF(AND($E62<=O$1,$B62="F"),MAX(O$2:O61)+1,"")) ->  | P62: =IF(AND($S62<>"",$S62<>"No pot jugar individual"),"",IF(AND($F62<=P$1,$B62="M"),MAX(P$2:P61)+1,"")) -> 58 | Q62: =IF(AND($S62<>"",$S62<>"No pot jugar individual"),"",IF(AND($F62<=Q$1,$B62="M"),MAX(Q$2:Q61)+1,"")) ->  | R62: =IF($S62<>"","",IF($F62<=R$1,MAX(R$2:R61)+1,"")) ->  | T62: 7 | U62: 0 | V62: 0 | W62: 0 | X62: F | Y62: E | Z62: D | AA62: C | AB62: C | AC62: C | AD62: C | AE62: C
A63: 7399 | B63: F | C63: GUTIERREZ Judith | D63: INF-2 | E63: 3 | F63: 0 | G63: RIPOLLET | H63: RIPOLLET | I63: 1627.1 | J63: =IF($S63<>"","",IF(AND($E63<=J$1,$B63="M"),MAX(J$2:J62)+1,"")) ->  | K63: =IF($S63<>"","",IF(AND($E63<=K$1,$B63="M"),MAX(K$2:K62)+1,"")) ->  | L63: =IF($S63<>"","",IF(AND($E63<=L$1,$B63="M"),MAX(L$2:L62)+1,"")) ->  | M63: =IF($S63<>"","",IF(AND($E63<=M$1,$B63="M"),MAX(M$2:M62)+1,"")) ->  | N63: =IF($S63<>"","",IF(AND($E63<=N$1,$B63="F"),MAX(N$2:N62)+1,"")) -> 3 | O63: =IF($S63<>"","",IF(AND($E63<=O$1,$B63="F"),MAX(O$2:O62)+1,"")) ->  | P63: =IF(AND($S63<>"",$S63<>"No pot jugar individual"),"",IF(AND($F63<=P$1,$B63="M"),MAX(P$2:P62)+1,"")) ->  | Q63: =IF(AND($S63<>"",$S63<>"No pot jugar individual"),"",IF(AND($F63<=Q$1,$B63="M"),MAX(Q$2:Q62)+1,"")) ->  | R63: =IF($S63<>"","",IF($F63<=R$1,MAX(R$2:R62)+1,"")) -> 3 | T63: 7 | U63: =COUNTIF($AF63:$AL63,U$2) -> 0 | V63: 0 | W63: 0 | X63: C | Y63: D | Z63: C | AA63: C | AB63: D | AC63: D | AD63: D | AE63: C
A64: 8719 | B64: M | C64: WEISZ Adria | D64: INF-2 | E64: 3 | F64: 2 | G64: CNSABA | H64: CNSABA | I64: 1615.8 | J64: =IF($S64<>"","",IF(AND($E64<=J$1,$B64="M"),MAX(J$2:J63)+1,"")) -> 59 | K64: =IF($S64<>"","",IF(AND($E64<=K$1,$B64="M"),MAX(K$2:K63)+1,"")) -> 32 | L64: =IF($S64<>"","",IF(AND($E64<=L$1,$B64="M"),MAX(L$2:L63)+1,"")) ->  | M64: =IF($S64<>"","",IF(AND($E64<=M$1,$B64="M"),MAX(M$2:M63)+1,"")) ->  | N64: =IF($S64<>"","",IF(AND($E64<=N$1,$B64="F"),MAX(N$2:N63)+1,"")) ->  | O64: =IF($S64<>"","",IF(AND($E64<=O$1,$B64="F"),MAX(O$2:O63)+1,"")) ->  | P64: =IF(AND($S64<>"",$S64<>"No pot jugar individual"),"",IF(AND($F64<=P$1,$B64="M"),MAX(P$2:P63)+1,"")) -> 59 | Q64: =IF(AND($S64<>"",$S64<>"No pot jugar individual"),"",IF(AND($F64<=Q$1,$B64="M"),MAX(Q$2:Q63)+1,"")) ->  | R64: =IF($S64<>"","",IF($F64<=R$1,MAX(R$2:R63)+1,"")) ->  | T64: 7 | U64: 1 | V64: 0 | W64: 0 | X64: C | Y64: D | Z64: C | AA64: C | AB64: C | AC64: C | AD64: C | AE64: C | AF64: BC
A65: 7755 | B65: M | C65: LLOBET Arnau | D65: ALE-2 | E65: 2 | F65: 1 | G65: VIC | H65: VIC | I65: 1575 | J65: =IF($S65<>"","",IF(AND($E65<=J$1,$B65="M"),MAX(J$2:J64)+1,"")) -> 60 | K65: =IF($S65<>"","",IF(AND($E65<=K$1,$B65="M"),MAX(K$2:K64)+1,"")) -> 33 | L65: =IF($S65<>"","",IF(AND($E65<=L$1,$B65="M"),MAX(L$2:L64)+1,"")) -> 9 | M65: =IF($S65<>"","",IF(AND($E65<=M$1,$B65="M"),MAX(M$2:M64)+1,"")) ->  | N65: =IF($S65<>"","",IF(AND($E65<=N$1,$B65="F"),MAX(N$2:N64)+1,"")) ->  | O65: =IF($S65<>"","",IF(AND($E65<=O$1,$B65="F"),MAX(O$2:O64)+1,"")) ->  | P65: =IF(AND($S65<>"",$S65<>"No pot jugar individual"),"",IF(AND($F65<=P$1,$B65="M"),MAX(P$2:P64)+1,"")) -> 60 | Q65: =IF(AND($S65<>"",$S65<>"No pot jugar individual"),"",IF(AND($F65<=Q$1,$B65="M"),MAX(Q$2:Q64)+1,"")) -> 9 | R65: =IF($S65<>"","",IF($F65<=R$1,MAX(R$2:R64)+1,"")) ->  | T65: 7 | U65: 0 | V65: 0 | W65: 0 | X65: C | Y65: C | Z65: B | AA65: C | AB65: D | AC65: D | AD65: D | AE65: C | AK65: BJ
A66: 9209 | B66: M | C66: MIARONS Arnau | D66: INF-1 | E66: 3 | F66: 2 | G66: VIC | H66: VIC | I66: 1533.38 | J66: =IF($S66<>"","",IF(AND($E66<=J$1,$B66="M"),MAX(J$2:J65)+1,"")) -> 61 | K66: =IF($S66<>"","",IF(AND($E66<=K$1,$B66="M"),MAX(K$2:K65)+1,"")) -> 34 | L66: =IF($S66<>"","",IF(AND($E66<=L$1,$B66="M"),MAX(L$2:L65)+1,"")) ->  | M66: =IF($S66<>"","",IF(AND($E66<=M$1,$B66="M"),MAX(M$2:M65)+1,"")) ->  | N66: =IF($S66<>"","",IF(AND($E66<=N$1,$B66="F"),MAX(N$2:N65)+1,"")) ->  | O66: =IF($S66<>"","",IF(AND($E66<=O$1,$B66="F"),MAX(O$2:O65)+1,"")) ->  | P66: =IF(AND($S66<>"",$S66<>"No pot jugar individual"),"",IF(AND($F66<=P$1,$B66="M"),MAX(P$2:P65)+1,"")) -> 61 | Q66: =IF(AND($S66<>"",$S66<>"No pot jugar individual"),"",IF(AND($F66<=Q$1,$B66="M"),MAX(Q$2:Q65)+1,"")) ->  | R66: =IF($S66<>"","",IF($F66<=R$1,MAX(R$2:R65)+1,"")) ->  | T66: 7 | U66: 0 | V66: 0 | W66: 0 | X66: E | Y66: D | Z66: D | AA66: C | AB66: D | AC66: C | AD66: C | AE66: C
A67: 8031 | B67: M | C67: MARCELLO Manuel | D67: JUV-2 | E67: =IF(LEFT(D67,1)="P",1,IF(LEFT(D67,1)="B",1,IF(LEFT(D67,1)="A",2,IF(LEFT(D67,1)="I",3,4)))) -> 4 | F67: =IF(B67="F",0,IF(LEFT(D67,1)="P",1,IF(LEFT(D67,1)="B",1,IF(LEFT(D67,1)="A",1,IF(LEFT(D67,1)="I",2,2))))) -> 2 | G67: ICELAND ELS 8 | H67: ICELAND ELS 8 | I67: 1399.8 | J67: =IF($S67<>"","",IF(AND($E67<=J$1,$B67="M"),MAX(J$2:J66)+1,"")) -> 62 | K67: =IF($S67<>"","",IF(AND($E67<=K$1,$B67="M"),MAX(K$2:K66)+1,"")) ->  | L67: =IF($S67<>"","",IF(AND($E67<=L$1,$B67="M"),MAX(L$2:L66)+1,"")) ->  | M67: =IF($S67<>"","",IF(AND($E67<=M$1,$B67="M"),MAX(M$2:M66)+1,"")) ->  | N67: =IF($S67<>"","",IF(AND($E67<=N$1,$B67="F"),MAX(N$2:N66)+1,"")) ->  | O67: =IF($S67<>"","",IF(AND($E67<=O$1,$B67="F"),MAX(O$2:O66)+1,"")) ->  | P67: =IF(AND($S67<>"",$S67<>"No pot jugar individual"),"",IF(AND($F67<=P$1,$B67="M"),MAX(P$2:P66)+1,"")) -> 62 | Q67: =IF(AND($S67<>"",$S67<>"No pot jugar individual"),"",IF(AND($F67<=Q$1,$B67="M"),MAX(Q$2:Q66)+1,"")) ->  | R67: =IF($S67<>"","",IF($F67<=R$1,MAX(R$2:R66)+1,"")) ->  | S67: =IF(1=1,"",IF(W67<>0,"No pot jugar",IF(OR(AE67="Y",AE67="Z",G67="INDEPEN",G67="R.ELISENDA"),"No pot jugar",IF(T67-U67-V67-W67=0,IF(V67<>0,"No pot jugar",IF(AND(B67="M",OR(G67="INDEPEN",G67="R.ELISENDA")),"No pot jugar individual","")),IF(AND(B67="M",OR(G67="INDEPEN",G67="R.ELISENDA")),"No pot jugar individual",""))))) ->  | T67: =7-COUNTBLANK(X67:AD67) -> 7 | U67: 1 | V67: 0 | W67: 0 | X67: B | Y67: C | Z67: D | AA67: C | AB67: C | AC67: C | AD67: D | AE67: D | AK67: BC
A68: 7933 | B68: M | C68: MORENO Alex | D68: BEN-2 | E68: 1 | F68: 1 | G68: INDEPEN | H68: INDEPEN | I68: 1389 | J68: =IF($S68<>"","",IF(AND($E68<=J$1,$B68="M"),MAX(J$2:J67)+1,"")) -> 63 | K68: =IF($S68<>"","",IF(AND($E68<=K$1,$B68="M"),MAX(K$2:K67)+1,"")) -> 35 | L68: =IF($S68<>"","",IF(AND($E68<=L$1,$B68="M"),MAX(L$2:L67)+1,"")) -> 10 | M68: =IF($S68<>"","",IF(AND($E68<=M$1,$B68="M"),MAX(M$2:M67)+1,"")) -> 1 | N68: =IF($S68<>"","",IF(AND($E68<=N$1,$B68="F"),MAX(N$2:N67)+1,"")) ->  | O68: =IF($S68<>"","",IF(AND($E68<=O$1,$B68="F"),MAX(O$2:O67)+1,"")) ->  | P68: =IF(AND($S68<>"",$S68<>"No pot jugar individual"),"",IF(AND($F68<=P$1,$B68="M"),MAX(P$2:P67)+1,"")) -> 63 | Q68: =IF(AND($S68<>"",$S68<>"No pot jugar individual"),"",IF(AND($F68<=Q$1,$B68="M"),MAX(Q$2:Q67)+1,"")) -> 10 | R68: =IF($S68<>"","",IF($F68<=R$1,MAX(R$2:R67)+1,"")) ->  | T68: 7 | U68: 0 | V68: 0 | W68: 0 | X68: C | Y68: D | Z68: D | AA68: C | AB68: C | AC68: C | AD68: C | AE68: C | AL68: BJ
A69: 10177 | B69: M | C69: GARRIDO Martí | D69: ALE-1 | E69: 2 | F69: 1 | G69: VIC | H69: VIC | I69: 1376.7 | J69: =IF($S69<>"","",IF(AND($E69<=J$1,$B69="M"),MAX(J$2:J68)+1,"")) -> 64 | K69: =IF($S69<>"","",IF(AND($E69<=K$1,$B69="M"),MAX(K$2:K68)+1,"")) -> 36 | L69: =IF($S69<>"","",IF(AND($E69<=L$1,$B69="M"),MAX(L$2:L68)+1,"")) -> 11 | M69: =IF($S69<>"","",IF(AND($E69<=M$1,$B69="M"),MAX(M$2:M68)+1,"")) ->  | N69: =IF($S69<>"","",IF(AND($E69<=N$1,$B69="F"),MAX(N$2:N68)+1,"")) ->  | O69: =IF($S69<>"","",IF(AND($E69<=O$1,$B69="F"),MAX(O$2:O68)+1,"")) ->  | P69: =IF(AND($S69<>"",$S69<>"No pot jugar individual"),"",IF(AND($F69<=P$1,$B69="M"),MAX(P$2:P68)+1,"")) -> 64 | Q69: =IF(AND($S69<>"",$S69<>"No pot jugar individual"),"",IF(AND($F69<=Q$1,$B69="M"),MAX(Q$2:Q68)+1,"")) -> 11 | R69: =IF($S69<>"","",IF($F69<=R$1,MAX(R$2:R68)+1,"")) ->  | T69: 7 | U69: 1 | V69: 0 | W69: 0 | X69: F | Y69: E | Z69: D | AA69: C | AB69: C | AC69: D | AD69: C | AE69: D | AJ69: BC | AL69: BJ
A70: 9172 | B70: M | C70: GALLARDO Abel | D70: JUV-1 | E70: 4 | F70: 2 | G70: LLUÏSOS | H70: LLUÏSOS | I70: 1351.85 | J70: =IF($S70<>"","",IF(AND($E70<=J$1,$B70="M"),MAX(J$2:J69)+1,"")) -> 65 | K70: =IF($S70<>"","",IF(AND($E70<=K$1,$B70="M"),MAX(K$2:K69)+1,"")) ->  | L70: =IF($S70<>"","",IF(AND($E70<=L$1,$B70="M"),MAX(L$2:L69)+1,"")) ->  | M70: =IF($S70<>"","",IF(AND($E70<=M$1,$B70="M"),MAX(M$2:M69)+1,"")) ->  | N70: =IF($S70<>"","",IF(AND($E70<=N$1,$B70="F"),MAX(N$2:N69)+1,"")) ->  | O70: =IF($S70<>"","",IF(AND($E70<=O$1,$B70="F"),MAX(O$2:O69)+1,"")) ->  | P70: =IF(AND($S70<>"",$S70<>"No pot jugar individual"),"",IF(AND($F70<=P$1,$B70="M"),MAX(P$2:P69)+1,"")) -> 65 | Q70: =IF(AND($S70<>"",$S70<>"No pot jugar individual"),"",IF(AND($F70<=Q$1,$B70="M"),MAX(Q$2:Q69)+1,"")) ->  | R70: =IF($S70<>"","",IF($F70<=R$1,MAX(R$2:R69)+1,"")) ->  | T70: 7 | U70: 1 | V70: 0 | W70: 0 | X70: K | Y70: J | Z70: E | AA70: D | AB70: C | AC70: B | AD70: C | AE70: C | AK70: BC
A71: 8254 | B71: M | C71: VENDRELL Marc | D71: INF-2 | E71: 3 | F71: 2 | G71: LLUÏSOS | H71: LLUÏSOS | I71: 1342.7 | J71: =IF($S71<>"","",IF(AND($E71<=J$1,$B71="M"),MAX(J$2:J70)+1,"")) -> 66 | K71: =IF($S71<>"","",IF(AND($E71<=K$1,$B71="M"),MAX(K$2:K70)+1,"")) -> 37 | L71: =IF($S71<>"","",IF(AND($E71<=L$1,$B71="M"),MAX(L$2:L70)+1,"")) ->  | M71: =IF($S71<>"","",IF(AND($E71<=M$1,$B71="M"),MAX(M$2:M70)+1,"")) ->  | N71: =IF($S71<>"","",IF(AND($E71<=N$1,$B71="F"),MAX(N$2:N70)+1,"")) ->  | O71: =IF($S71<>"","",IF(AND($E71<=O$1,$B71="F"),MAX(O$2:O70)+1,"")) ->  | P71: =IF(AND($S71<>"",$S71<>"No pot jugar individual"),"",IF(AND($F71<=P$1,$B71="M"),MAX(P$2:P70)+1,"")) -> 66 | Q71: =IF(AND($S71<>"",$S71<>"No pot jugar individual"),"",IF(AND($F71<=Q$1,$B71="M"),MAX(Q$2:Q70)+1,"")) ->  | R71: =IF($S71<>"","",IF($F71<=R$1,MAX(R$2:R70)+1,"")) ->  | T71: 7 | U71: 0 | V71: 0 | W71: 0 | X71: C | Y71: D | Z71: C | AA71: D | AB71: D | AC71: D | AD71: C | AE71: C
A72: 7810 | B72: M | C72: SILVESTRE Xavier | D72: JUV-2 | E72: 4 | F72: 2 | G72: VILAFRANCA | H72: VILAFRANCA | I72: 1327.75 | J72: =IF($S72<>"","",IF(AND($E72<=J$1,$B72="M"),MAX(J$2:J71)+1,"")) -> 67 | K72: =IF($S72<>"","",IF(AND($E72<=K$1,$B72="M"),MAX(K$2:K71)+1,"")) ->  | L72: =IF($S72<>"","",IF(AND($E72<=L$1,$B72="M"),MAX(L$2:L71)+1,"")) ->  | M72: =IF($S72<>"","",IF(AND($E72<=M$1,$B72="M"),MAX(M$2:M71)+1,"")) ->  | N72: =IF($S72<>"","",IF(AND($E72<=N$1,$B72="F"),MAX(N$2:N71)+1,"")) ->  | O72: =IF($S72<>"","",IF(AND($E72<=O$1,$B72="F"),MAX(O$2:O71)+1,"")) ->  | P72: =IF(AND($S72<>"",$S72<>"No pot jugar individual"),"",IF(AND($F72<=P$1,$B72="M"),MAX(P$2:P71)+1,"")) -> 67 | Q72: =IF(AND($S72<>"",$S72<>"No pot jugar individual"),"",IF(AND($F72<=Q$1,$B72="M"),MAX(Q$2:Q71)+1,"")) ->  | R72: =IF($S72<>"","",IF($F72<=R$1,MAX(R$2:R71)+1,"")) ->  | T72: 6 | U72: 0 | V72: 0 | W72: 0 | Y72: E | Z72: D | AA72: D | AB72: E | AC72: D | AD72: C | AE72: C | AI72: PI
A73: 9026 | B73: M | C73: MORENO Pol | D73: ALE-2 | E73: 2 | F73: 1 | G73: RIPOLLET | H73: RIPOLLET | I73: 1324.7 | J73: =IF($S73<>"","",IF(AND($E73<=J$1,$B73="M"),MAX(J$2:J72)+1,"")) -> 68 | K73: =IF($S73<>"","",IF(AND($E73<=K$1,$B73="M"),MAX(K$2:K72)+1,"")) -> 38 | L73: =IF($S73<>"","",IF(AND($E73<=L$1,$B73="M"),MAX(L$2:L72)+1,"")) -> 12 | M73: =IF($S73<>"","",IF(AND($E73<=M$1,$B73="M"),MAX(M$2:M72)+1,"")) ->  | N73: =IF($S73<>"","",IF(AND($E73<=N$1,$B73="F"),MAX(N$2:N72)+1,"")) ->  | O73: =IF($S73<>"","",IF(AND($E73<=O$1,$B73="F"),MAX(O$2:O72)+1,"")) ->  | P73: =IF(AND($S73<>"",$S73<>"No pot jugar individual"),"",IF(AND($F73<=P$1,$B73="M"),MAX(P$2:P72)+1,"")) -> 68 | Q73: =IF(AND($S73<>"",$S73<>"No pot jugar individual"),"",IF(AND($F73<=Q$1,$B73="M"),MAX(Q$2:Q72)+1,"")) -> 12 | R73: =IF($S73<>"","",IF($F73<=R$1,MAX(R$2:R72)+1,"")) ->  | T73: 7 | U73: 0 | V73: 0 | W73: 0 | X73: D | Y73: C | Z73: D | AA73: D | AB73: C | AC73: C | AD73: D | AE73: D
A74: 5955 | B74: F | C74: MUNNE Mariona | D74: ALE-1 | E74: 2 | F74: 0 | G74: STCUGAT | H74: STCUGAT | I74: 1311.8 | J74: =IF($S74<>"","",IF(AND($E74<=J$1,$B74="M"),MAX(J$2:J73)+1,"")) ->  | K74: =IF($S74<>"","",IF(AND($E74<=K$1,$B74="M"),MAX(K$2:K73)+1,"")) ->  | L74: =IF($S74<>"","",IF(AND($E74<=L$1,$B74="M"),MAX(L$2:L73)+1,"")) ->  | M74: =IF($S74<>"","",IF(AND($E74<=M$1,$B74="M"),MAX(M$2:M73)+1,"")) ->  | N74: =IF($S74<>"","",IF(AND($E74<=N$1,$B74="F"),MAX(N$2:N73)+1,"")) -> 4 | O74: =IF($S74<>"","",IF(AND($E74<=O$1,$B74="F"),MAX(O$2:O73)+1,"")) -> 2 | P74: =IF(AND($S74<>"",$S74<>"No pot jugar individual"),"",IF(AND($F74<=P$1,$B74="M"),MAX(P$2:P73)+1,"")) ->  | Q74: =IF(AND($S74<>"",$S74<>"No pot jugar individual"),"",IF(AND($F74<=Q$1,$B74="M"),MAX(Q$2:Q73)+1,"")) ->  | R74: =IF($S74<>"","",IF($F74<=R$1,MAX(R$2:R73)+1,"")) -> 4 | T74: 7 | U74: 0 | V74: 0 | W74: 0 | X74: E | Y74: F | Z74: E | AA74: D | AB74: C | AC74: C | AD74: C | AE74: D | AF74: BJ | AL74: BJ
A75: 7799 | B75: M | C75: ROJO Ivan | D75: JUV-1 | E75: 4 | F75: 2 | G75: EUROCLIMA BDN | H75: EUROCLIMA BDN | I75: 1277.9 | J75: =IF($S75<>"","",IF(AND($E75<=J$1,$B75="M"),MAX(J$2:J74)+1,"")) -> 69 | K75: =IF($S75<>"","",IF(AND($E75<=K$1,$B75="M"),MAX(K$2:K74)+1,"")) ->  | L75: =IF($S75<>"","",IF(AND($E75<=L$1,$B75="M"),MAX(L$2:L74)+1,"")) ->  | M75: =IF($S75<>"","",IF(AND($E75<=M$1,$B75="M"),MAX(M$2:M74)+1,"")) ->  | N75: =IF($S75<>"","",IF(AND($E75<=N$1,$B75="F"),MAX(N$2:N74)+1,"")) ->  | O75: =IF($S75<>"","",IF(AND($E75<=O$1,$B75="F"),MAX(O$2:O74)+1,"")) ->  | P75: =IF(AND($S75<>"",$S75<>"No pot jugar individual"),"",IF(AND($F75<=P$1,$B75="M"),MAX(P$2:P74)+1,"")) -> 69 | Q75: =IF(AND($S75<>"",$S75<>"No pot jugar individual"),"",IF(AND($F75<=Q$1,$B75="M"),MAX(Q$2:Q74)+1,"")) ->  | R75: =IF($S75<>"","",IF($F75<=R$1,MAX(R$2:R74)+1,"")) ->  | T75: 7 | U75: 0 | V75: 0 | W75: 0 | X75: D | Y75: D | Z75: D | AA75: D | AB75: D | AC75: D | AD75: C | AE75: C
A76: 8877 | B76: M | C76: VELEZ Oriol | D76: JUV-1 | E76: 4 | F76: 2 | G76: LLUÏSOS | H76: LLUÏSOS | I76: 1195.1 | J76: =IF($S76<>"","",IF(AND($E76<=J$1,$B76="M"),MAX(J$2:J75)+1,"")) -> 70 | K76: =IF($S76<>"","",IF(AND($E76<=K$1,$B76="M"),MAX(K$2:K75)+1,"")) ->  | L76: =IF($S76<>"","",IF(AND($E76<=L$1,$B76="M"),MAX(L$2:L75)+1,"")) ->  | M76: =IF($S76<>"","",IF(AND($E76<=M$1,$B76="M"),MAX(M$2:M75)+1,"")) ->  | N76: =IF($S76<>"","",IF(AND($E76<=N$1,$B76="F"),MAX(N$2:N75)+1,"")) ->  | O76: =IF($S76<>"","",IF(AND($E76<=O$1,$B76="F"),MAX(O$2:O75)+1,"")) ->  | P76: =IF(AND($S76<>"",$S76<>"No pot jugar individual"),"",IF(AND($F76<=P$1,$B76="M"),MAX(P$2:P75)+1,"")) -> 70 | Q76: =IF(AND($S76<>"",$S76<>"No pot jugar individual"),"",IF(AND($F76<=Q$1,$B76="M"),MAX(Q$2:Q75)+1,"")) ->  | R76: =IF($S76<>"","",IF($F76<=R$1,MAX(R$2:R75)+1,"")) ->  | T76: 7 | U76: 0 | V76: 0 | W76: 0 | X76: D | Y76: D | Z76: C | AA76: D | AB76: C | AC76: D | AD76: D | AE76: D
A77: 7759 | B77: M | C77: NOTARIO Guillem | D77: ALE-2 | E77: 2 | F77: 1 | G77: SALLENT | H77: SALLENT | I77: 1181.65 | J77: =IF($S77<>"","",IF(AND($E77<=J$1,$B77="M"),MAX(J$2:J76)+1,"")) -> 71 | K77: =IF($S77<>"","",IF(AND($E77<=K$1,$B77="M"),MAX(K$2:K76)+1,"")) -> 39 | L77: =IF($S77<>"","",IF(AND($E77<=L$1,$B77="M"),MAX(L$2:L76)+1,"")) -> 13 | M77: =IF($S77<>"","",IF(AND($E77<=M$1,$B77="M"),MAX(M$2:M76)+1,"")) ->  | N77: =IF($S77<>"","",IF(AND($E77<=N$1,$B77="F"),MAX(N$2:N76)+1,"")) ->  | O77: =IF($S77<>"","",IF(AND($E77<=O$1,$B77="F"),MAX(O$2:O76)+1,"")) ->  | P77: =IF(AND($S77<>"",$S77<>"No pot jugar individual"),"",IF(AND($F77<=P$1,$B77="M"),MAX(P$2:P76)+1,"")) -> 71 | Q77: =IF(AND($S77<>"",$S77<>"No pot jugar individual"),"",IF(AND($F77<=Q$1,$B77="M"),MAX(Q$2:Q76)+1,"")) -> 13 | R77: =IF($S77<>"","",IF($F77<=R$1,MAX(R$2:R76)+1,"")) ->  | T77: 7 | U77: 0 | V77: 0 | W77: 0 | X77: C | Y77: C | Z77: D | AA77: E | AB77: E | AC77: D | AD77: D | AE77: C | AG77: BJ | AH77: BJ
A78: 8592 | B78: F | C78: LARRUBIA Raquel | D78: ALE-1 | E78: 2 | F78: 0 | G78: VIC | H78: VIC | I78: 1161.2 | J78: =IF($S78<>"","",IF(AND($E78<=J$1,$B78="M"),MAX(J$2:J77)+1,"")) ->  | K78: =IF($S78<>"","",IF(AND($E78<=K$1,$B78="M"),MAX(K$2:K77)+1,"")) ->  | L78: =IF($S78<>"","",IF(AND($E78<=L$1,$B78="M"),MAX(L$2:L77)+1,"")) ->  | M78: =IF($S78<>"","",IF(AND($E78<=M$1,$B78="M"),MAX(M$2:M77)+1,"")) ->  | N78: =IF($S78<>"","",IF(AND($E78<=N$1,$B78="F"),MAX(N$2:N77)+1,"")) -> 5 | O78: =IF($S78<>"","",IF(AND($E78<=O$1,$B78="F"),MAX(O$2:O77)+1,"")) -> 3 | P78: =IF(AND($S78<>"",$S78<>"No pot jugar individual"),"",IF(AND($F78<=P$1,$B78="M"),MAX(P$2:P77)+1,"")) ->  | Q78: =IF(AND($S78<>"",$S78<>"No pot jugar individual"),"",IF(AND($F78<=Q$1,$B78="M"),MAX(Q$2:Q77)+1,"")) ->  | R78: =IF($S78<>"","",IF($F78<=R$1,MAX(R$2:R77)+1,"")) -> 5 | T78: 7 | U78: 0 | V78: 0 | W78: 0 | X78: D | Y78: C | Z78: C | AA78: C | AB78: C | AC78: C | AD78: D | AE78: D | AH78: BJ | AK78: BJ | AL78: BJ
A79: 8085 | B79: M | C79: RAMIREZ Sergi | D79: JUV-1 | E79: 4 | F79: 2 | G79: VILANOVA | H79: VILANOVA | I79: 1151.1 | J79: =IF($S79<>"","",IF(AND($E79<=J$1,$B79="M"),MAX(J$2:J78)+1,"")) -> 72 | K79: =IF($S79<>"","",IF(AND($E79<=K$1,$B79="M"),MAX(K$2:K78)+1,"")) ->  | L79: =IF($S79<>"","",IF(AND($E79<=L$1,$B79="M"),MAX(L$2:L78)+1,"")) ->  | M79: =IF($S79<>"","",IF(AND($E79<=M$1,$B79="M"),MAX(M$2:M78)+1,"")) ->  | N79: =IF($S79<>"","",IF(AND($E79<=N$1,$B79="F"),MAX(N$2:N78)+1,"")) ->  | O79: =IF($S79<>"","",IF(AND($E79<=O$1,$B79="F"),MAX(O$2:O78)+1,"")) ->  | P79: =IF(AND($S79<>"",$S79<>"No pot jugar individual"),"",IF(AND($F79<=P$1,$B79="M"),MAX(P$2:P78)+1,"")) -> 72 | Q79: =IF(AND($S79<>"",$S79<>"No pot jugar individual"),"",IF(AND($F79<=Q$1,$B79="M"),MAX(Q$2:Q78)+1,"")) ->  | R79: =IF($S79<>"","",IF($F79<=R$1,MAX(R$2:R78)+1,"")) ->  | T79: 7 | U79: 0 | V79: 0 | W79: 0 | X79: B | Y79: C | Z79: C | AA79: C | AB79: C | AC79: D | AD79: C | AE79: D | AF79: BJ | AI79: BJ | AJ79: BJ | AL79: BJ
A80: 8863 | B80: M | C80: GIL Marcel | D80: JUV-1 | E80: 4 | F80: 2 | G80: LLUÏSOS | H80: LLUÏSOS | I80: 1119.5 | J80: =IF($S80<>"","",IF(AND($E80<=J$1,$B80="M"),MAX(J$2:J79)+1,"")) -> 73 | K80: =IF($S80<>"","",IF(AND($E80<=K$1,$B80="M"),MAX(K$2:K79)+1,"")) ->  | L80: =IF($S80<>"","",IF(AND($E80<=L$1,$B80="M"),MAX(L$2:L79)+1,"")) ->  | M80: =IF($S80<>"","",IF(AND($E80<=M$1,$B80="M"),MAX(M$2:M79)+1,"")) ->  | N80: =IF($S80<>"","",IF(AND($E80<=N$1,$B80="F"),MAX(N$2:N79)+1,"")) ->  | O80: =IF($S80<>"","",IF(AND($E80<=O$1,$B80="F"),MAX(O$2:O79)+1,"")) ->  | P80: =IF(AND($S80<>"",$S80<>"No pot jugar individual"),"",IF(AND($F80<=P$1,$B80="M"),MAX(P$2:P79)+1,"")) -> 73 | Q80: =IF(AND($S80<>"",$S80<>"No pot jugar individual"),"",IF(AND($F80<=Q$1,$B80="M"),MAX(Q$2:Q79)+1,"")) ->  | R80: =IF($S80<>"","",IF($F80<=R$1,MAX(R$2:R79)+1,"")) ->  | T80: 7 | U80: 0 | V80: 0 | W80: 0 | X80: C | Y80: D | Z80: D | AA80: D | AB80: D | AC80: D | AD80: D | AE80: D
A81: 8974 | B81: M | C81: FERNANDEZ Oriol | D81: ALE-1 | E81: 2 | F81: 1 | G81: HOSPIT | H81: HOSPIT | I81: 1109.18 | J81: =IF($S81<>"","",IF(AND($E81<=J$1,$B81="M"),MAX(J$2:J80)+1,"")) -> 74 | K81: =IF($S81<>"","",IF(AND($E81<=K$1,$B81="M"),MAX(K$2:K80)+1,"")) -> 40 | L81: =IF($S81<>"","",IF(AND($E81<=L$1,$B81="M"),MAX(L$2:L80)+1,"")) -> 14 | M81: =IF($S81<>"","",IF(AND($E81<=M$1,$B81="M"),MAX(M$2:M80)+1,"")) ->  | N81: =IF($S81<>"","",IF(AND($E81<=N$1,$B81="F"),MAX(N$2:N80)+1,"")) ->  | O81: =IF($S81<>"","",IF(AND($E81<=O$1,$B81="F"),MAX(O$2:O80)+1,"")) ->  | P81: =IF(AND($S81<>"",$S81<>"No pot jugar individual"),"",IF(AND($F81<=P$1,$B81="M"),MAX(P$2:P80)+1,"")) -> 74 | Q81: =IF(AND($S81<>"",$S81<>"No pot jugar individual"),"",IF(AND($F81<=Q$1,$B81="M"),MAX(Q$2:Q80)+1,"")) -> 14 | R81: =IF($S81<>"","",IF($F81<=R$1,MAX(R$2:R80)+1,"")) ->  | T81: 7 | U81: 0 | V81: 0 | W81: 0 | X81: D | Y81: D | Z81: E | AA81: E | AB81: D | AC81: D | AD81: D | AE81: D
A82: 8876 | B82: M | C82: MUÑOZ Eloi | D82: INF-2 | E82: 3 | F82: 2 | G82: LLUÏSOS | H82: LLUÏSOS | I82: 1101.25 | J82: =IF($S82<>"","",IF(AND($E82<=J$1,$B82="M"),MAX(J$2:J81)+1,"")) -> 75 | K82: =IF($S82<>"","",IF(AND($E82<=K$1,$B82="M"),MAX(K$2:K81)+1,"")) -> 41 | L82: =IF($S82<>"","",IF(AND($E82<=L$1,$B82="M"),MAX(L$2:L81)+1,"")) ->  | M82: =IF($S82<>"","",IF(AND($E82<=M$1,$B82="M"),MAX(M$2:M81)+1,"")) ->  | N82: =IF($S82<>"","",IF(AND($E82<=N$1,$B82="F"),MAX(N$2:N81)+1,"")) ->  | O82: =IF($S82<>"","",IF(AND($E82<=O$1,$B82="F"),MAX(O$2:O81)+1,"")) ->  | P82: =IF(AND($S82<>"",$S82<>"No pot jugar individual"),"",IF(AND($F82<=P$1,$B82="M"),MAX(P$2:P81)+1,"")) -> 75 | Q82: =IF(AND($S82<>"",$S82<>"No pot jugar individual"),"",IF(AND($F82<=Q$1,$B82="M"),MAX(Q$2:Q81)+1,"")) ->  | R82: =IF($S82<>"","",IF($F82<=R$1,MAX(R$2:R81)+1,"")) ->  | T82: 7 | U82: 0 | V82: 0 | W82: 0 | X82: D | Y82: E | Z82: E | AA82: D | AB82: D | AC82: D | AD82: D | AE82: E
A83: 9025 | B83: M | C83: RICART Roger | D83: ALE-2 | E83: 2 | F83: 1 | G83: RIPOLLET | H83: RIPOLLET | I83: 1095.63 | J83: =IF($S83<>"","",IF(AND($E83<=J$1,$B83="M"),MAX(J$2:J82)+1,"")) -> 76 | K83: =IF($S83<>"","",IF(AND($E83<=K$1,$B83="M"),MAX(K$2:K82)+1,"")) -> 42 | L83: =IF($S83<>"","",IF(AND($E83<=L$1,$B83="M"),MAX(L$2:L82)+1,"")) -> 15 | M83: =IF($S83<>"","",IF(AND($E83<=M$1,$B83="M"),MAX(M$2:M82)+1,"")) ->  | N83: =IF($S83<>"","",IF(AND($E83<=N$1,$B83="F"),MAX(N$2:N82)+1,"")) ->  | O83: =IF($S83<>"","",IF(AND($E83<=O$1,$B83="F"),MAX(O$2:O82)+1,"")) ->  | P83: =IF(AND($S83<>"",$S83<>"No pot jugar individual"),"",IF(AND($F83<=P$1,$B83="M"),MAX(P$2:P82)+1,"")) -> 76 | Q83: =IF(AND($S83<>"",$S83<>"No pot jugar individual"),"",IF(AND($F83<=Q$1,$B83="M"),MAX(Q$2:Q82)+1,"")) -> 15 | R83: =IF($S83<>"","",IF($F83<=R$1,MAX(R$2:R82)+1,"")) ->  | T83: 7 | U83: =COUNTIF($AF83:$AL83,U$2) -> 0 | V83: 0 | W83: 0 | X83: E | Y83: D | Z83: D | AA83: C | AB83: D | AC83: D | AD83: D | AE83: D
A84: 10286 | B84: M | C84: RUESCAS David | D84: INF-2 | E84: 3 | F84: 2 | G84: EUROCLIMA BDN | H84: EUROCLIMA BDN | I84: 1078.6 | J84: =IF($S84<>"","",IF(AND($E84<=J$1,$B84="M"),MAX(J$2:J83)+1,"")) -> 77 | K84: =IF($S84<>"","",IF(AND($E84<=K$1,$B84="M"),MAX(K$2:K83)+1,"")) -> 43 | L84: =IF($S84<>"","",IF(AND($E84<=L$1,$B84="M"),MAX(L$2:L83)+1,"")) ->  | M84: =IF($S84<>"","",IF(AND($E84<=M$1,$B84="M"),MAX(M$2:M83)+1,"")) ->  | N84: =IF($S84<>"","",IF(AND($E84<=N$1,$B84="F"),MAX(N$2:N83)+1,"")) ->  | O84: =IF($S84<>"","",IF(AND($E84<=O$1,$B84="F"),MAX(O$2:O83)+1,"")) ->  | P84: =IF(AND($S84<>"",$S84<>"No pot jugar individual"),"",IF(AND($F84<=P$1,$B84="M"),MAX(P$2:P83)+1,"")) -> 77 | Q84: =IF(AND($S84<>"",$S84<>"No pot jugar individual"),"",IF(AND($F84<=Q$1,$B84="M"),MAX(Q$2:Q83)+1,"")) ->  | R84: =IF($S84<>"","",IF($F84<=R$1,MAX(R$2:R83)+1,"")) ->  | T84: 7 | U84: 0 | V84: 0 | W84: 0 | X84: G | Y84: F | Z84: E | AA84: D | AB84: D | AC84: D | AD84: D | AE84: D
A85: 8216 | B85: M | C85: BONALUQUE Sergio | D85: INF-1 | E85: 3 | F85: 2 | G85: ATEN82 | H85: ATEN82 | I85: 1052.6 | J85: =IF($S85<>"","",IF(AND($E85<=J$1,$B85="M"),MAX(J$2:J84)+1,"")) -> 78 | K85: =IF($S85<>"","",IF(AND($E85<=K$1,$B85="M"),MAX(K$2:K84)+1,"")) -> 44 | L85: =IF($S85<>"","",IF(AND($E85<=L$1,$B85="M"),MAX(L$2:L84)+1,"")) ->  | M85: =IF($S85<>"","",IF(AND($E85<=M$1,$B85="M"),MAX(M$2:M84)+1,"")) ->  | N85: =IF($S85<>"","",IF(AND($E85<=N$1,$B85="F"),MAX(N$2:N84)+1,"")) ->  | O85: =IF($S85<>"","",IF(AND($E85<=O$1,$B85="F"),MAX(O$2:O84)+1,"")) ->  | P85: =IF(AND($S85<>"",$S85<>"No pot jugar individual"),"",IF(AND($F85<=P$1,$B85="M"),MAX(P$2:P84)+1,"")) -> 78 | Q85: =IF(AND($S85<>"",$S85<>"No pot jugar individual"),"",IF(AND($F85<=Q$1,$B85="M"),MAX(Q$2:Q84)+1,"")) ->  | R85: =IF($S85<>"","",IF($F85<=R$1,MAX(R$2:R84)+1,"")) ->  | T85: 7 | U85: 0 | V85: 0 | W85: 0 | X85: D | Y85: E | Z85: D | AA85: D | AB85: D | AC85: D | AD85: D | AE85: C | AK85: BJ
A86: 8502 | B86: M | C86: PLANA Pep | D86: JUV-2 | E86: 4 | F86: 2 | G86: SALLENT | H86: SALLENT | I86: 1022.3 | J86: =IF($S86<>"","",IF(AND($E86<=J$1,$B86="M"),MAX(J$2:J85)+1,"")) -> 79 | K86: =IF($S86<>"","",IF(AND($E86<=K$1,$B86="M"),MAX(K$2:K85)+1,"")) ->  | L86: =IF($S86<>"","",IF(AND($E86<=L$1,$B86="M"),MAX(L$2:L85)+1,"")) ->  | M86: =IF($S86<>"","",IF(AND($E86<=M$1,$B86="M"),MAX(M$2:M85)+1,"")) ->  | N86: =IF($S86<>"","",IF(AND($E86<=N$1,$B86="F"),MAX(N$2:N85)+1,"")) ->  | O86: =IF($S86<>"","",IF(AND($E86<=O$1,$B86="F"),MAX(O$2:O85)+1,"")) ->  | P86: =IF(AND($S86<>"",$S86<>"No pot jugar individual"),"",IF(AND($F86<=P$1,$B86="M"),MAX(P$2:P85)+1,"")) -> 79 | Q86: =IF(AND($S86<>"",$S86<>"No pot jugar individual"),"",IF(AND($F86<=Q$1,$B86="M"),MAX(Q$2:Q85)+1,"")) ->  | R86: =IF($S86<>"","",IF($F86<=R$1,MAX(R$2:R85)+1,"")) ->  | T86: 7 | U86: 0 | V86: 0 | W86: 0 | X86: C | Y86: C | Z86: D | AA86: D | AB86: D | AC86: E | AD86: D | AE86: D | AJ86: BJ
A87: 9169 | B87: M | C87: RODRIGUEZ Octavio | D87: INF-1 | E87: 3 | F87: 2 | G87: LLUÏSOS | H87: LLUÏSOS | I87: 1003.25 | J87: =IF($S87<>"","",IF(AND($E87<=J$1,$B87="M"),MAX(J$2:J86)+1,"")) -> 80 | K87: =IF($S87<>"","",IF(AND($E87<=K$1,$B87="M"),MAX(K$2:K86)+1,"")) -> 45 | L87: =IF($S87<>"","",IF(AND($E87<=L$1,$B87="M"),MAX(L$2:L86)+1,"")) ->  | M87: =IF($S87<>"","",IF(AND($E87<=M$1,$B87="M"),MAX(M$2:M86)+1,"")) ->  | N87: =IF($S87<>"","",IF(AND($E87<=N$1,$B87="F"),MAX(N$2:N86)+1,"")) ->  | O87: =IF($S87<>"","",IF(AND($E87<=O$1,$B87="F"),MAX(O$2:O86)+1,"")) ->  | P87: =IF(AND($S87<>"",$S87<>"No pot jugar individual"),"",IF(AND($F87<=P$1,$B87="M"),MAX(P$2:P86)+1,"")) -> 80 | Q87: =IF(AND($S87<>"",$S87<>"No pot jugar individual"),"",IF(AND($F87<=Q$1,$B87="M"),MAX(Q$2:Q86)+1,"")) ->  | R87: =IF($S87<>"","",IF($F87<=R$1,MAX(R$2:R86)+1,"")) ->  | T87: 7 | U87: 0 | V87: 0 | W87: 0 | X87: D | Y87: D | Z87: E | AA87: D | AB87: E | AC87: E | AD87: D | AE87: D
A88: 9145 | B88: M | C88: OBIOLS Pol | D88: ALE-1 | E88: 2 | F88: 1 | G88: ATEN82 | H88: ATEN82 | I88: 998.9 | J88: =IF($S88<>"","",IF(AND($E88<=J$1,$B88="M"),MAX(J$2:J87)+1,"")) -> 81 | K88: =IF($S88<>"","",IF(AND($E88<=K$1,$B88="M"),MAX(K$2:K87)+1,"")) -> 46 | L88: =IF($S88<>"","",IF(AND($E88<=L$1,$B88="M"),MAX(L$2:L87)+1,"")) -> 16 | M88: =IF($S88<>"","",IF(AND($E88<=M$1,$B88="M"),MAX(M$2:M87)+1,"")) ->  | N88: =IF($S88<>"","",IF(AND($E88<=N$1,$B88="F"),MAX(N$2:N87)+1,"")) ->  | O88: =IF($S88<>"","",IF(AND($E88<=O$1,$B88="F"),MAX(O$2:O87)+1,"")) ->  | P88: =IF(AND($S88<>"",$S88<>"No pot jugar individual"),"",IF(AND($F88<=P$1,$B88="M"),MAX(P$2:P87)+1,"")) -> 81 | Q88: =IF(AND($S88<>"",$S88<>"No pot jugar individual"),"",IF(AND($F88<=Q$1,$B88="M"),MAX(Q$2:Q87)+1,"")) -> 16 | R88: =IF($S88<>"","",IF($F88<=R$1,MAX(R$2:R87)+1,"")) ->  | T88: 7 | U88: 0 | V88: 0 | W88: 0 | X88: E | Y88: E | Z88: D | AA88: D | AB88: D | AC88: E | AD88: D | AE88: D
A89: 8657 | B89: M | C89: GARCIA Xavier | D89: INF-2 | E89: 3 | F89: 2 | G89: CNSABA | H89: CNSABA | I89: 960.6 | J89: =IF($S89<>"","",IF(AND($E89<=J$1,$B89="M"),MAX(J$2:J88)+1,"")) -> 82 | K89: =IF($S89<>"","",IF(AND($E89<=K$1,$B89="M"),MAX(K$2:K88)+1,"")) -> 47 | L89: =IF($S89<>"","",IF(AND($E89<=L$1,$B89="M"),MAX(L$2:L88)+1,"")) ->  | M89: =IF($S89<>"","",IF(AND($E89<=M$1,$B89="M"),MAX(M$2:M88)+1,"")) ->  | N89: =IF($S89<>"","",IF(AND($E89<=N$1,$B89="F"),MAX(N$2:N88)+1,"")) ->  | O89: =IF($S89<>"","",IF(AND($E89<=O$1,$B89="F"),MAX(O$2:O88)+1,"")) ->  | P89: =IF(AND($S89<>"",$S89<>"No pot jugar individual"),"",IF(AND($F89<=P$1,$B89="M"),MAX(P$2:P88)+1,"")) -> 82 | Q89: =IF(AND($S89<>"",$S89<>"No pot jugar individual"),"",IF(AND($F89<=Q$1,$B89="M"),MAX(Q$2:Q88)+1,"")) ->  | R89: =IF($S89<>"","",IF($F89<=R$1,MAX(R$2:R88)+1,"")) ->  | T89: 7 | U89: 1 | V89: 0 | W89: 0 | X89: C | Y89: C | Z89: D | AA89: D | AB89: D | AC89: C | AD89: C | AE89: D | AG89: BC
A90: 5286 | B90: M | C90: OLIVA Albert | D90: INF-2 | E90: 3 | F90: 2 | G90: RODA | H90: RODA | I90: 942.68 | J90: =IF($S90<>"","",IF(AND($E90<=J$1,$B90="M"),MAX(J$2:J89)+1,"")) -> 83 | K90: =IF($S90<>"","",IF(AND($E90<=K$1,$B90="M"),MAX(K$2:K89)+1,"")) -> 48 | L90: =IF($S90<>"","",IF(AND($E90<=L$1,$B90="M"),MAX(L$2:L89)+1,"")) ->  | M90: =IF($S90<>"","",IF(AND($E90<=M$1,$B90="M"),MAX(M$2:M89)+1,"")) ->  | N90: =IF($S90<>"","",IF(AND($E90<=N$1,$B90="F"),MAX(N$2:N89)+1,"")) ->  | O90: =IF($S90<>"","",IF(AND($E90<=O$1,$B90="F"),MAX(O$2:O89)+1,"")) ->  | P90: =IF(AND($S90<>"",$S90<>"No pot jugar individual"),"",IF(AND($F90<=P$1,$B90="M"),MAX(P$2:P89)+1,"")) -> 83 | Q90: =IF(AND($S90<>"",$S90<>"No pot jugar individual"),"",IF(AND($F90<=Q$1,$B90="M"),MAX(Q$2:Q89)+1,"")) ->  | R90: =IF($S90<>"","",IF($F90<=R$1,MAX(R$2:R89)+1,"")) ->  | T90: 7 | U90: 0 | V90: 0 | W90: 0 | X90: D | Y90: E | Z90: E | AA90: E | AB90: E | AC90: D | AD90: D | AE90: D
A91: 6564 | B91: M | C91: ENCUENTRA Samuel | D91: JUV-1 | E91: 4 | F91: 2 | G91: VILANOVA | H91: VILANOVA | I91: 906.6 | J91: =IF($S91<>"","",IF(AND($E91<=J$1,$B91="M"),MAX(J$2:J90)+1,"")) -> 84 | K91: =IF($S91<>"","",IF(AND($E91<=K$1,$B91="M"),MAX(K$2:K90)+1,"")) ->  | L91: =IF($S91<>"","",IF(AND($E91<=L$1,$B91="M"),MAX(L$2:L90)+1,"")) ->  | M91: =IF($S91<>"","",IF(AND($E91<=M$1,$B91="M"),MAX(M$2:M90)+1,"")) ->  | N91: =IF($S91<>"","",IF(AND($E91<=N$1,$B91="F"),MAX(N$2:N90)+1,"")) ->  | O91: =IF($S91<>"","",IF(AND($E91<=O$1,$B91="F"),MAX(O$2:O90)+1,"")) ->  | P91: =IF(AND($S91<>"",$S91<>"No pot jugar individual"),"",IF(AND($F91<=P$1,$B91="M"),MAX(P$2:P90)+1,"")) -> 84 | Q91: =IF(AND($S91<>"",$S91<>"No pot jugar individual"),"",IF(AND($F91<=Q$1,$B91="M"),MAX(Q$2:Q90)+1,"")) ->  | R91: =IF($S91<>"","",IF($F91<=R$1,MAX(R$2:R90)+1,"")) ->  | T91: 7 | U91: 0 | V91: 0 | W91: 0 | X91: C | Y91: D | Z91: D | AA91: D | AB91: D | AC91: D | AD91: D | AE91: D | AF91: BJ
A92: 8499 | B92: M | C92: ESTRUCH Amanel | D92: JUV-2 | E92: 4 | F92: 2 | G92: SALLENT | H92: SALLENT | I92: 899.9 | J92: =IF($S92<>"","",IF(AND($E92<=J$1,$B92="M"),MAX(J$2:J91)+1,"")) -> 85 | K92: =IF($S92<>"","",IF(AND($E92<=K$1,$B92="M"),MAX(K$2:K91)+1,"")) ->  | L92: =IF($S92<>"","",IF(AND($E92<=L$1,$B92="M"),MAX(L$2:L91)+1,"")) ->  | M92: =IF($S92<>"","",IF(AND($E92<=M$1,$B92="M"),MAX(M$2:M91)+1,"")) ->  | N92: =IF($S92<>"","",IF(AND($E92<=N$1,$B92="F"),MAX(N$2:N91)+1,"")) ->  | O92: =IF($S92<>"","",IF(AND($E92<=O$1,$B92="F"),MAX(O$2:O91)+1,"")) ->  | P92: =IF(AND($S92<>"",$S92<>"No pot jugar individual"),"",IF(AND($F92<=P$1,$B92="M"),MAX(P$2:P91)+1,"")) -> 85 | Q92: =IF(AND($S92<>"",$S92<>"No pot jugar individual"),"",IF(AND($F92<=Q$1,$B92="M"),MAX(Q$2:Q91)+1,"")) ->  | R92: =IF($S92<>"","",IF($F92<=R$1,MAX(R$2:R91)+1,"")) ->  | T92: 7 | U92: 0 | V92: 0 | W92: 0 | X92: C | Y92: D | Z92: D | AA92: D | AB92: D | AC92: D | AD92: C | AE92: D
A93: 7873 | B93: M | C93: CABALLERO Pol | D93: ALE-1 | E93: 2 | F93: 1 | G93: SALLENT | H93: SALLENT | I93: 897.26 | J93: =IF($S93<>"","",IF(AND($E93<=J$1,$B93="M"),MAX(J$2:J92)+1,"")) -> 86 | K93: =IF($S93<>"","",IF(AND($E93<=K$1,$B93="M"),MAX(K$2:K92)+1,"")) -> 49 | L93: =IF($S93<>"","",IF(AND($E93<=L$1,$B93="M"),MAX(L$2:L92)+1,"")) -> 17 | M93: =IF($S93<>"","",IF(AND($E93<=M$1,$B93="M"),MAX(M$2:M92)+1,"")) ->  | N93: =IF($S93<>"","",IF(AND($E93<=N$1,$B93="F"),MAX(N$2:N92)+1,"")) ->  | O93: =IF($S93<>"","",IF(AND($E93<=O$1,$B93="F"),MAX(O$2:O92)+1,"")) ->  | P93: =IF(AND($S93<>"",$S93<>"No pot jugar individual"),"",IF(AND($F93<=P$1,$B93="M"),MAX(P$2:P92)+1,"")) -> 86 | Q93: =IF(AND($S93<>"",$S93<>"No pot jugar individual"),"",IF(AND($F93<=Q$1,$B93="M"),MAX(Q$2:Q92)+1,"")) -> 17 | R93: =IF($S93<>"","",IF($F93<=R$1,MAX(R$2:R92)+1,"")) ->  | T93: 7 | U93: 0 | V93: 0 | W93: 0 | X93: E | Y93: D | Z93: E | AA93: E | AB93: E | AC93: E | AD93: D | AE93: D
A94: 8868 | B94: M | C94: COSTA Oriol | D94: ALE-1 | E94: 2 | F94: 1 | G94: R.ELISENDA | H94: R.ELISENDA | I94: 884.68 | J94: =IF($S94<>"","",IF(AND($E94<=J$1,$B94="M"),MAX(J$2:J93)+1,"")) -> 87 | K94: =IF($S94<>"","",IF(AND($E94<=K$1,$B94="M"),MAX(K$2:K93)+1,"")) -> 50 | L94: =IF($S94<>"","",IF(AND($E94<=L$1,$B94="M"),MAX(L$2:L93)+1,"")) -> 18 | M94: =IF($S94<>"","",IF(AND($E94<=M$1,$B94="M"),MAX(M$2:M93)+1,"")) ->  | N94: =IF($S94<>"","",IF(AND($E94<=N$1,$B94="F"),MAX(N$2:N93)+1,"")) ->  | O94: =IF($S94<>"","",IF(AND($E94<=O$1,$B94="F"),MAX(O$2:O93)+1,"")) ->  | P94: =IF(AND($S94<>"",$S94<>"No pot jugar individual"),"",IF(AND($F94<=P$1,$B94="M"),MAX(P$2:P93)+1,"")) -> 87 | Q94: =IF(AND($S94<>"",$S94<>"No pot jugar individual"),"",IF(AND($F94<=Q$1,$B94="M"),MAX(Q$2:Q93)+1,"")) -> 18 | R94: =IF($S94<>"","",IF($F94<=R$1,MAX(R$2:R93)+1,"")) ->  | T94: 7 | U94: 0 | V94: 0 | W94: 0 | X94: E | Y94: D | Z94: D | AA94: D | AB94: D | AC94: D | AD94: D | AE94: D
A95: 8893 | B95: M | C95: GUTIERREZ Gerard | D95: INF-1 | E95: 3 | F95: 2 | G95: VIC | H95: VIC | I95: 863.3 | J95: =IF($S95<>"","",IF(AND($E95<=J$1,$B95="M"),MAX(J$2:J94)+1,"")) -> 88 | K95: =IF($S95<>"","",IF(AND($E95<=K$1,$B95="M"),MAX(K$2:K94)+1,"")) -> 51 | L95: =IF($S95<>"","",IF(AND($E95<=L$1,$B95="M"),MAX(L$2:L94)+1,"")) ->  | M95: =IF($S95<>"","",IF(AND($E95<=M$1,$B95="M"),MAX(M$2:M94)+1,"")) ->  | N95: =IF($S95<>"","",IF(AND($E95<=N$1,$B95="F"),MAX(N$2:N94)+1,"")) ->  | O95: =IF($S95<>"","",IF(AND($E95<=O$1,$B95="F"),MAX(O$2:O94)+1,"")) ->  | P95: =IF(AND($S95<>"",$S95<>"No pot jugar individual"),"",IF(AND($F95<=P$1,$B95="M"),MAX(P$2:P94)+1,"")) -> 88 | Q95: =IF(AND($S95<>"",$S95<>"No pot jugar individual"),"",IF(AND($F95<=Q$1,$B95="M"),MAX(Q$2:Q94)+1,"")) ->  | R95: =IF($S95<>"","",IF($F95<=R$1,MAX(R$2:R94)+1,"")) ->  | T95: 7 | U95: 1 | V95: 0 | W95: 0 | X95: D | Y95: C | Z95: D | AA95: E | AB95: D | AC95: E | AD95: E | AE95: D | AH95: BC | AK95: BJ
A96: 8566 | B96: M | C96: TARRAGA Alvaro | D96: JUV-1 | E96: 4 | F96: 2 | G96: PREMIA | H96: PREMIA | I96: 826.75 | J96: =IF($S96<>"","",IF(AND($E96<=J$1,$B96="M"),MAX(J$2:J95)+1,"")) -> 89 | K96: =IF($S96<>"","",IF(AND($E96<=K$1,$B96="M"),MAX(K$2:K95)+1,"")) ->  | L96: =IF($S96<>"","",IF(AND($E96<=L$1,$B96="M"),MAX(L$2:L95)+1,"")) ->  | M96: =IF($S96<>"","",IF(AND($E96<=M$1,$B96="M"),MAX(M$2:M95)+1,"")) ->  | N96: =IF($S96<>"","",IF(AND($E96<=N$1,$B96="F"),MAX(N$2:N95)+1,"")) ->  | O96: =IF($S96<>"","",IF(AND($E96<=O$1,$B96="F"),MAX(O$2:O95)+1,"")) ->  | P96: =IF(AND($S96<>"",$S96<>"No pot jugar individual"),"",IF(AND($F96<=P$1,$B96="M"),MAX(P$2:P95)+1,"")) -> 89 | Q96: =IF(AND($S96<>"",$S96<>"No pot jugar individual"),"",IF(AND($F96<=Q$1,$B96="M"),MAX(Q$2:Q95)+1,"")) ->  | R96: =IF($S96<>"","",IF($F96<=R$1,MAX(R$2:R95)+1,"")) ->  | T96: 7 | U96: 0 | V96: 0 | W96: 0 | X96: C | Y96: D | Z96: E | AA96: E | AB96: D | AC96: E | AD96: E | AE96: E
A97: 6651 | B97: F | C97: LOPEZ Ona | D97: JUV-2 | E97: 4 | F97: 0 | G97: HOSPIT | H97: HOSPIT | I97: 761.45 | J97: =IF($S97<>"","",IF(AND($E97<=J$1,$B97="M"),MAX(J$2:J96)+1,"")) ->  | K97: =IF($S97<>"","",IF(AND($E97<=K$1,$B97="M"),MAX(K$2:K96)+1,"")) ->  | L97: =IF($S97<>"","",IF(AND($E97<=L$1,$B97="M"),MAX(L$2:L96)+1,"")) ->  | M97: =IF($S97<>"","",IF(AND($E97<=M$1,$B97="M"),MAX(M$2:M96)+1,"")) ->  | N97: =IF($S97<>"","",IF(AND($E97<=N$1,$B97="F"),MAX(N$2:N96)+1,"")) -> 6 | O97: =IF($S97<>"","",IF(AND($E97<=O$1,$B97="F"),MAX(O$2:O96)+1,"")) ->  | P97: =IF(AND($S97<>"",$S97<>"No pot jugar individual"),"",IF(AND($F97<=P$1,$B97="M"),MAX(P$2:P96)+1,"")) ->  | Q97: =IF(AND($S97<>"",$S97<>"No pot jugar individual"),"",IF(AND($F97<=Q$1,$B97="M"),MAX(Q$2:Q96)+1,"")) ->  | R97: =IF($S97<>"","",IF($F97<=R$1,MAX(R$2:R96)+1,"")) -> 6 | T97: 7 | U97: 1 | V97: 0 | W97: 0 | X97: B | Y97: C | Z97: D | AA97: E | AB97: E | AC97: E | AD97: E | AE97: E | AF97: BC
A98: 8373 | B98: F | C98: PINEDA Carla | D98: INF-1 | E98: 3 | F98: 0 | G98: ESPARREGU. | H98: ESPARREGU. | I98: 751.76 | J98: =IF($S98<>"","",IF(AND($E98<=J$1,$B98="M"),MAX(J$2:J97)+1,"")) ->  | K98: =IF($S98<>"","",IF(AND($E98<=K$1,$B98="M"),MAX(K$2:K97)+1,"")) ->  | L98: =IF($S98<>"","",IF(AND($E98<=L$1,$B98="M"),MAX(L$2:L97)+1,"")) ->  | M98: =IF($S98<>"","",IF(AND($E98<=M$1,$B98="M"),MAX(M$2:M97)+1,"")) ->  | N98: =IF($S98<>"","",IF(AND($E98<=N$1,$B98="F"),MAX(N$2:N97)+1,"")) -> 7 | O98: =IF($S98<>"","",IF(AND($E98<=O$1,$B98="F"),MAX(O$2:O97)+1,"")) ->  | P98: =IF(AND($S98<>"",$S98<>"No pot jugar individual"),"",IF(AND($F98<=P$1,$B98="M"),MAX(P$2:P97)+1,"")) ->  | Q98: =IF(AND($S98<>"",$S98<>"No pot jugar individual"),"",IF(AND($F98<=Q$1,$B98="M"),MAX(Q$2:Q97)+1,"")) ->  | R98: =IF($S98<>"","",IF($F98<=R$1,MAX(R$2:R97)+1,"")) -> 7 | T98: 7 | U98: 0 | V98: 0 | W98: 0 | X98: F | Y98: E | Z98: E | AA98: E | AB98: E | AC98: E | AD98: E | AE98: E
A99: 8251 | B99: M | C99: MACH Jeroni | D99: JUV-1 | E99: 4 | F99: 2 | G99: LLUÏSOS | H99: LLUÏSOS | I99: 748.75 | J99: =IF($S99<>"","",IF(AND($E99<=J$1,$B99="M"),MAX(J$2:J98)+1,"")) -> 90 | K99: =IF($S99<>"","",IF(AND($E99<=K$1,$B99="M"),MAX(K$2:K98)+1,"")) ->  | L99: =IF($S99<>"","",IF(AND($E99<=L$1,$B99="M"),MAX(L$2:L98)+1,"")) ->  | M99: =IF($S99<>"","",IF(AND($E99<=M$1,$B99="M"),MAX(M$2:M98)+1,"")) ->  | N99: =IF($S99<>"","",IF(AND($E99<=N$1,$B99="F"),MAX(N$2:N98)+1,"")) ->  | O99: =IF($S99<>"","",IF(AND($E99<=O$1,$B99="F"),MAX(O$2:O98)+1,"")) ->  | P99: =IF(AND($S99<>"",$S99<>"No pot jugar individual"),"",IF(AND($F99<=P$1,$B99="M"),MAX(P$2:P98)+1,"")) -> 90 | Q99: =IF(AND($S99<>"",$S99<>"No pot jugar individual"),"",IF(AND($F99<=Q$1,$B99="M"),MAX(Q$2:Q98)+1,"")) ->  | R99: =IF($S99<>"","",IF($F99<=R$1,MAX(R$2:R98)+1,"")) ->  | T99: 7 | U99: 1 | V99: 0 | W99: 0 | X99: D | Y99: C | Z99: C | AA99: D | AB99: E | AC99: D | AD99: E | AE99: E | AK99: BC
A100: 8640 | B100: F | C100: BUENO Marina | D100: ALE-2 | E100: 2 | F100: 0 | G100: FALCONS | H100: FALCONS | I100: 709.85 | J100: =IF($S100<>"","",IF(AND($E100<=J$1,$B100="M"),MAX(J$2:J99)+1,"")) ->  | K100: =IF($S100<>"","",IF(AND($E100<=K$1,$B100="M"),MAX(K$2:K99)+1,"")) ->  | L100: =IF($S100<>"","",IF(AND($E100<=L$1,$B100="M"),MAX(L$2:L99)+1,"")) ->  | M100: =IF($S100<>"","",IF(AND($E100<=M$1,$B100="M"),MAX(M$2:M99)+1,"")) ->  | N100: =IF($S100<>"","",IF(AND($E100<=N$1,$B100="F"),MAX(N$2:N99)+1,"")) -> 8 | O100: =IF($S100<>"","",IF(AND($E100<=O$1,$B100="F"),MAX(O$2:O99)+1,"")) -> 4 | P100: =IF(AND($S100<>"",$S100<>"No pot jugar individual"),"",IF(AND($F100<=P$1,$B100="M"),MAX(P$2:P99)+1,"")) ->  | Q100: =IF(AND($S100<>"",$S100<>"No pot jugar individual"),"",IF(AND($F100<=Q$1,$B100="M"),MAX(Q$2:Q99)+1,"")) ->  | R100: =IF($S100<>"","",IF($F100<=R$1,MAX(R$2:R99)+1,"")) -> 8 | T100: 7 | U100: 0 | V100: 0 | W100: 0 | X100: D | Y100: D | Z100: D | AA100: D | AB100: E | AC100: D | AD100: D | AE100: E | AH100: BJ | AI100: BJ | AK100: BJ | AL100: BJ
A101: 10445 | B101: M | C101: PACAREU Aleix | D101: ALE-1 | E101: 2 | F101: 1 | G101: MATARO | H101: MATARO | I101: 695.85 | J101: =IF($S101<>"","",IF(AND($E101<=J$1,$B101="M"),MAX(J$2:J100)+1,"")) -> 91 | K101: =IF($S101<>"","",IF(AND($E101<=K$1,$B101="M"),MAX(K$2:K100)+1,"")) -> 52 | L101: =IF($S101<>"","",IF(AND($E101<=L$1,$B101="M"),MAX(L$2:L100)+1,"")) -> 19 | M101: =IF($S101<>"","",IF(AND($E101<=M$1,$B101="M"),MAX(M$2:M100)+1,"")) ->  | N101: =IF($S101<>"","",IF(AND($E101<=N$1,$B101="F"),MAX(N$2:N100)+1,"")) ->  | O101: =IF($S101<>"","",IF(AND($E101<=O$1,$B101="F"),MAX(O$2:O100)+1,"")) ->  | P101: =IF(AND($S101<>"",$S101<>"No pot jugar individual"),"",IF(AND($F101<=P$1,$B101="M"),MAX(P$2:P100)+1,"")) -> 91 | Q101: =IF(AND($S101<>"",$S101<>"No pot jugar individual"),"",IF(AND($F101<=Q$1,$B101="M"),MAX(Q$2:Q100)+1,"")) -> 19 | R101: =IF($S101<>"","",IF($F101<=R$1,MAX(R$2:R100)+1,"")) ->  | T101: 7 | U101: 0 | V101: 0 | W101: 0 | X101: H | Y101: G | Z101: F | AA101: E | AB101: E | AC101: D | AD101: E | AE101: E
A102: 7943 | B102: F | C102: KREMEN Lara | D102: ALE-1 | E102: 2 | F102: 0 | G102: PREMIA | H102: PREMIA | I102: 690.04 | J102: =IF($S102<>"","",IF(AND($E102<=J$1,$B102="M"),MAX(J$2:J101)+1,"")) ->  | K102: =IF($S102<>"","",IF(AND($E102<=K$1,$B102="M"),MAX(K$2:K101)+1,"")) ->  | L102: =IF($S102<>"","",IF(AND($E102<=L$1,$B102="M"),MAX(L$2:L101)+1,"")) ->  | M102: =IF($S102<>"","",IF(AND($E102<=M$1,$B102="M"),MAX(M$2:M101)+1,"")) ->  | N102: =IF($S102<>"","",IF(AND($E102<=N$1,$B102="F"),MAX(N$2:N101)+1,"")) -> 9 | O102: =IF($S102<>"","",IF(AND($E102<=O$1,$B102="F"),MAX(O$2:O101)+1,"")) -> 5 | P102: =IF(AND($S102<>"",$S102<>"No pot jugar individual"),"",IF(AND($F102<=P$1,$B102="M"),MAX(P$2:P101)+1,"")) ->  | Q102: =IF(AND($S102<>"",$S102<>"No pot jugar individual"),"",IF(AND($F102<=Q$1,$B102="M"),MAX(Q$2:Q101)+1,"")) ->  | R102: =IF($S102<>"","",IF($F102<=R$1,MAX(R$2:R101)+1,"")) -> 9 | T102: 7 | U102: 1 | V102: 0 | W102: 0 | X102: E | Y102: F | Z102: F | AA102: F | AB102: E | AC102: E | AD102: E | AE102: E | AF102: BC
A103: 9165 | B103: M | C103: RICO Roger | D103: INF-1 | E103: 3 | F103: 2 | G103: LLUÏSOS | H103: LLUÏSOS | I103: 686.48 | J103: =IF($S103<>"","",IF(AND($E103<=J$1,$B103="M"),MAX(J$2:J102)+1,"")) -> 92 | K103: =IF($S103<>"","",IF(AND($E103<=K$1,$B103="M"),MAX(K$2:K102)+1,"")) -> 53 | L103: =IF($S103<>"","",IF(AND($E103<=L$1,$B103="M"),MAX(L$2:L102)+1,"")) ->  | M103: =IF($S103<>"","",IF(AND($E103<=M$1,$B103="M"),MAX(M$2:M102)+1,"")) ->  | N103: =IF($S103<>"","",IF(AND($E103<=N$1,$B103="F"),MAX(N$2:N102)+1,"")) ->  | O103: =IF($S103<>"","",IF(AND($E103<=O$1,$B103="F"),MAX(O$2:O102)+1,"")) ->  | P103: =IF(AND($S103<>"",$S103<>"No pot jugar individual"),"",IF(AND($F103<=P$1,$B103="M"),MAX(P$2:P102)+1,"")) -> 92 | Q103: =IF(AND($S103<>"",$S103<>"No pot jugar individual"),"",IF(AND($F103<=Q$1,$B103="M"),MAX(Q$2:Q102)+1,"")) ->  | R103: =IF($S103<>"","",IF($F103<=R$1,MAX(R$2:R102)+1,"")) ->  | T103: 7 | U103: =COUNTIF($AF103:$AL103,U$2) -> 0 | V103: 0 | W103: 0 | X103: D | Y103: E | Z103: F | AA103: F | AB103: F | AC103: E | AD103: D | AE103: C
A104: 9031 | B104: F | C104: PEÑARANDO Marta | D104: INF-2 | E104: 3 | F104: 0 | G104: RIPOLLET | H104: RIPOLLET | I104: 669.69 | J104: =IF($S104<>"","",IF(AND($E104<=J$1,$B104="M"),MAX(J$2:J103)+1,"")) ->  | K104: =IF($S104<>"","",IF(AND($E104<=K$1,$B104="M"),MAX(K$2:K103)+1,"")) ->  | L104: =IF($S104<>"","",IF(AND($E104<=L$1,$B104="M"),MAX(L$2:L103)+1,"")) ->  | M104: =IF($S104<>"","",IF(AND($E104<=M$1,$B104="M"),MAX(M$2:M103)+1,"")) ->  | N104: =IF($S104<>"","",IF(AND($E104<=N$1,$B104="F"),MAX(N$2:N103)+1,"")) -> 10 | O104: =IF($S104<>"","",IF(AND($E104<=O$1,$B104="F"),MAX(O$2:O103)+1,"")) ->  | P104: =IF(AND($S104<>"",$S104<>"No pot jugar individual"),"",IF(AND($F104<=P$1,$B104="M"),MAX(P$2:P103)+1,"")) ->  | Q104: =IF(AND($S104<>"",$S104<>"No pot jugar individual"),"",IF(AND($F104<=Q$1,$B104="M"),MAX(Q$2:Q103)+1,"")) ->  | R104: =IF($S104<>"","",IF($F104<=R$1,MAX(R$2:R103)+1,"")) -> 10 | T104: 7 | U104: 1 | V104: 0 | W104: 0 | X104: E | Y104: E | Z104: E | AA104: E | AB104: E | AC104: E | AD104: F | AE104: E | AK104: BC
A105: 10297 | B105: M | C105: MOTTAHEDEH Olinga | D105: INF-1 | E105: 3 | F105: 2 | G105: LLUÏSOS | H105: LLUÏSOS | I105: 669.54 | J105: =IF($S105<>"","",IF(AND($E105<=J$1,$B105="M"),MAX(J$2:J104)+1,"")) -> 93 | K105: =IF($S105<>"","",IF(AND($E105<=K$1,$B105="M"),MAX(K$2:K104)+1,"")) -> 54 | L105: =IF($S105<>"","",IF(AND($E105<=L$1,$B105="M"),MAX(L$2:L104)+1,"")) ->  | M105: =IF($S105<>"","",IF(AND($E105<=M$1,$B105="M"),MAX(M$2:M104)+1,"")) ->  | N105: =IF($S105<>"","",IF(AND($E105<=N$1,$B105="F"),MAX(N$2:N104)+1,"")) ->  | O105: =IF($S105<>"","",IF(AND($E105<=O$1,$B105="F"),MAX(O$2:O104)+1,"")) ->  | P105: =IF(AND($S105<>"",$S105<>"No pot jugar individual"),"",IF(AND($F105<=P$1,$B105="M"),MAX(P$2:P104)+1,"")) -> 93 | Q105: =IF(AND($S105<>"",$S105<>"No pot jugar individual"),"",IF(AND($F105<=Q$1,$B105="M"),MAX(Q$2:Q104)+1,"")) ->  | R105: =IF($S105<>"","",IF($F105<=R$1,MAX(R$2:R104)+1,"")) ->  | T105: 7 | U105: 0 | V105: 0 | W105: 0 | X105: H | Y105: G | Z105: F | AA105: E | AB105: E | AC105: F | AD105: E | AE105: D
A106: 5949 | B106: M | C106: COROMINA Hector | D106: ALE-2 | E106: 2 | F106: 1 | G106: LLUÏSOS | H106: LLUÏSOS | I106: 660.97 | J106: =IF($S106<>"","",IF(AND($E106<=J$1,$B106="M"),MAX(J$2:J105)+1,"")) -> 94 | K106: =IF($S106<>"","",IF(AND($E106<=K$1,$B106="M"),MAX(K$2:K105)+1,"")) -> 55 | L106: =IF($S106<>"","",IF(AND($E106<=L$1,$B106="M"),MAX(L$2:L105)+1,"")) -> 20 | M106: =IF($S106<>"","",IF(AND($E106<=M$1,$B106="M"),MAX(M$2:M105)+1,"")) ->  | N106: =IF($S106<>"","",IF(AND($E106<=N$1,$B106="F"),MAX(N$2:N105)+1,"")) ->  | O106: =IF($S106<>"","",IF(AND($E106<=O$1,$B106="F"),MAX(O$2:O105)+1,"")) ->  | P106: =IF(AND($S106<>"",$S106<>"No pot jugar individual"),"",IF(AND($F106<=P$1,$B106="M"),MAX(P$2:P105)+1,"")) -> 94 | Q106: =IF(AND($S106<>"",$S106<>"No pot jugar individual"),"",IF(AND($F106<=Q$1,$B106="M"),MAX(Q$2:Q105)+1,"")) -> 20 | R106: =IF($S106<>"","",IF($F106<=R$1,MAX(R$2:R105)+1,"")) ->  | T106: 7 | U106: 0 | V106: 0 | W106: 0 | X106: G | Y106: F | Z106: E | AA106: E | AB106: E | AC106: E | AD106: E | AE106: D | AH106: BJ
A107: 8399 | B107: M | C107: PINEDA Sergi | D107: JUV-1 | E107: 4 | F107: 2 | G107: ESPARREGU. | H107: ESPARREGU. | I107: 653.78 | J107: =IF($S107<>"","",IF(AND($E107<=J$1,$B107="M"),MAX(J$2:J106)+1,"")) -> 95 | K107: =IF($S107<>"","",IF(AND($E107<=K$1,$B107="M"),MAX(K$2:K106)+1,"")) ->  | L107: =IF($S107<>"","",IF(AND($E107<=L$1,$B107="M"),MAX(L$2:L106)+1,"")) ->  | M107: =IF($S107<>"","",IF(AND($E107<=M$1,$B107="M"),MAX(M$2:M106)+1,"")) ->  | N107: =IF($S107<>"","",IF(AND($E107<=N$1,$B107="F"),MAX(N$2:N106)+1,"")) ->  | O107: =IF($S107<>"","",IF(AND($E107<=O$1,$B107="F"),MAX(O$2:O106)+1,"")) ->  | P107: =IF(AND($S107<>"",$S107<>"No pot jugar individual"),"",IF(AND($F107<=P$1,$B107="M"),MAX(P$2:P106)+1,"")) -> 95 | Q107: =IF(AND($S107<>"",$S107<>"No pot jugar individual"),"",IF(AND($F107<=Q$1,$B107="M"),MAX(Q$2:Q106)+1,"")) ->  | R107: =IF($S107<>"","",IF($F107<=R$1,MAX(R$2:R106)+1,"")) ->  | T107: 7 | U107: 0 | V107: 0 | W107: 0 | X107: F | Y107: E | Z107: E | AA107: E | AB107: D | AC107: E | AD107: E | AE107: E
A108: 8644 | B108: M | C108: SANCHEZ Biel | D108: ALE-1 | E108: 2 | F108: 1 | G108: ICELAND ELS 8 | H108: ICELAND ELS 8 | I108: 646.06 | J108: =IF($S108<>"","",IF(AND($E108<=J$1,$B108="M"),MAX(J$2:J107)+1,"")) -> 96 | K108: =IF($S108<>"","",IF(AND($E108<=K$1,$B108="M"),MAX(K$2:K107)+1,"")) -> 56 | L108: =IF($S108<>"","",IF(AND($E108<=L$1,$B108="M"),MAX(L$2:L107)+1,"")) -> 21 | M108: =IF($S108<>"","",IF(AND($E108<=M$1,$B108="M"),MAX(M$2:M107)+1,"")) ->  | N108: =IF($S108<>"","",IF(AND($E108<=N$1,$B108="F"),MAX(N$2:N107)+1,"")) ->  | O108: =IF($S108<>"","",IF(AND($E108<=O$1,$B108="F"),MAX(O$2:O107)+1,"")) ->  | P108: =IF(AND($S108<>"",$S108<>"No pot jugar individual"),"",IF(AND($F108<=P$1,$B108="M"),MAX(P$2:P107)+1,"")) -> 96 | Q108: =IF(AND($S108<>"",$S108<>"No pot jugar individual"),"",IF(AND($F108<=Q$1,$B108="M"),MAX(Q$2:Q107)+1,"")) -> 21 | R108: =IF($S108<>"","",IF($F108<=R$1,MAX(R$2:R107)+1,"")) ->  | T108: 7 | U108: 0 | V108: 0 | W108: 0 | X108: E | Y108: E | Z108: E | AA108: E | AB108: F | AC108: E | AD108: E | AE108: E
A109: 6637 | B109: M | C109: JIMENEZ Francisco Manuel | D109: JUV-2 | E109: 4 | F109: 2 | G109: CASTELLDEFELS | H109: CASTELLDEFELS | I109: 620.95 | J109: =IF($S109<>"","",IF(AND($E109<=J$1,$B109="M"),MAX(J$2:J108)+1,"")) -> 97 | K109: =IF($S109<>"","",IF(AND($E109<=K$1,$B109="M"),MAX(K$2:K108)+1,"")) ->  | L109: =IF($S109<>"","",IF(AND($E109<=L$1,$B109="M"),MAX(L$2:L108)+1,"")) ->  | M109: =IF($S109<>"","",IF(AND($E109<=M$1,$B109="M"),MAX(M$2:M108)+1,"")) ->  | N109: =IF($S109<>"","",IF(AND($E109<=N$1,$B109="F"),MAX(N$2:N108)+1,"")) ->  | O109: =IF($S109<>"","",IF(AND($E109<=O$1,$B109="F"),MAX(O$2:O108)+1,"")) ->  | P109: =IF(AND($S109<>"",$S109<>"No pot jugar individual"),"",IF(AND($F109<=P$1,$B109="M"),MAX(P$2:P108)+1,"")) -> 97 | Q109: =IF(AND($S109<>"",$S109<>"No pot jugar individual"),"",IF(AND($F109<=Q$1,$B109="M"),MAX(Q$2:Q108)+1,"")) ->  | R109: =IF($S109<>"","",IF($F109<=R$1,MAX(R$2:R108)+1,"")) ->  | T109: 7 | U109: 1 | V109: 1 | W109: 0 | X109: D | Y109: D | Z109: C | AA109: D | AB109: E | AC109: E | AD109: F | AE109: E | AI109: BC | AK109: BN
A110: 10447 | B110: M | C110: RODON Arnau | D110: INF-1 | E110: 3 | F110: 2 | G110: MATARO | H110: MATARO | I110: 609.29 | J110: =IF($S110<>"","",IF(AND($E110<=J$1,$B110="M"),MAX(J$2:J109)+1,"")) -> 98 | K110: =IF($S110<>"","",IF(AND($E110<=K$1,$B110="M"),MAX(K$2:K109)+1,"")) -> 57 | L110: =IF($S110<>"","",IF(AND($E110<=L$1,$B110="M"),MAX(L$2:L109)+1,"")) ->  | M110: =IF($S110<>"","",IF(AND($E110<=M$1,$B110="M"),MAX(M$2:M109)+1,"")) ->  | N110: =IF($S110<>"","",IF(AND($E110<=N$1,$B110="F"),MAX(N$2:N109)+1,"")) ->  | O110: =IF($S110<>"","",IF(AND($E110<=O$1,$B110="F"),MAX(O$2:O109)+1,"")) ->  | P110: =IF(AND($S110<>"",$S110<>"No pot jugar individual"),"",IF(AND($F110<=P$1,$B110="M"),MAX(P$2:P109)+1,"")) -> 98 | Q110: =IF(AND($S110<>"",$S110<>"No pot jugar individual"),"",IF(AND($F110<=Q$1,$B110="M"),MAX(Q$2:Q109)+1,"")) ->  | R110: =IF($S110<>"","",IF($F110<=R$1,MAX(R$2:R109)+1,"")) ->  | T110: 7 | U110: 0 | V110: 0 | W110: 0 | X110: G | Y110: F | Z110: F | AA110: F | AB110: F | AC110: F | AD110: E | AE110: D
A111: 10393 | B111: M | C111: MILLAN Jan | D111: JUV-1 | E111: 4 | F111: 2 | G111: EUROCLIMA BDN | H111: EUROCLIMA BDN | I111: 599.38 | J111: =IF($S111<>"","",IF(AND($E111<=J$1,$B111="M"),MAX(J$2:J110)+1,"")) -> 99 | K111: =IF($S111<>"","",IF(AND($E111<=K$1,$B111="M"),MAX(K$2:K110)+1,"")) ->  | L111: =IF($S111<>"","",IF(AND($E111<=L$1,$B111="M"),MAX(L$2:L110)+1,"")) ->  | M111: =IF($S111<>"","",IF(AND($E111<=M$1,$B111="M"),MAX(M$2:M110)+1,"")) ->  | N111: =IF($S111<>"","",IF(AND($E111<=N$1,$B111="F"),MAX(N$2:N110)+1,"")) ->  | O111: =IF($S111<>"","",IF(AND($E111<=O$1,$B111="F"),MAX(O$2:O110)+1,"")) ->  | P111: =IF(AND($S111<>"",$S111<>"No pot jugar individual"),"",IF(AND($F111<=P$1,$B111="M"),MAX(P$2:P110)+1,"")) -> 99 | Q111: =IF(AND($S111<>"",$S111<>"No pot jugar individual"),"",IF(AND($F111<=Q$1,$B111="M"),MAX(Q$2:Q110)+1,"")) ->  | R111: =IF($S111<>"","",IF($F111<=R$1,MAX(R$2:R110)+1,"")) ->  | T111: 7 | U111: 1 | V111: 0 | W111: 0 | X111: H | Y111: G | Z111: F | AA111: G | AB111: F | AC111: E | AD111: D | AE111: E | AH111: BC
A112: 8816 | B112: M | C112: ROCA Biel | D112: INF-2 | E112: 3 | F112: 2 | G112: ICELAND ELS 8 | H112: ICELAND ELS 8 | I112: 566.9 | J112: =IF($S112<>"","",IF(AND($E112<=J$1,$B112="M"),MAX(J$2:J111)+1,"")) -> 100 | K112: =IF($S112<>"","",IF(AND($E112<=K$1,$B112="M"),MAX(K$2:K111)+1,"")) -> 58 | L112: =IF($S112<>"","",IF(AND($E112<=L$1,$B112="M"),MAX(L$2:L111)+1,"")) ->  | M112: =IF($S112<>"","",IF(AND($E112<=M$1,$B112="M"),MAX(M$2:M111)+1,"")) ->  | N112: =IF($S112<>"","",IF(AND($E112<=N$1,$B112="F"),MAX(N$2:N111)+1,"")) ->  | O112: =IF($S112<>"","",IF(AND($E112<=O$1,$B112="F"),MAX(O$2:O111)+1,"")) ->  | P112: =IF(AND($S112<>"",$S112<>"No pot jugar individual"),"",IF(AND($F112<=P$1,$B112="M"),MAX(P$2:P111)+1,"")) -> 100 | Q112: =IF(AND($S112<>"",$S112<>"No pot jugar individual"),"",IF(AND($F112<=Q$1,$B112="M"),MAX(Q$2:Q111)+1,"")) ->  | R112: =IF($S112<>"","",IF($F112<=R$1,MAX(R$2:R111)+1,"")) ->  | T112: 7 | U112: 0 | V112: 0 | W112: 0 | X112: D | Y112: E | Z112: E | AA112: E | AB112: E | AC112: E | AD112: E | AE112: F
A113: 7032 | B113: M | C113: PIERA Pol | D113: ALE-2 | E113: 2 | F113: 1 | G113: R.ELISENDA | H113: R.ELISENDA | I113: 563.1 | J113: =IF($S113<>"","",IF(AND($E113<=J$1,$B113="M"),MAX(J$2:J112)+1,"")) -> 101 | K113: =IF($S113<>"","",IF(AND($E113<=K$1,$B113="M"),MAX(K$2:K112)+1,"")) -> 59 | L113: =IF($S113<>"","",IF(AND($E113<=L$1,$B113="M"),MAX(L$2:L112)+1,"")) -> 22 | M113: =IF($S113<>"","",IF(AND($E113<=M$1,$B113="M"),MAX(M$2:M112)+1,"")) ->  | N113: =IF($S113<>"","",IF(AND($E113<=N$1,$B113="F"),MAX(N$2:N112)+1,"")) ->  | O113: =IF($S113<>"","",IF(AND($E113<=O$1,$B113="F"),MAX(O$2:O112)+1,"")) ->  | P113: =IF(AND($S113<>"",$S113<>"No pot jugar individual"),"",IF(AND($F113<=P$1,$B113="M"),MAX(P$2:P112)+1,"")) -> 101 | Q113: =IF(AND($S113<>"",$S113<>"No pot jugar individual"),"",IF(AND($F113<=Q$1,$B113="M"),MAX(Q$2:Q112)+1,"")) -> 22 | R113: =IF($S113<>"","",IF($F113<=R$1,MAX(R$2:R112)+1,"")) ->  | T113: 7 | U113: 0 | V113: 0 | W113: 0 | X113: E | Y113: E | Z113: E | AA113: E | AB113: E | AC113: F | AD113: E | AE113: E
A114: 9170 | B114: M | C114: MONZONIS Jofre | D114: JUV-1 | E114: 4 | F114: 2 | G114: R.ELISENDA | H114: R.ELISENDA | I114: 559.96 | J114: =IF($S114<>"","",IF(AND($E114<=J$1,$B114="M"),MAX(J$2:J113)+1,"")) -> 102 | K114: =IF($S114<>"","",IF(AND($E114<=K$1,$B114="M"),MAX(K$2:K113)+1,"")) ->  | L114: =IF($S114<>"","",IF(AND($E114<=L$1,$B114="M"),MAX(L$2:L113)+1,"")) ->  | M114: =IF($S114<>"","",IF(AND($E114<=M$1,$B114="M"),MAX(M$2:M113)+1,"")) ->  | N114: =IF($S114<>"","",IF(AND($E114<=N$1,$B114="F"),MAX(N$2:N113)+1,"")) ->  | O114: =IF($S114<>"","",IF(AND($E114<=O$1,$B114="F"),MAX(O$2:O113)+1,"")) ->  | P114: =IF(AND($S114<>"",$S114<>"No pot jugar individual"),"",IF(AND($F114<=P$1,$B114="M"),MAX(P$2:P113)+1,"")) -> 102 | Q114: =IF(AND($S114<>"",$S114<>"No pot jugar individual"),"",IF(AND($F114<=Q$1,$B114="M"),MAX(Q$2:Q113)+1,"")) ->  | R114: =IF($S114<>"","",IF($F114<=R$1,MAX(R$2:R113)+1,"")) ->  | T114: 7 | U114: 0 | V114: 0 | W114: 0 | X114: F | Y114: F | Z114: E | AA114: E | AB114: E | AC114: E | AD114: E | AE114: E
A115: 8113 | B115: F | C115: GUARCH Alexia | D115: INF-1 | E115: 3 | F115: 0 | G115: ESPARREGU. | H115: ESPARREGU. | I115: 552.16 | J115: =IF($S115<>"","",IF(AND($E115<=J$1,$B115="M"),MAX(J$2:J114)+1,"")) ->  | K115: =IF($S115<>"","",IF(AND($E115<=K$1,$B115="M"),MAX(K$2:K114)+1,"")) ->  | L115: =IF($S115<>"","",IF(AND($E115<=L$1,$B115="M"),MAX(L$2:L114)+1,"")) ->  | M115: =IF($S115<>"","",IF(AND($E115<=M$1,$B115="M"),MAX(M$2:M114)+1,"")) ->  | N115: =IF($S115<>"","",IF(AND($E115<=N$1,$B115="F"),MAX(N$2:N114)+1,"")) -> 11 | O115: =IF($S115<>"","",IF(AND($E115<=O$1,$B115="F"),MAX(O$2:O114)+1,"")) ->  | P115: =IF(AND($S115<>"",$S115<>"No pot jugar individual"),"",IF(AND($F115<=P$1,$B115="M"),MAX(P$2:P114)+1,"")) ->  | Q115: =IF(AND($S115<>"",$S115<>"No pot jugar individual"),"",IF(AND($F115<=Q$1,$B115="M"),MAX(Q$2:Q114)+1,"")) ->  | R115: =IF($S115<>"","",IF($F115<=R$1,MAX(R$2:R114)+1,"")) -> 11 | T115: 7 | U115: 0 | V115: 0 | W115: 0 | X115: F | Y115: F | Z115: E | AA115: E | AB115: E | AC115: E | AD115: E | AE115: F
A116: 5954 | B116: F | C116: MUNNE Laia | D116: ALE-1 | E116: 2 | F116: 0 | G116: STCUGAT | H116: STCUGAT | I116: 499.98 | J116: =IF($S116<>"","",IF(AND($E116<=J$1,$B116="M"),MAX(J$2:J115)+1,"")) ->  | K116: =IF($S116<>"","",IF(AND($E116<=K$1,$B116="M"),MAX(K$2:K115)+1,"")) ->  | L116: =IF($S116<>"","",IF(AND($E116<=L$1,$B116="M"),MAX(L$2:L115)+1,"")) ->  | M116: =IF($S116<>"","",IF(AND($E116<=M$1,$B116="M"),MAX(M$2:M115)+1,"")) ->  | N116: =IF($S116<>"","",IF(AND($E116<=N$1,$B116="F"),MAX(N$2:N115)+1,"")) -> 12 | O116: =IF($S116<>"","",IF(AND($E116<=O$1,$B116="F"),MAX(O$2:O115)+1,"")) -> 6 | P116: =IF(AND($S116<>"",$S116<>"No pot jugar individual"),"",IF(AND($F116<=P$1,$B116="M"),MAX(P$2:P115)+1,"")) ->  | Q116: =IF(AND($S116<>"",$S116<>"No pot jugar individual"),"",IF(AND($F116<=Q$1,$B116="M"),MAX(Q$2:Q115)+1,"")) ->  | R116: =IF($S116<>"","",IF($F116<=R$1,MAX(R$2:R115)+1,"")) -> 12 | T116: 7 | U116: 0 | V116: 0 | W116: 0 | X116: G | Y116: H | Z116: G | AA116: F | AB116: E | AC116: F | AD116: E | AE116: E | AF116: BJ
A117: 7731 | B117: F | C117: MOSCOSO Camila Renata | D117: BEN-2 | E117: 1 | F117: 0 | G117: OLESA | H117: OLESA | I117: 486.33 | J117: =IF($S117<>"","",IF(AND($E117<=J$1,$B117="M"),MAX(J$2:J116)+1,"")) ->  | K117: =IF($S117<>"","",IF(AND($E117<=K$1,$B117="M"),MAX(K$2:K116)+1,"")) ->  | L117: =IF($S117<>"","",IF(AND($E117<=L$1,$B117="M"),MAX(L$2:L116)+1,"")) ->  | M117: =IF($S117<>"","",IF(AND($E117<=M$1,$B117="M"),MAX(M$2:M116)+1,"")) ->  | N117: =IF($S117<>"","",IF(AND($E117<=N$1,$B117="F"),MAX(N$2:N116)+1,"")) -> 13 | O117: =IF($S117<>"","",IF(AND($E117<=O$1,$B117="F"),MAX(O$2:O116)+1,"")) -> 7 | P117: =IF(AND($S117<>"",$S117<>"No pot jugar individual"),"",IF(AND($F117<=P$1,$B117="M"),MAX(P$2:P116)+1,"")) ->  | Q117: =IF(AND($S117<>"",$S117<>"No pot jugar individual"),"",IF(AND($F117<=Q$1,$B117="M"),MAX(Q$2:Q116)+1,"")) ->  | R117: =IF($S117<>"","",IF($F117<=R$1,MAX(R$2:R116)+1,"")) -> 13 | T117: 7 | U117: 1 | V117: 0 | W117: 0 | X117: J | Y117: I | Z117: H | AA117: G | AB117: G | AC117: F | AD117: E | AE117: E | AI117: BC
A118: 8620 | B118: M | C118: TORRES Noel | D118: JUV-1 | E118: 4 | F118: 2 | G118: VILANOVA | H118: VILANOVA | I118: 478.03 | J118: =IF($S118<>"","",IF(AND($E118<=J$1,$B118="M"),MAX(J$2:J117)+1,"")) -> 103 | K118: =IF($S118<>"","",IF(AND($E118<=K$1,$B118="M"),MAX(K$2:K117)+1,"")) ->  | L118: =IF($S118<>"","",IF(AND($E118<=L$1,$B118="M"),MAX(L$2:L117)+1,"")) ->  | M118: =IF($S118<>"","",IF(AND($E118<=M$1,$B118="M"),MAX(M$2:M117)+1,"")) ->  | N118: =IF($S118<>"","",IF(AND($E118<=N$1,$B118="F"),MAX(N$2:N117)+1,"")) ->  | O118: =IF($S118<>"","",IF(AND($E118<=O$1,$B118="F"),MAX(O$2:O117)+1,"")) ->  | P118: =IF(AND($S118<>"",$S118<>"No pot jugar individual"),"",IF(AND($F118<=P$1,$B118="M"),MAX(P$2:P117)+1,"")) -> 103 | Q118: =IF(AND($S118<>"",$S118<>"No pot jugar individual"),"",IF(AND($F118<=Q$1,$B118="M"),MAX(Q$2:Q117)+1,"")) ->  | R118: =IF($S118<>"","",IF($F118<=R$1,MAX(R$2:R117)+1,"")) ->  | T118: 7 | U118: 0 | V118: 0 | W118: 0 | X118: D | Y118: D | Z118: D | AA118: E | AB118: E | AC118: F | AD118: E | AE118: E
A119: 7608 | B119: M | C119: MANZANEQUE Ruben | D119: JUV-1 | E119: 4 | F119: 2 | G119: ESPARREGU. | H119: ESPARREGU. | I119: 453.09 | J119: =IF($S119<>"","",IF(AND($E119<=J$1,$B119="M"),MAX(J$2:J118)+1,"")) -> 104 | K119: =IF($S119<>"","",IF(AND($E119<=K$1,$B119="M"),MAX(K$2:K118)+1,"")) ->  | L119: =IF($S119<>"","",IF(AND($E119<=L$1,$B119="M"),MAX(L$2:L118)+1,"")) ->  | M119: =IF($S119<>"","",IF(AND($E119<=M$1,$B119="M"),MAX(M$2:M118)+1,"")) ->  | N119: =IF($S119<>"","",IF(AND($E119<=N$1,$B119="F"),MAX(N$2:N118)+1,"")) ->  | O119: =IF($S119<>"","",IF(AND($E119<=O$1,$B119="F"),MAX(O$2:O118)+1,"")) ->  | P119: =IF(AND($S119<>"",$S119<>"No pot jugar individual"),"",IF(AND($F119<=P$1,$B119="M"),MAX(P$2:P118)+1,"")) -> 104 | Q119: =IF(AND($S119<>"",$S119<>"No pot jugar individual"),"",IF(AND($F119<=Q$1,$B119="M"),MAX(Q$2:Q118)+1,"")) ->  | R119: =IF($S119<>"","",IF($F119<=R$1,MAX(R$2:R118)+1,"")) ->  | T119: 7 | U119: 0 | V119: 0 | W119: 0 | X119: F | Y119: F | Z119: E | AA119: F | AB119: F | AC119: F | AD119: F | AE119: E
A120: 8178 | B120: M | C120: MARTÍNEZ Alex | D120: INF-1 | E120: 3 | F120: 2 | G120: CALELLA | H120: CALELLA | I120: 434.93 | J120: =IF($S120<>"","",IF(AND($E120<=J$1,$B120="M"),MAX(J$2:J119)+1,"")) -> 105 | K120: =IF($S120<>"","",IF(AND($E120<=K$1,$B120="M"),MAX(K$2:K119)+1,"")) -> 60 | L120: =IF($S120<>"","",IF(AND($E120<=L$1,$B120="M"),MAX(L$2:L119)+1,"")) ->  | M120: =IF($S120<>"","",IF(AND($E120<=M$1,$B120="M"),MAX(M$2:M119)+1,"")) ->  | N120: =IF($S120<>"","",IF(AND($E120<=N$1,$B120="F"),MAX(N$2:N119)+1,"")) ->  | O120: =IF($S120<>"","",IF(AND($E120<=O$1,$B120="F"),MAX(O$2:O119)+1,"")) ->  | P120: =IF(AND($S120<>"",$S120<>"No pot jugar individual"),"",IF(AND($F120<=P$1,$B120="M"),MAX(P$2:P119)+1,"")) -> 105 | Q120: =IF(AND($S120<>"",$S120<>"No pot jugar individual"),"",IF(AND($F120<=Q$1,$B120="M"),MAX(Q$2:Q119)+1,"")) ->  | R120: =IF($S120<>"","",IF($F120<=R$1,MAX(R$2:R119)+1,"")) ->  | T120: 7 | U120: 0 | V120: 0 | W120: 0 | X120: F | Y120: F | Z120: F | AA120: F | AB120: F | AC120: F | AD120: F | AE120: E
A121: 7616 | B121: F | C121: CASANOVA Claudia | D121: INF-2 | E121: 3 | F121: 0 | G121: CARDEDEU | H121: CARDEDEU | I121: 421.82 | J121: =IF($S121<>"","",IF(AND($E121<=J$1,$B121="M"),MAX(J$2:J120)+1,"")) ->  | K121: =IF($S121<>"","",IF(AND($E121<=K$1,$B121="M"),MAX(K$2:K120)+1,"")) ->  | L121: =IF($S121<>"","",IF(AND($E121<=L$1,$B121="M"),MAX(L$2:L120)+1,"")) ->  | M121: =IF($S121<>"","",IF(AND($E121<=M$1,$B121="M"),MAX(M$2:M120)+1,"")) ->  | N121: =IF($S121<>"","",IF(AND($E121<=N$1,$B121="F"),MAX(N$2:N120)+1,"")) -> 14 | O121: =IF($S121<>"","",IF(AND($E121<=O$1,$B121="F"),MAX(O$2:O120)+1,"")) ->  | P121: =IF(AND($S121<>"",$S121<>"No pot jugar individual"),"",IF(AND($F121<=P$1,$B121="M"),MAX(P$2:P120)+1,"")) ->  | Q121: =IF(AND($S121<>"",$S121<>"No pot jugar individual"),"",IF(AND($F121<=Q$1,$B121="M"),MAX(Q$2:Q120)+1,"")) ->  | R121: =IF($S121<>"","",IF($F121<=R$1,MAX(R$2:R120)+1,"")) -> 14 | T121: 7 | U121: 0 | V121: 0 | W121: 0 | X121: E | Y121: E | Z121: F | AA121: E | AB121: F | AC121: E | AD121: E | AE121: F
A122: 10195 | B122: M | C122: NAVARRO Marc | D122: JUV-1 | E122: 4 | F122: 2 | G122: CASTELLDEFELS | H122: CASTELLDEFELS | I122: 416.98 | J122: =IF($S122<>"","",IF(AND($E122<=J$1,$B122="M"),MAX(J$2:J121)+1,"")) -> 106 | K122: =IF($S122<>"","",IF(AND($E122<=K$1,$B122="M"),MAX(K$2:K121)+1,"")) ->  | L122: =IF($S122<>"","",IF(AND($E122<=L$1,$B122="M"),MAX(L$2:L121)+1,"")) ->  | M122: =IF($S122<>"","",IF(AND($E122<=M$1,$B122="M"),MAX(M$2:M121)+1,"")) ->  | N122: =IF($S122<>"","",IF(AND($E122<=N$1,$B122="F"),MAX(N$2:N121)+1,"")) ->  | O122: =IF($S122<>"","",IF(AND($E122<=O$1,$B122="F"),MAX(O$2:O121)+1,"")) ->  | P122: =IF(AND($S122<>"",$S122<>"No pot jugar individual"),"",IF(AND($F122<=P$1,$B122="M"),MAX(P$2:P121)+1,"")) -> 106 | Q122: =IF(AND($S122<>"",$S122<>"No pot jugar individual"),"",IF(AND($F122<=Q$1,$B122="M"),MAX(Q$2:Q121)+1,"")) ->  | R122: =IF($S122<>"","",IF($F122<=R$1,MAX(R$2:R121)+1,"")) ->  | T122: 7 | U122: 0 | V122: 0 | W122: 0 | X122: G | Y122: G | Z122: F | AA122: F | AB122: E | AC122: E | AD122: E | AE122: F
A123: 10122 | B123: F | C123: PEREZ Andrea | D123: JUV-1 | E123: 4 | F123: 0 | G123: ESPARREGU. | H123: ESPARREGU. | I123: 399.99 | J123: =IF($S123<>"","",IF(AND($E123<=J$1,$B123="M"),MAX(J$2:J122)+1,"")) ->  | K123: =IF($S123<>"","",IF(AND($E123<=K$1,$B123="M"),MAX(K$2:K122)+1,"")) ->  | L123: =IF($S123<>"","",IF(AND($E123<=L$1,$B123="M"),MAX(L$2:L122)+1,"")) ->  | M123: =IF($S123<>"","",IF(AND($E123<=M$1,$B123="M"),MAX(M$2:M122)+1,"")) ->  | N123: =IF($S123<>"","",IF(AND($E123<=N$1,$B123="F"),MAX(N$2:N122)+1,"")) -> 15 | O123: =IF($S123<>"","",IF(AND($E123<=O$1,$B123="F"),MAX(O$2:O122)+1,"")) ->  | P123: =IF(AND($S123<>"",$S123<>"No pot jugar individual"),"",IF(AND($F123<=P$1,$B123="M"),MAX(P$2:P122)+1,"")) ->  | Q123: =IF(AND($S123<>"",$S123<>"No pot jugar individual"),"",IF(AND($F123<=Q$1,$B123="M"),MAX(Q$2:Q122)+1,"")) ->  | R123: =IF($S123<>"","",IF($F123<=R$1,MAX(R$2:R122)+1,"")) -> 15 | T123: 7 | U123: =COUNTIF($AF123:$AL123,U$2) -> 0 | V123: 1 | W123: 0 | X123: E | Y123: E | Z123: E | AA123: F | AB123: E | AC123: F | AD123: F | AE123: E | AH123: BN
A124: 10533 | B124: M | C124: MARTOS Adrián | D124: JUV-2 | E124: 4 | F124: 2 | G124: EUROCLIMA BDN | H124: EUROCLIMA BDN | I124: 378.7 | J124: =IF($S124<>"","",IF(AND($E124<=J$1,$B124="M"),MAX(J$2:J123)+1,"")) -> 107 | K124: =IF($S124<>"","",IF(AND($E124<=K$1,$B124="M"),MAX(K$2:K123)+1,"")) ->  | L124: =IF($S124<>"","",IF(AND($E124<=L$1,$B124="M"),MAX(L$2:L123)+1,"")) ->  | M124: =IF($S124<>"","",IF(AND($E124<=M$1,$B124="M"),MAX(M$2:M123)+1,"")) ->  | N124: =IF($S124<>"","",IF(AND($E124<=N$1,$B124="F"),MAX(N$2:N123)+1,"")) ->  | O124: =IF($S124<>"","",IF(AND($E124<=O$1,$B124="F"),MAX(O$2:O123)+1,"")) ->  | P124: =IF(AND($S124<>"",$S124<>"No pot jugar individual"),"",IF(AND($F124<=P$1,$B124="M"),MAX(P$2:P123)+1,"")) -> 107 | Q124: =IF(AND($S124<>"",$S124<>"No pot jugar individual"),"",IF(AND($F124<=Q$1,$B124="M"),MAX(Q$2:Q123)+1,"")) ->  | R124: =IF($S124<>"","",IF($F124<=R$1,MAX(R$2:R123)+1,"")) ->  | T124: 7 | U124: 0 | V124: 0 | W124: 0 | X124: H | Y124: H | Z124: G | AA124: H | AB124: G | AC124: F | AD124: E | AE124: E
A125: 8619 | B125: M | C125: SANZ Aitor | D125: INF-2 | E125: 3 | F125: 2 | G125: ESPARREGU. | H125: ESPARREGU. | I125: 374.96 | J125: =IF($S125<>"","",IF(AND($E125<=J$1,$B125="M"),MAX(J$2:J124)+1,"")) -> 108 | K125: =IF($S125<>"","",IF(AND($E125<=K$1,$B125="M"),MAX(K$2:K124)+1,"")) -> 61 | L125: =IF($S125<>"","",IF(AND($E125<=L$1,$B125="M"),MAX(L$2:L124)+1,"")) ->  | M125: =IF($S125<>"","",IF(AND($E125<=M$1,$B125="M"),MAX(M$2:M124)+1,"")) ->  | N125: =IF($S125<>"","",IF(AND($E125<=N$1,$B125="F"),MAX(N$2:N124)+1,"")) ->  | O125: =IF($S125<>"","",IF(AND($E125<=O$1,$B125="F"),MAX(O$2:O124)+1,"")) ->  | P125: =IF(AND($S125<>"",$S125<>"No pot jugar individual"),"",IF(AND($F125<=P$1,$B125="M"),MAX(P$2:P124)+1,"")) -> 108 | Q125: =IF(AND($S125<>"",$S125<>"No pot jugar individual"),"",IF(AND($F125<=Q$1,$B125="M"),MAX(Q$2:Q124)+1,"")) ->  | R125: =IF($S125<>"","",IF($F125<=R$1,MAX(R$2:R124)+1,"")) ->  | T125: 7 | U125: 0 | V125: 0 | W125: 0 | X125: E | Y125: E | Z125: F | AA125: F | AB125: F | AC125: F | AD125: F | AE125: F
A126: 6383 | B126: F | C126: GIMENO Irina | D126: PRE-0 | E126: 1 | F126: 0 | G126: VIC | H126: VIC | I126: 374.61 | J126: =IF($S126<>"","",IF(AND($E126<=J$1,$B126="M"),MAX(J$2:J125)+1,"")) ->  | K126: =IF($S126<>"","",IF(AND($E126<=K$1,$B126="M"),MAX(K$2:K125)+1,"")) ->  | L126: =IF($S126<>"","",IF(AND($E126<=L$1,$B126="M"),MAX(L$2:L125)+1,"")) ->  | M126: =IF($S126<>"","",IF(AND($E126<=M$1,$B126="M"),MAX(M$2:M125)+1,"")) ->  | N126: =IF($S126<>"","",IF(AND($E126<=N$1,$B126="F"),MAX(N$2:N125)+1,"")) -> 16 | O126: =IF($S126<>"","",IF(AND($E126<=O$1,$B126="F"),MAX(O$2:O125)+1,"")) -> 8 | P126: =IF(AND($S126<>"",$S126<>"No pot jugar individual"),"",IF(AND($F126<=P$1,$B126="M"),MAX(P$2:P125)+1,"")) ->  | Q126: =IF(AND($S126<>"",$S126<>"No pot jugar individual"),"",IF(AND($F126<=Q$1,$B126="M"),MAX(Q$2:Q125)+1,"")) ->  | R126: =IF($S126<>"","",IF($F126<=R$1,MAX(R$2:R125)+1,"")) -> 16 | T126: 7 | U126: 0 | V126: 0 | W126: 0 | X126: H | Y126: H | Z126: G | AA126: F | AB126: F | AC126: E | AD126: E | AE126: F | AL126: BJ
A127: 10139 | B127: M | C127: HUERTAS Bruno | D127: BEN-2 | E127: 1 | F127: 1 | G127: STCUGAT | H127: STCUGAT | I127: 373.75 | J127: =IF($S127<>"","",IF(AND($E127<=J$1,$B127="M"),MAX(J$2:J126)+1,"")) -> 109 | K127: =IF($S127<>"","",IF(AND($E127<=K$1,$B127="M"),MAX(K$2:K126)+1,"")) -> 62 | L127: =IF($S127<>"","",IF(AND($E127<=L$1,$B127="M"),MAX(L$2:L126)+1,"")) -> 23 | M127: =IF($S127<>"","",IF(AND($E127<=M$1,$B127="M"),MAX(M$2:M126)+1,"")) -> 2 | N127: =IF($S127<>"","",IF(AND($E127<=N$1,$B127="F"),MAX(N$2:N126)+1,"")) ->  | O127: =IF($S127<>"","",IF(AND($E127<=O$1,$B127="F"),MAX(O$2:O126)+1,"")) ->  | P127: =IF(AND($S127<>"",$S127<>"No pot jugar individual"),"",IF(AND($F127<=P$1,$B127="M"),MAX(P$2:P126)+1,"")) -> 109 | Q127: =IF(AND($S127<>"",$S127<>"No pot jugar individual"),"",IF(AND($F127<=Q$1,$B127="M"),MAX(Q$2:Q126)+1,"")) -> 23 | R127: =IF($S127<>"","",IF($F127<=R$1,MAX(R$2:R126)+1,"")) ->  | T127: 7 | U127: 0 | V127: 0 | W127: 0 | X127: F | Y127: F | Z127: G | AA127: F | AB127: G | AC127: F | AD127: F | AE127: F | AG127: BJ | AI127: BJ | AL127: BJ
A128: 7919 | B128: M | C128: GARCIA Enrique | D128: JUV-2 | E128: 4 | F128: 2 | G128: R.ELISENDA | H128: R.ELISENDA | I128: 357.17 | J128: =IF($S128<>"","",IF(AND($E128<=J$1,$B128="M"),MAX(J$2:J127)+1,"")) -> 110 | K128: =IF($S128<>"","",IF(AND($E128<=K$1,$B128="M"),MAX(K$2:K127)+1,"")) ->  | L128: =IF($S128<>"","",IF(AND($E128<=L$1,$B128="M"),MAX(L$2:L127)+1,"")) ->  | M128: =IF($S128<>"","",IF(AND($E128<=M$1,$B128="M"),MAX(M$2:M127)+1,"")) ->  | N128: =IF($S128<>"","",IF(AND($E128<=N$1,$B128="F"),MAX(N$2:N127)+1,"")) ->  | O128: =IF($S128<>"","",IF(AND($E128<=O$1,$B128="F"),MAX(O$2:O127)+1,"")) ->  | P128: =IF(AND($S128<>"",$S128<>"No pot jugar individual"),"",IF(AND($F128<=P$1,$B128="M"),MAX(P$2:P127)+1,"")) -> 110 | Q128: =IF(AND($S128<>"",$S128<>"No pot jugar individual"),"",IF(AND($F128<=Q$1,$B128="M"),MAX(Q$2:Q127)+1,"")) ->  | R128: =IF($S128<>"","",IF($F128<=R$1,MAX(R$2:R127)+1,"")) ->  | T128: 7 | U128: 0 | V128: 0 | W128: 0 | X128: G | Y128: G | Z128: F | AA128: F | AB128: F | AC128: F | AD128: F | AE128: F
A129: 8520 | B129: M | C129: GUZMÁN Arnau | D129: ALE-2 | E129: 2 | F129: 1 | G129: CASTELLDEFELS | H129: CASTELLDEFELS | I129: 352.27 | J129: =IF($S129<>"","",IF(AND($E129<=J$1,$B129="M"),MAX(J$2:J128)+1,"")) -> 111 | K129: =IF($S129<>"","",IF(AND($E129<=K$1,$B129="M"),MAX(K$2:K128)+1,"")) -> 63 | L129: =IF($S129<>"","",IF(AND($E129<=L$1,$B129="M"),MAX(L$2:L128)+1,"")) -> 24 | M129: =IF($S129<>"","",IF(AND($E129<=M$1,$B129="M"),MAX(M$2:M128)+1,"")) ->  | N129: =IF($S129<>"","",IF(AND($E129<=N$1,$B129="F"),MAX(N$2:N128)+1,"")) ->  | O129: =IF($S129<>"","",IF(AND($E129<=O$1,$B129="F"),MAX(O$2:O128)+1,"")) ->  | P129: =IF(AND($S129<>"",$S129<>"No pot jugar individual"),"",IF(AND($F129<=P$1,$B129="M"),MAX(P$2:P128)+1,"")) -> 111 | Q129: =IF(AND($S129<>"",$S129<>"No pot jugar individual"),"",IF(AND($F129<=Q$1,$B129="M"),MAX(Q$2:Q128)+1,"")) -> 24 | R129: =IF($S129<>"","",IF($F129<=R$1,MAX(R$2:R128)+1,"")) ->  | T129: 7 | U129: 0 | V129: 0 | W129: 0 | X129: F | Y129: G | Z129: G | AA129: F | AB129: F | AC129: F | AD129: F | AE129: F | AK129: BJ
A130: 8067 | B130: M | C130: HIDALGO Hernan | D130: JUV-1 | E130: 4 | F130: 2 | G130: ATEN82 | H130: ATEN82 | I130: 348.4 | J130: =IF($S130<>"","",IF(AND($E130<=J$1,$B130="M"),MAX(J$2:J129)+1,"")) -> 112 | K130: =IF($S130<>"","",IF(AND($E130<=K$1,$B130="M"),MAX(K$2:K129)+1,"")) ->  | L130: =IF($S130<>"","",IF(AND($E130<=L$1,$B130="M"),MAX(L$2:L129)+1,"")) ->  | M130: =IF($S130<>"","",IF(AND($E130<=M$1,$B130="M"),MAX(M$2:M129)+1,"")) ->  | N130: =IF($S130<>"","",IF(AND($E130<=N$1,$B130="F"),MAX(N$2:N129)+1,"")) ->  | O130: =IF($S130<>"","",IF(AND($E130<=O$1,$B130="F"),MAX(O$2:O129)+1,"")) ->  | P130: =IF(AND($S130<>"",$S130<>"No pot jugar individual"),"",IF(AND($F130<=P$1,$B130="M"),MAX(P$2:P129)+1,"")) -> 112 | Q130: =IF(AND($S130<>"",$S130<>"No pot jugar individual"),"",IF(AND($F130<=Q$1,$B130="M"),MAX(Q$2:Q129)+1,"")) ->  | R130: =IF($S130<>"","",IF($F130<=R$1,MAX(R$2:R129)+1,"")) ->  | T130: 7 | U130: 0 | V130: 0 | W130: 0 | X130: F | Y130: F | Z130: F | AA130: F | AB130: F | AC130: F | AD130: F | AE130: F
A131: 8690 | B131: M | C131: HARO Gerard | D131: JUV-1 | E131: =IF(LEFT(D131,1)="P",1,IF(LEFT(D131,1)="B",1,IF(LEFT(D131,1)="A",2,IF(LEFT(D131,1)="I",3,4)))) -> 4 | F131: =IF(B131="F",0,IF(LEFT(D131,1)="P",1,IF(LEFT(D131,1)="B",1,IF(LEFT(D131,1)="A",1,IF(LEFT(D131,1)="I",2,2))))) -> 2 | G131: OLESA | H131: OLESA | I131: 327.24 | J131: =IF($S131<>"","",IF(AND($E131<=J$1,$B131="M"),MAX(J$2:J130)+1,"")) -> 113 | K131: =IF($S131<>"","",IF(AND($E131<=K$1,$B131="M"),MAX(K$2:K130)+1,"")) ->  | L131: =IF($S131<>"","",IF(AND($E131<=L$1,$B131="M"),MAX(L$2:L130)+1,"")) ->  | M131: =IF($S131<>"","",IF(AND($E131<=M$1,$B131="M"),MAX(M$2:M130)+1,"")) ->  | N131: =IF($S131<>"","",IF(AND($E131<=N$1,$B131="F"),MAX(N$2:N130)+1,"")) ->  | O131: =IF($S131<>"","",IF(AND($E131<=O$1,$B131="F"),MAX(O$2:O130)+1,"")) ->  | P131: =IF(AND($S131<>"",$S131<>"No pot jugar individual"),"",IF(AND($F131<=P$1,$B131="M"),MAX(P$2:P130)+1,"")) -> 113 | Q131: =IF(AND($S131<>"",$S131<>"No pot jugar individual"),"",IF(AND($F131<=Q$1,$B131="M"),MAX(Q$2:Q130)+1,"")) ->  | R131: =IF($S131<>"","",IF($F131<=R$1,MAX(R$2:R130)+1,"")) ->  | S131: =IF(1=1,"",IF(W131<>0,"No pot jugar",IF(OR(AE131="Y",AE131="Z",G131="INDEPEN",G131="R.ELISENDA"),"No pot jugar",IF(T131-U131-V131-W131=0,IF(V131<>0,"No pot jugar",IF(AND(B131="M",OR(G131="INDEPEN",G131="R.ELISENDA")),"No pot jugar individual","")),IF(AND(B131="M",OR(G131="INDEPEN",G131="R.ELISENDA")),"No pot jugar individual",""))))) ->  | T131: =7-COUNTBLANK(X131:AD131) -> 7 | U131: 2 | V131: 0 | W131: 0 | X131: F | Y131: F | Z131: G | AA131: F | AB131: F | AC131: E | AD131: F | AE131: G | AK131: BC | AL131: BC
A132: 10389 | B132: M | C132: CABUS Adria | D132: INF-2 | E132: 3 | F132: 2 | G132: ESPARREGU. | H132: ESPARREGU. | I132: 324.46 | J132: =IF($S132<>"","",IF(AND($E132<=J$1,$B132="M"),MAX(J$2:J131)+1,"")) -> 114 | K132: =IF($S132<>"","",IF(AND($E132<=K$1,$B132="M"),MAX(K$2:K131)+1,"")) -> 64 | L132: =IF($S132<>"","",IF(AND($E132<=L$1,$B132="M"),MAX(L$2:L131)+1,"")) ->  | M132: =IF($S132<>"","",IF(AND($E132<=M$1,$B132="M"),MAX(M$2:M131)+1,"")) ->  | N132: =IF($S132<>"","",IF(AND($E132<=N$1,$B132="F"),MAX(N$2:N131)+1,"")) ->  | O132: =IF($S132<>"","",IF(AND($E132<=O$1,$B132="F"),MAX(O$2:O131)+1,"")) ->  | P132: =IF(AND($S132<>"",$S132<>"No pot jugar individual"),"",IF(AND($F132<=P$1,$B132="M"),MAX(P$2:P131)+1,"")) -> 114 | Q132: =IF(AND($S132<>"",$S132<>"No pot jugar individual"),"",IF(AND($F132<=Q$1,$B132="M"),MAX(Q$2:Q131)+1,"")) ->  | R132: =IF($S132<>"","",IF($F132<=R$1,MAX(R$2:R131)+1,"")) ->  | T132: 7 | U132: 0 | V132: 0 | W132: 0 | X132: J | Y132: I | Z132: H | AA132: G | AB132: F | AC132: G | AD132: F | AE132: F
A133: 8493 | B133: M | C133: RUIZ Jordi | D133: ALE-2 | E133: 2 | F133: 1 | G133: INDEPEN | H133: INDEPEN | I133: 322.33 | J133: =IF($S133<>"","",IF(AND($E133<=J$1,$B133="M"),MAX(J$2:J132)+1,"")) -> 115 | K133: =IF($S133<>"","",IF(AND($E133<=K$1,$B133="M"),MAX(K$2:K132)+1,"")) -> 65 | L133: =IF($S133<>"","",IF(AND($E133<=L$1,$B133="M"),MAX(L$2:L132)+1,"")) -> 25 | M133: =IF($S133<>"","",IF(AND($E133<=M$1,$B133="M"),MAX(M$2:M132)+1,"")) ->  | N133: =IF($S133<>"","",IF(AND($E133<=N$1,$B133="F"),MAX(N$2:N132)+1,"")) ->  | O133: =IF($S133<>"","",IF(AND($E133<=O$1,$B133="F"),MAX(O$2:O132)+1,"")) ->  | P133: =IF(AND($S133<>"",$S133<>"No pot jugar individual"),"",IF(AND($F133<=P$1,$B133="M"),MAX(P$2:P132)+1,"")) -> 115 | Q133: =IF(AND($S133<>"",$S133<>"No pot jugar individual"),"",IF(AND($F133<=Q$1,$B133="M"),MAX(Q$2:Q132)+1,"")) -> 25 | R133: =IF($S133<>"","",IF($F133<=R$1,MAX(R$2:R132)+1,"")) ->  | T133: 7 | U133: 0 | V133: 1 | W133: 0 | X133: E | Y133: F | Z133: F | AA133: G | AB133: F | AC133: F | AD133: F | AE133: F | AF133: BN | AH133: BJ | AL133: BJ
A134: 10298 | B134: M | C134: RODRÍGUEZ Gabriel | D134: ALE-2 | E134: 2 | F134: 1 | G134: LLUÏSOS | H134: LLUÏSOS | I134: 317.66 | J134: =IF($S134<>"","",IF(AND($E134<=J$1,$B134="M"),MAX(J$2:J133)+1,"")) -> 116 | K134: =IF($S134<>"","",IF(AND($E134<=K$1,$B134="M"),MAX(K$2:K133)+1,"")) -> 66 | L134: =IF($S134<>"","",IF(AND($E134<=L$1,$B134="M"),MAX(L$2:L133)+1,"")) -> 26 | M134: =IF($S134<>"","",IF(AND($E134<=M$1,$B134="M"),MAX(M$2:M133)+1,"")) ->  | N134: =IF($S134<>"","",IF(AND($E134<=N$1,$B134="F"),MAX(N$2:N133)+1,"")) ->  | O134: =IF($S134<>"","",IF(AND($E134<=O$1,$B134="F"),MAX(O$2:O133)+1,"")) ->  | P134: =IF(AND($S134<>"",$S134<>"No pot jugar individual"),"",IF(AND($F134<=P$1,$B134="M"),MAX(P$2:P133)+1,"")) -> 116 | Q134: =IF(AND($S134<>"",$S134<>"No pot jugar individual"),"",IF(AND($F134<=Q$1,$B134="M"),MAX(Q$2:Q133)+1,"")) -> 26 | R134: =IF($S134<>"","",IF($F134<=R$1,MAX(R$2:R133)+1,"")) ->  | T134: 7 | U134: 0 | V134: 0 | W134: 0 | X134: G | Y134: G | Z134: G | AA134: F | AB134: F | AC134: F | AD134: F | AE134: F | AK134: BJ
A135: 7727 | B135: M | C135: VIVÓ Oriol | D135: JUV-3 | E135: 4 | F135: 2 | G135: OLESA | H135: OLESA | I135: 317 | J135: =IF($S135<>"","",IF(AND($E135<=J$1,$B135="M"),MAX(J$2:J134)+1,"")) -> 117 | K135: =IF($S135<>"","",IF(AND($E135<=K$1,$B135="M"),MAX(K$2:K134)+1,"")) ->  | L135: =IF($S135<>"","",IF(AND($E135<=L$1,$B135="M"),MAX(L$2:L134)+1,"")) ->  | M135: =IF($S135<>"","",IF(AND($E135<=M$1,$B135="M"),MAX(M$2:M134)+1,"")) ->  | N135: =IF($S135<>"","",IF(AND($E135<=N$1,$B135="F"),MAX(N$2:N134)+1,"")) ->  | O135: =IF($S135<>"","",IF(AND($E135<=O$1,$B135="F"),MAX(O$2:O134)+1,"")) ->  | P135: =IF(AND($S135<>"",$S135<>"No pot jugar individual"),"",IF(AND($F135<=P$1,$B135="M"),MAX(P$2:P134)+1,"")) -> 117 | Q135: =IF(AND($S135<>"",$S135<>"No pot jugar individual"),"",IF(AND($F135<=Q$1,$B135="M"),MAX(Q$2:Q134)+1,"")) ->  | R135: =IF($S135<>"","",IF($F135<=R$1,MAX(R$2:R134)+1,"")) ->  | T135: 7 | U135: 0 | V135: 0 | W135: 0 | X135: K | Y135: J | Z135: I | AA135: H | AB135: H | AC135: G | AD135: F | AE135: E
A136: 8570 | B136: F | C136: PEREZ Silvia | D136: JUV-1 | E136: 4 | F136: 0 | G136: PREMIA | H136: PREMIA | I136: 313.67 | J136: =IF($S136<>"","",IF(AND($E136<=J$1,$B136="M"),MAX(J$2:J135)+1,"")) ->  | K136: =IF($S136<>"","",IF(AND($E136<=K$1,$B136="M"),MAX(K$2:K135)+1,"")) ->  | L136: =IF($S136<>"","",IF(AND($E136<=L$1,$B136="M"),MAX(L$2:L135)+1,"")) ->  | M136: =IF($S136<>"","",IF(AND($E136<=M$1,$B136="M"),MAX(M$2:M135)+1,"")) ->  | N136: =IF($S136<>"","",IF(AND($E136<=N$1,$B136="F"),MAX(N$2:N135)+1,"")) -> 17 | O136: =IF($S136<>"","",IF(AND($E136<=O$1,$B136="F"),MAX(O$2:O135)+1,"")) ->  | P136: =IF(AND($S136<>"",$S136<>"No pot jugar individual"),"",IF(AND($F136<=P$1,$B136="M"),MAX(P$2:P135)+1,"")) ->  | Q136: =IF(AND($S136<>"",$S136<>"No pot jugar individual"),"",IF(AND($F136<=Q$1,$B136="M"),MAX(Q$2:Q135)+1,"")) ->  | R136: =IF($S136<>"","",IF($F136<=R$1,MAX(R$2:R135)+1,"")) -> 17 | T136: 7 | U136: 0 | V136: 0 | W136: 0 | X136: E | Y136: F | Z136: F | AA136: F | AB136: F | AC136: F | AD136: F | AE136: F
A137: 8888 | B137: M | C137: MORELL Biel | D137: INF-1 | E137: 3 | F137: 2 | G137: VIC | H137: VIC | I137: 308.53 | J137: =IF($S137<>"","",IF(AND($E137<=J$1,$B137="M"),MAX(J$2:J136)+1,"")) -> 118 | K137: =IF($S137<>"","",IF(AND($E137<=K$1,$B137="M"),MAX(K$2:K136)+1,"")) -> 67 | L137: =IF($S137<>"","",IF(AND($E137<=L$1,$B137="M"),MAX(L$2:L136)+1,"")) ->  | M137: =IF($S137<>"","",IF(AND($E137<=M$1,$B137="M"),MAX(M$2:M136)+1,"")) ->  | N137: =IF($S137<>"","",IF(AND($E137<=N$1,$B137="F"),MAX(N$2:N136)+1,"")) ->  | O137: =IF($S137<>"","",IF(AND($E137<=O$1,$B137="F"),MAX(O$2:O136)+1,"")) ->  | P137: =IF(AND($S137<>"",$S137<>"No pot jugar individual"),"",IF(AND($F137<=P$1,$B137="M"),MAX(P$2:P136)+1,"")) -> 118 | Q137: =IF(AND($S137<>"",$S137<>"No pot jugar individual"),"",IF(AND($F137<=Q$1,$B137="M"),MAX(Q$2:Q136)+1,"")) ->  | R137: =IF($S137<>"","",IF($F137<=R$1,MAX(R$2:R136)+1,"")) ->  | T137: 7 | U137: 1 | V137: 0 | W137: 0 | X137: E | Y137: D | Z137: E | AA137: E | AB137: F | AC137: G | AD137: G | AE137: G | AH137: BJ | AJ137: BC | AK137: BJ
A138: 6416 | B138: M | C138: MOYA Carlos | D138: JUV-1 | E138: 4 | F138: 2 | G138: OLESA | H138: OLESA | I138: 304.74 | J138: =IF($S138<>"","",IF(AND($E138<=J$1,$B138="M"),MAX(J$2:J137)+1,"")) -> 119 | K138: =IF($S138<>"","",IF(AND($E138<=K$1,$B138="M"),MAX(K$2:K137)+1,"")) ->  | L138: =IF($S138<>"","",IF(AND($E138<=L$1,$B138="M"),MAX(L$2:L137)+1,"")) ->  | M138: =IF($S138<>"","",IF(AND($E138<=M$1,$B138="M"),MAX(M$2:M137)+1,"")) ->  | N138: =IF($S138<>"","",IF(AND($E138<=N$1,$B138="F"),MAX(N$2:N137)+1,"")) ->  | O138: =IF($S138<>"","",IF(AND($E138<=O$1,$B138="F"),MAX(O$2:O137)+1,"")) ->  | P138: =IF(AND($S138<>"",$S138<>"No pot jugar individual"),"",IF(AND($F138<=P$1,$B138="M"),MAX(P$2:P137)+1,"")) -> 119 | Q138: =IF(AND($S138<>"",$S138<>"No pot jugar individual"),"",IF(AND($F138<=Q$1,$B138="M"),MAX(Q$2:Q137)+1,"")) ->  | R138: =IF($S138<>"","",IF($F138<=R$1,MAX(R$2:R137)+1,"")) ->  | T138: 7 | U138: 1 | V138: 0 | W138: 0 | X138: F | Y138: G | Z138: G | AA138: G | AB138: G | AC138: G | AD138: F | AE138: F | AF138: BC
A139: 6489 | B139: F | C139: HIGUERAS Julia | D139: INF-2 | E139: 3 | F139: 0 | G139: MATARO | H139: MATARO | I139: 296.2 | J139: =IF($S139<>"","",IF(AND($E139<=J$1,$B139="M"),MAX(J$2:J138)+1,"")) ->  | K139: =IF($S139<>"","",IF(AND($E139<=K$1,$B139="M"),MAX(K$2:K138)+1,"")) ->  | L139: =IF($S139<>"","",IF(AND($E139<=L$1,$B139="M"),MAX(L$2:L138)+1,"")) ->  | M139: =IF($S139<>"","",IF(AND($E139<=M$1,$B139="M"),MAX(M$2:M138)+1,"")) ->  | N139: =IF($S139<>"","",IF(AND($E139<=N$1,$B139="F"),MAX(N$2:N138)+1,"")) -> 18 | O139: =IF($S139<>"","",IF(AND($E139<=O$1,$B139="F"),MAX(O$2:O138)+1,"")) ->  | P139: =IF(AND($S139<>"",$S139<>"No pot jugar individual"),"",IF(AND($F139<=P$1,$B139="M"),MAX(P$2:P138)+1,"")) ->  | Q139: =IF(AND($S139<>"",$S139<>"No pot jugar individual"),"",IF(AND($F139<=Q$1,$B139="M"),MAX(Q$2:Q138)+1,"")) ->  | R139: =IF($S139<>"","",IF($F139<=R$1,MAX(R$2:R138)+1,"")) -> 18 | T139: 3 | U139: 0 | V139: 1 | W139: 0 | AB139: D | AC139: C | AD139: D | AE139: E | AL139: BN
A140: 8553 | B140: M | C140: MÜLLER Àlex | D140: INF-2 | E140: 3 | F140: 2 | G140: HORTA | H140: HORTA | I140: 288.13 | J140: =IF($S140<>"","",IF(AND($E140<=J$1,$B140="M"),MAX(J$2:J139)+1,"")) -> 120 | K140: =IF($S140<>"","",IF(AND($E140<=K$1,$B140="M"),MAX(K$2:K139)+1,"")) -> 68 | L140: =IF($S140<>"","",IF(AND($E140<=L$1,$B140="M"),MAX(L$2:L139)+1,"")) ->  | M140: =IF($S140<>"","",IF(AND($E140<=M$1,$B140="M"),MAX(M$2:M139)+1,"")) ->  | N140: =IF($S140<>"","",IF(AND($E140<=N$1,$B140="F"),MAX(N$2:N139)+1,"")) ->  | O140: =IF($S140<>"","",IF(AND($E140<=O$1,$B140="F"),MAX(O$2:O139)+1,"")) ->  | P140: =IF(AND($S140<>"",$S140<>"No pot jugar individual"),"",IF(AND($F140<=P$1,$B140="M"),MAX(P$2:P139)+1,"")) -> 120 | Q140: =IF(AND($S140<>"",$S140<>"No pot jugar individual"),"",IF(AND($F140<=Q$1,$B140="M"),MAX(Q$2:Q139)+1,"")) ->  | R140: =IF($S140<>"","",IF($F140<=R$1,MAX(R$2:R139)+1,"")) ->  | T140: 7 | U140: 0 | V140: 0 | W140: 0 | X140: D | Y140: E | Z140: F | AA140: F | AB140: F | AC140: G | AD140: F | AE140: G | AL140: PI
A141: 10196 | B141: M | C141: HEREDIA Roger | D141: INF-1 | E141: 3 | F141: 2 | G141: CASTELLDEFELS | H141: CASTELLDEFELS | I141: 282.86 | J141: =IF($S141<>"","",IF(AND($E141<=J$1,$B141="M"),MAX(J$2:J140)+1,"")) -> 121 | K141: =IF($S141<>"","",IF(AND($E141<=K$1,$B141="M"),MAX(K$2:K140)+1,"")) -> 69 | L141: =IF($S141<>"","",IF(AND($E141<=L$1,$B141="M"),MAX(L$2:L140)+1,"")) ->  | M141: =IF($S141<>"","",IF(AND($E141<=M$1,$B141="M"),MAX(M$2:M140)+1,"")) ->  | N141: =IF($S141<>"","",IF(AND($E141<=N$1,$B141="F"),MAX(N$2:N140)+1,"")) ->  | O141: =IF($S141<>"","",IF(AND($E141<=O$1,$B141="F"),MAX(O$2:O140)+1,"")) ->  | P141: =IF(AND($S141<>"",$S141<>"No pot jugar individual"),"",IF(AND($F141<=P$1,$B141="M"),MAX(P$2:P140)+1,"")) -> 121 | Q141: =IF(AND($S141<>"",$S141<>"No pot jugar individual"),"",IF(AND($F141<=Q$1,$B141="M"),MAX(Q$2:Q140)+1,"")) ->  | R141: =IF($S141<>"","",IF($F141<=R$1,MAX(R$2:R140)+1,"")) ->  | T141: 7 | U141: 1 | V141: 0 | W141: 0 | X141: H | Y141: H | Z141: G | AA141: F | AB141: F | AC141: F | AD141: F | AE141: G | AL141: BC
A142: 10034 | B142: F | C142: MIGUELES María | D142: ALE-2 | E142: 2 | F142: 0 | G142: AMICS | H142: AMICS | I142: 276.27 | J142: =IF($S142<>"","",IF(AND($E142<=J$1,$B142="M"),MAX(J$2:J141)+1,"")) ->  | K142: =IF($S142<>"","",IF(AND($E142<=K$1,$B142="M"),MAX(K$2:K141)+1,"")) ->  | L142: =IF($S142<>"","",IF(AND($E142<=L$1,$B142="M"),MAX(L$2:L141)+1,"")) ->  | M142: =IF($S142<>"","",IF(AND($E142<=M$1,$B142="M"),MAX(M$2:M141)+1,"")) ->  | N142: =IF($S142<>"","",IF(AND($E142<=N$1,$B142="F"),MAX(N$2:N141)+1,"")) -> 19 | O142: =IF($S142<>"","",IF(AND($E142<=O$1,$B142="F"),MAX(O$2:O141)+1,"")) -> 9 | P142: =IF(AND($S142<>"",$S142<>"No pot jugar individual"),"",IF(AND($F142<=P$1,$B142="M"),MAX(P$2:P141)+1,"")) ->  | Q142: =IF(AND($S142<>"",$S142<>"No pot jugar individual"),"",IF(AND($F142<=Q$1,$B142="M"),MAX(Q$2:Q141)+1,"")) ->  | R142: =IF($S142<>"","",IF($F142<=R$1,MAX(R$2:R141)+1,"")) -> 19 | T142: 7 | U142: 0 | V142: 0 | W142: 0 | X142: H | Y142: H | Z142: G | AA142: G | AB142: G | AC142: G | AD142: F | AE142: F | AH142: BJ
A143: 10730 | B143: M | C143: MONTAVEZ Alex | D143: INF-1 | E143: 3 | F143: 2 | G143: POBLENOU | H143: POBLENOU | I143: 272.96 | J143: =IF($S143<>"","",IF(AND($E143<=J$1,$B143="M"),MAX(J$2:J142)+1,"")) -> 122 | K143: =IF($S143<>"","",IF(AND($E143<=K$1,$B143="M"),MAX(K$2:K142)+1,"")) -> 70 | L143: =IF($S143<>"","",IF(AND($E143<=L$1,$B143="M"),MAX(L$2:L142)+1,"")) ->  | M143: =IF($S143<>"","",IF(AND($E143<=M$1,$B143="M"),MAX(M$2:M142)+1,"")) ->  | N143: =IF($S143<>"","",IF(AND($E143<=N$1,$B143="F"),MAX(N$2:N142)+1,"")) ->  | O143: =IF($S143<>"","",IF(AND($E143<=O$1,$B143="F"),MAX(O$2:O142)+1,"")) ->  | P143: =IF(AND($S143<>"",$S143<>"No pot jugar individual"),"",IF(AND($F143<=P$1,$B143="M"),MAX(P$2:P142)+1,"")) -> 122 | Q143: =IF(AND($S143<>"",$S143<>"No pot jugar individual"),"",IF(AND($F143<=Q$1,$B143="M"),MAX(Q$2:Q142)+1,"")) ->  | R143: =IF($S143<>"","",IF($F143<=R$1,MAX(R$2:R142)+1,"")) ->  | T143: 7 | U143: =COUNTIF($AF143:$AL143,U$2) -> 0 | V143: 0 | W143: 0 | X143: I | Y143: H | Z143: H | AA143: G | AB143: G | AC143: G | AD143: F | AE143: F
A144: 8563 | B144: M | C144: LLINARES Xavier | D144: INF-2 | E144: 3 | F144: 2 | G144: PREMIA | H144: PREMIA | I144: 255.42 | J144: =IF($S144<>"","",IF(AND($E144<=J$1,$B144="M"),MAX(J$2:J143)+1,"")) -> 123 | K144: =IF($S144<>"","",IF(AND($E144<=K$1,$B144="M"),MAX(K$2:K143)+1,"")) -> 71 | L144: =IF($S144<>"","",IF(AND($E144<=L$1,$B144="M"),MAX(L$2:L143)+1,"")) ->  | M144: =IF($S144<>"","",IF(AND($E144<=M$1,$B144="M"),MAX(M$2:M143)+1,"")) ->  | N144: =IF($S144<>"","",IF(AND($E144<=N$1,$B144="F"),MAX(N$2:N143)+1,"")) ->  | O144: =IF($S144<>"","",IF(AND($E144<=O$1,$B144="F"),MAX(O$2:O143)+1,"")) ->  | P144: =IF(AND($S144<>"",$S144<>"No pot jugar individual"),"",IF(AND($F144<=P$1,$B144="M"),MAX(P$2:P143)+1,"")) -> 123 | Q144: =IF(AND($S144<>"",$S144<>"No pot jugar individual"),"",IF(AND($F144<=Q$1,$B144="M"),MAX(Q$2:Q143)+1,"")) ->  | R144: =IF($S144<>"","",IF($F144<=R$1,MAX(R$2:R143)+1,"")) ->  | T144: 7 | U144: 2 | V144: 0 | W144: 0 | X144: E | Y144: E | Z144: E | AA144: E | AB144: F | AC144: F | AD144: G | AE144: G | AK144: BC | AL144: BC
A145: 7745 | B145: M | C145: GARCIA David | D145: JUV-3 | E145: 4 | F145: 2 | G145: CONGRES | H145: CONGRES | I145: 251.25 | J145: =IF($S145<>"","",IF(AND($E145<=J$1,$B145="M"),MAX(J$2:J144)+1,"")) -> 124 | K145: =IF($S145<>"","",IF(AND($E145<=K$1,$B145="M"),MAX(K$2:K144)+1,"")) ->  | L145: =IF($S145<>"","",IF(AND($E145<=L$1,$B145="M"),MAX(L$2:L144)+1,"")) ->  | M145: =IF($S145<>"","",IF(AND($E145<=M$1,$B145="M"),MAX(M$2:M144)+1,"")) ->  | N145: =IF($S145<>"","",IF(AND($E145<=N$1,$B145="F"),MAX(N$2:N144)+1,"")) ->  | O145: =IF($S145<>"","",IF(AND($E145<=O$1,$B145="F"),MAX(O$2:O144)+1,"")) ->  | P145: =IF(AND($S145<>"",$S145<>"No pot jugar individual"),"",IF(AND($F145<=P$1,$B145="M"),MAX(P$2:P144)+1,"")) -> 124 | Q145: =IF(AND($S145<>"",$S145<>"No pot jugar individual"),"",IF(AND($F145<=Q$1,$B145="M"),MAX(Q$2:Q144)+1,"")) ->  | R145: =IF($S145<>"","",IF($F145<=R$1,MAX(R$2:R144)+1,"")) ->  | T145: 7 | U145: 0 | V145: 0 | W145: 0 | X145: K | Y145: J | Z145: I | AA145: H | AB145: G | AC145: F | AD145: G | AE145: F | AK145: BJ
A146: 9108 | B146: M | C146: GUINJOAN Biel | D146: JUV-1 | E146: 4 | F146: 2 | G146: R.ELISENDA | H146: R.ELISENDA | I146: 246.64 | J146: =IF($S146<>"","",IF(AND($E146<=J$1,$B146="M"),MAX(J$2:J145)+1,"")) -> 125 | K146: =IF($S146<>"","",IF(AND($E146<=K$1,$B146="M"),MAX(K$2:K145)+1,"")) ->  | L146: =IF($S146<>"","",IF(AND($E146<=L$1,$B146="M"),MAX(L$2:L145)+1,"")) ->  | M146: =IF($S146<>"","",IF(AND($E146<=M$1,$B146="M"),MAX(M$2:M145)+1,"")) ->  | N146: =IF($S146<>"","",IF(AND($E146<=N$1,$B146="F"),MAX(N$2:N145)+1,"")) ->  | O146: =IF($S146<>"","",IF(AND($E146<=O$1,$B146="F"),MAX(O$2:O145)+1,"")) ->  | P146: =IF(AND($S146<>"",$S146<>"No pot jugar individual"),"",IF(AND($F146<=P$1,$B146="M"),MAX(P$2:P145)+1,"")) -> 125 | Q146: =IF(AND($S146<>"",$S146<>"No pot jugar individual"),"",IF(AND($F146<=Q$1,$B146="M"),MAX(Q$2:Q145)+1,"")) ->  | R146: =IF($S146<>"","",IF($F146<=R$1,MAX(R$2:R145)+1,"")) ->  | T146: 7 | U146: 0 | V146: 1 | W146: 0 | X146: F | Y146: F | Z146: F | AA146: F | AB146: F | AC146: F | AD146: F | AE146: G | AJ146: BJ | AL146: BN
A147: 6549 | B147: M | C147: CANTON Bruno | D147: ALE-2 | E147: 2 | F147: 1 | G147: HOSPIT | H147: HOSPIT | I147: 241.54 | J147: =IF($S147<>"","",IF(AND($E147<=J$1,$B147="M"),MAX(J$2:J146)+1,"")) -> 126 | K147: =IF($S147<>"","",IF(AND($E147<=K$1,$B147="M"),MAX(K$2:K146)+1,"")) -> 72 | L147: =IF($S147<>"","",IF(AND($E147<=L$1,$B147="M"),MAX(L$2:L146)+1,"")) -> 27 | M147: =IF($S147<>"","",IF(AND($E147<=M$1,$B147="M"),MAX(M$2:M146)+1,"")) ->  | N147: =IF($S147<>"","",IF(AND($E147<=N$1,$B147="F"),MAX(N$2:N146)+1,"")) ->  | O147: =IF($S147<>"","",IF(AND($E147<=O$1,$B147="F"),MAX(O$2:O146)+1,"")) ->  | P147: =IF(AND($S147<>"",$S147<>"No pot jugar individual"),"",IF(AND($F147<=P$1,$B147="M"),MAX(P$2:P146)+1,"")) -> 126 | Q147: =IF(AND($S147<>"",$S147<>"No pot jugar individual"),"",IF(AND($F147<=Q$1,$B147="M"),MAX(Q$2:Q146)+1,"")) -> 27 | R147: =IF($S147<>"","",IF($F147<=R$1,MAX(R$2:R146)+1,"")) ->  | T147: 7 | U147: 1 | V147: 1 | W147: 0 | X147: F | Y147: F | Z147: F | AA147: E | AB147: F | AC147: F | AD147: G | AE147: G | AK147: BN | AL147: BC
A148: 8568 | B148: M | C148: RODA Martí | D148: INF-2 | E148: 3 | F148: 2 | G148: PREMIA | H148: PREMIA | I148: 234.46 | J148: =IF($S148<>"","",IF(AND($E148<=J$1,$B148="M"),MAX(J$2:J147)+1,"")) -> 127 | K148: =IF($S148<>"","",IF(AND($E148<=K$1,$B148="M"),MAX(K$2:K147)+1,"")) -> 73 | L148: =IF($S148<>"","",IF(AND($E148<=L$1,$B148="M"),MAX(L$2:L147)+1,"")) ->  | M148: =IF($S148<>"","",IF(AND($E148<=M$1,$B148="M"),MAX(M$2:M147)+1,"")) ->  | N148: =IF($S148<>"","",IF(AND($E148<=N$1,$B148="F"),MAX(N$2:N147)+1,"")) ->  | O148: =IF($S148<>"","",IF(AND($E148<=O$1,$B148="F"),MAX(O$2:O147)+1,"")) ->  | P148: =IF(AND($S148<>"",$S148<>"No pot jugar individual"),"",IF(AND($F148<=P$1,$B148="M"),MAX(P$2:P147)+1,"")) -> 127 | Q148: =IF(AND($S148<>"",$S148<>"No pot jugar individual"),"",IF(AND($F148<=Q$1,$B148="M"),MAX(Q$2:Q147)+1,"")) ->  | R148: =IF($S148<>"","",IF($F148<=R$1,MAX(R$2:R147)+1,"")) ->  | T148: 7 | U148: 0 | V148: 0 | W148: 0 | X148: F | Y148: F | Z148: G | AA148: G | AB148: G | AC148: G | AD148: G | AE148: G
A149: 6391 | B149: M | C149: PAREDES Ferran | D149: BEN-2 | E149: 1 | F149: 1 | G149: INDEPEN | H149: INDEPEN | I149: 233.58 | J149: =IF($S149<>"","",IF(AND($E149<=J$1,$B149="M"),MAX(J$2:J148)+1,"")) -> 128 | K149: =IF($S149<>"","",IF(AND($E149<=K$1,$B149="M"),MAX(K$2:K148)+1,"")) -> 74 | L149: =IF($S149<>"","",IF(AND($E149<=L$1,$B149="M"),MAX(L$2:L148)+1,"")) -> 28 | M149: =IF($S149<>"","",IF(AND($E149<=M$1,$B149="M"),MAX(M$2:M148)+1,"")) -> 3 | N149: =IF($S149<>"","",IF(AND($E149<=N$1,$B149="F"),MAX(N$2:N148)+1,"")) ->  | O149: =IF($S149<>"","",IF(AND($E149<=O$1,$B149="F"),MAX(O$2:O148)+1,"")) ->  | P149: =IF(AND($S149<>"",$S149<>"No pot jugar individual"),"",IF(AND($F149<=P$1,$B149="M"),MAX(P$2:P148)+1,"")) -> 128 | Q149: =IF(AND($S149<>"",$S149<>"No pot jugar individual"),"",IF(AND($F149<=Q$1,$B149="M"),MAX(Q$2:Q148)+1,"")) -> 28 | R149: =IF($S149<>"","",IF($F149<=R$1,MAX(R$2:R148)+1,"")) ->  | T149: 4 | U149: 0 | V149: 0 | W149: 0 | AA149: H | AB149: G | AC149: G | AD149: F | AE149: F
A150: 10123 | B150: M | C150: FERRER Bernat | D150: INF-1 | E150: 3 | F150: 2 | G150: STCUGAT | H150: STCUGAT | I150: 231.48 | J150: =IF($S150<>"","",IF(AND($E150<=J$1,$B150="M"),MAX(J$2:J149)+1,"")) -> 129 | K150: =IF($S150<>"","",IF(AND($E150<=K$1,$B150="M"),MAX(K$2:K149)+1,"")) -> 75 | L150: =IF($S150<>"","",IF(AND($E150<=L$1,$B150="M"),MAX(L$2:L149)+1,"")) ->  | M150: =IF($S150<>"","",IF(AND($E150<=M$1,$B150="M"),MAX(M$2:M149)+1,"")) ->  | N150: =IF($S150<>"","",IF(AND($E150<=N$1,$B150="F"),MAX(N$2:N149)+1,"")) ->  | O150: =IF($S150<>"","",IF(AND($E150<=O$1,$B150="F"),MAX(O$2:O149)+1,"")) ->  | P150: =IF(AND($S150<>"",$S150<>"No pot jugar individual"),"",IF(AND($F150<=P$1,$B150="M"),MAX(P$2:P149)+1,"")) -> 129 | Q150: =IF(AND($S150<>"",$S150<>"No pot jugar individual"),"",IF(AND($F150<=Q$1,$B150="M"),MAX(Q$2:Q149)+1,"")) ->  | R150: =IF($S150<>"","",IF($F150<=R$1,MAX(R$2:R149)+1,"")) ->  | T150: 7 | U150: 1 | V150: 1 | W150: 0 | X150: G | Y150: H | Z150: G | AA150: G | AB150: G | AC150: G | AD150: G | AE150: G | AF150: BN | AI150: SA | AJ150: BC
A151: 10534 | B151: M | C151: MARTOS Mario | D151: JUV-1 | E151: 4 | F151: 2 | G151: EUROCLIMA BDN | H151: EUROCLIMA BDN | I151: 228.51 | J151: =IF($S151<>"","",IF(AND($E151<=J$1,$B151="M"),MAX(J$2:J150)+1,"")) -> 130 | K151: =IF($S151<>"","",IF(AND($E151<=K$1,$B151="M"),MAX(K$2:K150)+1,"")) ->  | L151: =IF($S151<>"","",IF(AND($E151<=L$1,$B151="M"),MAX(L$2:L150)+1,"")) ->  | M151: =IF($S151<>"","",IF(AND($E151<=M$1,$B151="M"),MAX(M$2:M150)+1,"")) ->  | N151: =IF($S151<>"","",IF(AND($E151<=N$1,$B151="F"),MAX(N$2:N150)+1,"")) ->  | O151: =IF($S151<>"","",IF(AND($E151<=O$1,$B151="F"),MAX(O$2:O150)+1,"")) ->  | P151: =IF(AND($S151<>"",$S151<>"No pot jugar individual"),"",IF(AND($F151<=P$1,$B151="M"),MAX(P$2:P150)+1,"")) -> 130 | Q151: =IF(AND($S151<>"",$S151<>"No pot jugar individual"),"",IF(AND($F151<=Q$1,$B151="M"),MAX(Q$2:Q150)+1,"")) ->  | R151: =IF($S151<>"","",IF($F151<=R$1,MAX(R$2:R150)+1,"")) ->  | T151: 7 | U151: 0 | V151: 0 | W151: 0 | X151: I | Y151: H | Z151: H | AA151: H | AB151: H | AC151: G | AD151: G | AE151: F
A152: 7112 | B152: M | C152: OMS Marti | D152: INF-2 | E152: 3 | F152: 2 | G152: CNSABA | H152: CNSABA | I152: 220.05 | J152: =IF($S152<>"","",IF(AND($E152<=J$1,$B152="M"),MAX(J$2:J151)+1,"")) -> 131 | K152: =IF($S152<>"","",IF(AND($E152<=K$1,$B152="M"),MAX(K$2:K151)+1,"")) -> 76 | L152: =IF($S152<>"","",IF(AND($E152<=L$1,$B152="M"),MAX(L$2:L151)+1,"")) ->  | M152: =IF($S152<>"","",IF(AND($E152<=M$1,$B152="M"),MAX(M$2:M151)+1,"")) ->  | N152: =IF($S152<>"","",IF(AND($E152<=N$1,$B152="F"),MAX(N$2:N151)+1,"")) ->  | O152: =IF($S152<>"","",IF(AND($E152<=O$1,$B152="F"),MAX(O$2:O151)+1,"")) ->  | P152: =IF(AND($S152<>"",$S152<>"No pot jugar individual"),"",IF(AND($F152<=P$1,$B152="M"),MAX(P$2:P151)+1,"")) -> 131 | Q152: =IF(AND($S152<>"",$S152<>"No pot jugar individual"),"",IF(AND($F152<=Q$1,$B152="M"),MAX(Q$2:Q151)+1,"")) ->  | R152: =IF($S152<>"","",IF($F152<=R$1,MAX(R$2:R151)+1,"")) ->  | T152: 7 | U152: 0 | V152: 0 | W152: 0 | X152: L | Y152: K | Z152: J | AA152: J | AB152: I | AC152: H | AD152: G | AE152: F
A153: 10666 | B153: M | C153: BERENGUERAS Aleix | D153: INF-1 | E153: 3 | F153: 2 | G153: STCUGAT | H153: STCUGAT | I153: 208 | J153: =IF($S153<>"","",IF(AND($E153<=J$1,$B153="M"),MAX(J$2:J152)+1,"")) -> 132 | K153: =IF($S153<>"","",IF(AND($E153<=K$1,$B153="M"),MAX(K$2:K152)+1,"")) -> 77 | L153: =IF($S153<>"","",IF(AND($E153<=L$1,$B153="M"),MAX(L$2:L152)+1,"")) ->  | M153: =IF($S153<>"","",IF(AND($E153<=M$1,$B153="M"),MAX(M$2:M152)+1,"")) ->  | N153: =IF($S153<>"","",IF(AND($E153<=N$1,$B153="F"),MAX(N$2:N152)+1,"")) ->  | O153: =IF($S153<>"","",IF(AND($E153<=O$1,$B153="F"),MAX(O$2:O152)+1,"")) ->  | P153: =IF(AND($S153<>"",$S153<>"No pot jugar individual"),"",IF(AND($F153<=P$1,$B153="M"),MAX(P$2:P152)+1,"")) -> 132 | Q153: =IF(AND($S153<>"",$S153<>"No pot jugar individual"),"",IF(AND($F153<=Q$1,$B153="M"),MAX(Q$2:Q152)+1,"")) ->  | R153: =IF($S153<>"","",IF($F153<=R$1,MAX(R$2:R152)+1,"")) ->  | T153: 7 | U153: 0 | V153: 0 | W153: 0 | X153: I | Y153: I | Z153: I | AA153: H | AB153: H | AC153: H | AD153: G | AE153: G
A154: 7783 | B154: M | C154: CASES Alex | D154: ALE-2 | E154: 2 | F154: 1 | G154: EUROCLIMA BDN | H154: EUROCLIMA BDN | I154: 203.74 | J154: =IF($S154<>"","",IF(AND($E154<=J$1,$B154="M"),MAX(J$2:J153)+1,"")) -> 133 | K154: =IF($S154<>"","",IF(AND($E154<=K$1,$B154="M"),MAX(K$2:K153)+1,"")) -> 78 | L154: =IF($S154<>"","",IF(AND($E154<=L$1,$B154="M"),MAX(L$2:L153)+1,"")) -> 29 | M154: =IF($S154<>"","",IF(AND($E154<=M$1,$B154="M"),MAX(M$2:M153)+1,"")) ->  | N154: =IF($S154<>"","",IF(AND($E154<=N$1,$B154="F"),MAX(N$2:N153)+1,"")) ->  | O154: =IF($S154<>"","",IF(AND($E154<=O$1,$B154="F"),MAX(O$2:O153)+1,"")) ->  | P154: =IF(AND($S154<>"",$S154<>"No pot jugar individual"),"",IF(AND($F154<=P$1,$B154="M"),MAX(P$2:P153)+1,"")) -> 133 | Q154: =IF(AND($S154<>"",$S154<>"No pot jugar individual"),"",IF(AND($F154<=Q$1,$B154="M"),MAX(Q$2:Q153)+1,"")) -> 29 | R154: =IF($S154<>"","",IF($F154<=R$1,MAX(R$2:R153)+1,"")) ->  | T154: 7 | U154: 0 | V154: 1 | W154: 0 | X154: G | Y154: F | Z154: G | AA154: G | AB154: G | AC154: G | AD154: G | AE154: G | AG154: BN
A155: 7618 | B155: M | C155: GUINART Joel | D155: BEN-2 | E155: 1 | F155: 1 | G155: STCUGAT | H155: STCUGAT | I155: 199.76 | J155: =IF($S155<>"","",IF(AND($E155<=J$1,$B155="M"),MAX(J$2:J154)+1,"")) -> 134 | K155: =IF($S155<>"","",IF(AND($E155<=K$1,$B155="M"),MAX(K$2:K154)+1,"")) -> 79 | L155: =IF($S155<>"","",IF(AND($E155<=L$1,$B155="M"),MAX(L$2:L154)+1,"")) -> 30 | M155: =IF($S155<>"","",IF(AND($E155<=M$1,$B155="M"),MAX(M$2:M154)+1,"")) -> 4 | N155: =IF($S155<>"","",IF(AND($E155<=N$1,$B155="F"),MAX(N$2:N154)+1,"")) ->  | O155: =IF($S155<>"","",IF(AND($E155<=O$1,$B155="F"),MAX(O$2:O154)+1,"")) ->  | P155: =IF(AND($S155<>"",$S155<>"No pot jugar individual"),"",IF(AND($F155<=P$1,$B155="M"),MAX(P$2:P154)+1,"")) -> 134 | Q155: =IF(AND($S155<>"",$S155<>"No pot jugar individual"),"",IF(AND($F155<=Q$1,$B155="M"),MAX(Q$2:Q154)+1,"")) -> 30 | R155: =IF($S155<>"","",IF($F155<=R$1,MAX(R$2:R154)+1,"")) ->  | T155: 7 | U155: 0 | V155: 0 | W155: 0 | X155: G | Y155: G | Z155: G | AA155: G | AB155: H | AC155: H | AD155: G | AE155: G | AH155: BJ
A156: 11384 | B156: M | C156: SANCHEZ Carlo | D156: INF-2 | E156: 3 | F156: 2 | G156: STCUGAT | H156: STCUGAT | I156: 199.15 | J156: =IF($S156<>"","",IF(AND($E156<=J$1,$B156="M"),MAX(J$2:J155)+1,"")) -> 135 | K156: =IF($S156<>"","",IF(AND($E156<=K$1,$B156="M"),MAX(K$2:K155)+1,"")) -> 80 | L156: =IF($S156<>"","",IF(AND($E156<=L$1,$B156="M"),MAX(L$2:L155)+1,"")) ->  | M156: =IF($S156<>"","",IF(AND($E156<=M$1,$B156="M"),MAX(M$2:M155)+1,"")) ->  | N156: =IF($S156<>"","",IF(AND($E156<=N$1,$B156="F"),MAX(N$2:N155)+1,"")) ->  | O156: =IF($S156<>"","",IF(AND($E156<=O$1,$B156="F"),MAX(O$2:O155)+1,"")) ->  | P156: =IF(AND($S156<>"",$S156<>"No pot jugar individual"),"",IF(AND($F156<=P$1,$B156="M"),MAX(P$2:P155)+1,"")) -> 135 | Q156: =IF(AND($S156<>"",$S156<>"No pot jugar individual"),"",IF(AND($F156<=Q$1,$B156="M"),MAX(Q$2:Q155)+1,"")) ->  | R156: =IF($S156<>"","",IF($F156<=R$1,MAX(R$2:R155)+1,"")) ->  | T156: 7 | U156: 0 | V156: 0 | W156: 0 | X156: L | Y156: L | Z156: K | AA156: J | AB156: I | AC156: H | AD156: G | AE156: F
A157: 7476 | B157: M | C157: TRIGO Gerard | D157: ALE-1 | E157: 2 | F157: 1 | G157: ICELAND ELS 8 | H157: ICELAND ELS 8 | I157: 197.81 | J157: =IF($S157<>"","",IF(AND($E157<=J$1,$B157="M"),MAX(J$2:J156)+1,"")) -> 136 | K157: =IF($S157<>"","",IF(AND($E157<=K$1,$B157="M"),MAX(K$2:K156)+1,"")) -> 81 | L157: =IF($S157<>"","",IF(AND($E157<=L$1,$B157="M"),MAX(L$2:L156)+1,"")) -> 31 | M157: =IF($S157<>"","",IF(AND($E157<=M$1,$B157="M"),MAX(M$2:M156)+1,"")) ->  | N157: =IF($S157<>"","",IF(AND($E157<=N$1,$B157="F"),MAX(N$2:N156)+1,"")) ->  | O157: =IF($S157<>"","",IF(AND($E157<=O$1,$B157="F"),MAX(O$2:O156)+1,"")) ->  | P157: =IF(AND($S157<>"",$S157<>"No pot jugar individual"),"",IF(AND($F157<=P$1,$B157="M"),MAX(P$2:P156)+1,"")) -> 136 | Q157: =IF(AND($S157<>"",$S157<>"No pot jugar individual"),"",IF(AND($F157<=Q$1,$B157="M"),MAX(Q$2:Q156)+1,"")) -> 31 | R157: =IF($S157<>"","",IF($F157<=R$1,MAX(R$2:R156)+1,"")) ->  | T157: 7 | U157: 0 | V157: 0 | W157: 0 | X157: F | Y157: G | Z157: G | AA157: G | AB157: G | AC157: G | AD157: G | AE157: G | AI157: BJ | AJ157: BJ
A158: 7744 | B158: M | C158: GARCIA Eduardo | D158: JUV-3 | E158: 4 | F158: 2 | G158: CONGRES | H158: CONGRES | I158: 194.43 | J158: =IF($S158<>"","",IF(AND($E158<=J$1,$B158="M"),MAX(J$2:J157)+1,"")) -> 137 | K158: =IF($S158<>"","",IF(AND($E158<=K$1,$B158="M"),MAX(K$2:K157)+1,"")) ->  | L158: =IF($S158<>"","",IF(AND($E158<=L$1,$B158="M"),MAX(L$2:L157)+1,"")) ->  | M158: =IF($S158<>"","",IF(AND($E158<=M$1,$B158="M"),MAX(M$2:M157)+1,"")) ->  | N158: =IF($S158<>"","",IF(AND($E158<=N$1,$B158="F"),MAX(N$2:N157)+1,"")) ->  | O158: =IF($S158<>"","",IF(AND($E158<=O$1,$B158="F"),MAX(O$2:O157)+1,"")) ->  | P158: =IF(AND($S158<>"",$S158<>"No pot jugar individual"),"",IF(AND($F158<=P$1,$B158="M"),MAX(P$2:P157)+1,"")) -> 137 | Q158: =IF(AND($S158<>"",$S158<>"No pot jugar individual"),"",IF(AND($F158<=Q$1,$B158="M"),MAX(Q$2:Q157)+1,"")) ->  | R158: =IF($S158<>"","",IF($F158<=R$1,MAX(R$2:R157)+1,"")) ->  | T158: 7 | U158: 0 | V158: 0 | W158: 0 | X158: K | Y158: K | Z158: J | AA158: I | AB158: H | AC158: G | AD158: F | AE158: F
A159: 6792 | B159: M | C159: NOFUENTES David | D159: JUV-1 | E159: 4 | F159: 2 | G159: RIPOLLET | H159: RIPOLLET | I159: 182.15 | J159: =IF($S159<>"","",IF(AND($E159<=J$1,$B159="M"),MAX(J$2:J158)+1,"")) -> 138 | K159: =IF($S159<>"","",IF(AND($E159<=K$1,$B159="M"),MAX(K$2:K158)+1,"")) ->  | L159: =IF($S159<>"","",IF(AND($E159<=L$1,$B159="M"),MAX(L$2:L158)+1,"")) ->  | M159: =IF($S159<>"","",IF(AND($E159<=M$1,$B159="M"),MAX(M$2:M158)+1,"")) ->  | N159: =IF($S159<>"","",IF(AND($E159<=N$1,$B159="F"),MAX(N$2:N158)+1,"")) ->  | O159: =IF($S159<>"","",IF(AND($E159<=O$1,$B159="F"),MAX(O$2:O158)+1,"")) ->  | P159: =IF(AND($S159<>"",$S159<>"No pot jugar individual"),"",IF(AND($F159<=P$1,$B159="M"),MAX(P$2:P158)+1,"")) -> 138 | Q159: =IF(AND($S159<>"",$S159<>"No pot jugar individual"),"",IF(AND($F159<=Q$1,$B159="M"),MAX(Q$2:Q158)+1,"")) ->  | R159: =IF($S159<>"","",IF($F159<=R$1,MAX(R$2:R158)+1,"")) ->  | T159: 7 | U159: 1 | V159: 1 | W159: 0 | X159: D | Y159: E | Z159: F | AA159: F | AB159: G | AC159: G | AD159: H | AE159: I | AG159: SA | AJ159: PI | AK159: BC | AL159: BN
A160: 9238 | B160: F | C160: MARTINEZ Meritxell | D160: INF-2 | E160: 3 | F160: 0 | G160: R.ELISENDA | H160: R.ELISENDA | I160: 180.68 | J160: =IF($S160<>"","",IF(AND($E160<=J$1,$B160="M"),MAX(J$2:J159)+1,"")) ->  | K160: =IF($S160<>"","",IF(AND($E160<=K$1,$B160="M"),MAX(K$2:K159)+1,"")) ->  | L160: =IF($S160<>"","",IF(AND($E160<=L$1,$B160="M"),MAX(L$2:L159)+1,"")) ->  | M160: =IF($S160<>"","",IF(AND($E160<=M$1,$B160="M"),MAX(M$2:M159)+1,"")) ->  | N160: =IF($S160<>"","",IF(AND($E160<=N$1,$B160="F"),MAX(N$2:N159)+1,"")) -> 20 | O160: =IF($S160<>"","",IF(AND($E160<=O$1,$B160="F"),MAX(O$2:O159)+1,"")) ->  | P160: =IF(AND($S160<>"",$S160<>"No pot jugar individual"),"",IF(AND($F160<=P$1,$B160="M"),MAX(P$2:P159)+1,"")) ->  | Q160: =IF(AND($S160<>"",$S160<>"No pot jugar individual"),"",IF(AND($F160<=Q$1,$B160="M"),MAX(Q$2:Q159)+1,"")) ->  | R160: =IF($S160<>"","",IF($F160<=R$1,MAX(R$2:R159)+1,"")) -> 20 | T160: 7 | U160: 0 | V160: 0 | W160: 0 | X160: E | Y160: E | Z160: F | AA160: G | AB160: G | AC160: G | AD160: G | AE160: G | AI160: PI
A161: 6848 | B161: M | C161: RODRIGUEZ David | D161: INF-1 | E161: 3 | F161: 2 | G161: CARDEDEU | H161: CARDEDEU | I161: 179.43 | J161: =IF($S161<>"","",IF(AND($E161<=J$1,$B161="M"),MAX(J$2:J160)+1,"")) -> 139 | K161: =IF($S161<>"","",IF(AND($E161<=K$1,$B161="M"),MAX(K$2:K160)+1,"")) -> 82 | L161: =IF($S161<>"","",IF(AND($E161<=L$1,$B161="M"),MAX(L$2:L160)+1,"")) ->  | M161: =IF($S161<>"","",IF(AND($E161<=M$1,$B161="M"),MAX(M$2:M160)+1,"")) ->  | N161: =IF($S161<>"","",IF(AND($E161<=N$1,$B161="F"),MAX(N$2:N160)+1,"")) ->  | O161: =IF($S161<>"","",IF(AND($E161<=O$1,$B161="F"),MAX(O$2:O160)+1,"")) ->  | P161: =IF(AND($S161<>"",$S161<>"No pot jugar individual"),"",IF(AND($F161<=P$1,$B161="M"),MAX(P$2:P160)+1,"")) -> 139 | Q161: =IF(AND($S161<>"",$S161<>"No pot jugar individual"),"",IF(AND($F161<=Q$1,$B161="M"),MAX(Q$2:Q160)+1,"")) ->  | R161: =IF($S161<>"","",IF($F161<=R$1,MAX(R$2:R160)+1,"")) ->  | T161: 7 | U161: 0 | V161: 0 | W161: 0 | X161: G | Y161: G | Z161: G | AA161: G | AB161: G | AC161: G | AD161: G | AE161: G
A162: 10145 | B162: M | C162: BETETA Miquel | D162: INF-1 | E162: 3 | F162: 2 | G162: STCUGAT | H162: STCUGAT | I162: 163.25 | J162: =IF($S162<>"","",IF(AND($E162<=J$1,$B162="M"),MAX(J$2:J161)+1,"")) -> 140 | K162: =IF($S162<>"","",IF(AND($E162<=K$1,$B162="M"),MAX(K$2:K161)+1,"")) -> 83 | L162: =IF($S162<>"","",IF(AND($E162<=L$1,$B162="M"),MAX(L$2:L161)+1,"")) ->  | M162: =IF($S162<>"","",IF(AND($E162<=M$1,$B162="M"),MAX(M$2:M161)+1,"")) ->  | N162: =IF($S162<>"","",IF(AND($E162<=N$1,$B162="F"),MAX(N$2:N161)+1,"")) ->  | O162: =IF($S162<>"","",IF(AND($E162<=O$1,$B162="F"),MAX(O$2:O161)+1,"")) ->  | P162: =IF(AND($S162<>"",$S162<>"No pot jugar individual"),"",IF(AND($F162<=P$1,$B162="M"),MAX(P$2:P161)+1,"")) -> 140 | Q162: =IF(AND($S162<>"",$S162<>"No pot jugar individual"),"",IF(AND($F162<=Q$1,$B162="M"),MAX(Q$2:Q161)+1,"")) ->  | R162: =IF($S162<>"","",IF($F162<=R$1,MAX(R$2:R161)+1,"")) ->  | T162: 7 | U162: 1 | V162: 1 | W162: 0 | X162: G | Y162: H | Z162: H | AA162: H | AB162: G | AC162: H | AD162: G | AE162: G | AF162: BC | AJ162: BN
A163: 11211 | B163: M | C163: ALSINA Iu | D163: INF-2 | E163: 3 | F163: 2 | G163: LLUÏSOS | H163: LLUÏSOS | I163: 163 | J163: =IF($S163<>"","",IF(AND($E163<=J$1,$B163="M"),MAX(J$2:J162)+1,"")) -> 141 | K163: =IF($S163<>"","",IF(AND($E163<=K$1,$B163="M"),MAX(K$2:K162)+1,"")) -> 84 | L163: =IF($S163<>"","",IF(AND($E163<=L$1,$B163="M"),MAX(L$2:L162)+1,"")) ->  | M163: =IF($S163<>"","",IF(AND($E163<=M$1,$B163="M"),MAX(M$2:M162)+1,"")) ->  | N163: =IF($S163<>"","",IF(AND($E163<=N$1,$B163="F"),MAX(N$2:N162)+1,"")) ->  | O163: =IF($S163<>"","",IF(AND($E163<=O$1,$B163="F"),MAX(O$2:O162)+1,"")) ->  | P163: =IF(AND($S163<>"",$S163<>"No pot jugar individual"),"",IF(AND($F163<=P$1,$B163="M"),MAX(P$2:P162)+1,"")) -> 141 | Q163: =IF(AND($S163<>"",$S163<>"No pot jugar individual"),"",IF(AND($F163<=Q$1,$B163="M"),MAX(Q$2:Q162)+1,"")) ->  | R163: =IF($S163<>"","",IF($F163<=R$1,MAX(R$2:R162)+1,"")) ->  | T163: 7 | U163: =COUNTIF($AF163:$AL163,U$2) -> 1 | V163: 0 | W163: 0 | X163: L | Y163: K | Z163: J | AA163: I | AB163: H | AC163: G | AD163: H | AE163: G | AK163: BC
A164: 10540 | B164: M | C164: FIGOLS Enric | D164: ALE-1 | E164: 2 | F164: 1 | G164: STCUGAT | H164: STCUGAT | I164: 158.26 | J164: =IF($S164<>"","",IF(AND($E164<=J$1,$B164="M"),MAX(J$2:J163)+1,"")) -> 142 | K164: =IF($S164<>"","",IF(AND($E164<=K$1,$B164="M"),MAX(K$2:K163)+1,"")) -> 85 | L164: =IF($S164<>"","",IF(AND($E164<=L$1,$B164="M"),MAX(L$2:L163)+1,"")) -> 32 | M164: =IF($S164<>"","",IF(AND($E164<=M$1,$B164="M"),MAX(M$2:M163)+1,"")) ->  | N164: =IF($S164<>"","",IF(AND($E164<=N$1,$B164="F"),MAX(N$2:N163)+1,"")) ->  | O164: =IF($S164<>"","",IF(AND($E164<=O$1,$B164="F"),MAX(O$2:O163)+1,"")) ->  | P164: =IF(AND($S164<>"",$S164<>"No pot jugar individual"),"",IF(AND($F164<=P$1,$B164="M"),MAX(P$2:P163)+1,"")) -> 142 | Q164: =IF(AND($S164<>"",$S164<>"No pot jugar individual"),"",IF(AND($F164<=Q$1,$B164="M"),MAX(Q$2:Q163)+1,"")) -> 32 | R164: =IF($S164<>"","",IF($F164<=R$1,MAX(R$2:R163)+1,"")) ->  | T164: 7 | U164: 1 | V164: 0 | W164: 0 | X164: I | Y164: H | Z164: H | AA164: G | AB164: G | AC164: G | AD164: G | AE164: H | AL164: BC
A165: 9141 | B165: M | C165: FORES Joan | D165: JUV-2 | E165: 4 | F165: 2 | G165: LLUÏSOS | H165: LLUÏSOS | I165: 157.8 | J165: =IF($S165<>"","",IF(AND($E165<=J$1,$B165="M"),MAX(J$2:J164)+1,"")) -> 143 | K165: =IF($S165<>"","",IF(AND($E165<=K$1,$B165="M"),MAX(K$2:K164)+1,"")) ->  | L165: =IF($S165<>"","",IF(AND($E165<=L$1,$B165="M"),MAX(L$2:L164)+1,"")) ->  | M165: =IF($S165<>"","",IF(AND($E165<=M$1,$B165="M"),MAX(M$2:M164)+1,"")) ->  | N165: =IF($S165<>"","",IF(AND($E165<=N$1,$B165="F"),MAX(N$2:N164)+1,"")) ->  | O165: =IF($S165<>"","",IF(AND($E165<=O$1,$B165="F"),MAX(O$2:O164)+1,"")) ->  | P165: =IF(AND($S165<>"",$S165<>"No pot jugar individual"),"",IF(AND($F165<=P$1,$B165="M"),MAX(P$2:P164)+1,"")) -> 143 | Q165: =IF(AND($S165<>"",$S165<>"No pot jugar individual"),"",IF(AND($F165<=Q$1,$B165="M"),MAX(Q$2:Q164)+1,"")) ->  | R165: =IF($S165<>"","",IF($F165<=R$1,MAX(R$2:R164)+1,"")) ->  | T165: 6 | U165: 1 | V165: 1 | W165: 0 | Y165: G | Z165: H | AA165: G | AB165: F | AC165: G | AD165: H | AE165: G | AG165: BJ | AJ165: BN | AK165: BC
A166: 7757 | B166: M | C166: CIFUENTES Albert | D166: INF-1 | E166: 3 | F166: 2 | G166: SALLENT | H166: SALLENT | I166: 157.01 | J166: =IF($S166<>"","",IF(AND($E166<=J$1,$B166="M"),MAX(J$2:J165)+1,"")) -> 144 | K166: =IF($S166<>"","",IF(AND($E166<=K$1,$B166="M"),MAX(K$2:K165)+1,"")) -> 86 | L166: =IF($S166<>"","",IF(AND($E166<=L$1,$B166="M"),MAX(L$2:L165)+1,"")) ->  | M166: =IF($S166<>"","",IF(AND($E166<=M$1,$B166="M"),MAX(M$2:M165)+1,"")) ->  | N166: =IF($S166<>"","",IF(AND($E166<=N$1,$B166="F"),MAX(N$2:N165)+1,"")) ->  | O166: =IF($S166<>"","",IF(AND($E166<=O$1,$B166="F"),MAX(O$2:O165)+1,"")) ->  | P166: =IF(AND($S166<>"",$S166<>"No pot jugar individual"),"",IF(AND($F166<=P$1,$B166="M"),MAX(P$2:P165)+1,"")) -> 144 | Q166: =IF(AND($S166<>"",$S166<>"No pot jugar individual"),"",IF(AND($F166<=Q$1,$B166="M"),MAX(Q$2:Q165)+1,"")) ->  | R166: =IF($S166<>"","",IF($F166<=R$1,MAX(R$2:R165)+1,"")) ->  | T166: 7 | U166: 3 | V166: 0 | W166: 0 | X166: E | Y166: F | Z166: F | AA166: F | AB166: G | AC166: G | AD166: G | AE166: H | AF166: BC | AI166: BC | AL166: BC
A167: 10146 | B167: M | C167: HERMANS Ilko | D167: ALE-2 | E167: 2 | F167: 1 | G167: LLUÏSOS | H167: LLUÏSOS | I167: 156.64 | J167: =IF($S167<>"","",IF(AND($E167<=J$1,$B167="M"),MAX(J$2:J166)+1,"")) -> 145 | K167: =IF($S167<>"","",IF(AND($E167<=K$1,$B167="M"),MAX(K$2:K166)+1,"")) -> 87 | L167: =IF($S167<>"","",IF(AND($E167<=L$1,$B167="M"),MAX(L$2:L166)+1,"")) -> 33 | M167: =IF($S167<>"","",IF(AND($E167<=M$1,$B167="M"),MAX(M$2:M166)+1,"")) ->  | N167: =IF($S167<>"","",IF(AND($E167<=N$1,$B167="F"),MAX(N$2:N166)+1,"")) ->  | O167: =IF($S167<>"","",IF(AND($E167<=O$1,$B167="F"),MAX(O$2:O166)+1,"")) ->  | P167: =IF(AND($S167<>"",$S167<>"No pot jugar individual"),"",IF(AND($F167<=P$1,$B167="M"),MAX(P$2:P166)+1,"")) -> 145 | Q167: =IF(AND($S167<>"",$S167<>"No pot jugar individual"),"",IF(AND($F167<=Q$1,$B167="M"),MAX(Q$2:Q166)+1,"")) -> 33 | R167: =IF($S167<>"","",IF($F167<=R$1,MAX(R$2:R166)+1,"")) ->  | T167: 7 | U167: 2 | V167: 0 | W167: 0 | X167: H | Y167: H | Z167: G | AA167: G | AB167: G | AC167: G | AD167: G | AE167: H | AJ167: BC | AL167: BC
A168: 7541 | B168: M | C168: ESPINOSA Alex | D168: JUV-2 | E168: 4 | F168: 2 | G168: ATEN82 | H168: ATEN82 | I168: 150.7 | J168: =IF($S168<>"","",IF(AND($E168<=J$1,$B168="M"),MAX(J$2:J167)+1,"")) -> 146 | K168: =IF($S168<>"","",IF(AND($E168<=K$1,$B168="M"),MAX(K$2:K167)+1,"")) ->  | L168: =IF($S168<>"","",IF(AND($E168<=L$1,$B168="M"),MAX(L$2:L167)+1,"")) ->  | M168: =IF($S168<>"","",IF(AND($E168<=M$1,$B168="M"),MAX(M$2:M167)+1,"")) ->  | N168: =IF($S168<>"","",IF(AND($E168<=N$1,$B168="F"),MAX(N$2:N167)+1,"")) ->  | O168: =IF($S168<>"","",IF(AND($E168<=O$1,$B168="F"),MAX(O$2:O167)+1,"")) ->  | P168: =IF(AND($S168<>"",$S168<>"No pot jugar individual"),"",IF(AND($F168<=P$1,$B168="M"),MAX(P$2:P167)+1,"")) -> 146 | Q168: =IF(AND($S168<>"",$S168<>"No pot jugar individual"),"",IF(AND($F168<=Q$1,$B168="M"),MAX(Q$2:Q167)+1,"")) ->  | R168: =IF($S168<>"","",IF($F168<=R$1,MAX(R$2:R167)+1,"")) ->  | T168: 7 | U168: 0 | V168: 0 | W168: 0 | X168: H | Y168: I | Z168: H | AA168: H | AB168: H | AC168: H | AD168: G | AE168: G
A169: 11768 | B169: M | C169: VASO Sebastian | D169: JUV-1 | E169: 4 | F169: 2 | G169: R.ELISENDA | H169: R.ELISENDA | I169: 143.15 | J169: =IF($S169<>"","",IF(AND($E169<=J$1,$B169="M"),MAX(J$2:J168)+1,"")) -> 147 | K169: =IF($S169<>"","",IF(AND($E169<=K$1,$B169="M"),MAX(K$2:K168)+1,"")) ->  | L169: =IF($S169<>"","",IF(AND($E169<=L$1,$B169="M"),MAX(L$2:L168)+1,"")) ->  | M169: =IF($S169<>"","",IF(AND($E169<=M$1,$B169="M"),MAX(M$2:M168)+1,"")) ->  | N169: =IF($S169<>"","",IF(AND($E169<=N$1,$B169="F"),MAX(N$2:N168)+1,"")) ->  | O169: =IF($S169<>"","",IF(AND($E169<=O$1,$B169="F"),MAX(O$2:O168)+1,"")) ->  | P169: =IF(AND($S169<>"",$S169<>"No pot jugar individual"),"",IF(AND($F169<=P$1,$B169="M"),MAX(P$2:P168)+1,"")) -> 147 | Q169: =IF(AND($S169<>"",$S169<>"No pot jugar individual"),"",IF(AND($F169<=Q$1,$B169="M"),MAX(Q$2:Q168)+1,"")) ->  | R169: =IF($S169<>"","",IF($F169<=R$1,MAX(R$2:R168)+1,"")) ->  | T169: 3 | U169: 0 | V169: 1 | W169: 0 | AB169: E | AC169: F | AD169: E | AE169: F | AL169: BN
A170: 8531 | B170: M | C170: LOPEZ Daniel | D170: ALE-2 | E170: 2 | F170: 1 | G170: LA UNIÓ | H170: LA UNIÓ | I170: 141.81 | J170: =IF($S170<>"","",IF(AND($E170<=J$1,$B170="M"),MAX(J$2:J169)+1,"")) -> 148 | K170: =IF($S170<>"","",IF(AND($E170<=K$1,$B170="M"),MAX(K$2:K169)+1,"")) -> 88 | L170: =IF($S170<>"","",IF(AND($E170<=L$1,$B170="M"),MAX(L$2:L169)+1,"")) -> 34 | M170: =IF($S170<>"","",IF(AND($E170<=M$1,$B170="M"),MAX(M$2:M169)+1,"")) ->  | N170: =IF($S170<>"","",IF(AND($E170<=N$1,$B170="F"),MAX(N$2:N169)+1,"")) ->  | O170: =IF($S170<>"","",IF(AND($E170<=O$1,$B170="F"),MAX(O$2:O169)+1,"")) ->  | P170: =IF(AND($S170<>"",$S170<>"No pot jugar individual"),"",IF(AND($F170<=P$1,$B170="M"),MAX(P$2:P169)+1,"")) -> 148 | Q170: =IF(AND($S170<>"",$S170<>"No pot jugar individual"),"",IF(AND($F170<=Q$1,$B170="M"),MAX(Q$2:Q169)+1,"")) -> 34 | R170: =IF($S170<>"","",IF($F170<=R$1,MAX(R$2:R169)+1,"")) ->  | T170: 7 | U170: 0 | V170: 0 | W170: 0 | X170: G | Y170: G | Z170: G | AA170: G | AB170: H | AC170: H | AD170: G | AE170: G
A171: 7146 | B171: M | C171: CRUZ Alejandro | D171: INF-2 | E171: 3 | F171: 2 | G171: FALCONS | H171: FALCONS | I171: 136.92 | J171: =IF($S171<>"","",IF(AND($E171<=J$1,$B171="M"),MAX(J$2:J170)+1,"")) -> 149 | K171: =IF($S171<>"","",IF(AND($E171<=K$1,$B171="M"),MAX(K$2:K170)+1,"")) -> 89 | L171: =IF($S171<>"","",IF(AND($E171<=L$1,$B171="M"),MAX(L$2:L170)+1,"")) ->  | M171: =IF($S171<>"","",IF(AND($E171<=M$1,$B171="M"),MAX(M$2:M170)+1,"")) ->  | N171: =IF($S171<>"","",IF(AND($E171<=N$1,$B171="F"),MAX(N$2:N170)+1,"")) ->  | O171: =IF($S171<>"","",IF(AND($E171<=O$1,$B171="F"),MAX(O$2:O170)+1,"")) ->  | P171: =IF(AND($S171<>"",$S171<>"No pot jugar individual"),"",IF(AND($F171<=P$1,$B171="M"),MAX(P$2:P170)+1,"")) -> 149 | Q171: =IF(AND($S171<>"",$S171<>"No pot jugar individual"),"",IF(AND($F171<=Q$1,$B171="M"),MAX(Q$2:Q170)+1,"")) ->  | R171: =IF($S171<>"","",IF($F171<=R$1,MAX(R$2:R170)+1,"")) ->  | T171: 7 | U171: 1 | V171: 0 | W171: 0 | X171: L | Y171: K | Z171: J | AA171: I | AB171: H | AC171: I | AD171: H | AE171: G | AJ171: BC
A172: 10229 | B172: M | C172: MARTI Eric | D172: INF-2 | E172: 3 | F172: 2 | G172: ATEN82 | H172: ATEN82 | I172: 134.03 | J172: =IF($S172<>"","",IF(AND($E172<=J$1,$B172="M"),MAX(J$2:J171)+1,"")) -> 150 | K172: =IF($S172<>"","",IF(AND($E172<=K$1,$B172="M"),MAX(K$2:K171)+1,"")) -> 90 | L172: =IF($S172<>"","",IF(AND($E172<=L$1,$B172="M"),MAX(L$2:L171)+1,"")) ->  | M172: =IF($S172<>"","",IF(AND($E172<=M$1,$B172="M"),MAX(M$2:M171)+1,"")) ->  | N172: =IF($S172<>"","",IF(AND($E172<=N$1,$B172="F"),MAX(N$2:N171)+1,"")) ->  | O172: =IF($S172<>"","",IF(AND($E172<=O$1,$B172="F"),MAX(O$2:O171)+1,"")) ->  | P172: =IF(AND($S172<>"",$S172<>"No pot jugar individual"),"",IF(AND($F172<=P$1,$B172="M"),MAX(P$2:P171)+1,"")) -> 150 | Q172: =IF(AND($S172<>"",$S172<>"No pot jugar individual"),"",IF(AND($F172<=Q$1,$B172="M"),MAX(Q$2:Q171)+1,"")) ->  | R172: =IF($S172<>"","",IF($F172<=R$1,MAX(R$2:R171)+1,"")) ->  | T172: 7 | U172: 0 | V172: 0 | W172: 0 | X172: L | Y172: L | Z172: K | AA172: J | AB172: I | AC172: H | AD172: H | AE172: G
A173: 7369 | B173: M | C173: GRAS Pau | D173: JUV-1 | E173: 4 | F173: 2 | G173: MATARO | H173: MATARO | I173: 133.2 | J173: =IF($S173<>"","",IF(AND($E173<=J$1,$B173="M"),MAX(J$2:J172)+1,"")) -> 151 | K173: =IF($S173<>"","",IF(AND($E173<=K$1,$B173="M"),MAX(K$2:K172)+1,"")) ->  | L173: =IF($S173<>"","",IF(AND($E173<=L$1,$B173="M"),MAX(L$2:L172)+1,"")) ->  | M173: =IF($S173<>"","",IF(AND($E173<=M$1,$B173="M"),MAX(M$2:M172)+1,"")) ->  | N173: =IF($S173<>"","",IF(AND($E173<=N$1,$B173="F"),MAX(N$2:N172)+1,"")) ->  | O173: =IF($S173<>"","",IF(AND($E173<=O$1,$B173="F"),MAX(O$2:O172)+1,"")) ->  | P173: =IF(AND($S173<>"",$S173<>"No pot jugar individual"),"",IF(AND($F173<=P$1,$B173="M"),MAX(P$2:P172)+1,"")) -> 151 | Q173: =IF(AND($S173<>"",$S173<>"No pot jugar individual"),"",IF(AND($F173<=Q$1,$B173="M"),MAX(Q$2:Q172)+1,"")) ->  | R173: =IF($S173<>"","",IF($F173<=R$1,MAX(R$2:R172)+1,"")) ->  | T173: 7 | U173: 2 | V173: 0 | W173: 0 | X173: K | Y173: J | Z173: I | AA173: H | AB173: G | AC173: H | AD173: G | AE173: H | AJ173: BC | AL173: BC
A174: 7837 | B174: M | C174: VAN Patrik Joan | D174: INF-2 | E174: 3 | F174: 2 | G174: R.ELISENDA | H174: R.ELISENDA | I174: 125.46 | J174: =IF($S174<>"","",IF(AND($E174<=J$1,$B174="M"),MAX(J$2:J173)+1,"")) -> 152 | K174: =IF($S174<>"","",IF(AND($E174<=K$1,$B174="M"),MAX(K$2:K173)+1,"")) -> 91 | L174: =IF($S174<>"","",IF(AND($E174<=L$1,$B174="M"),MAX(L$2:L173)+1,"")) ->  | M174: =IF($S174<>"","",IF(AND($E174<=M$1,$B174="M"),MAX(M$2:M173)+1,"")) ->  | N174: =IF($S174<>"","",IF(AND($E174<=N$1,$B174="F"),MAX(N$2:N173)+1,"")) ->  | O174: =IF($S174<>"","",IF(AND($E174<=O$1,$B174="F"),MAX(O$2:O173)+1,"")) ->  | P174: =IF(AND($S174<>"",$S174<>"No pot jugar individual"),"",IF(AND($F174<=P$1,$B174="M"),MAX(P$2:P173)+1,"")) -> 152 | Q174: =IF(AND($S174<>"",$S174<>"No pot jugar individual"),"",IF(AND($F174<=Q$1,$B174="M"),MAX(Q$2:Q173)+1,"")) ->  | R174: =IF($S174<>"","",IF($F174<=R$1,MAX(R$2:R173)+1,"")) ->  | T174: 7 | U174: 0 | V174: 0 | W174: 0 | X174: F | Y174: G | Z174: G | AA174: G | AB174: G | AC174: G | AD174: G | AE174: G | AF174: BJ
A175: 6096 | B175: M | C175: POUS Jacob | D175: BEN-2 | E175: 1 | F175: 1 | G175: MATARO | H175: MATARO | I175: 125.05 | J175: =IF($S175<>"","",IF(AND($E175<=J$1,$B175="M"),MAX(J$2:J174)+1,"")) -> 153 | K175: =IF($S175<>"","",IF(AND($E175<=K$1,$B175="M"),MAX(K$2:K174)+1,"")) -> 92 | L175: =IF($S175<>"","",IF(AND($E175<=L$1,$B175="M"),MAX(L$2:L174)+1,"")) -> 35 | M175: =IF($S175<>"","",IF(AND($E175<=M$1,$B175="M"),MAX(M$2:M174)+1,"")) -> 5 | N175: =IF($S175<>"","",IF(AND($E175<=N$1,$B175="F"),MAX(N$2:N174)+1,"")) ->  | O175: =IF($S175<>"","",IF(AND($E175<=O$1,$B175="F"),MAX(O$2:O174)+1,"")) ->  | P175: =IF(AND($S175<>"",$S175<>"No pot jugar individual"),"",IF(AND($F175<=P$1,$B175="M"),MAX(P$2:P174)+1,"")) -> 153 | Q175: =IF(AND($S175<>"",$S175<>"No pot jugar individual"),"",IF(AND($F175<=Q$1,$B175="M"),MAX(Q$2:Q174)+1,"")) -> 35 | R175: =IF($S175<>"","",IF($F175<=R$1,MAX(R$2:R174)+1,"")) ->  | T175: 7 | U175: 0 | V175: 0 | W175: 0 | X175: J | Y175: J | Z175: I | AA175: H | AB175: H | AC175: H | AD175: G | AE175: H
A176: 10222 | B176: M | C176: MUÑOZ Miguel | D176: INF-2 | E176: 3 | F176: 2 | G176: CALELLA | H176: CALELLA | I176: 124.62 | J176: =IF($S176<>"","",IF(AND($E176<=J$1,$B176="M"),MAX(J$2:J175)+1,"")) -> 154 | K176: =IF($S176<>"","",IF(AND($E176<=K$1,$B176="M"),MAX(K$2:K175)+1,"")) -> 93 | L176: =IF($S176<>"","",IF(AND($E176<=L$1,$B176="M"),MAX(L$2:L175)+1,"")) ->  | M176: =IF($S176<>"","",IF(AND($E176<=M$1,$B176="M"),MAX(M$2:M175)+1,"")) ->  | N176: =IF($S176<>"","",IF(AND($E176<=N$1,$B176="F"),MAX(N$2:N175)+1,"")) ->  | O176: =IF($S176<>"","",IF(AND($E176<=O$1,$B176="F"),MAX(O$2:O175)+1,"")) ->  | P176: =IF(AND($S176<>"",$S176<>"No pot jugar individual"),"",IF(AND($F176<=P$1,$B176="M"),MAX(P$2:P175)+1,"")) -> 154 | Q176: =IF(AND($S176<>"",$S176<>"No pot jugar individual"),"",IF(AND($F176<=Q$1,$B176="M"),MAX(Q$2:Q175)+1,"")) ->  | R176: =IF($S176<>"","",IF($F176<=R$1,MAX(R$2:R175)+1,"")) ->  | T176: 7 | U176: 2 | V176: 0 | W176: 0 | X176: G | Y176: F | Z176: G | AA176: G | AB176: H | AC176: H | AD176: I | AE176: H | AI176: BC | AK176: BC
A177: 8574 | B177: M | C177: LOPEZ Alex | D177: ALE-1 | E177: 2 | F177: 1 | G177: LA UNIÓ | H177: LA UNIÓ | I177: 123.38 | J177: =IF($S177<>"","",IF(AND($E177<=J$1,$B177="M"),MAX(J$2:J176)+1,"")) -> 155 | K177: =IF($S177<>"","",IF(AND($E177<=K$1,$B177="M"),MAX(K$2:K176)+1,"")) -> 94 | L177: =IF($S177<>"","",IF(AND($E177<=L$1,$B177="M"),MAX(L$2:L176)+1,"")) -> 36 | M177: =IF($S177<>"","",IF(AND($E177<=M$1,$B177="M"),MAX(M$2:M176)+1,"")) ->  | N177: =IF($S177<>"","",IF(AND($E177<=N$1,$B177="F"),MAX(N$2:N176)+1,"")) ->  | O177: =IF($S177<>"","",IF(AND($E177<=O$1,$B177="F"),MAX(O$2:O176)+1,"")) ->  | P177: =IF(AND($S177<>"",$S177<>"No pot jugar individual"),"",IF(AND($F177<=P$1,$B177="M"),MAX(P$2:P176)+1,"")) -> 155 | Q177: =IF(AND($S177<>"",$S177<>"No pot jugar individual"),"",IF(AND($F177<=Q$1,$B177="M"),MAX(Q$2:Q176)+1,"")) -> 36 | R177: =IF($S177<>"","",IF($F177<=R$1,MAX(R$2:R176)+1,"")) ->  | T177: 7 | U177: 0 | V177: 0 | W177: 0 | X177: F | Y177: G | Z177: H | AA177: I | AB177: I | AC177: H | AD177: H | AE177: H
A178: 8722 | B178: F | C178: BACHS Mariona | D178: BEN-2 | E178: 1 | F178: 0 | G178: EUROCLIMA BDN | H178: EUROCLIMA BDN | I178: 119.63 | J178: =IF($S178<>"","",IF(AND($E178<=J$1,$B178="M"),MAX(J$2:J177)+1,"")) ->  | K178: =IF($S178<>"","",IF(AND($E178<=K$1,$B178="M"),MAX(K$2:K177)+1,"")) ->  | L178: =IF($S178<>"","",IF(AND($E178<=L$1,$B178="M"),MAX(L$2:L177)+1,"")) ->  | M178: =IF($S178<>"","",IF(AND($E178<=M$1,$B178="M"),MAX(M$2:M177)+1,"")) ->  | N178: =IF($S178<>"","",IF(AND($E178<=N$1,$B178="F"),MAX(N$2:N177)+1,"")) -> 21 | O178: =IF($S178<>"","",IF(AND($E178<=O$1,$B178="F"),MAX(O$2:O177)+1,"")) -> 10 | P178: =IF(AND($S178<>"",$S178<>"No pot jugar individual"),"",IF(AND($F178<=P$1,$B178="M"),MAX(P$2:P177)+1,"")) ->  | Q178: =IF(AND($S178<>"",$S178<>"No pot jugar individual"),"",IF(AND($F178<=Q$1,$B178="M"),MAX(Q$2:Q177)+1,"")) ->  | R178: =IF($S178<>"","",IF($F178<=R$1,MAX(R$2:R177)+1,"")) -> 21 | T178: 7 | U178: 0 | V178: 0 | W178: 0 | X178: G | Y178: H | Z178: H | AA178: H | AB178: H | AC178: H | AD178: H | AE178: H
A179: 10342 | B179: F | C179: DUEÑAS Clara | D179: JUV-1 | E179: 4 | F179: 0 | G179: HORTA | H179: HORTA | I179: 119.1 | J179: =IF($S179<>"","",IF(AND($E179<=J$1,$B179="M"),MAX(J$2:J178)+1,"")) ->  | K179: =IF($S179<>"","",IF(AND($E179<=K$1,$B179="M"),MAX(K$2:K178)+1,"")) ->  | L179: =IF($S179<>"","",IF(AND($E179<=L$1,$B179="M"),MAX(L$2:L178)+1,"")) ->  | M179: =IF($S179<>"","",IF(AND($E179<=M$1,$B179="M"),MAX(M$2:M178)+1,"")) ->  | N179: =IF($S179<>"","",IF(AND($E179<=N$1,$B179="F"),MAX(N$2:N178)+1,"")) -> 22 | O179: =IF($S179<>"","",IF(AND($E179<=O$1,$B179="F"),MAX(O$2:O178)+1,"")) ->  | P179: =IF(AND($S179<>"",$S179<>"No pot jugar individual"),"",IF(AND($F179<=P$1,$B179="M"),MAX(P$2:P178)+1,"")) ->  | Q179: =IF(AND($S179<>"",$S179<>"No pot jugar individual"),"",IF(AND($F179<=Q$1,$B179="M"),MAX(Q$2:Q178)+1,"")) ->  | R179: =IF($S179<>"","",IF($F179<=R$1,MAX(R$2:R178)+1,"")) -> 22 | T179: 7 | U179: 2 | V179: 0 | W179: 0 | X179: H | Y179: G | Z179: H | AA179: G | AB179: H | AC179: H | AD179: H | AE179: H | AG179: BC | AI179: BJ | AJ179: BC
A180: 7589 | B180: M | C180: BUENO Poul Ignasi | D180: BEN-2 | E180: 1 | F180: 1 | G180: MASQUEFA | H180: MASQUEFA | I180: 118.39 | J180: =IF($S180<>"","",IF(AND($E180<=J$1,$B180="M"),MAX(J$2:J179)+1,"")) -> 156 | K180: =IF($S180<>"","",IF(AND($E180<=K$1,$B180="M"),MAX(K$2:K179)+1,"")) -> 95 | L180: =IF($S180<>"","",IF(AND($E180<=L$1,$B180="M"),MAX(L$2:L179)+1,"")) -> 37 | M180: =IF($S180<>"","",IF(AND($E180<=M$1,$B180="M"),MAX(M$2:M179)+1,"")) -> 6 | N180: =IF($S180<>"","",IF(AND($E180<=N$1,$B180="F"),MAX(N$2:N179)+1,"")) ->  | O180: =IF($S180<>"","",IF(AND($E180<=O$1,$B180="F"),MAX(O$2:O179)+1,"")) ->  | P180: =IF(AND($S180<>"",$S180<>"No pot jugar individual"),"",IF(AND($F180<=P$1,$B180="M"),MAX(P$2:P179)+1,"")) -> 156 | Q180: =IF(AND($S180<>"",$S180<>"No pot jugar individual"),"",IF(AND($F180<=Q$1,$B180="M"),MAX(Q$2:Q179)+1,"")) -> 37 | R180: =IF($S180<>"","",IF($F180<=R$1,MAX(R$2:R179)+1,"")) ->  | T180: 7 | U180: 1 | V180: 0 | W180: 0 | X180: G | Y180: G | Z180: G | AA180: G | AB180: G | AC180: G | AD180: H | AE180: H | AK180: BC
A181: 8150 | B181: M | C181: LANDAJO Eric | D181: INF-1 | E181: 3 | F181: 2 | G181: R.ELISENDA | H181: R.ELISENDA | I181: 116.86 | J181: =IF($S181<>"","",IF(AND($E181<=J$1,$B181="M"),MAX(J$2:J180)+1,"")) -> 157 | K181: =IF($S181<>"","",IF(AND($E181<=K$1,$B181="M"),MAX(K$2:K180)+1,"")) -> 96 | L181: =IF($S181<>"","",IF(AND($E181<=L$1,$B181="M"),MAX(L$2:L180)+1,"")) ->  | M181: =IF($S181<>"","",IF(AND($E181<=M$1,$B181="M"),MAX(M$2:M180)+1,"")) ->  | N181: =IF($S181<>"","",IF(AND($E181<=N$1,$B181="F"),MAX(N$2:N180)+1,"")) ->  | O181: =IF($S181<>"","",IF(AND($E181<=O$1,$B181="F"),MAX(O$2:O180)+1,"")) ->  | P181: =IF(AND($S181<>"",$S181<>"No pot jugar individual"),"",IF(AND($F181<=P$1,$B181="M"),MAX(P$2:P180)+1,"")) -> 157 | Q181: =IF(AND($S181<>"",$S181<>"No pot jugar individual"),"",IF(AND($F181<=Q$1,$B181="M"),MAX(Q$2:Q180)+1,"")) ->  | R181: =IF($S181<>"","",IF($F181<=R$1,MAX(R$2:R180)+1,"")) ->  | T181: 7 | U181: 0 | V181: 0 | W181: 0 | X181: H | Y181: H | Z181: H | AA181: H | AB181: H | AC181: H | AD181: H | AE181: H | AI181: BJ
A182: 7115 | B182: M | C182: ORTUÑO Ferran | D182: JUV-1 | E182: 4 | F182: 2 | G182: FALCONS | H182: FALCONS | I182: 116.55 | J182: =IF($S182<>"","",IF(AND($E182<=J$1,$B182="M"),MAX(J$2:J181)+1,"")) -> 158 | K182: =IF($S182<>"","",IF(AND($E182<=K$1,$B182="M"),MAX(K$2:K181)+1,"")) ->  | L182: =IF($S182<>"","",IF(AND($E182<=L$1,$B182="M"),MAX(L$2:L181)+1,"")) ->  | M182: =IF($S182<>"","",IF(AND($E182<=M$1,$B182="M"),MAX(M$2:M181)+1,"")) ->  | N182: =IF($S182<>"","",IF(AND($E182<=N$1,$B182="F"),MAX(N$2:N181)+1,"")) ->  | O182: =IF($S182<>"","",IF(AND($E182<=O$1,$B182="F"),MAX(O$2:O181)+1,"")) ->  | P182: =IF(AND($S182<>"",$S182<>"No pot jugar individual"),"",IF(AND($F182<=P$1,$B182="M"),MAX(P$2:P181)+1,"")) -> 158 | Q182: =IF(AND($S182<>"",$S182<>"No pot jugar individual"),"",IF(AND($F182<=Q$1,$B182="M"),MAX(Q$2:Q181)+1,"")) ->  | R182: =IF($S182<>"","",IF($F182<=R$1,MAX(R$2:R181)+1,"")) ->  | T182: 7 | U182: 0 | V182: 0 | W182: 0 | X182: K | Y182: K | Z182: K | AA182: J | AB182: I | AC182: I | AD182: H | AE182: H
A183: 9222 | B183: M | C183: ULLOA Ferran | D183: JUV-1 | E183: 4 | F183: 2 | G183: LLUÏSOS | H183: LLUÏSOS | I183: 113.06 | J183: =IF($S183<>"","",IF(AND($E183<=J$1,$B183="M"),MAX(J$2:J182)+1,"")) -> 159 | K183: =IF($S183<>"","",IF(AND($E183<=K$1,$B183="M"),MAX(K$2:K182)+1,"")) ->  | L183: =IF($S183<>"","",IF(AND($E183<=L$1,$B183="M"),MAX(L$2:L182)+1,"")) ->  | M183: =IF($S183<>"","",IF(AND($E183<=M$1,$B183="M"),MAX(M$2:M182)+1,"")) ->  | N183: =IF($S183<>"","",IF(AND($E183<=N$1,$B183="F"),MAX(N$2:N182)+1,"")) ->  | O183: =IF($S183<>"","",IF(AND($E183<=O$1,$B183="F"),MAX(O$2:O182)+1,"")) ->  | P183: =IF(AND($S183<>"",$S183<>"No pot jugar individual"),"",IF(AND($F183<=P$1,$B183="M"),MAX(P$2:P182)+1,"")) -> 159 | Q183: =IF(AND($S183<>"",$S183<>"No pot jugar individual"),"",IF(AND($F183<=Q$1,$B183="M"),MAX(Q$2:Q182)+1,"")) ->  | R183: =IF($S183<>"","",IF($F183<=R$1,MAX(R$2:R182)+1,"")) ->  | T183: 7 | U183: =COUNTIF($AF183:$AL183,U$2) -> 0 | V183: 0 | W183: 0 | X183: K | Y183: K | Z183: J | AA183: J | AB183: I | AC183: H | AD183: H | AE183: H
A184: 10252 | B184: M | C184: GRANADOS Joel | D184: INF-1 | E184: 3 | F184: 2 | G184: SALLENT | H184: SALLENT | I184: 111.97 | J184: =IF($S184<>"","",IF(AND($E184<=J$1,$B184="M"),MAX(J$2:J183)+1,"")) -> 160 | K184: =IF($S184<>"","",IF(AND($E184<=K$1,$B184="M"),MAX(K$2:K183)+1,"")) -> 97 | L184: =IF($S184<>"","",IF(AND($E184<=L$1,$B184="M"),MAX(L$2:L183)+1,"")) ->  | M184: =IF($S184<>"","",IF(AND($E184<=M$1,$B184="M"),MAX(M$2:M183)+1,"")) ->  | N184: =IF($S184<>"","",IF(AND($E184<=N$1,$B184="F"),MAX(N$2:N183)+1,"")) ->  | O184: =IF($S184<>"","",IF(AND($E184<=O$1,$B184="F"),MAX(O$2:O183)+1,"")) ->  | P184: =IF(AND($S184<>"",$S184<>"No pot jugar individual"),"",IF(AND($F184<=P$1,$B184="M"),MAX(P$2:P183)+1,"")) -> 160 | Q184: =IF(AND($S184<>"",$S184<>"No pot jugar individual"),"",IF(AND($F184<=Q$1,$B184="M"),MAX(Q$2:Q183)+1,"")) ->  | R184: =IF($S184<>"","",IF($F184<=R$1,MAX(R$2:R183)+1,"")) ->  | T184: 7 | U184: 2 | V184: 0 | W184: 0 | X184: G | Y184: G | Z184: H | AA184: H | AB184: H | AC184: I | AD184: H | AE184: H | AJ184: BC | AL184: BC
A185: 10576 | B185: M | C185: SAURINA Guillem | D185: INF-1 | E185: 3 | F185: 2 | G185: HOSPIT | H185: HOSPIT | I185: 107.48 | J185: =IF($S185<>"","",IF(AND($E185<=J$1,$B185="M"),MAX(J$2:J184)+1,"")) -> 161 | K185: =IF($S185<>"","",IF(AND($E185<=K$1,$B185="M"),MAX(K$2:K184)+1,"")) -> 98 | L185: =IF($S185<>"","",IF(AND($E185<=L$1,$B185="M"),MAX(L$2:L184)+1,"")) ->  | M185: =IF($S185<>"","",IF(AND($E185<=M$1,$B185="M"),MAX(M$2:M184)+1,"")) ->  | N185: =IF($S185<>"","",IF(AND($E185<=N$1,$B185="F"),MAX(N$2:N184)+1,"")) ->  | O185: =IF($S185<>"","",IF(AND($E185<=O$1,$B185="F"),MAX(O$2:O184)+1,"")) ->  | P185: =IF(AND($S185<>"",$S185<>"No pot jugar individual"),"",IF(AND($F185<=P$1,$B185="M"),MAX(P$2:P184)+1,"")) -> 161 | Q185: =IF(AND($S185<>"",$S185<>"No pot jugar individual"),"",IF(AND($F185<=Q$1,$B185="M"),MAX(Q$2:Q184)+1,"")) ->  | R185: =IF($S185<>"","",IF($F185<=R$1,MAX(R$2:R184)+1,"")) ->  | T185: 7 | U185: 0 | V185: 1 | W185: 0 | X185: I | Y185: I | Z185: I | AA185: H | AB185: I | AC185: H | AD185: H | AE185: H | AI185: BN
A186: 10299 | B186: M | C186: OLIVERAS Albert-Sobash | D186: JUV-1 | E186: 4 | F186: 2 | G186: LLUÏSOS | H186: LLUÏSOS | I186: 105.77 | J186: =IF($S186<>"","",IF(AND($E186<=J$1,$B186="M"),MAX(J$2:J185)+1,"")) -> 162 | K186: =IF($S186<>"","",IF(AND($E186<=K$1,$B186="M"),MAX(K$2:K185)+1,"")) ->  | L186: =IF($S186<>"","",IF(AND($E186<=L$1,$B186="M"),MAX(L$2:L185)+1,"")) ->  | M186: =IF($S186<>"","",IF(AND($E186<=M$1,$B186="M"),MAX(M$2:M185)+1,"")) ->  | N186: =IF($S186<>"","",IF(AND($E186<=N$1,$B186="F"),MAX(N$2:N185)+1,"")) ->  | O186: =IF($S186<>"","",IF(AND($E186<=O$1,$B186="F"),MAX(O$2:O185)+1,"")) ->  | P186: =IF(AND($S186<>"",$S186<>"No pot jugar individual"),"",IF(AND($F186<=P$1,$B186="M"),MAX(P$2:P185)+1,"")) -> 162 | Q186: =IF(AND($S186<>"",$S186<>"No pot jugar individual"),"",IF(AND($F186<=Q$1,$B186="M"),MAX(Q$2:Q185)+1,"")) ->  | R186: =IF($S186<>"","",IF($F186<=R$1,MAX(R$2:R185)+1,"")) ->  | T186: 7 | U186: 1 | V186: 0 | W186: 0 | X186: I | Y186: I | Z186: H | AA186: H | AB186: H | AC186: H | AD186: I | AE186: I | AL186: BC
A187: 8689 | B187: M | C187: SANTOS Daniel | D187: JUV-1 | E187: 4 | F187: 2 | G187: OLESA | H187: OLESA | I187: 104.2 | J187: =IF($S187<>"","",IF(AND($E187<=J$1,$B187="M"),MAX(J$2:J186)+1,"")) -> 163 | K187: =IF($S187<>"","",IF(AND($E187<=K$1,$B187="M"),MAX(K$2:K186)+1,"")) ->  | L187: =IF($S187<>"","",IF(AND($E187<=L$1,$B187="M"),MAX(L$2:L186)+1,"")) ->  | M187: =IF($S187<>"","",IF(AND($E187<=M$1,$B187="M"),MAX(M$2:M186)+1,"")) ->  | N187: =IF($S187<>"","",IF(AND($E187<=N$1,$B187="F"),MAX(N$2:N186)+1,"")) ->  | O187: =IF($S187<>"","",IF(AND($E187<=O$1,$B187="F"),MAX(O$2:O186)+1,"")) ->  | P187: =IF(AND($S187<>"",$S187<>"No pot jugar individual"),"",IF(AND($F187<=P$1,$B187="M"),MAX(P$2:P186)+1,"")) -> 163 | Q187: =IF(AND($S187<>"",$S187<>"No pot jugar individual"),"",IF(AND($F187<=Q$1,$B187="M"),MAX(Q$2:Q186)+1,"")) ->  | R187: =IF($S187<>"","",IF($F187<=R$1,MAX(R$2:R186)+1,"")) ->  | T187: 7 | U187: 1 | V187: 0 | W187: 0 | X187: G | Y187: H | Z187: H | AA187: H | AB187: H | AC187: H | AD187: I | AE187: H | AF187: BC
A188: 6857 | B188: M | C188: CABOT Gerard | D188: INF-2 | E188: 3 | F188: 2 | G188: LLUÏSOS | H188: LLUÏSOS | I188: 102.55 | J188: =IF($S188<>"","",IF(AND($E188<=J$1,$B188="M"),MAX(J$2:J187)+1,"")) -> 164 | K188: =IF($S188<>"","",IF(AND($E188<=K$1,$B188="M"),MAX(K$2:K187)+1,"")) -> 99 | L188: =IF($S188<>"","",IF(AND($E188<=L$1,$B188="M"),MAX(L$2:L187)+1,"")) ->  | M188: =IF($S188<>"","",IF(AND($E188<=M$1,$B188="M"),MAX(M$2:M187)+1,"")) ->  | N188: =IF($S188<>"","",IF(AND($E188<=N$1,$B188="F"),MAX(N$2:N187)+1,"")) ->  | O188: =IF($S188<>"","",IF(AND($E188<=O$1,$B188="F"),MAX(O$2:O187)+1,"")) ->  | P188: =IF(AND($S188<>"",$S188<>"No pot jugar individual"),"",IF(AND($F188<=P$1,$B188="M"),MAX(P$2:P187)+1,"")) -> 164 | Q188: =IF(AND($S188<>"",$S188<>"No pot jugar individual"),"",IF(AND($F188<=Q$1,$B188="M"),MAX(Q$2:Q187)+1,"")) ->  | R188: =IF($S188<>"","",IF($F188<=R$1,MAX(R$2:R187)+1,"")) ->  | T188: 7 | U188: 1 | V188: 0 | W188: 0 | X188: L | Y188: K | Z188: J | AA188: K | AB188: J | AC188: I | AD188: H | AE188: G | AH188: BC
A189: 10121 | B189: M | C189: EVANGELISTA Enzo | D189: ALE-2 | E189: 2 | F189: 1 | G189: LLUÏSOS | H189: LLUÏSOS | I189: 99.14 | J189: =IF($S189<>"","",IF(AND($E189<=J$1,$B189="M"),MAX(J$2:J188)+1,"")) -> 165 | K189: =IF($S189<>"","",IF(AND($E189<=K$1,$B189="M"),MAX(K$2:K188)+1,"")) -> 100 | L189: =IF($S189<>"","",IF(AND($E189<=L$1,$B189="M"),MAX(L$2:L188)+1,"")) -> 38 | M189: =IF($S189<>"","",IF(AND($E189<=M$1,$B189="M"),MAX(M$2:M188)+1,"")) ->  | N189: =IF($S189<>"","",IF(AND($E189<=N$1,$B189="F"),MAX(N$2:N188)+1,"")) ->  | O189: =IF($S189<>"","",IF(AND($E189<=O$1,$B189="F"),MAX(O$2:O188)+1,"")) ->  | P189: =IF(AND($S189<>"",$S189<>"No pot jugar individual"),"",IF(AND($F189<=P$1,$B189="M"),MAX(P$2:P188)+1,"")) -> 165 | Q189: =IF(AND($S189<>"",$S189<>"No pot jugar individual"),"",IF(AND($F189<=Q$1,$B189="M"),MAX(Q$2:Q188)+1,"")) -> 38 | R189: =IF($S189<>"","",IF($F189<=R$1,MAX(R$2:R188)+1,"")) ->  | T189: 7 | U189: 0 | V189: 0 | W189: 0 | X189: I | Y189: I | Z189: I | AA189: I | AB189: I | AC189: I | AD189: H | AE189: H | AF189: SA
A190: 7113 | B190: M | C190: MANENT Marti | D190: JUV-1 | E190: 4 | F190: 2 | G190: FALCONS | H190: FALCONS | I190: 95.5 | J190: =IF($S190<>"","",IF(AND($E190<=J$1,$B190="M"),MAX(J$2:J189)+1,"")) -> 166 | K190: =IF($S190<>"","",IF(AND($E190<=K$1,$B190="M"),MAX(K$2:K189)+1,"")) ->  | L190: =IF($S190<>"","",IF(AND($E190<=L$1,$B190="M"),MAX(L$2:L189)+1,"")) ->  | M190: =IF($S190<>"","",IF(AND($E190<=M$1,$B190="M"),MAX(M$2:M189)+1,"")) ->  | N190: =IF($S190<>"","",IF(AND($E190<=N$1,$B190="F"),MAX(N$2:N189)+1,"")) ->  | O190: =IF($S190<>"","",IF(AND($E190<=O$1,$B190="F"),MAX(O$2:O189)+1,"")) ->  | P190: =IF(AND($S190<>"",$S190<>"No pot jugar individual"),"",IF(AND($F190<=P$1,$B190="M"),MAX(P$2:P189)+1,"")) -> 166 | Q190: =IF(AND($S190<>"",$S190<>"No pot jugar individual"),"",IF(AND($F190<=Q$1,$B190="M"),MAX(Q$2:Q189)+1,"")) ->  | R190: =IF($S190<>"","",IF($F190<=R$1,MAX(R$2:R189)+1,"")) ->  | T190: 7 | U190: 0 | V190: 0 | W190: 0 | X190: K | Y190: K | Z190: K | AA190: J | AB190: J | AC190: I | AD190: H | AE190: H
A191: 5917 | B191: M | C191: ISERN Pau | D191: JUV-1 | E191: 4 | F191: 2 | G191: R.ELISENDA | H191: R.ELISENDA | I191: 86.95 | J191: =IF($S191<>"","",IF(AND($E191<=J$1,$B191="M"),MAX(J$2:J190)+1,"")) -> 167 | K191: =IF($S191<>"","",IF(AND($E191<=K$1,$B191="M"),MAX(K$2:K190)+1,"")) ->  | L191: =IF($S191<>"","",IF(AND($E191<=L$1,$B191="M"),MAX(L$2:L190)+1,"")) ->  | M191: =IF($S191<>"","",IF(AND($E191<=M$1,$B191="M"),MAX(M$2:M190)+1,"")) ->  | N191: =IF($S191<>"","",IF(AND($E191<=N$1,$B191="F"),MAX(N$2:N190)+1,"")) ->  | O191: =IF($S191<>"","",IF(AND($E191<=O$1,$B191="F"),MAX(O$2:O190)+1,"")) ->  | P191: =IF(AND($S191<>"",$S191<>"No pot jugar individual"),"",IF(AND($F191<=P$1,$B191="M"),MAX(P$2:P190)+1,"")) -> 167 | Q191: =IF(AND($S191<>"",$S191<>"No pot jugar individual"),"",IF(AND($F191<=Q$1,$B191="M"),MAX(Q$2:Q190)+1,"")) ->  | R191: =IF($S191<>"","",IF($F191<=R$1,MAX(R$2:R190)+1,"")) ->  | T191: 7 | U191: 0 | V191: 0 | W191: 0 | X191: H | Y191: I | Z191: H | AA191: I | AB191: I | AC191: H | AD191: H | AE191: H
A192: 10481 | B192: M | C192: VERGARA Dan | D192: ALE-1 | E192: 2 | F192: 1 | G192: MATARO | H192: MATARO | I192: 86.95 | J192: =IF($S192<>"","",IF(AND($E192<=J$1,$B192="M"),MAX(J$2:J191)+1,"")) -> 168 | K192: =IF($S192<>"","",IF(AND($E192<=K$1,$B192="M"),MAX(K$2:K191)+1,"")) -> 101 | L192: =IF($S192<>"","",IF(AND($E192<=L$1,$B192="M"),MAX(L$2:L191)+1,"")) -> 39 | M192: =IF($S192<>"","",IF(AND($E192<=M$1,$B192="M"),MAX(M$2:M191)+1,"")) ->  | N192: =IF($S192<>"","",IF(AND($E192<=N$1,$B192="F"),MAX(N$2:N191)+1,"")) ->  | O192: =IF($S192<>"","",IF(AND($E192<=O$1,$B192="F"),MAX(O$2:O191)+1,"")) ->  | P192: =IF(AND($S192<>"",$S192<>"No pot jugar individual"),"",IF(AND($F192<=P$1,$B192="M"),MAX(P$2:P191)+1,"")) -> 168 | Q192: =IF(AND($S192<>"",$S192<>"No pot jugar individual"),"",IF(AND($F192<=Q$1,$B192="M"),MAX(Q$2:Q191)+1,"")) -> 39 | R192: =IF($S192<>"","",IF($F192<=R$1,MAX(R$2:R191)+1,"")) ->  | T192: 7 | U192: 0 | V192: 1 | W192: 0 | X192: I | Y192: I | Z192: I | AA192: H | AB192: H | AC192: H | AD192: H | AE192: I | AL192: BN
A193: 10510 | B193: M | C193: DARANAS Set | D193: ALE-2 | E193: 2 | F193: 1 | G193: VILANOVA | H193: VILANOVA | I193: 85.95 | J193: =IF($S193<>"","",IF(AND($E193<=J$1,$B193="M"),MAX(J$2:J192)+1,"")) -> 169 | K193: =IF($S193<>"","",IF(AND($E193<=K$1,$B193="M"),MAX(K$2:K192)+1,"")) -> 102 | L193: =IF($S193<>"","",IF(AND($E193<=L$1,$B193="M"),MAX(L$2:L192)+1,"")) -> 40 | M193: =IF($S193<>"","",IF(AND($E193<=M$1,$B193="M"),MAX(M$2:M192)+1,"")) ->  | N193: =IF($S193<>"","",IF(AND($E193<=N$1,$B193="F"),MAX(N$2:N192)+1,"")) ->  | O193: =IF($S193<>"","",IF(AND($E193<=O$1,$B193="F"),MAX(O$2:O192)+1,"")) ->  | P193: =IF(AND($S193<>"",$S193<>"No pot jugar individual"),"",IF(AND($F193<=P$1,$B193="M"),MAX(P$2:P192)+1,"")) -> 169 | Q193: =IF(AND($S193<>"",$S193<>"No pot jugar individual"),"",IF(AND($F193<=Q$1,$B193="M"),MAX(Q$2:Q192)+1,"")) -> 40 | R193: =IF($S193<>"","",IF($F193<=R$1,MAX(R$2:R192)+1,"")) ->  | T193: 7 | U193: 0 | V193: 0 | W193: 0 | X193: I | Y193: I | Z193: I | AA193: I | AB193: I | AC193: I | AD193: H | AE193: H | AJ193: BJ
A194: 10249 | B194: M | C194: HERNÁNDEZ Marc | D194: INF-1 | E194: 3 | F194: 2 | G194: OLESA | H194: OLESA | I194: 85.66 | J194: =IF($S194<>"","",IF(AND($E194<=J$1,$B194="M"),MAX(J$2:J193)+1,"")) -> 170 | K194: =IF($S194<>"","",IF(AND($E194<=K$1,$B194="M"),MAX(K$2:K193)+1,"")) -> 103 | L194: =IF($S194<>"","",IF(AND($E194<=L$1,$B194="M"),MAX(L$2:L193)+1,"")) ->  | M194: =IF($S194<>"","",IF(AND($E194<=M$1,$B194="M"),MAX(M$2:M193)+1,"")) ->  | N194: =IF($S194<>"","",IF(AND($E194<=N$1,$B194="F"),MAX(N$2:N193)+1,"")) ->  | O194: =IF($S194<>"","",IF(AND($E194<=O$1,$B194="F"),MAX(O$2:O193)+1,"")) ->  | P194: =IF(AND($S194<>"",$S194<>"No pot jugar individual"),"",IF(AND($F194<=P$1,$B194="M"),MAX(P$2:P193)+1,"")) -> 170 | Q194: =IF(AND($S194<>"",$S194<>"No pot jugar individual"),"",IF(AND($F194<=Q$1,$B194="M"),MAX(Q$2:Q193)+1,"")) ->  | R194: =IF($S194<>"","",IF($F194<=R$1,MAX(R$2:R193)+1,"")) ->  | T194: 7 | U194: 0 | V194: 0 | W194: 0 | X194: M | Y194: L | Z194: K | AA194: J | AB194: I | AC194: I | AD194: I | AE194: H
A195: 11179 | B195: M | C195: BAUCELLS Genís | D195: ALE-2 | E195: =IF(LEFT(D195,1)="P",1,IF(LEFT(D195,1)="B",1,IF(LEFT(D195,1)="A",2,IF(LEFT(D195,1)="I",3,4)))) -> 2 | F195: =IF(B195="F",0,IF(LEFT(D195,1)="P",1,IF(LEFT(D195,1)="B",1,IF(LEFT(D195,1)="A",1,IF(LEFT(D195,1)="I",2,2))))) -> 1 | G195: VIC | H195: VIC | I195: 83.1 | J195: =IF($S195<>"","",IF(AND($E195<=J$1,$B195="M"),MAX(J$2:J194)+1,"")) -> 171 | K195: =IF($S195<>"","",IF(AND($E195<=K$1,$B195="M"),MAX(K$2:K194)+1,"")) -> 104 | L195: =IF($S195<>"","",IF(AND($E195<=L$1,$B195="M"),MAX(L$2:L194)+1,"")) -> 41 | M195: =IF($S195<>"","",IF(AND($E195<=M$1,$B195="M"),MAX(M$2:M194)+1,"")) ->  | N195: =IF($S195<>"","",IF(AND($E195<=N$1,$B195="F"),MAX(N$2:N194)+1,"")) ->  | O195: =IF($S195<>"","",IF(AND($E195<=O$1,$B195="F"),MAX(O$2:O194)+1,"")) ->  | P195: =IF(AND($S195<>"",$S195<>"No pot jugar individual"),"",IF(AND($F195<=P$1,$B195="M"),MAX(P$2:P194)+1,"")) -> 171 | Q195: =IF(AND($S195<>"",$S195<>"No pot jugar individual"),"",IF(AND($F195<=Q$1,$B195="M"),MAX(Q$2:Q194)+1,"")) -> 41 | R195: =IF($S195<>"","",IF($F195<=R$1,MAX(R$2:R194)+1,"")) ->  | S195: =IF(1=1,"",IF(W195<>0,"No pot jugar",IF(OR(AE195="Y",AE195="Z",G195="INDEPEN",G195="R.ELISENDA"),"No pot jugar",IF(T195-U195-V195-W195=0,IF(V195<>0,"No pot jugar",IF(AND(B195="M",OR(G195="INDEPEN",G195="R.ELISENDA")),"No pot jugar individual","")),IF(AND(B195="M",OR(G195="INDEPEN",G195="R.ELISENDA")),"No pot jugar individual",""))))) ->  | T195: =7-COUNTBLANK(X195:AD195) -> 7 | U195: 1 | V195: 0 | W195: 0 | X195: M | Y195: N | Z195: M | AA195: L | AB195: K | AC195: J | AD195: I | AE195: H | AF195: BC
A196: 10157 | B196: M | C196: CAÑAS Hugo | D196: ALE-2 | E196: 2 | F196: 1 | G196: LA UNIÓ | H196: LA UNIÓ | I196: 79.65 | J196: =IF($S196<>"","",IF(AND($E196<=J$1,$B196="M"),MAX(J$2:J195)+1,"")) -> 172 | K196: =IF($S196<>"","",IF(AND($E196<=K$1,$B196="M"),MAX(K$2:K195)+1,"")) -> 105 | L196: =IF($S196<>"","",IF(AND($E196<=L$1,$B196="M"),MAX(L$2:L195)+1,"")) -> 42 | M196: =IF($S196<>"","",IF(AND($E196<=M$1,$B196="M"),MAX(M$2:M195)+1,"")) ->  | N196: =IF($S196<>"","",IF(AND($E196<=N$1,$B196="F"),MAX(N$2:N195)+1,"")) ->  | O196: =IF($S196<>"","",IF(AND($E196<=O$1,$B196="F"),MAX(O$2:O195)+1,"")) ->  | P196: =IF(AND($S196<>"",$S196<>"No pot jugar individual"),"",IF(AND($F196<=P$1,$B196="M"),MAX(P$2:P195)+1,"")) -> 172 | Q196: =IF(AND($S196<>"",$S196<>"No pot jugar individual"),"",IF(AND($F196<=Q$1,$B196="M"),MAX(Q$2:Q195)+1,"")) -> 42 | R196: =IF($S196<>"","",IF($F196<=R$1,MAX(R$2:R195)+1,"")) ->  | T196: 7 | U196: 0 | V196: 0 | W196: 0 | X196: G | Y196: G | Z196: H | AA196: H | AB196: H | AC196: H | AD196: H | AE196: H | AG196: BJ | AH196: BJ | AI196: BJ | AJ196: BJ | AK196: BJ | AL196: BJ
A197: 8128 | B197: M | C197: PINEDA Jordi | D197: JUV-3 | E197: 4 | F197: 2 | G197: PREMIA | H197: PREMIA | I197: 76.98 | J197: =IF($S197<>"","",IF(AND($E197<=J$1,$B197="M"),MAX(J$2:J196)+1,"")) -> 173 | K197: =IF($S197<>"","",IF(AND($E197<=K$1,$B197="M"),MAX(K$2:K196)+1,"")) ->  | L197: =IF($S197<>"","",IF(AND($E197<=L$1,$B197="M"),MAX(L$2:L196)+1,"")) ->  | M197: =IF($S197<>"","",IF(AND($E197<=M$1,$B197="M"),MAX(M$2:M196)+1,"")) ->  | N197: =IF($S197<>"","",IF(AND($E197<=N$1,$B197="F"),MAX(N$2:N196)+1,"")) ->  | O197: =IF($S197<>"","",IF(AND($E197<=O$1,$B197="F"),MAX(O$2:O196)+1,"")) ->  | P197: =IF(AND($S197<>"",$S197<>"No pot jugar individual"),"",IF(AND($F197<=P$1,$B197="M"),MAX(P$2:P196)+1,"")) -> 173 | Q197: =IF(AND($S197<>"",$S197<>"No pot jugar individual"),"",IF(AND($F197<=Q$1,$B197="M"),MAX(Q$2:Q196)+1,"")) ->  | R197: =IF($S197<>"","",IF($F197<=R$1,MAX(R$2:R196)+1,"")) ->  | T197: 5 | U197: 2 | V197: 0 | W197: 0 | Z197: F | AA197: G | AB197: H | AC197: H | AD197: H | AE197: I | AI197: BC | AL197: BC
A198: 10051 | B198: M | C198: ROJO Mario | D198: BEN-1 | E198: 1 | F198: 1 | G198: EUROCLIMA BDN | H198: EUROCLIMA BDN | I198: 75.71 | J198: =IF($S198<>"","",IF(AND($E198<=J$1,$B198="M"),MAX(J$2:J197)+1,"")) -> 174 | K198: =IF($S198<>"","",IF(AND($E198<=K$1,$B198="M"),MAX(K$2:K197)+1,"")) -> 106 | L198: =IF($S198<>"","",IF(AND($E198<=L$1,$B198="M"),MAX(L$2:L197)+1,"")) -> 43 | M198: =IF($S198<>"","",IF(AND($E198<=M$1,$B198="M"),MAX(M$2:M197)+1,"")) -> 7 | N198: =IF($S198<>"","",IF(AND($E198<=N$1,$B198="F"),MAX(N$2:N197)+1,"")) ->  | O198: =IF($S198<>"","",IF(AND($E198<=O$1,$B198="F"),MAX(O$2:O197)+1,"")) ->  | P198: =IF(AND($S198<>"",$S198<>"No pot jugar individual"),"",IF(AND($F198<=P$1,$B198="M"),MAX(P$2:P197)+1,"")) -> 174 | Q198: =IF(AND($S198<>"",$S198<>"No pot jugar individual"),"",IF(AND($F198<=Q$1,$B198="M"),MAX(Q$2:Q197)+1,"")) -> 43 | R198: =IF($S198<>"","",IF($F198<=R$1,MAX(R$2:R197)+1,"")) ->  | T198: 7 | U198: 0 | V198: 0 | W198: 0 | X198: H | Y198: H | Z198: I | AA198: I | AB198: I | AC198: I | AD198: H | AE198: I
A199: 10213 | B199: M | C199: CREUS Oriol | D199: INF-1 | E199: 3 | F199: 2 | G199: PREMIA | H199: PREMIA | I199: 74.4 | J199: =IF($S199<>"","",IF(AND($E199<=J$1,$B199="M"),MAX(J$2:J198)+1,"")) -> 175 | K199: =IF($S199<>"","",IF(AND($E199<=K$1,$B199="M"),MAX(K$2:K198)+1,"")) -> 107 | L199: =IF($S199<>"","",IF(AND($E199<=L$1,$B199="M"),MAX(L$2:L198)+1,"")) ->  | M199: =IF($S199<>"","",IF(AND($E199<=M$1,$B199="M"),MAX(M$2:M198)+1,"")) ->  | N199: =IF($S199<>"","",IF(AND($E199<=N$1,$B199="F"),MAX(N$2:N198)+1,"")) ->  | O199: =IF($S199<>"","",IF(AND($E199<=O$1,$B199="F"),MAX(O$2:O198)+1,"")) ->  | P199: =IF(AND($S199<>"",$S199<>"No pot jugar individual"),"",IF(AND($F199<=P$1,$B199="M"),MAX(P$2:P198)+1,"")) -> 175 | Q199: =IF(AND($S199<>"",$S199<>"No pot jugar individual"),"",IF(AND($F199<=Q$1,$B199="M"),MAX(Q$2:Q198)+1,"")) ->  | R199: =IF($S199<>"","",IF($F199<=R$1,MAX(R$2:R198)+1,"")) ->  | T199: 7 | U199: 1 | V199: 0 | W199: 0 | X199: H | Y199: H | Z199: H | AA199: H | AB199: H | AC199: H | AD199: H | AE199: I | AL199: BC
A200: 11165 | B200: M | C200: DINARES Jordi | D200: JUV-1 | E200: 4 | F200: 2 | G200: CNSABA | H200: CNSABA | I200: 73.58 | J200: =IF($S200<>"","",IF(AND($E200<=J$1,$B200="M"),MAX(J$2:J199)+1,"")) -> 176 | K200: =IF($S200<>"","",IF(AND($E200<=K$1,$B200="M"),MAX(K$2:K199)+1,"")) ->  | L200: =IF($S200<>"","",IF(AND($E200<=L$1,$B200="M"),MAX(L$2:L199)+1,"")) ->  | M200: =IF($S200<>"","",IF(AND($E200<=M$1,$B200="M"),MAX(M$2:M199)+1,"")) ->  | N200: =IF($S200<>"","",IF(AND($E200<=N$1,$B200="F"),MAX(N$2:N199)+1,"")) ->  | O200: =IF($S200<>"","",IF(AND($E200<=O$1,$B200="F"),MAX(O$2:O199)+1,"")) ->  | P200: =IF(AND($S200<>"",$S200<>"No pot jugar individual"),"",IF(AND($F200<=P$1,$B200="M"),MAX(P$2:P199)+1,"")) -> 176 | Q200: =IF(AND($S200<>"",$S200<>"No pot jugar individual"),"",IF(AND($F200<=Q$1,$B200="M"),MAX(Q$2:Q199)+1,"")) ->  | R200: =IF($S200<>"","",IF($F200<=R$1,MAX(R$2:R199)+1,"")) ->  | T200: 7 | U200: 0 | V200: 0 | W200: 0 | X200: K | Y200: L | Z200: L | AA200: K | AB200: J | AC200: I | AD200: I | AE200: I
... 203 more rows
